Workbook

Sheet Input
A1: COMPANY: | B1: COLUMBIA GAS OF PENNSYLVANIA, INC. | AX1: {?}~
A2: DOCKET NO.: | B2: R-2018-2647577
A3: DEMAND ALLOCATOR: | B3: 5 | AX3: :prcrspage {?}~g
A4: FORECASTED RATE YEAR | B4: DECEMBER 31, 2019 | AX4: {quit}
A5: WITNESS: | B5: M. P. BALMERT
A6: TITLE: | B6: ALLOCATED COST OF SERVICE | AX6: :pcp5qq
A7: STUDY TYPE: | B7: =VLOOKUP($B3,STUDY,3) -> PEAK & AVERAGE | AW7: CUSTCHG | AX7: :pci5qq
A8: TITLE 3:
A9: EXHIBIT TITLE: | B9: =VLOOKUP($B3,STUDY,4) -> 111, SCHEDULE 2
A10: TOTAL # OF PAGES: | B10: 13 | AX10: :plml0~r0~qqq
A11: TIME/DATE STAMP (Y/N): | B11: Y | AX11: :pcolqq
A12: REAL DATE: | B12: =IF($B$11="Y",NOW()," ") -> 2018-03-12T12:25:23.280
A13: REAL TIME: | B13: =IF($B$11="Y",NOW()," ") -> 43171.51763
A15: ALLOC FACTOR TITLE | B15: EXHIBIT MPB-2
AX16: :prcrspage 1c~g
A17: CLASS 1: | B17: RSS/RDS | AX17: {quit}
A18: CLASS 2: | B18: SGSS1/SCD1/SGDS1
A19: CLASS 3: | B19: SGSS2/SCD2/SGDS2
A20: CLASS 4: | B20: SDS/LGSS
A21: CLASS 5: | B21: LDS/LGSS
A22: CLASS 6: | B22: MLDS
A24: PAGE 1: | B24: RATE OF RETURN BY CLASS - PROFORMA @ PROPOSED RATES
A25: PAGE 2: | B25: RATE OF RETURN BY CLASS - CURRENT @ CURRENT RATES
A26: PAGE 3: | B26: GROSS PLANT (Accounts 101 & 106)
A27: PAGE 4: | B27: DEPRECIATION RESERVE
A28: PAGE 5: | B28: DEPRECIATION AND AMORTIZATION EXPENSE
A29: PAGE 6: | B29: OPERATING REVENUE @ PROPOSED & CURRENT RATES
A30: PAGE 7: | B30: PRODUCTION & DISTRIBUTION O&M EXPENSES
A31: PAGE 8: | B31: OTHER O&M EXPENSES
A32: PAGE 9: | B32: TAXES OTHER THAN INCOME TAXES
A33: PAGE 10: | B33: RATE BASE
A34: PAGE 11: | B34: STATE/FEDERAL INCOME TAXES
A35: PAGE 12: | B35: ALLOCATION FACTORS
A36: PAGE 13: | B36: ALLOCATION FACTORS (CONT.)

Sheet Tab & Text Color Legend
A1: Worksheet | B1: Pages to be filed for ACOS Study
B3: Pages to be filed for Customer Charge Study
A5: Worksheet | B5: Summary Data. Mostly fed from input pages and requires very few manual entries. Used to calculate allocation factors and directly feed pages files for ACOS Study
A7: Worksheet | B7: Development of Allocation Factors
A9: Worksheet | B9: Summary of Allocation Factors - $ and %
A11: Worksheet | B11: Input Tabs - Updated with EXACT copy of various Exhibits (color coding within these sheets is irrelevant)
A13: Worksheet | B13: Various calculations, conversion tables, etc used to support Summary Data
A15: Blue Text | B15: Manual Input
A17: Black Text | B17: Calculated Field

Sheet Title Exh 111, Sch. 1
A1: =Input!$B$1 -> COLUMBIA GAS OF PENNSYLVANIA, INC.
A2: =Input!$B$6&" - TABLE OF CONTENTS" -> ALLOCATED COST OF SERVICE - TABLE OF CONTENTS
A4: ="DOCKET NO.: "&+Input!$B$2 -> DOCKET NO.: R-2018-2647577
A5: ="WITNESS: "&+Input!$B$5 -> WITNESS: M. P. BALMERT
A6: ="STUDY TYPE: "&+Input!$B$7 -> STUDY TYPE: PEAK & AVERAGE
A7: ="FORECASTED TEST YEAR: "&+Input!$B$4 -> FORECASTED TEST YEAR: DECEMBER 31, 2019
A8: =Input!$B$9 -> 111, SCHEDULE 2
A10: PAGE | B10: DESCRIPTION
A12: 1 | B12: =Input!$B$24 -> RATE OF RETURN BY CLASS - PROFORMA @ PROPOSED RATES
A13: =A12+1 -> 2 | B13: =Input!$B$25 -> RATE OF RETURN BY CLASS - CURRENT @ CURRENT RATES
A14: 3 | B14: =Input!$B$26 -> GROSS PLANT (Accounts 101 & 106)
A15: 4 | B15: =Input!$B$27 -> DEPRECIATION RESERVE
A16: 5 | B16: =Input!$B$28 -> DEPRECIATION AND AMORTIZATION EXPENSE
A17: 6 | B17: =Input!$B$29 -> OPERATING REVENUE @ PROPOSED & CURRENT RATES
A18: 7 | B18: =Input!$B$30 -> PRODUCTION & DISTRIBUTION O&M EXPENSES
A19: 8 | B19: =Input!$B$31 -> OTHER O&M EXPENSES
A20: 9 | B20: =Input!$B$32 -> TAXES OTHER THAN INCOME TAXES
A21: 10 | B21: =Input!$B$33 -> RATE BASE
A22: 11 | B22: =Input!$B$34 -> STATE/FEDERAL INCOME TAXES
A23: 12 | B23: =Input!$B$35 -> ALLOCATION FACTORS
A24: 13 | B24: =Input!$B$36 -> ALLOCATION FACTORS (CONT.)
A25: =IF(Input!B3=20,"14-22"," ") ->  | B25: =IF(Input!B3=20,"CUSTOMER CHARGE - INCLUDING CUSTOMER COMPONENT OF MAINS"," ") -> 
A26: =IF(Input!B3=20,"23-30"," ") ->  | B26: =IF(Input!B3=20,"CUSTOMER CHARGE - EXCLUDING CUSTOMER COMPONENT OF MAINS"," ") -> 
A27: 31 | B27: C&I NETWORK CUSTOMER BASED COSTS

Sheet Pg 1
A1: =Input!$B$1 -> COLUMBIA GAS OF PENNSYLVANIA, INC.
A2: ='Title Exh 111, Sch. 1'!$B$12 -> RATE OF RETURN BY CLASS - PROFORMA @ PROPOSED RATES
A3: ="FOR THE TWELVE MONTHS ENDED "&Input!$B$4 -> FOR THE TWELVE MONTHS ENDED DECEMBER 31, 2019
A5: =Input!$B$6 -> ALLOCATED COST OF SERVICE | L5: =Input!B9 -> 111, SCHEDULE 2
A6: =Input!$B$7 -> PEAK & AVERAGE | L6: ="PAGE 1 OF "&FIXED(Input!$B$10,0,TRUE) -> PAGE 1 OF 13
A7: =IF(Input!$B$8=0," ", Input!$B$8) ->  | L7: ="WITNESS: "&Input!$B$5 -> WITNESS: M. P. BALMERT
A8: LINE | E8: ALLOC | F8: TOTAL
A9: NO. | D9: ACCOUNT TITLE | E9: FACTOR | F9: COMPANY | G9: =Input!$B$17 -> RSS/RDS | H9: =Input!$B$18 -> SGSS1/SCD1/SGDS1 | I9: =Input!$B$19 -> SGSS2/SCD2/SGDS2 | J9: =Input!$B$20 -> SDS/LGSS | K9: =Input!$B$21 -> LDS/LGSS | L9: =Input!$B$22 -> MLDS
D10: (A) | E10: (B) | F10: (C) | G10: (D) | H10: (E) | I10: (F) | J10: (G) | K10: (H) | L10: (I)
F11: $ | G11: $ | H11: $ | I11: $ | J11: $ | K11: $ | L11: $
A13: 1 | D13: TOTAL REVENUE [PAGE 6] | F13: =ROUND(SUM(G13:L13),5) -> 622285201.3 | G13: ='Pg 6'!G40 -> 462878128.5 | H13: ='Pg 6'!H40 -> 58830257.6 | I13: ='Pg 6'!I40 -> 55532280.5 | J13: ='Pg 6'!J40 -> 23458935.2 | K13: ='Pg 6'!K40 -> 20067870.3 | L13: ='Pg 6'!L40 -> 1517729.2 | M13: =IF(ROUND(F13,0)<>ROUND('Cost of Service from Exh 102'!J28,0),"Out of Balance "&+ "by "&ROUND(+F13-'Cost of Service from Exh 102'!J28,0),"") -> Out of Balance by -165
A15: =A13+1 -> 2 | D15: PRODUCTS PURCHASED [PAGE 7] | F15: =ROUND(SUM(G15:L15),5) -> 163506936 | G15: ='Pg 7'!G13 -> 120184061 | H15: ='Pg 7'!H13 -> 21240416 | I15: ='Pg 7'!I13 -> 18646735 | J15: ='Pg 7'!J13 -> 3167707 | K15: ='Pg 7'!K13 -> 0 | L15: ='Pg 7'!L13 -> 268017 | M15: =IF(ROUND(F15,0)<>ROUND('Cost of Service from Exh 102'!J31,0),"Out of Balance "&+ "by "&+F15-'Cost of Service from Exh 102'!J31,"") -> 
A16: =A15+1 -> 3 | D16: OPERATING & MAINTENANCE EXPENSES [PAGES 7 & 8] | F16: =ROUND(SUM(G16:L16),5) -> 191576058.5 | G16: =ROUND('Pg 2'!G16+(('Pg 1'!G13-'Pg 2'!G13)*('Rate Base & Taxes'!$C$51)),5) -> 147935118.3 | H16: =ROUND('Pg 2'!H16+(('Pg 1'!H13-'Pg 2'!H13)*('Rate Base & Taxes'!$C$51)),5) -> 13807450.6 | I16: =ROUND('Pg 2'!I16+(('Pg 1'!I13-'Pg 2'!I13)*('Rate Base & Taxes'!$C$51)),5) -> 10827103.57 | J16: =ROUND('Pg 2'!J16+(('Pg 1'!J13-'Pg 2'!J13)*('Rate Base & Taxes'!$C$51)),5) -> 7429362.726 | K16: =ROUND('Pg 2'!K16+(('Pg 1'!K13-'Pg 2'!K13)*('Rate Base & Taxes'!$C$51)),5) -> 11526299.33 | L16: =ROUND('Pg 2'!L16+(('Pg 1'!L13-'Pg 2'!L13)*('Rate Base & Taxes'!$C$51)),5) -> 50724.00353 | M16: =IF(ROUND(F16,0)<>ROUND('Cost of Service from Exh 102'!J34,0),"Out of Balance "&+ "by "&ROUND(+F16-'Cost of Service from Exh 102'!J34,0),"") -> Out of Balance by -2
A17: =A16+1 -> 4 | D17: DEPRECIATION & AMORTIZATION [PAGE 5] | F17: =ROUND(SUM(G17:L17),5) -> 77301907.43 | G17: ='Pg 5'!G72 -> 50818852.4 | H17: ='Pg 5'!H72 -> 7015734.8 | I17: ='Pg 5'!I72 -> 6871125.4 | J17: ='Pg 5'!J72 -> 4625250.5 | K17: ='Pg 5'!K72 -> 7927625.7 | L17: ='Pg 5'!L72 -> 43318.63 | M17: =IF(ROUND(F17,0)<>ROUND(('Cost of Service from Exh 102'!J35+'Cost of Service from Exh 102'!J36),0),"Out of Balance "&+ "by "&+F17-('Cost of Service from Exh 102'!J35+'Cost of Service from Exh 102'!J36),"") -> Out of Balance by -0.135999992489815
A18: =A17+1 -> 5 | D18: TAXES OTHER THAN INCOME [PAGE 9] | F18: =ROUND(SUM(G18:L18),5) -> 3456802.6 | G18: ='Pg 9'!G25 -> 2450685.4 | H18: ='Pg 9'!H25 -> 311165.3 | I18: ='Pg 9'!I25 -> 254410.3 | J18: ='Pg 9'!J25 -> 160135.3 | K18: ='Pg 9'!K25 -> 279909.5 | L18: ='Pg 9'!L25 -> 496.8 | M18: =IF(ROUND(F18,0)<>ROUND('Cost of Service from Exh 102'!J37,0),"Out of Balance "&+ "by "&+F18-'Cost of Service from Exh 102'!J37,"") -> 
A19: =A18+1 -> 6 | D19: TOTAL EXPENSES & TAXES OTHER THAN INCOME | F19: =SUM(F15:F18) -> 435841704.5 | G19: 321388717.1 | H19: 42374766.7 | I19: 36599374.27 | J19: 15382455.53 | K19: 19733834.53 | L19: 362556.4335
A21: =A19+1 -> 7 | D21: OPERATING INCOME BEFORE TAXES | F21: =ROUND(SUM(G21:L21),5) -> 186443496.8 | G21: =G13-G19 -> 141489411.4 | H21: 16455490.9 | I21: 18932906.23 | J21: 8076479.674 | K21: 334035.7708 | L21: 1155172.766 | M21: =IF(ROUND(F21,0)<>ROUND('Cost of Service from Exh 102'!J41,0),"Out of Balance "&+ "by "&ROUND(+F21-'Cost of Service from Exh 102'!J41,0),"") -> Out of Balance by -163
A23: =A21+1 -> 8 | D23: INCOME TAXES | F23: =ROUND(SUM(G23:L23),5) -> 31547472.93 | G23: ='Pg 2'!G23+(('Pg 1'!G21-'Pg 2'!G21)*('Cost of Service from Exh 102'!$I$43/'Cost of Service from Exh 102'!$I$41)) -> 26305475.03 | H23: ='Pg 2'!H23+(('Pg 1'!H21-'Pg 2'!H21)*('Cost of Service from Exh 102'!$I$43/'Cost of Service from Exh 102'!$I$41)) -> 2773732.24 | I23: ='Pg 2'!I23+(('Pg 1'!I21-'Pg 2'!I21)*('Cost of Service from Exh 102'!$I$43/'Cost of Service from Exh 102'!$I$41)) -> 3429927.008 | J23: ='Pg 2'!J23+(('Pg 1'!J21-'Pg 2'!J21)*('Cost of Service from Exh 102'!$I$43/'Cost of Service from Exh 102'!$I$41)) -> 966161.5886 | K23: ='Pg 2'!K23+(('Pg 1'!K21-'Pg 2'!K21)*('Cost of Service from Exh 102'!$I$43/'Cost of Service from Exh 102'!$I$41)) -> -2250636.855 | L23: ='Pg 2'!L23+(('Pg 1'!L21-'Pg 2'!L21)*('Cost of Service from Exh 102'!$I$43/'Cost of Service from Exh 102'!$I$41)) -> 322813.9232 | M23: =IF(ROUND(F23,0)<>ROUND('Exh 107, pg 16 '!K68,0),"Out of Balance "&+ "by "&ROUND(+F23-'Exh 107, pg 16 '!K68,0),"") -> Out of Balance by -42
A24: =A23+1 -> 9 | D24: ='Rate Base & Taxes'!$B$3 -> INVESTMENT TAX CREDIT | E24: ='Rate Base & Taxes'!$C$3 -> 12 | F24: ='Rate Base & Taxes'!$D$3 -> -299568 | G24: =ROUND(F24-(SUM(H24:L24)),1) -> -193928.3 | H24: =ROUND((VLOOKUP($E24,ALLOC,19)*$F24),1) -> -27359.5 | I24: =ROUND((VLOOKUP($E24,ALLOC,20)*$F24),1) -> -27701.1 | J24: =ROUND((VLOOKUP($E24,ALLOC,21)*$F24),1) -> -18043 | K24: =ROUND((VLOOKUP($E24,ALLOC,22)*$F24),1) -> -32398.3 | L24: =ROUND((VLOOKUP($E24,ALLOC,23)*$F24),1) -> -137.8 | M24: =IF(ROUND(F24,0)<>ROUND('Cost of Service from Exh 102'!J44,0),"Out of Balance "&+ "by "&ROUND(+F24-'Cost of Service from Exh 102'!J44,0),"") -> 
A25: =A24+1 -> 10 | D25: NET INCOME TAXES | F25: =SUM(F23:F24) -> 31247904.93 | G25: 26111546.73 | H25: 2746372.74 | I25: 3402225.908 | J25: 948118.5886 | K25: -2283035.155 | L25: 322676.1232
A27: =A25+1 -> 11 | D27: OPERATING INCOME | F27: =F21-F25 -> 155195591.8 | G27: 115377864.7 | H27: 13709118.16 | I27: 15530680.32 | J27: 7128361.085 | K27: 2617070.926 | L27: 832496.6433
A29: =A27+1 -> 12 | D29: RATE BASE [PAGE 10] | F29: ='Pg 10'!F38 -> 1915996457 | G29: ='Pg 10'!G38 -> 1225209544 | H29: ='Pg 10'!H38 -> 175172623.9 | I29: ='Pg 10'!I38 -> 183609586.8 | J29: ='Pg 10'!J38 -> 120227140.1 | K29: ='Pg 10'!K38 -> 210892957.3 | L29: ='Pg 10'!L38 -> 884604.19 | M29: =IF(ROUND(F29,0)<>ROUND('Cost of Service from Exh 102'!J48,0),"Out of Balance "&+ "by "&ROUND(+F29-'Cost of Service from Exh 102'!J48,0),"") -> 
A31: =A29+1 -> 13 | D31: RATE OF RETURN EARNED ON RATE BASE | F31: =IF(F29=0,0,ROUND(F27/F29,5)) -> 0.081 | G31: 0.09417 | H31: 0.07826 | I31: 0.08459 | J31: 0.05929 | K31: 0.01241 | L31: 0.9411
A32: =A31+1 -> 14 | D32: UNITIZED RETURN | F32: 1 | G32: =ROUND(G31/$F$31,2) -> 1.16 | H32: 0.97 | I32: 1.04 | J32: 0.73 | K32: 0.15 | L32: 11.62

Sheet Pg 2
A1: =Input!$B$1 -> COLUMBIA GAS OF PENNSYLVANIA, INC.
A2: ='Title Exh 111, Sch. 1'!$B$13 -> RATE OF RETURN BY CLASS - CURRENT @ CURRENT RATES
A3: ="FOR THE TWELVE MONTHS ENDED "&Input!$B$4 -> FOR THE TWELVE MONTHS ENDED DECEMBER 31, 2019
A5: =Input!$B$6 -> ALLOCATED COST OF SERVICE | L5: =Input!$B$9 -> 111, SCHEDULE 2
A6: =Input!$B$7 -> PEAK & AVERAGE | L6: ="PAGE 2 OF "&FIXED(Input!$B$10,0,TRUE) -> PAGE 2 OF 13
A7: =IF(Input!$B$8=0," ", Input!$B$8) ->  | L7: ="WITNESS: "&Input!$B$5 -> WITNESS: M. P. BALMERT
A8: LINE | E8: ALLOC | F8: TOTAL
A9: NO. | D9: ACCOUNT TITLE | E9: FACTOR | F9: COMPANY | G9: =Input!$B$17 -> RSS/RDS | H9: =Input!$B$18 -> SGSS1/SCD1/SGDS1 | I9: =Input!$B$19 -> SGSS2/SCD2/SGDS2 | J9: =Input!$B$20 -> SDS/LGSS | K9: =Input!$B$21 -> LDS/LGSS | L9: =Input!$B$22 -> MLDS
D10: (A) | E10: (B) | F10: (C) | G10: (D) | H10: (E) | I10: (F) | J10: (G) | K10: (H) | L10: (I)
F11: $ | G11: $ | H11: $ | I11: $ | J11: $ | K11: $ | L11: $
A13: 1 | D13: TOTAL REVENUE [PAGE 6] | F13: =ROUND(SUM(G13:L13),5) -> 575348119.3 | G13: ='Pg 6'!G69 -> 425172822.8 | H13: ='Pg 6'!H69 -> 56439542.8 | I13: ='Pg 6'!I69 -> 53366239.8 | J13: ='Pg 6'!J69 -> 20955033.5 | K13: ='Pg 6'!K69 -> 17939194.6 | L13: ='Pg 6'!L69 -> 1475285.8 | M13: =IF(ROUND(F13,0)<>ROUND('Cost of Service from Exh 102'!H28,0),"Out of Balance "&+ "by "&ROUND(+F13-'Cost of Service from Exh 102'!H28,0),"") -> 
A15: =A13+1 -> 2 | D15: PRODUCTS PURCHASED [PAGE 7] | F15: =ROUND(SUM(G15:L15),5) -> 163506936 | G15: ='Pg 1'!G15 -> 120184061 | H15: ='Pg 1'!H15 -> 21240416 | I15: ='Pg 1'!I15 -> 18646735 | J15: ='Pg 1'!J15 -> 3167707 | K15: ='Pg 1'!K15 -> 0 | L15: ='Pg 1'!L15 -> 268017 | M15: =IF(ROUND(F15,0)<>ROUND('Cost of Service from Exh 102'!H31,0),"Out of Balance "&+ "by "&+F15-'Cost of Service from Exh 102'!H31,"") -> 
A16: =A15+1 -> 3 | D16: OPERATING & MAINTENANCE EXPENSES [PAGES 7 & 8] | F16: =ROUND(SUM(G16:L16),5) -> 191017256.1 | G16: ='Pg 8'!G56-'Pg 2'!G15 -> 147486223.4 | H16: ='Pg 8'!H56-'Pg 2'!H15 -> 13778988.3 | I16: ='Pg 8'!I56-'Pg 2'!I15 -> 10801316.1 | J16: ='Pg 8'!J56-'Pg 2'!J15 -> 7399552.9 | K16: ='Pg 8'!K56-'Pg 2'!K15 -> 11500956.7 | L16: ='Pg 8'!L56-'Pg 2'!L15 -> 50218.7 | M16: =IF(ROUND(F16,0)<>ROUND('Cost of Service from Exh 102'!H34,0),"Out of Balance "&+ "by "&+ROUND(F16,0)-ROUND('Cost of Service from Exh 102'!H34,0),"") -> 
A17: =A16+1 -> 4 | D17: DEPRECIATION & AMORTIZATION [PAGE 5] | F17: =ROUND(SUM(G17:L17),5) -> 77301907.43 | G17: ='Pg 1'!G17 -> 50818852.4 | H17: ='Pg 1'!H17 -> 7015734.8 | I17: ='Pg 1'!I17 -> 6871125.4 | J17: ='Pg 1'!J17 -> 4625250.5 | K17: ='Pg 1'!K17 -> 7927625.7 | L17: ='Pg 1'!L17 -> 43318.63 | M17: =IF(ROUND(F17,0)<>ROUND(('Cost of Service from Exh 102'!H35+'Cost of Service from Exh 102'!H36),0),"Out of Balance "&+ "by "&+F17-('Cost of Service from Exh 102'!H35+'Cost of Service from Exh 102'!H36),"") -> Out of Balance by -0.135999992489815
A18: =A17+1 -> 5 | D18: TAXES OTHER THAN INCOME [PAGE 9] | F18: =ROUND(SUM(G18:L18),5) -> 3456802.6 | G18: ='Pg 9'!G25 -> 2450685.4 | H18: ='Pg 9'!H25 -> 311165.3 | I18: ='Pg 9'!I25 -> 254410.3 | J18: ='Pg 9'!J25 -> 160135.3 | K18: ='Pg 9'!K25 -> 279909.5 | L18: ='Pg 9'!L25 -> 496.8 | M18: =IF(ROUND(F18,0)<>ROUND('Cost of Service from Exh 102'!J37,0),"Out of Balance "&+ "by "&+F18-'Cost of Service from Exh 102'!J37,"") -> 
A19: =A18+1 -> 6 | D19: TOTAL EXPENSES & TAXES OTHER THAN INCOME | F19: =SUM(F15:F18) -> 435282902.1 | G19: 320939822.2 | H19: 42346304.4 | I19: 36573586.8 | J19: 15352645.7 | K19: 19708491.9 | L19: 362051.13
A21: =A19+1 -> 7 | D21: OPERATING INCOME BEFORE TAXES | F21: =ROUND(SUM(G21:L21),5) -> 140065217.2 | G21: =G13-G19 -> 104233000.6 | H21: 14093238.4 | I21: 16792653 | J21: 5602387.8 | K21: -1769297.3 | L21: 1113234.67 | M21: =IF(ROUND(F21,0)<>ROUND('Cost of Service from Exh 102'!H41,0),"Out of Balance "&+ "by "&ROUND(+F21-'Cost of Service from Exh 102'!H41,0),"") -> 
A23: =A21+1 -> 8 | D23: INCOME TAXES [PAGE 11] | F23: =ROUND(SUM(G23:L23),5) -> 19611901.88 | G23: ='Pg 11'!F38 -> 16717440.66 | H23: ='Pg 11'!G38 -> 2165800.406 | I23: ='Pg 11'!H38 -> 2879127.265 | J23: ='Pg 11'!I38 -> 329447.6009 | K23: ='Pg 11'!J38 -> -2791935.099 | L23: ='Pg 11'!K38 -> 312021.0448 | M23: =IF(ROUND(F23,0)<>ROUND('Cost of Service from Exh 102'!H43,0),"Out of Balance "&+ "by "&ROUND(+F23-'Cost of Service from Exh 102'!H43,0),"") -> 
A24: =A23+1 -> 9 | D24: ='Rate Base & Taxes'!$B$3 -> INVESTMENT TAX CREDIT | E24: ='Rate Base & Taxes'!$C$3 -> 12 | F24: ='Rate Base & Taxes'!$D$3 -> -299568 | G24: =ROUND(F24-(SUM(H24:L24)),1) -> -193928.3 | H24: =ROUND((VLOOKUP($E24,ALLOC,19)*$F24),1) -> -27359.5 | I24: =ROUND((VLOOKUP($E24,ALLOC,20)*$F24),1) -> -27701.1 | J24: =ROUND((VLOOKUP($E24,ALLOC,21)*$F24),1) -> -18043 | K24: =ROUND((VLOOKUP($E24,ALLOC,22)*$F24),1) -> -32398.3 | L24: =ROUND((VLOOKUP($E24,ALLOC,23)*$F24),1) -> -137.8 | M24: =IF(ROUND(F24,0)<>ROUND('Cost of Service from Exh 102'!H44,0),"Out of Balance "&+ "by "&+F24-'Cost of Service from Exh 102'!H44,"") -> 
A25: =A24+1 -> 10 | D25: NET INCOME TAXES | F25: =SUM(F23:F24) -> 19312333.88 | G25: 16523512.36 | H25: 2138440.906 | I25: 2851426.165 | J25: 311404.6009 | K25: -2824333.399 | L25: 311883.2448
A27: =A25+1 -> 11 | D27: ='Pg 1'!D27 -> OPERATING INCOME | F27: =F21-F25 -> 120752883.3 | G27: 87709488.24 | H27: 11954797.49 | I27: 13941226.84 | J27: 5290983.199 | K27: 1055036.099 | L27: 801351.4252
A29: =A27+1 -> 12 | D29: RATE BASE [PAGE 10] | F29: ='Pg 10'!F38 -> 1915996457 | G29: ='Pg 10'!G38 -> 1225209544 | H29: ='Pg 10'!H38 -> 175172623.9 | I29: ='Pg 10'!I38 -> 183609586.8 | J29: ='Pg 10'!J38 -> 120227140.1 | K29: ='Pg 10'!K38 -> 210892957.3 | L29: ='Pg 10'!L38 -> 884604.19 | M29: =IF(ROUND(F29,0)<>ROUND('Cost of Service from Exh 102'!H48,0),"Out of Balance "&+ "by "&+F29-'Cost of Service from Exh 102'!H48,"") -> 
A31: =A29+1 -> 13 | D31: ='Pg 1'!D31 -> RATE OF RETURN EARNED ON RATE BASE | F31: =IF(F29=0,0,ROUND(F27/F29,5)) -> 0.06302 | G31: 0.07159 | H31: 0.06825 | I31: 0.07593 | J31: 0.04401 | K31: 0.005 | L31: 0.90589
A32: =A31+1 -> 14 | D32: ='Pg 1'!D32 -> UNITIZED RETURN | F32: 1 | G32: =ROUND(G31/$F$31,2) -> 1.14 | H32: 1.08 | I32: 1.2 | J32: 0.7 | K32: 0.08 | L32: 14.37

Sheet Pg 3
A1: =Input!$B$1 -> COLUMBIA GAS OF PENNSYLVANIA, INC.
A2: ='Title Exh 111, Sch. 1'!$B$14 -> GROSS PLANT (Accounts 101 & 106)
A3: ="FOR THE TWELVE MONTHS ENDED "&Input!$B$4 -> FOR THE TWELVE MONTHS ENDED DECEMBER 31, 2019
A5: =Input!$B$6 -> ALLOCATED COST OF SERVICE | L5: =Input!$B$9 -> 111, SCHEDULE 2
A6: =Input!$B$7 -> PEAK & AVERAGE | L6: ="PAGE 3 OF "&FIXED(Input!$B$10,0,TRUE) -> PAGE 3 OF 13
A7: =IF(Input!$B$8=0," ", Input!$B$8) ->  | L7: ="WITNESS: "&Input!$B$5 -> WITNESS: M. P. BALMERT
A8: LINE | C8: ACCT. | E8: ALLOC | F8: TOTAL
A9: NO. | C9: NO. | D9: ACCOUNT TITLE | E9: FACTOR | F9: COMPANY | G9: =Input!$B$17 -> RSS/RDS | H9: =Input!$B$18 -> SGSS1/SCD1/SGDS1 | I9: =Input!$B$19 -> SGSS2/SCD2/SGDS2 | J9: =Input!$B$20 -> SDS/LGSS | K9: =Input!$B$21 -> LDS/LGSS | L9: =Input!$B$22 -> MLDS
C10: (A) | D10: (B) | E10: (C) | F10: (D) | G10: (E) | H10: (F) | I10: (G) | J10: (H) | K10: (I) | L10: (J)
F11: $ | G11: $ | H11: $ | I11: $ | J11: $ | K11: $ | L11: $
A13: 1 | C13: ='Gross Plant in Service'!$B$10 -> 301-305 | D13: ='Gross Plant in Service'!$C$10 -> INTANGIBLE PLANT | E13: ='Gross Plant in Service'!$D$10 -> 11 | F13: ='Gross Plant in Service'!E10 -> 42397571.62 | G13: =ROUND(F13-(SUM(H13:L13)),1) -> 27438860.5 | H13: =ROUND((VLOOKUP($E13,ALLOC,19)*$F13),1) -> 3868354.4 | I13: =ROUND((VLOOKUP($E13,ALLOC,20)*$F13),1) -> 3918807.5 | J13: =ROUND((VLOOKUP($E13,ALLOC,21)*$F13),1) -> 2557845.5 | K13: =ROUND((VLOOKUP($E13,ALLOC,22)*$F13),1) -> 4595048.8 | L13: =ROUND((VLOOKUP($E13,ALLOC,23)*$F13),1) -> 18654.9
A14: =A13+1 -> 2 | C14: ='Gross Plant in Service'!$B$10 -> 301-305 | D14: INTANGIBLE PLANT - C&I NETWORK ONLY | E14: ='Gross Plant in Service'!$D$8 -> 26 | F14: ='Gross Plant in Service'!E8 -> 1612791 | G14: =ROUND(F14-(SUM(H14:L14)),1) -> 0 | H14: =ROUND((VLOOKUP($E14,ALLOC,19)*$F14),1) -> 0 | I14: =ROUND((VLOOKUP($E14,ALLOC,20)*$F14),1) -> 328848.1 | J14: =ROUND((VLOOKUP($E14,ALLOC,21)*$F14),1) -> 1039734.1 | K14: =ROUND((VLOOKUP($E14,ALLOC,22)*$F14),1) -> 217613.9 | L14: =ROUND((VLOOKUP($E14,ALLOC,23)*$F14),1) -> 26594.9
A15: =A14+1 -> 3 | C15: ='Gross Plant in Service'!$B$24 -> 350-362 | D15: ='Gross Plant in Service'!$C$24 -> UNDERGROUND STORAGE PLANT | E15: ='Gross Plant in Service'!$D$24 -> 25 | F15: ='Gross Plant in Service'!E24 -> 5856461.48 | G15: =ROUND(F15-(SUM(H15:L15)),1) -> 4336299.8 | H15: =ROUND((VLOOKUP($E15,ALLOC,19)*$F15),1) -> 781310.5 | I15: =ROUND((VLOOKUP($E15,ALLOC,20)*$F15),1) -> 633259.2 | J15: =ROUND((VLOOKUP($E15,ALLOC,21)*$F15),1) -> 96455.9 | K15: =ROUND((VLOOKUP($E15,ALLOC,22)*$F15),1) -> 0 | L15: =ROUND((VLOOKUP($E15,ALLOC,23)*$F15),1) -> 9136.1
D17: DISTRIBUTION PLANT
A18: =A15+1 -> 4 | C18: ='Gross Plant in Service'!$B$27 -> 374.1 | D18: ='Gross Plant in Service'!$C$27 -> LAND - CITY GATE & M/L IND M&R | E18: ='Gross Plant in Service'!$D$27 -> 5 | F18: ='Gross Plant in Service'!E27 -> 21943.54 | G18: =ROUND(F18-(SUM(H18:L18)),1) -> 12323.9 | H18: =(VLOOKUP($E18,ALLOC,19)*$F18) -> 2032.410675 | I18: =ROUND((VLOOKUP($E18,ALLOC,20)*$F18),1) -> 2601.6 | J18: =ROUND((VLOOKUP($E18,ALLOC,21)*$F18),1) -> 1764.7 | K18: =ROUND((VLOOKUP($E18,ALLOC,22)*$F18),1) -> 3220.9 | L18: =ROUND((VLOOKUP($E18,ALLOC,23)*$F18),1) -> 0
A19: =A18+1 -> 5 | C19: ='Gross Plant in Service'!$B$28 -> 374.2 | D19: ='Gross Plant in Service'!$C$28 -> LAND - OTHER DISTRIBUTION | E19: ='Gross Plant in Service'!$D$28 -> 5 | F19: ='Gross Plant in Service'!E28 -> 477102.49 | G19: 267950.3 | H19: =ROUND((VLOOKUP($E19,ALLOC,19)*$F19),1) -> 44189.2 | I19: 56565.3 | J19: 38368.6 | K19: 70029.1 | L19: 0
A20: =A19+1 -> 6 | C20: ='Gross Plant in Service'!$B$29 -> 374.3 | D20: ='Gross Plant in Service'!$C$29 -> LAND RIGHTS - CITY GATE MAIN LINE | E20: ='Gross Plant in Service'!$D$29 -> 5 | F20: ='Gross Plant in Service'!E29 -> 95360.94 | G20: 53556.6 | H20: 8832.3 | I20: 11306 | J20: 7668.9 | K20: 13997.1 | L20: 0
A21: =A20+1 -> 7 | C21: ='Gross Plant in Service'!B30 -> 374.4 | D21: ='Gross Plant in Service'!C30 -> LAND RIGHTS - OTHER DISTRIBUTION | E21: ='Gross Plant in Service'!D30 -> 5 | F21: ='Gross Plant in Service'!E30 -> 3032712.08 | G21: 1703231.8 | H21: 280889.8 | I21: 359558.3 | J21: 243890.7 | K21: 445141.5 | L21: 0
A22: 8 | C22: ='Gross Plant in Service'!B31 -> 374.4 | D22: ='Gross Plant in Service'!C31 -> DIRECT - LAND RIGHTS-OTHER DISTRIBUTION | F22: =SUM(G22:L22) -> 0 | G22: 0 | H22: 0 | I22: 0 | J22: 0 | K22: 0 | L22: ='Gross Plant in Service'!E31 -> 0
A23: 9 | C23: ='Gross Plant in Service'!$B$32 -> 374.41 | D23: ='Gross Plant in Service'!$C$32 -> LAND RIGHTS - OTHER DISTRIBUTION LOC | E23: ='Gross Plant in Service'!$D$32 -> 5 | F23: ='Gross Plant in Service'!E32 -> 12.94 | G23: 9.8 | H23: 1.2 | I23: 0 | J23: 0 | K23: 1.9 | L23: 0
A24: 10 | C24: ='Gross Plant in Service'!B33 -> 374.5 | D24: ='Gross Plant in Service'!C33 -> RIGHTS OF WAY | E24: ='Gross Plant in Service'!$D$33 -> 5 | F24: ='Gross Plant in Service'!E33 -> 3233092.34 | G24: 1815769.3 | H24: 299449 | I24: 383315.4 | J24: 260005.3 | K24: 474553.3 | L24: 0
A25: 11 | C25: ='Gross Plant in Service'!B34 -> 374.5 | D25: ='Gross Plant in Service'!C34 -> DIRECT - RIGHTS OF WAY | F25: =SUM(G25:L25) -> 50.61 | G25: 0 | H25: 0 | I25: 0 | J25: 0 | K25: 0 | L25: ='Gross Plant in Service'!E34 -> 50.61
A26: 12 | C26: ='Gross Plant in Service'!B35 -> 375.2 | D26: ='Gross Plant in Service'!$C$35 -> M & R STRUCTURES - CITY GATE | E26: ='Gross Plant in Service'!$D$35 -> 5 | F26: ='Gross Plant in Service'!E35 -> 7026.41 | G26: 3946.1 | H26: 650.8 | I26: 833.1 | J26: 565.1 | K26: 1031.3 | L26: 0
A27: 13 | C27: ='Gross Plant in Service'!B36 -> 375.31 | D27: ='Gross Plant in Service'!$C$36 -> M & R STRUCTURES - LOCAL GAS PURCH | E27: ='Gross Plant in Service'!$D$36 -> 5 | F27: ='Gross Plant in Service'!E36 -> 4012.39 | G27: 2253.5 | H27: 371.6 | I27: 475.7 | J27: 322.7 | K27: 588.9 | L27: 0
A28: 14 | C28: ='Gross Plant in Service'!$B$37 -> 375.4 | D28: ='Gross Plant in Service'!$C$37 -> M & R STRUCTURES - REGULATING | E28: ='Gross Plant in Service'!$D$37 -> 5 | F28: ='Gross Plant in Service'!E37 -> 4752757.57 | G28: 2669243.7 | H28: 440200.4 | I28: 563486.9 | J28: 382216.8 | K28: 697609.8 | L28: 0
A29: 15 | C29: ='Gross Plant in Service'!$B$38 -> 375.4 | D29: ='Gross Plant in Service'!$C$38 -> DIRECT - M & R STRUCTURES - REGULATING | E29: ='Gross Plant in Service'!$D$38 -> 5 | F29: =SUM(G29:L29) -> 30949.25 | G29: 0 | H29: 0 | I29: 0 | J29: 0 | K29: 0 | L29: ='Gross Plant in Service'!E38 -> 30949.25
A30: 16 | C30: ='Gross Plant in Service'!$B$39 -> 375.6 | D30: ='Gross Plant in Service'!$C$39 -> M & R STRUCTURES - DIST. IND. M & R | E30: ='Gross Plant in Service'!$D$39 -> 17 | F30: ='Gross Plant in Service'!E39 -> 87669.84 | G30: 0 | H30: 2360.1 | I30: 15052 | J30: 30710.7 | K30: 39547 | L30: 0
A31: 17 | C31: ='Gross Plant in Service'!$B$40 -> 375.7 | D31: ='Gross Plant in Service'!$C$40 -> M & R STRUCTURES - OTHER | E31: ='Gross Plant in Service'!$D$40 -> 11 | F31: ='Gross Plant in Service'!E40 -> 9600425.97 | G31: 6213203.6 | H31: 875942.9 | I31: 887367.4 | J31: 579193.7 | K31: 1040494.2 | L31: 4224.2
A32: 18 | C32: ='Gross Plant in Service'!$B$41 -> 375.71 | D32: ='Gross Plant in Service'!$C$41 -> M & R STRUCTURES - OTHER LEASED | E32: ='Gross Plant in Service'!$D$41 -> 11 | F32: ='Gross Plant in Service'!E41 -> 5092380.6 | G32: 3295687 | H32: 464628.8 | I32: 470688.7 | J32: 307223.3 | K32: 551912.2 | L32: 2240.6
A33: 19 | C33: ='Gross Plant in Service'!$B$42 -> 375.8 | D33: ='Gross Plant in Service'!$C$42 -> M & R STRUCTURES - COMMUNICATION | E33: ='Gross Plant in Service'!$D$42 -> 5 | F33: ='Gross Plant in Service'!E42 -> 16515.16 | G33: 9275.4 | H33: 1529.6 | I33: 1958 | J33: 1328.1 | K33: 2424.1 | L33: 0
A34: 20 | C34: ='Gross Plant in Service'!B43 -> 376 | D34: ='Gross Plant in Service'!C43 -> MAINS | E34: ='Gross Plant in Service'!$D$43 -> 5 | F34: ='Gross Plant in Service'!E43 -> 1713900920 | G34: 962561034.6 | H34: 158741503.2 | I34: 203200093.1 | J34: 137831912 | K34: 251566377 | L34: 0
A35: 21 | C35: ='Gross Plant in Service'!B44 -> 376 | D35: ='Gross Plant in Service'!C44 -> DIRECT - MAINS - MDS | F35: =SUM(G35:L35) -> 210854.95 | G35: 0 | H35: 0 | I35: 0 | J35: 0 | K35: 0 | L35: ='Gross Plant in Service'!E44 -> 210854.95
A36: 22 | C36: ='Gross Plant in Service'!B45 -> 376.08 | D36: ='Gross Plant in Service'!C45 -> MAINS-CSL REPLACEMENTS | E36: ='Gross Plant in Service'!$D$43 -> 5 | F36: ='Gross Plant in Service'!E45 -> 23760169.44 | G36: =ROUND(F36-(SUM(H36:L36)),1) -> 13344186.3 | H36: 2200666.9 | I36: 2817005.7 | J36: 1910792.8 | K36: 3487517.7 | L36: 0
A37: 23 | C37: ='Gross Plant in Service'!B46 -> 376.3 | D37: ='Gross Plant in Service'!C46 -> MAINS-BARE STEEL | E37: ='Gross Plant in Service'!$D$43 -> 5 | F37: ='Gross Plant in Service'!E46 -> 66563956.44 | G37: =ROUND(F37-(SUM(H37:L37)),1) -> 37383649.2 | H37: 6165153.6 | I37: 7891822.7 | J37: 5353073.4 | K37: 9770257.5 | L37: 0
A38: 24 | C38: ='Gross Plant in Service'!B47 -> 376.3 | D38: ='Gross Plant in Service'!C47 -> DIRECT - MAINS-BARE STEEL | F38: =SUM(G38:L38) -> 80847.42 | G38: 0 | H38: 0 | I38: 0 | J38: 0 | K38: 0 | L38: ='Gross Plant in Service'!E47 -> 80847.42
A39: 25 | C39: ='Gross Plant in Service'!B48 -> 376.8 | D39: ='Gross Plant in Service'!C48 -> MAINS-CAST IRON | E39: ='Gross Plant in Service'!$D$43 -> 5 | F39: ='Gross Plant in Service'!E48 -> 400795.12 | G39: =ROUND(F39-(SUM(H39:L39)),1) -> 225094.6 | H39: 37121.6 | I39: 47518.3 | J39: 32231.9 | K39: 58828.7 | L39: 0
A40: 26 | C40: ='Gross Plant in Service'!$B$49 -> 378.1 | D40: ='Gross Plant in Service'!$C$49 -> M & R EQUIP - GENERAL | E40: ='Gross Plant in Service'!$D$49 -> 5 | F40: ='Gross Plant in Service'!E49 -> 1371449.78 | G40: 770233.6 | H40: 127023.7 | I40: 162599.1 | J40: 110292 | K40: 201301.4 | L40: 0
A41: 27 | C41: ='Gross Plant in Service'!B50 -> 378.2 | D41: ='Gross Plant in Service'!C50 -> M & R EQUIP - GENERAL - REGULATING | E41: ='Gross Plant in Service'!$D$50 -> 5 | F41: ='Gross Plant in Service'!E50 -> 91022247.4 | G41: 51119914.5 | H41: 8430480.6 | I41: 10791597.7 | J41: 7320009.1 | K41: 13360245.5 | L41: 0
A42: 28 | C42: ='Gross Plant in Service'!B51 -> 378.2 | D42: ='Gross Plant in Service'!C51 -> DIRECT - M & R EQUIP-GEN-REG | F42: =SUM(G42:L42) -> 458057.76 | G42: 0 | H42: 0 | I42: 0 | J42: 0 | K42: 0 | L42: ='Gross Plant in Service'!E51 -> 458057.76
A43: 29 | C43: ='Gross Plant in Service'!$B$52 -> 378.3 | D43: ='Gross Plant in Service'!$C$52 -> M & R EQUIP - LOCAL GAS PURCHASES | E43: ='Gross Plant in Service'!$D$52 -> 5 | F43: ='Gross Plant in Service'!E52 -> 471961.9 | G43: 265063.2 | H43: 43713.1 | I43: 55955.8 | J43: 37955.2 | K43: 69274.6 | L43: 0
A44: 30 | C44: ='Gross Plant in Service'!$B$53 -> 379.1 | D44: ='Gross Plant in Service'!$C$53 -> M & R EQUIP - CITY GATE | E44: ='Gross Plant in Service'!$D$53 -> 5 | F44: ='Gross Plant in Service'!E53 -> 140677.28 | G44: 79007.2 | H44: 13029.5 | I44: 16678.7 | J44: 11313.3 | K44: 20648.6 | L44: 0
A45: 31 | C45: ='Gross Plant in Service'!$B$54 -> 379.11 | D45: ='Gross Plant in Service'!C$54 -> M & R EQUIP - EXCHANGE GAS | E45: ='Gross Plant in Service'!$D$54 -> 5 | F45: ='Gross Plant in Service'!E54 -> -449.77 | G45: -252.6 | H45: -41.7 | I45: -53.3 | J45: -36.2 | K45: -66 | L45: 0
A46: 32 | C46: ='Gross Plant in Service'!B55 -> 380 | D46: ='Gross Plant in Service'!C55 -> SERVICES | E46: ='Gross Plant in Service'!$D$55 -> 15 | F46: ='Gross Plant in Service'!E55 -> 592415096.6 | G46: 538191342.9 | H46: 45213120.2 | I46: 7340023 | J46: 1084119.6 | K46: 586490.9 | L46: 0
A47: 33 | C47: ='Gross Plant in Service'!B56 -> 380 | D47: ='Gross Plant in Service'!C56 -> DIRECT - SERVICES | F47: =SUM(G47:L47) -> 1966.03 | G47: 0 | H47: 0 | I47: 0 | J47: 0 | K47: 0 | L47: ='Gross Plant in Service'!E56 -> 1966.03
A48: 34 | C48: ='Gross Plant in Service'!B57 -> 380.12 | D48: ='Gross Plant in Service'!C57 -> CSL REPLACEMENT | E48: ='Gross Plant in Service'!$D$55 -> 15 | F48: ='Gross Plant in Service'!E57 -> 0 | G48: =ROUND(F48-(SUM(H48:L48)),1) -> 0 | H48: 0 | I48: 0 | J48: 0 | K48: 0 | L48: 0
A49: 35 | C49: ='Gross Plant in Service'!$B$58 -> 381 | D49: ='Gross Plant in Service'!$C$58 -> METERS | E49: ='Gross Plant in Service'!$D$58 -> 16 | F49: ='Gross Plant in Service'!E58 -> 40150509.92 | G49: 30222493.3 | H49: 6466641.1 | I49: 3022128.9 | J49: 339271.8 | K49: 94755.2 | L49: 5219.6
A50: 36 | C50: ='Gross Plant in Service'!B59 -> 381.1 | D50: ='Gross Plant in Service'!C59 -> AUTOMATIC METER READING | E50: ='Gross Plant in Service'!D59 -> 16 | F50: ='Gross Plant in Service'!E59 -> 19350242.03 | G50: 14565507.7 | H50: 3116550 | I50: 1456492.7 | J50: 163509.5 | K50: 45666.6 | L50: 2515.5
A51: 37 | C51: ='Gross Plant in Service'!B60 -> 381.1 | D51: ='Gross Plant in Service'!C60 -> AUTOMATIC METER READING - C&I NET ONLY | E51: ='Gross Plant in Service'!D60 -> 26 | F51: ='Gross Plant in Service'!E60 -> 4600627 | G51: =ROUND(F51-(SUM(H51:L51)),1) -> 0.1 | H51: 0 | I51: 938067.8 | J51: 2965932.2 | K51: 620762.6 | L51: 75864.3
A52: 38 | C52: ='Gross Plant in Service'!B61 -> 382 | D52: ='Gross Plant in Service'!C61 -> METER INSTALLATIONS | E52: ='Gross Plant in Service'!D61 -> 16 | F52: ='Gross Plant in Service'!E61 -> 43214952.1 | G52: =ROUND(F52-(SUM(H52:L52)),1) -> 32529191 | H52: 6960200.2 | I52: 3252789.4 | J52: 365166.3 | K52: 101987.3 | L52: 5617.9
A53: 39 | C53: ='Gross Plant in Service'!B62 -> 383 | D53: ='Gross Plant in Service'!C62 -> HOUSE REGULATORS | E53: ='Gross Plant in Service'!D62 -> 21 | F53: ='Gross Plant in Service'!E62 -> 13305975.67 | G53: 12060802.4 | H53: 1018173.3 | I53: 199855.8 | J53: 22221 | K53: 4391 | L53: 532.2
A54: 40 | C54: ='Gross Plant in Service'!B63 -> 384 | D54: ='Gross Plant in Service'!C63 -> HOUSE REG INSTALLATIONS | E54: ='Gross Plant in Service'!D63 -> 21 | F54: ='Gross Plant in Service'!E63 -> 3864772.07 | G54: 3503106.6 | H54: 295732.4 | I54: 58048.9 | J54: 6454.2 | K54: 1275.4 | L54: 154.6
A55: 41 | C55: ='Gross Plant in Service'!B64 -> 385 | D55: ='Gross Plant in Service'!C64 -> IND M&R EQUIPMENT | E55: ='Gross Plant in Service'!D64 -> 17 | F55: ='Gross Plant in Service'!E64 -> 8110311.02 | G55: 0 | H55: 218329.6 | I55: 1392459.3 | J55: 2841042 | K55: 3658480.2 | L55: 0
A56: 42 | C56: ='Gross Plant in Service'!B65 -> 385 | D56: ='Gross Plant in Service'!C65 -> DIRECT - IND M&R EQUIPMENT | F56: =SUM(G56:L56) -> 373617.7 | G56: 0 | H56: 0 | I56: 0 | J56: 0 | K56: 0 | L56: ='Gross Plant in Service'!E65 -> 373617.7
A57: 43 | C57: ='Gross Plant in Service'!B66 -> 385.1 | D57: ='Gross Plant in Service'!C66 -> IND M&R EQUIPMENT - LG VOLUME | E57: ='Gross Plant in Service'!D66 -> 17 | F57: ='Gross Plant in Service'!E66 -> 1085273.35 | G57: 0 | H57: 29215.6 | I57: 186330.6 | J57: 380171.3 | K57: 489556 | L57: 0
A58: 44 | C58: ='Gross Plant in Service'!B67 -> 387.1 | D58: ='Gross Plant in Service'!C67 -> OTHER EQUIP DISTRIBUTION | E58: ='Gross Plant in Service'!D67 -> 11 | F58: ='Gross Plant in Service'!E67 -> 19450.41 | G58: 12587.9 | H58: 1774.7 | I58: 1797.8 | J58: 1173.4 | K58: 2108 | L58: 8.6
A59: 45 | C59: ='Gross Plant in Service'!B68 -> 387.2 | D59: ='Gross Plant in Service'!C68 -> OTHER EQUIP ODORIZATION | E59: ='Gross Plant in Service'!D68 -> 11 | F59: ='Gross Plant in Service'!E68 -> 117247.73 | G59: 75880.3 | H59: 10697.7 | I59: 10837.2 | J59: 7073.6 | K59: 12707.3 | L59: 51.6
A60: 46 | C60: ='Gross Plant in Service'!B69 -> 387.42 | D60: ='Gross Plant in Service'!C69 -> OTHER EQUIP RADIO | E60: ='Gross Plant in Service'!D69 -> 11 | F60: ='Gross Plant in Service'!E69 -> 119609.27 | G60: 77408.8 | H60: 10913.1 | I60: 11055.5 | J60: 7216 | K60: 12963.3 | L60: 52.6
A61: 47 | C61: ='Gross Plant in Service'!B70 -> 387.44 | D61: ='Gross Plant in Service'!C70 -> OTHER EQUIP COMMUNICATION | E61: ='Gross Plant in Service'!D70 -> 11 | F61: ='Gross Plant in Service'!E70 -> 627109.33 | G61: 405852.6 | H61: 57217.5 | I61: 57963.7 | J61: 37833.5 | K61: 67966.1 | L61: 275.9
A62: 48 | C62: ='Gross Plant in Service'!B71 -> 387.46 | D62: ='Gross Plant in Service'!C71 -> OTHER EQUIP CUSTOMER INFO SERVICE | E62: ='Gross Plant in Service'!D71 -> 11 | F62: ='Gross Plant in Service'!E71 -> 7441516.83 | G62: 4816000.8 | H62: 678964 | I62: 687819.4 | J62: 448946.7 | K62: 806511.6 | L62: 3274.3
A63: 49 | C63: ='Gross Plant in Service'!B72 -> 387.45 | D63: ='Gross Plant in Service'!C72 -> DIRECT - OTHER EQUIP CUSTOMER INFO SERVICE | F63: =SUM(G63:L63) -> 39788.15 | G63: 0 | H63: 0 | I63: 0 | J63: 0 | K63: 0 | L63: ='Gross Plant in Service'!E72 -> 39788.15
A64: 50 | C64: 387.5 | D64: ='Gross Plant in Service'!C73 -> GPS EQUIPMENT | E64: ='Gross Plant in Service'!D73 -> 11 | F64: ='Gross Plant in Service'!E73 -> 2053366 | G64: =ROUND(F64-(SUM(H64:L64)),1) -> 1328897.4 | H64: 187349.1 | I64: 189792.6 | J64: 123879.6 | K64: 222543.8 | L64: 903.5
A65: 51 | D65: TOTAL DISTRIBUTION PLANT | F65: =SUM(F18:F64) -> 2661724931 | G65: 1719583453 | H65: 242444607.1 | I65: 246541888.8 | J65: 163254812.8 | K65: 288603101.6 | L65: 1297067.27
A67: =A65+1 -> 52 | C67: ='Gross Plant in Service'!$B$99 -> 389-398 | D67: ='Gross Plant in Service'!$C$99 -> GENERAL PLANT | E67: ='Gross Plant in Service'!$D$99 -> 11 | F67: ='Gross Plant in Service'!E99 -> 31812772.59 | G67: =ROUND(F67-(SUM(H67:L67)),1) -> 20588590.1 | H67: =ROUND((VLOOKUP($E67,ALLOC,19)*$F67),1) -> 2902597.4 | I67: =ROUND((VLOOKUP($E67,ALLOC,20)*$F67),1) -> 2940454.6 | J67: =ROUND((VLOOKUP($E67,ALLOC,21)*$F67),1) -> 1919264.6 | K67: =ROUND((VLOOKUP($E67,ALLOC,22)*$F67),1) -> 3447868.3 | L67: =ROUND((VLOOKUP($E67,ALLOC,23)*$F67),1) -> 13997.6
A69: =A67+1 -> 53 | C69: TOTAL GROSS PLANT | F69: =F13+F15+F65+F67 -> 2741791737 | G69: 1771947204 | H69: 249996869.4 | I69: 254034410.1 | J69: 167828378.8 | K69: 296646018.7 | L69: 1338855.87
F72: =ROUND(+F69,0)-ROUND('Gross Plant in Service'!E101,0) -> 0 | G72: Difference to Exh 108

Sheet Pg 4
A1: =Input!$B$1 -> COLUMBIA GAS OF PENNSYLVANIA, INC.
A2: ='Title Exh 111, Sch. 1'!$B$15 -> DEPRECIATION RESERVE
A3: ="FOR THE TWELVE MONTHS ENDED "&Input!$B$4 -> FOR THE TWELVE MONTHS ENDED DECEMBER 31, 2019
A5: =Input!$B$6 -> ALLOCATED COST OF SERVICE | L5: =Input!$B$9 -> 111, SCHEDULE 2
A6: =Input!$B$7 -> PEAK & AVERAGE | L6: ="PAGE 4 OF "&FIXED(Input!$B$10,0,TRUE) -> PAGE 4 OF 13
A7: =IF(Input!$B$8=0," ", Input!$B$8) ->  | L7: ="WITNESS: "&Input!$B$5 -> WITNESS: M. P. BALMERT
A8: LINE | C8: ACCT. | E8: ALLOC | F8: TOTAL
A9: NO. | C9: NO. | D9: ACCOUNT TITLE | E9: FACTOR | F9: COMPANY | G9: =Input!$B$17 -> RSS/RDS | H9: =Input!$B$18 -> SGSS1/SCD1/SGDS1 | I9: =Input!$B$19 -> SGSS2/SCD2/SGDS2 | J9: =Input!$B$20 -> SDS/LGSS | K9: =Input!$B$21 -> LDS/LGSS | L9: =Input!$B$22 -> MLDS
C10: (A) | D10: (B) | E10: (C) | F10: (D) | G10: (E) | H10: (F) | I10: (G) | J10: (H) | K10: (I) | L10: (J)
F11: $ | G11: $ | H11: $ | I11: $ | J11: $ | K11: $ | L11: $
A13: 1 | C13: ='Gross Plant in Service'!$B$10 -> 301-305 | D13: ='Gross Plant in Service'!$C$10 -> INTANGIBLE PLANT | E13: ='Gross Plant in Service'!$D$10 -> 11 | F13: ='Depreciation Reserve'!E10 -> 15661171 | G13: =ROUND(F13-(SUM(H13:L13)),1) -> 10135596.8 | H13: =ROUND((VLOOKUP($E13,ALLOC,19)*$F13),1) -> 1428925.2 | I13: =ROUND((VLOOKUP($E13,ALLOC,20)*$F13),1) -> 1447562 | J13: =ROUND((VLOOKUP($E13,ALLOC,21)*$F13),1) -> 944838.4 | K13: =ROUND((VLOOKUP($E13,ALLOC,22)*$F13),1) -> 1697357.7 | L13: =ROUND((VLOOKUP($E13,ALLOC,23)*$F13),1) -> 6890.9
A14: =A13+1 -> 2 | C14: ='Gross Plant in Service'!$B$10 -> 301-305 | D14: INTANGIBLE PLANT - C&I NETWORK ONLY | E14: ='Gross Plant in Service'!$D$8 -> 26 | F14: ='Depreciation Reserve'!E8 -> 107519 | G14: =ROUND(F14-(SUM(H14:L14)),1) -> 0.1 | H14: =ROUND((VLOOKUP($E14,ALLOC,19)*$F14),1) -> 0 | I14: =ROUND((VLOOKUP($E14,ALLOC,20)*$F14),1) -> 21923.1 | J14: =ROUND((VLOOKUP($E14,ALLOC,21)*$F14),1) -> 69315.3 | K14: =ROUND((VLOOKUP($E14,ALLOC,22)*$F14),1) -> 14507.5 | L14: =ROUND((VLOOKUP($E14,ALLOC,23)*$F14),1) -> 1773
A15: =A14+1 -> 3 | C15: ='Gross Plant in Service'!$B$24 -> 350-362 | D15: ='Gross Plant in Service'!$C$24 -> UNDERGROUND STORAGE PLANT | E15: ='Gross Plant in Service'!$D$24 -> 25 | F15: ='Depreciation Reserve'!E24 -> 4221137 | G15: =ROUND(F15-(SUM(H15:L15)),1) -> 3125456.5 | H15: =ROUND((VLOOKUP($E15,ALLOC,19)*$F15),1) -> 563141.9 | I15: =ROUND((VLOOKUP($E15,ALLOC,20)*$F15),1) -> 456431.5 | J15: =ROUND((VLOOKUP($E15,ALLOC,21)*$F15),1) -> 69522.1 | K15: =ROUND((VLOOKUP($E15,ALLOC,22)*$F15),1) -> 0 | L15: =ROUND((VLOOKUP($E15,ALLOC,23)*$F15),1) -> 6585
D17: DISTRIBUTION PLANT
A18: =A15+1 -> 4 | C18: ='Gross Plant in Service'!$B$27 -> 374.1 | D18: ='Gross Plant in Service'!$C$27 -> LAND - CITY GATE & M/L IND M&R | E18: ='Gross Plant in Service'!$D$27 -> 5 | F18: ='Depreciation Reserve'!E27 -> 0 | G18: =ROUND(F18-(SUM(H18:L18)),1) -> 0 | H18: =ROUND((VLOOKUP($E18,ALLOC,19)*$F18),1) -> 0 | I18: =ROUND((VLOOKUP($E18,ALLOC,20)*$F18),1) -> 0 | J18: =ROUND((VLOOKUP($E18,ALLOC,21)*$F18),1) -> 0 | K18: =ROUND((VLOOKUP($E18,ALLOC,22)*$F18),1) -> 0 | L18: =ROUND((VLOOKUP($E18,ALLOC,23)*$F18),1) -> 0
A19: =A18+1 -> 5 | C19: ='Gross Plant in Service'!$B$28 -> 374.2 | D19: ='Gross Plant in Service'!$C$28 -> LAND - OTHER DISTRIBUTION | E19: ='Gross Plant in Service'!$D$28 -> 5 | F19: ='Depreciation Reserve'!E28 -> 134737 | G19: 75671.1 | H19: 12479.3 | I19: 15974.4 | J19: 10835.5 | K19: 19776.7 | L19: 0
A20: =A19+1 -> 6 | C20: ='Gross Plant in Service'!$B$29 -> 374.3 | D20: ='Gross Plant in Service'!$C$29 -> LAND RIGHTS - CITY GATE MAIN LINE | E20: ='Gross Plant in Service'!$D$29 -> 5 | F20: ='Depreciation Reserve'!E29 -> 0 | G20: 0 | H20: 0 | I20: 0 | J20: 0 | K20: 0 | L20: 0
A21: 7 | C21: ='Gross Plant in Service'!B30 -> 374.4 | D21: ='Gross Plant in Service'!C30 -> LAND RIGHTS - OTHER DISTRIBUTION | E21: ='Gross Plant in Service'!$D$30 -> 5 | F21: ='Depreciation Reserve'!E30 -> 718506 | G21: 403527.3 | H21: 66548 | I21: 85186.1 | J21: 57782.3 | K21: 105462.3 | L21: 0
A22: 8 | C22: ='Gross Plant in Service'!B31 -> 374.4 | D22: ='Gross Plant in Service'!C31 -> DIRECT - LAND RIGHTS-OTHER DISTRIBUTION | F22: ='Depreciation Reserve'!E31 -> 0 | G22: 0 | H22: 0 | I22: 0 | J22: 0 | K22: 0 | L22: =F22 -> 0
A23: 9 | C23: ='Gross Plant in Service'!$B$32 -> 374.41 | D23: ='Gross Plant in Service'!$C$32 -> LAND RIGHTS - OTHER DISTRIBUTION LOC | E23: ='Gross Plant in Service'!$D$32 -> 5 | F23: ='Depreciation Reserve'!E32 -> 0 | G23: 0 | H23: 0 | I23: 0 | J23: 0 | K23: 0 | L23: 0
A24: 10 | C24: ='Gross Plant in Service'!B33 -> 374.5 | D24: ='Gross Plant in Service'!C33 -> RIGHTS OF WAY | E24: ='Gross Plant in Service'!$D$33 -> 5 | F24: ='Depreciation Reserve'!E33 -> 1723915.82 | G24: 968185.5 | H24: 159669.1 | I24: 204387.5 | J24: 138637.3 | K24: 253036.4 | L24: 0
A25: 11 | C25: ='Gross Plant in Service'!B34 -> 374.5 | D25: ='Gross Plant in Service'!C34 -> DIRECT - RIGHTS OF WAY | F25: ='Depreciation Reserve'!E34 -> 32.18 | G25: 0 | H25: 0 | I25: 0 | J25: 0 | K25: 0 | L25: =F25 -> 32.18
A26: 12 | C26: ='Gross Plant in Service'!B35 -> 375.2 | D26: ='Gross Plant in Service'!$C$35 -> M & R STRUCTURES - CITY GATE | E26: ='Gross Plant in Service'!$D$35 -> 5 | F26: ='Depreciation Reserve'!E35 -> 0 | G26: 0 | H26: 0 | I26: 0 | J26: 0 | K26: 0 | L26: 0
A27: 13 | C27: ='Gross Plant in Service'!B36 -> 375.31 | D27: ='Gross Plant in Service'!$C$36 -> M & R STRUCTURES - LOCAL GAS PURCH | E27: ='Gross Plant in Service'!$D$36 -> 5 | F27: ='Depreciation Reserve'!E36 -> 0 | G27: 0 | H27: 0 | I27: 0 | J27: 0 | K27: 0 | L27: 0
A28: 14 | C28: ='Gross Plant in Service'!$B$37 -> 375.4 | D28: ='Gross Plant in Service'!$C$37 -> M & R STRUCTURES - REGULATING | E28: ='Gross Plant in Service'!$D$37 -> 5 | F28: ='Depreciation Reserve'!E37 -> 1344492.83 | G28: 755094 | H28: 124526.9 | I28: 159403.1 | J28: 108124.1 | K28: 197344.7 | L28: 0
A29: 15 | C29: ='Gross Plant in Service'!$B$38 -> 375.4 | D29: ='Gross Plant in Service'!$C$38 -> DIRECT - M & R STRUCTURES - REGULATING | E29: ='Gross Plant in Service'!$D$38 -> 5 | F29: ='Depreciation Reserve'!E38 -> 4888.17 | G29: 0 | H29: 0 | I29: 0 | J29: 0 | K29: 0 | L29: =F29 -> 4888.17
A30: 16 | C30: ='Gross Plant in Service'!$B$39 -> 375.6 | D30: ='Gross Plant in Service'!$C$39 -> M & R STRUCTURES - DIST. IND. M & R | E30: ='Gross Plant in Service'!$D$39 -> 17 | F30: ='Depreciation Reserve'!E39 -> 75984 | G30: 0 | H30: 2045.5 | I30: 13045.7 | J30: 26617.2 | K30: 34275.6 | L30: 0
A31: 17 | C31: ='Gross Plant in Service'!$B$40 -> 375.7 | D31: ='Gross Plant in Service'!$C$40 -> M & R STRUCTURES - OTHER | E31: ='Gross Plant in Service'!$D$40 -> 11 | F31: ='Depreciation Reserve'!E40 -> 3144496 | G31: 2035054.9 | H31: 286903.8 | I31: 290645.8 | J31: 189707.4 | K31: 340800.5 | L31: 1383.6
A32: 18 | C32: ='Gross Plant in Service'!$B$41 -> 375.71 | D32: ='Gross Plant in Service'!$C$41 -> M & R STRUCTURES - OTHER LEASED | E32: ='Gross Plant in Service'!$D$41 -> 11 | F32: ='Depreciation Reserve'!E41 -> 1300385 | G32: 841583.2 | H32: 118647.1 | I32: 120194.6 | J32: 78452.2 | K32: 140935.7 | L32: 572.2
A33: 19 | C33: ='Gross Plant in Service'!$B$42 -> 375.8 | D33: ='Gross Plant in Service'!$C$42 -> M & R STRUCTURES - COMMUNICATION | E33: ='Gross Plant in Service'!$D$42 -> 5 | F33: ='Depreciation Reserve'!E42 -> 7601 | G33: 4268.8 | H33: 704 | I33: 901.2 | J33: 611.3 | K33: 1115.7 | L33: 0
A34: 20 | C34: ='Gross Plant in Service'!B43 -> 376 | D34: ='Gross Plant in Service'!C43 -> MAINS | E34: ='Gross Plant in Service'!$D$43 -> 5 | F34: ='Depreciation Reserve'!E43 -> 202910951.7 | G34: 113958848.8 | H34: 18793612.3 | I34: 24057122.4 | J34: 16318098.7 | K34: 29783269.5 | L34: 0
A35: 21 | C35: ='Gross Plant in Service'!B44 -> 376 | D35: ='Gross Plant in Service'!C44 -> DIRECT - MAINS - MDS | F35: ='Depreciation Reserve'!E44 -> 71722.3 | G35: 0 | H35: 0 | I35: 0 | J35: 0 | K35: 0 | L35: ='Depreciation Reserve'!E44 -> 71722.3
A36: 22 | C36: ='Gross Plant in Service'!B45 -> 376.08 | D36: ='Gross Plant in Service'!C45 -> MAINS-CSL REPLACEMENTS | E36: ='Gross Plant in Service'!$D$43 -> 5 | F36: ='Depreciation Reserve'!E45 -> 0 | G36: =ROUND(F36-(SUM(H36:L36)),1) -> 0 | H36: 0 | I36: 0 | J36: 0 | K36: 0 | L36: 0
A37: 23 | C37: ='Gross Plant in Service'!B46 -> 376.3 | D37: ='Gross Plant in Service'!C46 -> MAINS-BARE STEEL | E37: ='Gross Plant in Service'!$D$43 -> 5 | F37: ='Depreciation Reserve'!E46 -> 45994821.67 | G37: =ROUND(F37-(SUM(H37:L37)),1) -> 25831611.7 | H37: 4260040.4 | I37: 5453146.1 | J37: 3698903.6 | K37: 6751119.9 | L37: 0
A38: 24 | C38: ='Gross Plant in Service'!B47 -> 376.3 | D38: ='Gross Plant in Service'!C47 -> DIRECT - MAINS-BARE STEEL | F38: ='Depreciation Reserve'!E47 -> 82385.33 | G38: 0 | H38: 0 | I38: 0 | J38: 0 | K38: 0 | L38: ='Depreciation Reserve'!E47 -> 82385.33
A39: 25 | C39: ='Gross Plant in Service'!B48 -> 376.8 | D39: ='Gross Plant in Service'!C48 -> MAINS-CAST IRON | E39: ='Gross Plant in Service'!$D$43 -> 5 | F39: ='Depreciation Reserve'!E48 -> 237129 | G39: =ROUND(F39-(SUM(H39:L39)),1) -> 133176.4 | H39: 21962.9 | I39: 28114 | J39: 19069.9 | K39: 34805.8 | L39: 0
A40: 26 | C40: ='Gross Plant in Service'!$B$49 -> 378.1 | D40: ='Gross Plant in Service'!$C$49 -> M & R EQUIP - GENERAL | E40: ='Gross Plant in Service'!$D$49 -> 5 | F40: ='Depreciation Reserve'!E49 -> 0 | G40: 0 | H40: 0 | I40: 0 | J40: 0 | K40: 0 | L40: 0
A41: 27 | C41: ='Gross Plant in Service'!B50 -> 378.2 | D41: ='Gross Plant in Service'!C50 -> M & R EQUIP - GENERAL - REGULATING | E41: ='Gross Plant in Service'!$D$50 -> 5 | F41: ='Depreciation Reserve'!E50 -> 13158592.06 | G41: 7390128.5 | H41: 1218748.8 | I41: 1560082.7 | J41: 1058214 | K41: 1931418.1 | L41: 0
A42: 28 | C42: ='Gross Plant in Service'!B51 -> 378.2 | D42: ='Gross Plant in Service'!C51 -> DIRECT - M & R EQUIP-GEN-REG | F42: ='Depreciation Reserve'!E51 -> 54529.94 | G42: 0 | H42: 0 | I42: 0 | J42: 0 | K42: 0 | L42: ='Depreciation Reserve'!E51 -> 54529.94
A43: 29 | C43: ='Gross Plant in Service'!$B$52 -> 378.3 | D43: ='Gross Plant in Service'!$C$52 -> M & R EQUIP - LOCAL GAS PURCHASES | E43: ='Gross Plant in Service'!$D$52 -> 5 | F43: ='Depreciation Reserve'!E52 -> 0 | G43: 0 | H43: 0 | I43: 0 | J43: 0 | K43: 0 | L43: 0
A44: 30 | C44: ='Gross Plant in Service'!$B$53 -> 379.1 | D44: ='Gross Plant in Service'!$C$53 -> M & R EQUIP - CITY GATE | E44: ='Gross Plant in Service'!$D$53 -> 5 | F44: ='Depreciation Reserve'!E53 -> 104131 | G44: 58482.1 | H44: 9644.6 | I44: 12345.8 | J44: 8374.2 | K44: 15284.3 | L44: 0
A45: 31 | C45: ='Gross Plant in Service'!$B$54 -> 379.11 | D45: ='Gross Plant in Service'!C$54 -> M & R EQUIP - EXCHANGE GAS | E45: ='Gross Plant in Service'!$D$54 -> 5 | F45: ='Depreciation Reserve'!E54 -> 0 | G45: 0 | H45: 0 | I45: 0 | J45: 0 | K45: 0 | L45: 0
A46: 32 | C46: ='Gross Plant in Service'!B55 -> 380 | D46: ='Gross Plant in Service'!C55 -> SERVICES | E46: ='Gross Plant in Service'!$D$55 -> 15 | F46: ='Depreciation Reserve'!E55 -> 135665837.1 | G46: 123248343 | H46: 10354016.7 | I46: 1680899.7 | J46: 248268.5 | K46: 134309.2 | L46: 0
A47: 33 | C47: ='Gross Plant in Service'!B56 -> 380 | D47: ='Gross Plant in Service'!C56 -> DIRECT - SERVICES | F47: ='Depreciation Reserve'!E56 -> 1919.92 | G47: 0 | H47: 0 | I47: 0 | J47: 0 | K47: 0 | L47: ='Depreciation Reserve'!E56 -> 1919.92
A48: 34 | C48: ='Gross Plant in Service'!B57 -> 380.12 | D48: ='Gross Plant in Service'!C57 -> CSL REPLACEMENT | E48: ='Gross Plant in Service'!$D$55 -> 15 | F48: ='Depreciation Reserve'!E57 -> 0 | G48: =ROUND(F48-(SUM(H48:L48)),1) -> 0 | H48: 0 | I48: 0 | J48: 0 | K48: 0 | L48: 0
A49: 35 | C49: ='Gross Plant in Service'!$B$58 -> 381 | D49: ='Gross Plant in Service'!$C$58 -> METERS | E49: ='Gross Plant in Service'!$D$58 -> 16 | F49: ='Depreciation Reserve'!E58 -> 17411447 | G49: 13106118.5 | H49: 2804287.7 | I49: 1310559.6 | J49: 147126.7 | K49: 41091 | L49: 2263.5
A50: 36 | C50: ='Gross Plant in Service'!B59 -> 381.1 | D50: ='Gross Plant in Service'!C59 -> AUTOMATIC METER READING | E50: ='Gross Plant in Service'!D59 -> 16 | F50: ='Depreciation Reserve'!E59 -> 13729683 | G50: 10334744.3 | H50: 2211302.7 | I50: 1033433.2 | J50: 116015.8 | K50: 32402.1 | L50: 1784.9
A51: 37 | C51: ='Gross Plant in Service'!B60 -> 381.1 | D51: ='Gross Plant in Service'!C60 -> AUTOMATIC METER READING - C&I NET ONLY | E51: ='Gross Plant in Service'!D60 -> 26 | F51: ='Depreciation Reserve'!E60 -> 102236 | G51: =ROUND(F51-(SUM(H51:L51)),1) -> 0 | H51: 0 | I51: 20845.9 | J51: 65909.5 | K51: 13794.7 | L51: 1685.9
A52: 38 | C52: ='Gross Plant in Service'!B61 -> 382 | D52: ='Gross Plant in Service'!C61 -> METER INSTALLATIONS | E52: ='Gross Plant in Service'!D61 -> 16 | F52: ='Depreciation Reserve'!E61 -> 13549487 | G52: =ROUND(F52-(SUM(H52:L52)),1) -> 10199105.3 | H52: 2182280.4 | I52: 1019869.9 | J52: 114493.2 | K52: 31976.8 | L52: 1761.4
A53: 39 | C53: ='Gross Plant in Service'!B62 -> 383 | D53: ='Gross Plant in Service'!C62 -> HOUSE REGULATORS | E53: ='Gross Plant in Service'!D62 -> 21 | F53: ='Depreciation Reserve'!E62 -> 4334095 | G53: 3928510.4 | H53: 331644.9 | I53: 65098.1 | J53: 7237.9 | K53: 1430.3 | L53: 173.4
A54: 40 | C54: ='Gross Plant in Service'!B63 -> 384 | D54: ='Gross Plant in Service'!C63 -> HOUSE REG INSTALLATIONS | E54: ='Gross Plant in Service'!D63 -> 21 | F54: ='Depreciation Reserve'!E63 -> 3112325 | G54: 2821073.6 | H54: 238155.1 | I54: 46747.1 | J54: 5197.6 | K54: 1027.1 | L54: 124.5
A55: 41 | C55: ='Gross Plant in Service'!B64 -> 385 | D55: ='Gross Plant in Service'!C64 -> IND M&R EQUIPMENT | E55: ='Gross Plant in Service'!D64 -> 17 | F55: ='Depreciation Reserve'!E64 -> 3051515.81 | G55: 0 | H55: 82146.8 | I55: 523914.7 | J55: 1068946 | K55: 1376508.3 | L55: 0
A56: 42 | C56: ='Gross Plant in Service'!B65 -> 385 | D56: ='Gross Plant in Service'!C65 -> DIRECT - IND M&R EQUIPMENT | F56: ='Depreciation Reserve'!E65 -> 110824.19 | G56: 0 | H56: 0 | I56: 0 | J56: 0 | K56: 0 | L56: ='Depreciation Reserve'!E65 -> 110824.19
A57: 43 | C57: ='Gross Plant in Service'!B66 -> 385.1 | D57: ='Gross Plant in Service'!C66 -> IND M&R EQUIPMENT - LG VOLUME | E57: ='Gross Plant in Service'!D66 -> 17 | F57: ='Depreciation Reserve'!E66 -> 0 | G57: 0 | H57: 0 | I57: 0 | J57: 0 | K57: 0 | L57: 0
A58: 44 | C58: ='Gross Plant in Service'!B67 -> 387.1 | D58: ='Gross Plant in Service'!C67 -> OTHER EQUIP DISTRIBUTION | E58: ='Gross Plant in Service'!D67 -> 11 | F58: ='Depreciation Reserve'!E67 -> 0 | G58: 0 | H58: 0 | I58: 0 | J58: 0 | K58: 0 | L58: 0
A59: 45 | C59: ='Gross Plant in Service'!B68 -> 387.2 | D59: ='Gross Plant in Service'!C68 -> OTHER EQUIP ODORIZATION | E59: ='Gross Plant in Service'!D68 -> 11 | F59: ='Depreciation Reserve'!E68 -> 0 | G59: 0 | H59: 0 | I59: 0 | J59: 0 | K59: 0 | L59: 0
A60: 46 | C60: ='Gross Plant in Service'!B69 -> 387.42 | D60: ='Gross Plant in Service'!C69 -> OTHER EQUIP RADIO | E60: ='Gross Plant in Service'!D69 -> 11 | F60: ='Depreciation Reserve'!E69 -> 0 | G60: 0 | H60: 0 | I60: 0 | J60: 0 | K60: 0 | L60: 0
A61: 47 | C61: ='Gross Plant in Service'!B70 -> 387.44 | D61: ='Gross Plant in Service'!C70 -> OTHER EQUIP COMMUNICATION | E61: ='Gross Plant in Service'!D70 -> 11 | F61: ='Depreciation Reserve'!E70 -> 0 | G61: 0 | H61: 0 | I61: 0 | J61: 0 | K61: 0 | L61: 0
A62: 48 | C62: ='Gross Plant in Service'!B71 -> 387.46 | D62: ='Gross Plant in Service'!C71 -> OTHER EQUIP CUSTOMER INFO SERVICE | E62: ='Gross Plant in Service'!D71 -> 11 | F62: ='Depreciation Reserve'!E71 -> 2037372.25 | G62: 1318546.7 | H62: 185889.8 | I62: 188314.3 | J62: 122914.7 | K62: 220810.4 | L62: 896.4
A63: 49 | C63: ='Gross Plant in Service'!B72 -> 387.45 | D63: ='Gross Plant in Service'!C72 -> DIRECT - OTHER EQUIP CUSTOMER INFO SERVICE | F63: ='Depreciation Reserve'!E72 -> 2630.75 | G63: 0 | H63: 0 | I63: 0 | J63: 0 | K63: 0 | L63: ='Depreciation Reserve'!E72 -> 2630.75
A64: 50 | C64: ='Gross Plant in Service'!B73 -> 387.5 | D64: ='Gross Plant in Service'!C73 -> GPS EQUIPMENT | E64: ='Gross Plant in Service'!D73 -> 11 | F64: ='Depreciation Reserve'!E73 -> 1049356 | G64: =ROUND(F64-(SUM(H64:L64)),1) -> 679122.3 | H64: 95743.2 | I64: 96992 | J64: 63307.6 | K64: 113729.2 | L64: 461.7
A65: 51 | D65: TOTAL DISTRIBUTION PLANT | F65: =SUM(F18:F64) -> 465228030 | G65: 318091196.4 | H65: 43561000 | I65: 37987223.9 | J65: 23672845.2 | K65: 41575724.3 | L65: 340040.28
A67: =A65+1 -> 52 | C67: ='Gross Plant in Service'!$B$99 -> 389-398 | D67: ='Gross Plant in Service'!$C$99 -> GENERAL PLANT | E67: ='Gross Plant in Service'!D$99 -> 11 | F67: ='Depreciation Reserve'!E98 -> 14119387 | G67: =ROUND(F67-(SUM(H67:L67)),1) -> 9137784.9 | H67: =ROUND((VLOOKUP($E67,ALLOC,19)*$F67),1) -> 1288252.9 | I67: =ROUND((VLOOKUP($E67,ALLOC,20)*$F67),1) -> 1305054.9 | J67: =ROUND((VLOOKUP($E67,ALLOC,21)*$F67),1) -> 851822.6 | K67: =ROUND((VLOOKUP($E67,ALLOC,22)*$F67),1) -> 1530259.2 | L67: =ROUND((VLOOKUP($E67,ALLOC,23)*$F67),1) -> 6212.5
A69: =A67+1 -> 53 | C69: TOTAL DEPRECIATION RESERVE | F69: =F13+F15+F65+F67 -> 499229725 | G69: 340490034.6 | H69: 46841320 | I69: 41196272.3 | J69: 25539028.3 | K69: 44803341.2 | L69: 359728.68
F73: =+F69-'Deprec Sched from Spanos'!H127 -> 0 | G73: Difference to Spanos Reserve Exhibit

Sheet Pg 5
A1: =Input!$B$1 -> COLUMBIA GAS OF PENNSYLVANIA, INC.
A2: ='Title Exh 111, Sch. 1'!$B$16 -> DEPRECIATION AND AMORTIZATION EXPENSE
A3: ="FOR THE TWELVE MONTHS ENDED "&Input!$B$4 -> FOR THE TWELVE MONTHS ENDED DECEMBER 31, 2019
A5: =Input!$B$6 -> ALLOCATED COST OF SERVICE | L5: =Input!$B$9 -> 111, SCHEDULE 2
A6: =Input!$B$7 -> PEAK & AVERAGE | L6: ="PAGE 5 OF "&FIXED(Input!$B$10,0,TRUE) -> PAGE 5 OF 13
A7: =IF(Input!$B$8=0," ", Input!$B$8) ->  | L7: ="WITNESS: "&Input!$B$5 -> WITNESS: M. P. BALMERT
A8: LINE | C8: ACCT. | E8: ALLOC | F8: TOTAL
A9: NO. | C9: NO. | D9: ACCOUNT TITLE | E9: FACTOR | F9: COMPANY | G9: =Input!$B$17 -> RSS/RDS | H9: =Input!$B$18 -> SGSS1/SCD1/SGDS1 | I9: =Input!$B$19 -> SGSS2/SCD2/SGDS2 | J9: =Input!$B$20 -> SDS/LGSS | K9: =Input!$B$21 -> LDS/LGSS | L9: =Input!$B$22 -> MLDS
C10: (A) | D10: (B) | E10: (C) | F10: (D) | G10: (E) | H10: (F) | I10: (G) | J10: (H) | K10: (I) | L10: (J)
F11: $ | G11: $ | H11: $ | I11: $ | J11: $ | K11: $ | L11: $
A13: 1 | C13: ='Gross Plant in Service'!$B$10 -> 301-305 | D13: ='Gross Plant in Service'!$C$10 -> INTANGIBLE PLANT | E13: ='Gross Plant in Service'!$D$10 -> 11 | F13: ='Depr & Amort Exp'!E10 -> 4872321 | G13: =ROUND(F13-(SUM(H13:L13)),1) -> 3153268.8 | H13: =ROUND((VLOOKUP($E13,ALLOC,19)*$F13),1) -> 444550.6 | I13: =ROUND((VLOOKUP($E13,ALLOC,20)*$F13),1) -> 450348.6 | J13: =ROUND((VLOOKUP($E13,ALLOC,21)*$F13),1) -> 293947.1 | K13: =ROUND((VLOOKUP($E13,ALLOC,22)*$F13),1) -> 528062.1 | L13: =ROUND((VLOOKUP($E13,ALLOC,23)*$F13),1) -> 2143.8
A14: 2 | C14: ='Gross Plant in Service'!$B$10 -> 301-305 | D14: INTANGIBLE PLANT - C&I NETWORK ONLY | E14: ='Gross Plant in Service'!$D$8 -> 26 | F14: ='Depr & Amort Exp'!E8 -> 322558 | G14: =ROUND(F14-(SUM(H14:L14)),1) -> -0.1 | H14: =ROUND((VLOOKUP($E14,ALLOC,19)*$F14),1) -> 0 | I14: =ROUND((VLOOKUP($E14,ALLOC,20)*$F14),1) -> 65769.6 | J14: =ROUND((VLOOKUP($E14,ALLOC,21)*$F14),1) -> 207946.7 | K14: =ROUND((VLOOKUP($E14,ALLOC,22)*$F14),1) -> 43522.8 | L14: =ROUND((VLOOKUP($E14,ALLOC,23)*$F14),1) -> 5319
A15: =A14+1 -> 3 | C15: ='Gross Plant in Service'!$B$24 -> 350-362 | D15: ='Gross Plant in Service'!$C$24 -> UNDERGROUND STORAGE PLANT | E15: ='Gross Plant in Service'!$D$24 -> 25 | F15: ='Depr & Amort Exp'!E24 -> 284786 | G15: =ROUND(F15-(SUM(H15:L15)),1) -> 210864.1 | H15: =ROUND((VLOOKUP($E15,ALLOC,19)*$F15),1) -> 37993.3 | I15: =ROUND((VLOOKUP($E15,ALLOC,20)*$F15),1) -> 30793.9 | J15: =ROUND((VLOOKUP($E15,ALLOC,21)*$F15),1) -> 4690.4 | K15: =ROUND((VLOOKUP($E15,ALLOC,22)*$F15),1) -> 0 | L15: =ROUND((VLOOKUP($E15,ALLOC,23)*$F15),1) -> 444.3
D17: DISTRIBUTION PLANT
A18: =A15+1 -> 4 | C18: ='Gross Plant in Service'!$B$27 -> 374.1 | D18: ='Gross Plant in Service'!$C$27 -> LAND - CITY GATE & M/L IND M&R | E18: ='Gross Plant in Service'!$D$27 -> 5 | F18: ='Depr & Amort Exp'!E27 -> 0 | G18: =ROUND(F18-(SUM(H18:L18)),1) -> 0 | H18: =ROUND((VLOOKUP($E18,ALLOC,19)*$F18),1) -> 0 | I18: =ROUND((VLOOKUP($E18,ALLOC,20)*$F18),1) -> 0 | J18: =ROUND((VLOOKUP($E18,ALLOC,21)*$F18),1) -> 0 | K18: =ROUND((VLOOKUP($E18,ALLOC,22)*$F18),1) -> 0 | L18: =ROUND((VLOOKUP($E18,ALLOC,23)*$F18),1) -> 0
A19: =A18+1 -> 5 | C19: ='Gross Plant in Service'!$B$28 -> 374.2 | D19: ='Gross Plant in Service'!$C$28 -> LAND - OTHER DISTRIBUTION | E19: ='Gross Plant in Service'!$D$28 -> 5 | F19: ='Depr & Amort Exp'!E28 -> 0 | G19: =ROUND(F19-(SUM(H19:L19)),1) -> 0 | H19: =ROUND((VLOOKUP($E19,ALLOC,19)*$F19),1) -> 0 | I19: =ROUND((VLOOKUP($E19,ALLOC,20)*$F19),1) -> 0 | J19: =ROUND((VLOOKUP($E19,ALLOC,21)*$F19),1) -> 0 | K19: =ROUND((VLOOKUP($E19,ALLOC,22)*$F19),1) -> 0 | L19: =ROUND((VLOOKUP($E19,ALLOC,23)*$F19),1) -> 0
A20: =A19+1 -> 6 | C20: ='Gross Plant in Service'!$B$29 -> 374.3 | D20: ='Gross Plant in Service'!$C$29 -> LAND RIGHTS - CITY GATE MAIN LINE | E20: ='Gross Plant in Service'!$D$29 -> 5 | F20: ='Depr & Amort Exp'!E29 -> 0 | G20: =ROUND(F20-(SUM(H20:L20)),1) -> 0 | H20: =ROUND((VLOOKUP($E20,ALLOC,19)*$F20),1) -> 0 | I20: =ROUND((VLOOKUP($E20,ALLOC,20)*$F20),1) -> 0 | J20: =ROUND((VLOOKUP($E20,ALLOC,21)*$F20),1) -> 0 | K20: =ROUND((VLOOKUP($E20,ALLOC,22)*$F20),1) -> 0 | L20: =ROUND((VLOOKUP($E20,ALLOC,23)*$F20),1) -> 0
A21: =A20+1 -> 7 | C21: ='Gross Plant in Service'!B30 -> 374.4 | D21: ='Gross Plant in Service'!C30 -> LAND RIGHTS - OTHER DISTRIBUTION | E21: ='Gross Plant in Service'!$D$30 -> 5 | F21: ='Depr & Amort Exp'!E30 -> 52833 | G21: =ROUND(F21-(SUM(H21:L21)),1) -> 29672.1 | H21: =ROUND((VLOOKUP($E21,ALLOC,19)*$F21),1) -> 4893.4 | I21: =ROUND((VLOOKUP($E21,ALLOC,20)*$F21),1) -> 6263.9 | J21: =ROUND((VLOOKUP($E21,ALLOC,21)*$F21),1) -> 4248.8 | K21: =ROUND((VLOOKUP($E21,ALLOC,22)*$F21),1) -> 7754.8 | L21: =ROUND((VLOOKUP($E21,ALLOC,23)*$F21),1) -> 0
A22: 8 | C22: ='Gross Plant in Service'!B31 -> 374.4 | D22: ='Gross Plant in Service'!C31 -> DIRECT - LAND RIGHTS-OTHER DISTRIBUTION | F22: =L22 -> 0 | G22: 0 | H22: 0 | I22: 0 | J22: 0 | K22: 0 | L22: ='Depr & Amort Exp'!E31 -> 0
A23: 9 | C23: ='Gross Plant in Service'!$B$32 -> 374.41 | D23: ='Gross Plant in Service'!$C$32 -> LAND RIGHTS - OTHER DISTRIBUTION LOC | E23: ='Gross Plant in Service'!$D$32 -> 5 | F23: ='Depr & Amort Exp'!E32 -> 0 | G23: =ROUND(F23-(SUM(H23:L23)),1) -> 0 | H23: =ROUND((VLOOKUP($E23,ALLOC,19)*$F23),1) -> 0 | I23: =ROUND((VLOOKUP($E23,ALLOC,20)*$F23),1) -> 0 | J23: =ROUND((VLOOKUP($E23,ALLOC,21)*$F23),1) -> 0 | K23: =ROUND((VLOOKUP($E23,ALLOC,22)*$F23),1) -> 0 | L23: =ROUND((VLOOKUP($E23,ALLOC,23)*$F23),1) -> 0
A24: 10 | C24: ='Gross Plant in Service'!B33 -> 374.5 | D24: ='Gross Plant in Service'!C33 -> RIGHTS OF WAY | E24: ='Gross Plant in Service'!$D$33 -> 5 | F24: ='Depr & Amort Exp'!E33 -> 35298.39 | G24: =ROUND(F24-(SUM(H24:L24)),1) -> 19824.3 | H24: =ROUND((VLOOKUP($E24,ALLOC,19)*$F24),1) -> 3269.3 | I24: =ROUND((VLOOKUP($E24,ALLOC,20)*$F24),1) -> 4185 | J24: =ROUND((VLOOKUP($E24,ALLOC,21)*$F24),1) -> 2838.7 | K24: =ROUND((VLOOKUP($E24,ALLOC,22)*$F24),1) -> 5181.1 | L24: =ROUND((VLOOKUP($E24,ALLOC,23)*$F24),1) -> 0
A25: 11 | C25: ='Gross Plant in Service'!B34 -> 374.5 | D25: ='Gross Plant in Service'!C34 -> DIRECT - RIGHTS OF WAY | F25: ='Depr & Amort Exp'!E34 -> 0.61 | G25: 0 | H25: 0 | I25: 0 | J25: 0 | K25: 0 | L25: =F25 -> 0.61
A26: 12 | C26: ='Gross Plant in Service'!B35 -> 375.2 | D26: ='Gross Plant in Service'!$C$35 -> M & R STRUCTURES - CITY GATE | E26: ='Gross Plant in Service'!$D$35 -> 5 | F26: ='Depr & Amort Exp'!E35 -> 0 | G26: =ROUND(F26-(SUM(H26:L26)),1) -> 0 | H26: =ROUND((VLOOKUP($E26,ALLOC,19)*$F26),1) -> 0 | I26: =ROUND((VLOOKUP($E26,ALLOC,20)*$F26),1) -> 0 | J26: =ROUND((VLOOKUP($E26,ALLOC,21)*$F26),1) -> 0 | K26: =ROUND((VLOOKUP($E26,ALLOC,22)*$F26),1) -> 0 | L26: =ROUND((VLOOKUP($E26,ALLOC,23)*$F26),1) -> 0
A27: 13 | C27: ='Gross Plant in Service'!B36 -> 375.31 | D27: ='Gross Plant in Service'!$C$36 -> M & R STRUCTURES - LOCAL GAS PURCH | E27: ='Gross Plant in Service'!$D$36 -> 5 | F27: ='Depr & Amort Exp'!E36 -> 0 | G27: 0 | H27: 0 | I27: 0 | J27: 0 | K27: 0 | L27: 0
A28: 14 | C28: ='Gross Plant in Service'!$B$37 -> 375.4 | D28: ='Gross Plant in Service'!$C$37 -> M & R STRUCTURES - REGULATING | E28: ='Gross Plant in Service'!$D$37 -> 5 | F28: ='Depr & Amort Exp'!E37 -> 124570.12 | G28: 69961.1 | H28: 11537.7 | I28: 14769 | J28: 10017.9 | K28: 18284.4 | L28: 0
A29: 15 | C29: ='Gross Plant in Service'!$B$38 -> 375.4 | D29: ='Gross Plant in Service'!$C$38 -> DIRECT - M & R STRUCTURES - REGULATING | E29: ='Gross Plant in Service'!$D$38 -> 5 | F29: ='Depr & Amort Exp'!E38 -> 437.88 | G29: 0 | H29: 0 | I29: 0 | J29: 0 | K29: 0 | L29: =F29 -> 437.88
A30: 16 | C30: ='Gross Plant in Service'!$B$39 -> 375.6 | D30: ='Gross Plant in Service'!$C$39 -> M & R STRUCTURES - DIST. IND. M & R | E30: ='Gross Plant in Service'!$D$39 -> 17 | F30: ='Depr & Amort Exp'!E39 -> 545 | G30: 0 | H30: 14.7 | I30: 93.6 | J30: 190.9 | K30: 245.8 | L30: 0
A31: 17 | C31: ='Gross Plant in Service'!$B$40 -> 375.7 | D31: ='Gross Plant in Service'!$C$40 -> M & R STRUCTURES - OTHER | E31: ='Gross Plant in Service'!$D$40 -> 11 | F31: ='Depr & Amort Exp'!E40 -> 313877 | G31: 203134.9 | H31: 28638.1 | I31: 29011.7 | J31: 18936.2 | K31: 34018 | L31: 138.1
A32: 18 | C32: ='Gross Plant in Service'!$B$41 -> 375.71 | D32: ='Gross Plant in Service'!$C$41 -> M & R STRUCTURES - OTHER LEASED | E32: ='Gross Plant in Service'!$D$41 -> 11 | F32: ='Depr & Amort Exp'!E41 -> 224318 | G32: 145174.1 | H32: 20466.8 | I32: 20733.7 | J32: 13533.1 | K32: 24311.6 | L32: 98.7
A33: 19 | C33: ='Gross Plant in Service'!$B$42 -> 375.8 | D33: ='Gross Plant in Service'!$C$42 -> M & R STRUCTURES - COMMUNICATION | E33: ='Gross Plant in Service'!$D$42 -> 5 | F33: ='Depr & Amort Exp'!E42 -> 365 | G33: 204.9 | H33: 33.8 | I33: 43.3 | J33: 29.4 | K33: 53.6 | L33: 0
A34: 20 | C34: ='Gross Plant in Service'!B43 -> 376 | D34: ='Gross Plant in Service'!C43 -> MAINS | E34: ='Gross Plant in Service'!D43 -> 5 | F34: ='Depr & Amort Exp'!E43 -> 38572693 | G34: 21663195.8 | H34: 3572602.8 | I34: 4573178.5 | J34: 3102016 | K34: 5661699.9 | L34: 0
A35: 21 | C35: ='Gross Plant in Service'!B44 -> 376 | D35: ='Gross Plant in Service'!C44 -> DIRECT - MAINS - MDS | F35: ='Depr & Amort Exp'!E44 -> 3616 | G35: 0 | H35: 0 | I35: 0 | J35: 0 | K35: 0 | L35: =F35 -> 3616
A36: 22 | C36: ='Gross Plant in Service'!B45 -> 376.08 | D36: ='Gross Plant in Service'!C45 -> MAINS-CSL REPLACEMENTS | E36: ='Gross Plant in Service'!D45 -> 5 | F36: ='Depr & Amort Exp'!E45 -> 0 | G36: =ROUND(F36-(SUM(H36:L36)),1) -> 0 | H36: =ROUND((VLOOKUP($E36,ALLOC,19)*$F36),1) -> 0 | I36: =ROUND((VLOOKUP($E36,ALLOC,20)*$F36),1) -> 0 | J36: =ROUND((VLOOKUP($E36,ALLOC,21)*$F36),1) -> 0 | K36: =ROUND((VLOOKUP($E36,ALLOC,22)*$F36),1) -> 0 | L36: =ROUND((VLOOKUP($E36,ALLOC,23)*$F36),1) -> 0
A37: 23 | C37: ='Gross Plant in Service'!B46 -> 376.3 | D37: ='Gross Plant in Service'!C46 -> MAINS-BARE STEEL | E37: ='Gross Plant in Service'!D46 -> 5 | F37: ='Depr & Amort Exp'!E46 -> 401984.94 | G37: =ROUND(F37-(SUM(H37:L37)),1) -> 225762.9 | H37: =ROUND((VLOOKUP($E37,ALLOC,19)*$F37),1) -> 37231.8 | I37: =ROUND((VLOOKUP($E37,ALLOC,20)*$F37),1) -> 47659.3 | J37: =ROUND((VLOOKUP($E37,ALLOC,21)*$F37),1) -> 32327.6 | K37: =ROUND((VLOOKUP($E37,ALLOC,22)*$F37),1) -> 59003.3 | L37: =ROUND((VLOOKUP($E37,ALLOC,23)*$F37),1) -> 0
A38: 24 | C38: ='Gross Plant in Service'!B47 -> 376.3 | D38: ='Gross Plant in Service'!C47 -> DIRECT - MAINS-BARE STEEL | F38: ='Depr & Amort Exp'!E47 -> 2622.06 | G38: 0 | H38: 0 | I38: 0 | J38: 0 | K38: 0 | L38: =F38 -> 2622.06
A39: 25 | C39: ='Gross Plant in Service'!B48 -> 376.8 | D39: ='Gross Plant in Service'!C48 -> MAINS-CAST IRON | E39: ='Gross Plant in Service'!D48 -> 5 | F39: ='Depr & Amort Exp'!E48 -> 6932 | G39: =ROUND(F39-(SUM(H39:L39)),1) -> 3893.1 | H39: =ROUND((VLOOKUP($E39,ALLOC,19)*$F39),1) -> 642 | I39: =ROUND((VLOOKUP($E39,ALLOC,20)*$F39),1) -> 821.9 | J39: =ROUND((VLOOKUP($E39,ALLOC,21)*$F39),1) -> 557.5 | K39: =ROUND((VLOOKUP($E39,ALLOC,22)*$F39),1) -> 1017.5 | L39: =ROUND((VLOOKUP($E39,ALLOC,23)*$F39),1) -> 0
A40: 26 | C40: ='Gross Plant in Service'!$B$49 -> 378.1 | D40: ='Gross Plant in Service'!$C$49 -> M & R EQUIP - GENERAL | E40: ='Gross Plant in Service'!D49 -> 5 | F40: ='Depr & Amort Exp'!E49 -> 0 | G40: =ROUND(F40-(SUM(H40:L40)),1) -> 0 | H40: =ROUND((VLOOKUP($E40,ALLOC,19)*$F40),1) -> 0 | I40: =ROUND((VLOOKUP($E40,ALLOC,20)*$F40),1) -> 0 | J40: =ROUND((VLOOKUP($E40,ALLOC,21)*$F40),1) -> 0 | K40: =ROUND((VLOOKUP($E40,ALLOC,22)*$F40),1) -> 0 | L40: =ROUND((VLOOKUP($E40,ALLOC,23)*$F40),1) -> 0
A41: 27 | C41: ='Gross Plant in Service'!B50 -> 378.2 | D41: ='Gross Plant in Service'!C50 -> M & R EQUIP - GENERAL - REGULATING | E41: ='Gross Plant in Service'!D50 -> 5 | F41: ='Depr & Amort Exp'!E50 -> 3603117.24 | G41: =ROUND(F41-(SUM(H41:L41)),1) -> 2023582.7 | H41: =ROUND((VLOOKUP($E41,ALLOC,19)*$F41),1) -> 333720.7 | I41: =ROUND((VLOOKUP($E41,ALLOC,20)*$F41),1) -> 427185.6 | J41: =ROUND((VLOOKUP($E41,ALLOC,21)*$F41),1) -> 289762.7 | K41: =ROUND((VLOOKUP($E41,ALLOC,22)*$F41),1) -> 528865.5 | L41: =ROUND((VLOOKUP($E41,ALLOC,23)*$F41),1) -> 0
A42: 28 | C42: ='Gross Plant in Service'!B51 -> 378.2 | D42: ='Gross Plant in Service'!C51 -> DIRECT - M & R EQUIP-GEN-REG | F42: ='Depr & Amort Exp'!E51 -> 12092.76 | G42: 0 | H42: 0 | I42: 0 | J42: 0 | K42: 0 | L42: =F42 -> 12092.76
A43: 29 | C43: ='Gross Plant in Service'!$B$52 -> 378.3 | D43: ='Gross Plant in Service'!$C$52 -> M & R EQUIP - LOCAL GAS PURCHASES | E43: ='Gross Plant in Service'!D52 -> 5 | F43: ='Depr & Amort Exp'!E52 -> 0 | G43: =ROUND(F43-(SUM(H43:L43)),1) -> 0 | H43: =ROUND((VLOOKUP($E43,ALLOC,19)*$F43),1) -> 0 | I43: =ROUND((VLOOKUP($E43,ALLOC,20)*$F43),1) -> 0 | J43: =ROUND((VLOOKUP($E43,ALLOC,21)*$F43),1) -> 0 | K43: =ROUND((VLOOKUP($E43,ALLOC,22)*$F43),1) -> 0 | L43: =ROUND((VLOOKUP($E43,ALLOC,23)*$F43),1) -> 0
A44: 30 | C44: ='Gross Plant in Service'!B53 -> 379.1 | D44: ='Gross Plant in Service'!$C$53 -> M & R EQUIP - CITY GATE | E44: ='Gross Plant in Service'!D53 -> 5 | F44: ='Depr & Amort Exp'!E53 -> 3534 | G44: =ROUND(F44-(SUM(H44:L44)),1) -> 1984.8 | H44: =ROUND((VLOOKUP($E44,ALLOC,19)*$F44),1) -> 327.3 | I44: =ROUND((VLOOKUP($E44,ALLOC,20)*$F44),1) -> 419 | J44: =ROUND((VLOOKUP($E44,ALLOC,21)*$F44),1) -> 284.2 | K44: =ROUND((VLOOKUP($E44,ALLOC,22)*$F44),1) -> 518.7 | L44: =ROUND((VLOOKUP($E44,ALLOC,23)*$F44),1) -> 0
A45: 31 | C45: ='Gross Plant in Service'!B54 -> 379.11 | D45: ='Gross Plant in Service'!C54 -> M & R EQUIP - EXCHANGE GAS | E45: ='Gross Plant in Service'!D54 -> 5 | F45: ='Depr & Amort Exp'!E54 -> 0 | G45: =ROUND(F45-(SUM(H45:L45)),1) -> 0 | H45: =ROUND((VLOOKUP($E45,ALLOC,19)*$F45),1) -> 0 | I45: =ROUND((VLOOKUP($E45,ALLOC,20)*$F45),1) -> 0 | J45: =ROUND((VLOOKUP($E45,ALLOC,21)*$F45),1) -> 0 | K45: =ROUND((VLOOKUP($E45,ALLOC,22)*$F45),1) -> 0 | L45: =ROUND((VLOOKUP($E45,ALLOC,23)*$F45),1) -> 0
A46: 32 | C46: ='Gross Plant in Service'!B55 -> 380 | D46: ='Gross Plant in Service'!C55 -> SERVICES | E46: ='Gross Plant in Service'!D55 -> 15 | F46: ='Depr & Amort Exp'!E55 -> 17294953.04 | G46: =ROUND(F46-(SUM(H46:L46)),1) -> 15711945.9 | H46: =ROUND((VLOOKUP($E46,ALLOC,19)*$F46),1) -> 1319950.8 | I46: =ROUND((VLOOKUP($E46,ALLOC,20)*$F46),1) -> 214284.5 | J46: =ROUND((VLOOKUP($E46,ALLOC,21)*$F46),1) -> 31649.8 | K46: =ROUND((VLOOKUP($E46,ALLOC,22)*$F46),1) -> 17122 | L46: =ROUND((VLOOKUP($E46,ALLOC,23)*$F46),1) -> 0
A47: 33 | C47: ='Gross Plant in Service'!B56 -> 380 | D47: ='Gross Plant in Service'!C56 -> DIRECT - SERVICES | F47: ='Depr & Amort Exp'!E56 -> 48.96 | G47: 0 | H47: 0 | I47: 0 | J47: 0 | K47: 0 | L47: =F47 -> 48.96
A48: 34 | C48: ='Gross Plant in Service'!B57 -> 380.12 | D48: ='Gross Plant in Service'!C57 -> CSL REPLACEMENT | E48: ='Gross Plant in Service'!D57 -> 15 | F48: ='Depr & Amort Exp'!E57 -> 0 | G48: =ROUND(F48-(SUM(H48:L48)),1) -> 0 | H48: =ROUND((VLOOKUP($E48,ALLOC,19)*$F48),1) -> 0 | I48: =ROUND((VLOOKUP($E48,ALLOC,20)*$F48),1) -> 0 | J48: =ROUND((VLOOKUP($E48,ALLOC,21)*$F48),1) -> 0 | K48: =ROUND((VLOOKUP($E48,ALLOC,22)*$F48),1) -> 0 | L48: =ROUND((VLOOKUP($E48,ALLOC,23)*$F48),1) -> 0
A49: 35 | C49: ='Gross Plant in Service'!$B$58 -> 381 | D49: ='Gross Plant in Service'!$C$58 -> METERS | E49: ='Gross Plant in Service'!D58 -> 16 | F49: ='Depr & Amort Exp'!E58 -> 937707 | G49: 705840.2 | H49: 151027.1 | I49: 70581.2 | J49: 7923.6 | K49: 2213 | L49: 121.9
A50: 36 | C50: ='Gross Plant in Service'!B59 -> 381.1 | D50: ='Gross Plant in Service'!C59 -> AUTOMATIC METER READING | E50: ='Gross Plant in Service'!D59 -> 16 | F50: ='Depr & Amort Exp'!E59 -> 1297423 | G50: 976609.3 | H50: 208962.9 | I50: 97657 | J50: 10963.2 | K50: 3061.9 | L50: 168.7
A51: 37 | C51: ='Gross Plant in Service'!B60 -> 381.1 | D51: ='Gross Plant in Service'!C60 -> AUTOMATIC METER READING - C&I NET ONLY | E51: ='Gross Plant in Service'!D60 -> 26 | F51: ='Depr & Amort Exp'!E60 -> 306708 | G51: =ROUND(F51-(SUM(H51:L51)),1) -> 0 | H51: 0 | I51: 62537.8 | J51: 197728.5 | K51: 41384.1 | L51: 5057.6
A52: 38 | C52: ='Gross Plant in Service'!B61 -> 382 | D52: ='Gross Plant in Service'!C61 -> METER INSTALLATIONS | E52: ='Gross Plant in Service'!D61 -> 16 | F52: ='Depr & Amort Exp'!E61 -> 825547 | G52: 621414 | H52: 132962.6 | I52: 62138.9 | J52: 6975.9 | K52: 1948.3 | L52: 107.3
A53: 39 | C53: ='Gross Plant in Service'!B62 -> 383 | D53: ='Gross Plant in Service'!C62 -> HOUSE REGULATORS | E53: ='Gross Plant in Service'!D62 -> 21 | F53: ='Depr & Amort Exp'!E62 -> 298012 | G53: 270124.1 | H53: 22803.9 | I53: 4476.1 | J53: 497.7 | K53: 98.3 | L53: 11.9
A54: 40 | C54: ='Gross Plant in Service'!B63 -> 384 | D54: ='Gross Plant in Service'!C63 -> HOUSE REG INSTALLATIONS | E54: ='Gross Plant in Service'!D63 -> 21 | F54: ='Depr & Amort Exp'!E63 -> 37255 | G54: 33768.6 | H54: 2850.8 | I54: 559.6 | J54: 62.2 | K54: 12.3 | L54: 1.5
A55: 41 | C55: ='Gross Plant in Service'!B64 -> 385 | D55: ='Gross Plant in Service'!C64 -> IND M&R EQUIPMENT | E55: ='Gross Plant in Service'!D64 -> 17 | F55: ='Depr & Amort Exp'!E64 -> 437918.92 | G55: 0 | H55: 11788.8 | I55: 75186.3 | J55: 153403 | K55: 197540.8 | L55: 0
A56: 42 | C56: ='Gross Plant in Service'!B65 -> 385 | D56: ='Gross Plant in Service'!C65 -> DIRECT - IND M&R EQUIPMENT | F56: ='Depr & Amort Exp'!E65 -> 11470.08 | G56: 0 | H56: 0 | I56: 0 | J56: 0 | K56: 0 | L56: =F56 -> 11470.08
A57: 43 | C57: ='Gross Plant in Service'!B66 -> 385.1 | D57: ='Gross Plant in Service'!C66 -> IND M&R EQUIPMENT - LG VOLUME | E57: ='Gross Plant in Service'!D66 -> 17 | F57: ='Depr & Amort Exp'!E66 -> 0 | G57: =ROUND(F57-(SUM(H57:L57)),1) -> 0 | H57: =ROUND((VLOOKUP($E57,ALLOC,19)*$F57),1) -> 0 | I57: =ROUND((VLOOKUP($E57,ALLOC,20)*$F57),1) -> 0 | J57: =ROUND((VLOOKUP($E57,ALLOC,21)*$F57),1) -> 0 | K57: =ROUND((VLOOKUP($E57,ALLOC,22)*$F57),1) -> 0 | L57: =ROUND((VLOOKUP($E57,ALLOC,23)*$F57),1) -> 0
A58: 44 | C58: ='Gross Plant in Service'!B67 -> 387.1 | D58: ='Gross Plant in Service'!C67 -> OTHER EQUIP DISTRIBUTION | E58: ='Gross Plant in Service'!D67 -> 11 | F58: ='Depr & Amort Exp'!E67 -> 0 | G58: 0 | H58: 0 | I58: 0 | J58: 0 | K58: 0 | L58: 0
A59: 45 | C59: ='Gross Plant in Service'!B68 -> 387.2 | D59: ='Gross Plant in Service'!C68 -> OTHER EQUIP ODORIZATION | E59: ='Gross Plant in Service'!D68 -> 11 | F59: ='Depr & Amort Exp'!E68 -> 0 | G59: 0 | H59: 0 | I59: 0 | J59: 0 | K59: 0 | L59: =ROUND((VLOOKUP($E59,ALLOC,23)*$F59),1) -> 0
A60: 46 | C60: ='Gross Plant in Service'!B69 -> 387.42 | D60: ='Gross Plant in Service'!C69 -> OTHER EQUIP RADIO | E60: ='Gross Plant in Service'!D69 -> 11 | F60: ='Depr & Amort Exp'!E69 -> 0 | G60: 0 | H60: 0 | I60: 0 | J60: 0 | K60: 0 | L60: =ROUND((VLOOKUP($E60,ALLOC,23)*$F60),1) -> 0
A61: 47 | C61: ='Gross Plant in Service'!B70 -> 387.44 | D61: ='Gross Plant in Service'!C70 -> OTHER EQUIP COMMUNICATION | E61: ='Gross Plant in Service'!D70 -> 11 | F61: ='Depr & Amort Exp'!E70 -> 0 | G61: 0 | H61: 0 | I61: 0 | J61: 0 | K61: 0 | L61: =ROUND((VLOOKUP($E61,ALLOC,23)*$F61),1) -> 0
A62: 48 | C62: ='Gross Plant in Service'!B71 -> 387.46 | D62: ='Gross Plant in Service'!C71 -> OTHER EQUIP CUSTOMER INFO SERVICE | E62: ='Gross Plant in Service'!D71 -> 11 | F62: ='Depr & Amort Exp'!E71 -> 394500.02 | G62: 255312.5 | H62: 35994.2 | I62: 36463.6 | J62: 23800.2 | K62: 42755.9 | L62: =ROUND((VLOOKUP($E62,ALLOC,23)*$F62),1) -> 173.6
A63: 49 | C63: ='Gross Plant in Service'!B72 -> 387.45 | D63: ='Gross Plant in Service'!C72 -> DIRECT - OTHER EQUIP CUSTOMER INFO SERVICE | F63: ='Depr & Amort Exp'!E72 -> 1507.98 | G63: 0 | H63: 0 | I63: 0 | J63: 0 | K63: 0 | L63: =F63 -> 1507.98
A64: 50 | C64: ='Gross Plant in Service'!B73 -> 387.5 | D64: ='Gross Plant in Service'!C73 -> GPS EQUIPMENT | E64: ='Gross Plant in Service'!D73 -> 11 | F64: ='Depr & Amort Exp'!E73 -> 241930 | G64: =ROUND(F64-(SUM(H64:L64)),1) -> 156572.3 | H64: 22073.7 | I64: 22361.6 | J64: 14595.6 | K64: 26220.4 | L64: =ROUND((VLOOKUP($E64,ALLOC,23)*$F64),1) -> 106.4
A65: 51 | D65: TOTAL DISTRIBUTION PLANT | F65: =SUM(F18:F64) -> 65443818 | G65: 43117977.6 | H65: 5921793.2 | I65: 5770611.1 | J65: 3922342.7 | K65: 6673311.2 | L65: 37782.03
A66: 52
A67: 53 | C67: ='Gross Plant in Service'!$B$99 -> 389-398 | D67: ='Gross Plant in Service'!$C$99 -> GENERAL PLANT | E67: ='Gross Plant in Service'!$D$99 -> 11 | F67: ='Depr & Amort Exp'!E98 -> 1956270 | G67: =ROUND(F67-(SUM(H67:L67)),1) -> 1266058.8 | H67: =ROUND((VLOOKUP($E67,ALLOC,19)*$F67),1) -> 178490.1 | I67: =ROUND((VLOOKUP($E67,ALLOC,20)*$F67),1) -> 180818 | J67: =ROUND((VLOOKUP($E67,ALLOC,21)*$F67),1) -> 118021.8 | K67: =ROUND((VLOOKUP($E67,ALLOC,22)*$F67),1) -> 212020.5 | L67: =ROUND((VLOOKUP($E67,ALLOC,23)*$F67),1) -> 860.8
A69: =A67+1 -> 54 | D69: NET DEPRECIATION & AMORTIZATION EXPENSE | F69: =F13+F15+F65+F67 -> 72557195 | G69: 47748169.3 | H69: 6582827.2 | I69: 6432571.6 | J69: 4339002 | K69: 7413393.8 | L69: 41230.93
A70: =A69+1 -> 55 | D70: AMORTIZATION OF NET NEGATIVE SALVAGE | E70: ='Gross Plant in Service'!$D$99 -> 11 | F70: ='Depr & Amort Exp'!E102 -> 4744712.566 | G70: =ROUND(F70-(SUM(H70:L70)),1) -> 3070683.1 | H70: =ROUND((VLOOKUP($E70,ALLOC,19)*$F70),1) -> 432907.6 | I70: =ROUND((VLOOKUP($E70,ALLOC,20)*$F70),1) -> 438553.8 | J70: =ROUND((VLOOKUP($E70,ALLOC,21)*$F70),1) -> 286248.5 | K70: =ROUND((VLOOKUP($E70,ALLOC,22)*$F70),1) -> 514231.9 | L70: =ROUND((VLOOKUP($E70,ALLOC,23)*$F70),1) -> 2087.7
A72: =A70+1 -> 56 | C72: TOTAL AMORTIZATION AND DEPRECIATION EXPENSE | F72: =F69+F70 -> 77301907.57 | G72: =G69+G70 -> 50818852.4 | H72: 7015734.8 | I72: 6871125.4 | J72: 4625250.5 | K72: 7927625.7 | L72: 43318.63
F76: =+F69-'Deprec Sched from Spanos'!L127 -> 0 | G76: Difference to Spanos Dep Exp

Sheet Pg 6
A1: =Input!$B$1 -> COLUMBIA GAS OF PENNSYLVANIA, INC.
A2: ='Title Exh 111, Sch. 1'!$B$17 -> OPERATING REVENUE @ PROPOSED & CURRENT RATES
A3: ="FOR THE TWELVE MONTHS ENDED "&Input!$B$4 -> FOR THE TWELVE MONTHS ENDED DECEMBER 31, 2019
A5: =Input!$B$6 -> ALLOCATED COST OF SERVICE | L5: =""&Input!$B$9 -> 111, SCHEDULE 2
A6: =Input!$B$7 -> PEAK & AVERAGE | L6: ="PAGE 6 OF "&FIXED(Input!$B$10,0,TRUE) -> PAGE 6 OF 13
A7: =IF(Input!$B$8=0," ", Input!$B$8) ->  | L7: ="WITNESS: "&Input!$B$5 -> WITNESS: M. P. BALMERT
A8: LINE | C8: ACCT | E8: ALLOC | F8: TOTAL
A9: NO. | C9: NO. | D9: ACCOUNT TITLE | E9: FACTOR | F9: COMPANY | G9: =Input!$B$17 -> RSS/RDS | H9: =Input!$B$18 -> SGSS1/SCD1/SGDS1 | I9: =Input!$B$19 -> SGSS2/SCD2/SGDS2 | J9: =Input!$B$20 -> SDS/LGSS | K9: =Input!$B$21 -> LDS/LGSS | L9: =Input!$B$22 -> MLDS
C10: (A) | D10: (B) | E10: (C) | F10: (D) | G10: (E) | H10: (F) | I10: (G) | J10: (H) | K10: (I) | L10: (J)
F11: $ | G11: $ | H11: $ | I11: $ | J11: $ | K11: $ | L11: $
D12: PROPOSED OPERATING REVENUE
C13: SALES REVENUE
A14: 1 | C14: =C44 -> 480/481 | D14: =D44 -> SALES BASE REVENUE | F14: =SUM(G14:L14) -> 291753020 | G14: =Revenue!E4 -> 245109543 | H14: =Revenue!F4 -> 27539222 | I14: =Revenue!G4 -> 16933808 | J14: =Revenue!H4 -> 2149847 | K14: =Revenue!I4 -> 0 | L14: =Revenue!J4 -> 20600
A15: =A14+1 -> 2 | D15: C&I CHARGE REVENUE | F15: =SUM(G15:L15) -> 2558065 | G15: =Revenue!E5 -> 0 | H15: =Revenue!F5 -> 0 | I15: =Revenue!G5 -> 521588 | J15: =Revenue!H5 -> 1649136 | K15: =Revenue!I5 -> 345159 | L15: =Revenue!J5 -> 42182
A16: =A15+1 -> 3 | D16: =D45 -> USP REVENUE | F16: 25010607 | G16: =Revenue!E6 -> 25010607 | H16: =Revenue!F6 -> 0 | I16: =Revenue!G6 -> 0 | J16: =Revenue!H6 -> 0 | K16: =Revenue!I6 -> 0 | L16: =Revenue!J6 -> 0
A17: =A16+1 -> 4 | D17: =D46 -> STAS REVENUE | F17: 0 | G17: =Revenue!E7 -> 0 | H17: =Revenue!F7 -> 0 | I17: =Revenue!G7 -> 0 | J17: =Revenue!H7 -> 0 | K17: =Revenue!I7 -> 0 | L17: =Revenue!J7 -> 0
A18: 5 | D18: RIDER CC - CUSTOMER CHOICE | F18: 33856 | G18: =Revenue!E8 -> 24988 | H18: =Revenue!F8 -> 4813 | I18: =Revenue!G8 -> 4055 | J18: =Revenue!H8 -> 0 | K18: =Revenue!I8 -> 0 | L18: =Revenue!J8 -> 0
A19: 6 | D19: GAS PROCUREMENT REVENUE | F19: =SUM(G19:L19) -> 2581692 | G19: =Revenue!E9 -> 1912126 | H19: =Revenue!F9 -> 334502 | I19: =Revenue!G9 -> 281823 | J19: =Revenue!H9 -> 53241 | K19: =Revenue!I9 -> 0 | L19: =Revenue!J9 -> 0
A20: 7 | D20: MERCHANT FUNCTION REVENUE | F20: =SUM(G20:L20) -> 1216174 | G20: =Revenue!E11 -> 1139022 | H20: =Revenue!F11 -> 41873 | I20: =Revenue!G11 -> 35279 | J20: =Revenue!H11 -> 0 | K20: =Revenue!I11 -> 0 | L20: =Revenue!J11 -> 0
A21: 8 | D21: =D50 -> GAS COST REVENUE | F21: 153873118 | G21: =Revenue!E10 -> 113767356 | H21: =Revenue!F10 -> 19902150 | I21: =Revenue!G10 -> 16767888 | J21: =Revenue!H10 -> 3167707 | K21: =Revenue!I10 -> 0 | L21: =Revenue!J10 -> 268017
A22: 9 | D22: =D51 -> TOTAL SALES REVENUE | F22: =SUM(F14:F21) -> 477026532 | G22: 386963642 | H22: 47822560 | I22: 34544441 | J22: 7019931 | K22: 345159 | L22: 330799
C24: TRANSPORTATION REVENUE
A25: =A22+1 -> 10 | C25: =C54 -> 489.00 | D25: =D54 -> TRANSPORTATION BASE REVENUE | F25: =SUM(G25:L25) -> 121907878 | G25: =Revenue!E12 -> 61251663 | H25: =Revenue!F12 -> 9506980 | I25: =Revenue!G12 -> 18930761 | J25: =Revenue!H12 -> 16225331 | K25: =Revenue!I12 -> 15658687 | L25: =Revenue!J12 -> 334456
A26: =A25+1 -> 11 | D26: =D55 -> USP REVENUE | F26: =SUM(G26:L26) -> 6931233 | G26: =Revenue!E13 -> 6931233 | H26: =Revenue!F13 -> 0 | I26: =Revenue!G13 -> 0 | J26: =Revenue!H13 -> 0 | K26: =Revenue!I13 -> 0 | L26: =Revenue!J13 -> 0
A27: 12 | D27: =D56 -> STAS REVENUE | F27: 0 | G27: =Revenue!E14 -> 0 | H27: =Revenue!F14 -> 0 | I27: =Revenue!G14 -> 0 | J27: =Revenue!H14 -> 0 | K27: =Revenue!I14 -> 0 | L27: =Revenue!J14 -> 0
A28: 13 | D28: RIDER CC - CUSTOMER CHOICE | F28: =SUM(G28:L28) -> 13321 | G28: =Revenue!E15 -> 6925 | H28: =Revenue!F15 -> 1643 | I28: =Revenue!G15 -> 4753 | J28: =Revenue!H15 -> 0 | K28: =Revenue!I15 -> 0 | L28: =Revenue!J15 -> 0
A29: 14 | D29: =D58 -> FLEX REVENUE | F29: =SUM(G29:L29) -> 5079975 | G29: =Revenue!E16 -> 0 | H29: =Revenue!F16 -> 2678 | I29: =Revenue!G16 -> 43793 | J29: =Revenue!H16 -> 163647 | K29: =Revenue!I16 -> 4020861 | L29: =Revenue!J16 -> 848996
A30: 15 | D30: =D59 -> GAS COST REVENUE | F30: =SUM(G30:L30) -> 9633818 | G30: =Revenue!E17 -> 6416705 | H30: =Revenue!F17 -> 1338266 | I30: =Revenue!G17 -> 1878847 | J30: =Revenue!H17 -> 0 | K30: =Revenue!I17 -> 0 | L30: =Revenue!J17 -> 0
A31: 16 | D31: =D60 -> TOTAL TRANSPORTATION REVENUE | F31: =SUM(F25:F30) -> 143566225 | G31: 74606526 | H31: 10849567 | I31: 20858154 | J31: 16388978 | K31: 19679548 | L31: 1183452
C33: MISCELLANEOUS REVENUE
A34: =A31+1 -> 17 | C34: =C63 -> 487.00 | D34: FORFEITED DISCOUNTS | E34: =E63 -> 10 | F34: =Revenue!D19 -> 1347840 | G34: =ROUND(F34-(SUM(H34:L34)),1) -> 995892 | H34: =ROUND((VLOOKUP($E34,ALLOC,19)*$F34),1) -> 132236.6 | I34: =ROUND((VLOOKUP($E34,ALLOC,20)*$F34),1) -> 125079.6 | J34: =ROUND((VLOOKUP($E34,ALLOC,21)*$F34),1) -> 49115.3 | K34: =ROUND((VLOOKUP($E34,ALLOC,22)*$F34),1) -> 42052.6 | L34: =ROUND((VLOOKUP($E34,ALLOC,23)*$F34),1) -> 3463.9
A35: =A34+1 -> 18 | C35: 488 | D35: MISCELLANEOUS REVENUE | E35: =E64 -> 6 | F35: =Revenue!D20 -> 105936.41 | G35: =ROUND(F35-(SUM(H35:L35)),1) -> 96718.9 | H35: =ROUND((VLOOKUP($E35,ALLOC,19)*$F35),1) -> 7911.3 | I35: =ROUND((VLOOKUP($E35,ALLOC,20)*$F35),1) -> 1175.9 | J35: =ROUND((VLOOKUP($E35,ALLOC,21)*$F35),1) -> 104.9 | K35: =ROUND((VLOOKUP($E35,ALLOC,22)*$F35),1) -> 22.2 | L35: =ROUND((VLOOKUP($E35,ALLOC,23)*$F35),1) -> 3.2
A36: =A35+1 -> 19 | C36: =C65 -> 493 | D36: RENTS | E36: =E65 -> 11 | F36: =Revenue!D21 -> 9600 | G36: =ROUND(F36-(SUM(H36:L36)),1) -> 6213 | H36: =ROUND((VLOOKUP($E36,ALLOC,19)*$F36),1) -> 875.9 | I36: =ROUND((VLOOKUP($E36,ALLOC,20)*$F36),1) -> 887.3 | J36: =ROUND((VLOOKUP($E36,ALLOC,21)*$F36),1) -> 579.2 | K36: =ROUND((VLOOKUP($E36,ALLOC,22)*$F36),1) -> 1040.4 | L36: =ROUND((VLOOKUP($E36,ALLOC,23)*$F36),1) -> 4.2
A37: =A36+1 -> 20 | C37: =C66 -> 495 | D37: =D66 -> OTHER | E37: =E66 -> 6 | F37: =Revenue!D22 -> 229067.91 | G37: =ROUND(F37-(SUM(H37:L37)),1) -> 209136.6 | H37: =ROUND((VLOOKUP($E37,ALLOC,19)*$F37),1) -> 17106.8 | I37: =ROUND((VLOOKUP($E37,ALLOC,20)*$F37),1) -> 2542.7 | J37: =ROUND((VLOOKUP($E37,ALLOC,21)*$F37),1) -> 226.8 | K37: =ROUND((VLOOKUP($E37,ALLOC,22)*$F37),1) -> 48.1 | L37: =ROUND((VLOOKUP($E37,ALLOC,23)*$F37),1) -> 6.9
A38: =A37+1 -> 21 | D38: =D67 -> TOTAL MISCELLANEOUS REVENUE | F38: =SUM(F34:F37) -> 1692444.32 | G38: =SUM(G34:G37) -> 1307960.5 | H38: 158130.6 | I38: 129685.5 | J38: 50026.2 | K38: 43163.3 | L38: 3478.2
A40: =A38+1 -> 22 | D40: TOTAL PROPOSED OPERATING REVENUE | F40: =F22+F31+F38 -> 622285201.3 | G40: 462878128.5 | H40: 58830257.6 | I40: 55532280.5 | J40: 23458935.2 | K40: 20067870.3 | L40: 1517729.2
D42: CURRENT OPERATING REVENUE
C43: SALES REVENUE
A44: =A40+1 -> 23 | C44: 480/481 | D44: =Revenue!B27 -> SALES BASE REVENUE | F44: =SUM(G44:L44) -> 243138783 | G44: =Revenue!E27 -> 199086099 | H44: =Revenue!F27 -> 25773774 | I44: =Revenue!G27 -> 16206338 | J44: =Revenue!H27 -> 2051972 | K44: =Revenue!I27 -> 0 | L44: =Revenue!J27 -> 20600
A45: =A44+1 -> 24 | D45: =Revenue!B28 -> USP REVENUE | F45: 22946588 | G45: =Revenue!E28 -> 22946588 | H45: =Revenue!F28 -> 0 | I45: =Revenue!G28 -> 0 | J45: =Revenue!H28 -> 0 | K45: =Revenue!I28 -> 0 | L45: =Revenue!J28 -> 0
A46: 25 | D46: =Revenue!B29 -> STAS REVENUE | F46: 0 | G46: =Revenue!E29 -> 0 | H46: =Revenue!F29 -> 0 | I46: =Revenue!G29 -> 0 | J46: =Revenue!H29 -> 0 | K46: =Revenue!I29 -> 0 | L46: =Revenue!J29 -> 0
A47: 26 | D47: RIDER CC - CUSTOMER CHOICE | F47: 33856 | G47: =Revenue!E30 -> 24988 | H47: =Revenue!F30 -> 4813 | I47: =Revenue!G30 -> 4055 | J47: =Revenue!H30 -> 0 | K47: =Revenue!I30 -> 0 | L47: =Revenue!J30 -> 0
A48: 27 | D48: =Revenue!B31 -> GAS PROCUREMENT REVENUE | F48: 2581692 | G48: =Revenue!E31 -> 1912126 | H48: =Revenue!F31 -> 334502 | I48: =Revenue!G31 -> 281823 | J48: =Revenue!H31 -> 53241 | K48: =Revenue!I31 -> 0 | L48: =Revenue!J31 -> 0
A49: 28 | D49: MERCHANT FUNCTION REVENUE | F49: 1216174 | G49: =Revenue!E33 -> 1139022 | H49: =Revenue!F33 -> 41873 | I49: =Revenue!G33 -> 35279 | J49: =Revenue!H33 -> 0 | K49: =Revenue!I33 -> 0 | L49: =Revenue!J33 -> 0
A50: 29 | D50: =Revenue!B32 -> GAS COST REVENUE | F50: 153873118 | G50: =Revenue!E32 -> 113767356 | H50: =Revenue!F32 -> 19902150 | I50: =Revenue!G32 -> 16767888 | J50: =Revenue!H32 -> 3167707 | K50: =Revenue!I32 -> 0 | L50: =Revenue!J32 -> 268017
A51: 30 | D51: TOTAL SALES REVENUE | F51: =SUM(F44:F50) -> 423790211 | G51: =SUM(G44:G50) -> 338876179 | H51: 46057112 | I51: 33295383 | J51: 5272920 | K51: 0 | L51: 288617
C53: TRANSPORTATION REVENUE
A54: =A51+1 -> 31 | C54: =Revenue!A34 -> 489.00 | D54: =Revenue!B34 -> TRANSPORTATION BASE REVENUE | F54: =SUM(G54:L54) -> 128372847 | G54: =Revenue!E34 -> 72280984 | H54: =Revenue!F34 -> 8890928 | I54: =Revenue!G34 -> 18020338 | J54: =Revenue!H34 -> 15403016 | K54: =Revenue!I34 -> 13678445 | L54: =Revenue!J34 -> 99136
A55: =A54+1 -> 32 | D55: =Revenue!B35 -> USP REVENUE | F55: 6359228 | G55: =Revenue!E35 -> 6359228 | H55: =Revenue!F35 -> 0 | I55: =Revenue!G35 -> 0 | J55: =Revenue!H35 -> 0 | K55: =Revenue!I35 -> 0 | L55: =Revenue!J35 -> 0
A56: 33 | D56: =Revenue!B36 -> STAS REVENUE | F56: 0 | G56: =Revenue!E36 -> 0 | H56: =Revenue!F36 -> 0 | I56: =Revenue!G36 -> 0 | J56: =Revenue!H36 -> 0 | K56: =Revenue!I36 -> 0 | L56: =Revenue!J36 -> 0
A57: 34 | D57: RIDER CC - CUSTOMER CHOICE | F57: 13321 | G57: =Revenue!E37 -> 6925 | H57: =Revenue!F37 -> 1643 | I57: =Revenue!G37 -> 4753 | J57: =Revenue!H37 -> 0 | K57: =Revenue!I37 -> 0 | L57: =Revenue!J37 -> 0
A58: 35 | D58: =Revenue!B38 -> FLEX REVENUE | F58: 5587970 | G58: =Revenue!E38 -> 0 | H58: =Revenue!F38 -> 3443 | I58: =Revenue!G38 -> 46673 | J58: =Revenue!H38 -> 232778 | K58: =Revenue!I38 -> 4220760 | L58: =Revenue!J38 -> 1084316
A59: 36 | D59: =Revenue!B39 -> GAS COST REVENUE | F59: 9633818 | G59: =Revenue!E39 -> 6416705 | H59: =Revenue!F39 -> 1338266 | I59: =Revenue!G39 -> 1878847 | J59: =Revenue!H39 -> 0 | K59: =Revenue!I39 -> 0 | L59: =Revenue!J39 -> 0
A60: 37 | D60: TOTAL TRANSPORTATION REVENUE | F60: =SUM(F54:F59) -> 149967184 | G60: 85063842 | H60: 10234280 | I60: 19950611 | J60: 15635794 | K60: 17899205 | L60: 1183452
C62: MISCELLANEOUS REVENUE
A63: =A60+1 -> 38 | C63: =Revenue!A41 -> 487.00 | D63: =Revenue!B41 -> FORFEITED DISCOUNTS | E63: =Revenue!C41 -> 10 | F63: =Revenue!D41 -> 1246120 | G63: =ROUND(F63-(SUM(H63:L63)),1) -> 920733.3 | H63: =ROUND((VLOOKUP($E63,ALLOC,19)*$F63),1) -> 122256.8 | I63: =ROUND((VLOOKUP($E63,ALLOC,20)*$F63),1) -> 115639.9 | J63: =ROUND((VLOOKUP($E63,ALLOC,21)*$F63),1) -> 45408.6 | K63: =ROUND((VLOOKUP($E63,ALLOC,22)*$F63),1) -> 38878.9 | L63: =ROUND((VLOOKUP($E63,ALLOC,23)*$F63),1) -> 3202.5
A64: =A63+1 -> 39 | C64: =Revenue!A42 -> 488 | D64: =Revenue!B42 -> MISCELLANEOUS REVENUE | E64: =Revenue!C42 -> 6 | F64: =Revenue!D42 -> 105936.41 | G64: =ROUND(F64-(SUM(H64:L64)),1) -> 96718.9 | H64: =ROUND((VLOOKUP($E64,ALLOC,19)*$F64),1) -> 7911.3 | I64: =ROUND((VLOOKUP($E64,ALLOC,20)*$F64),1) -> 1175.9 | J64: =ROUND((VLOOKUP($E64,ALLOC,21)*$F64),1) -> 104.9 | K64: =ROUND((VLOOKUP($E64,ALLOC,22)*$F64),1) -> 22.2 | L64: =ROUND((VLOOKUP($E64,ALLOC,23)*$F64),1) -> 3.2
A65: =A64+1 -> 40 | C65: =Revenue!A43 -> 493 | D65: =Revenue!B43 -> RENTS | E65: =Revenue!C43 -> 11 | F65: =Revenue!D43 -> 9600 | G65: =ROUND(F65-(SUM(H65:L65)),1) -> 6213 | H65: =ROUND((VLOOKUP($E65,ALLOC,19)*$F65),1) -> 875.9 | I65: =ROUND((VLOOKUP($E65,ALLOC,20)*$F65),1) -> 887.3 | J65: =ROUND((VLOOKUP($E65,ALLOC,21)*$F65),1) -> 579.2 | K65: =ROUND((VLOOKUP($E65,ALLOC,22)*$F65),1) -> 1040.4 | L65: =ROUND((VLOOKUP($E65,ALLOC,23)*$F65),1) -> 4.2
A66: =A65+1 -> 41 | C66: =Revenue!A44 -> 495 | D66: =Revenue!B44 -> OTHER | E66: =Revenue!C44 -> 6 | F66: =Revenue!D44 -> 229067.91 | G66: =ROUND(F66-(SUM(H66:L66)),1) -> 209136.6 | H66: =ROUND((VLOOKUP($E66,ALLOC,19)*$F66),1) -> 17106.8 | I66: =ROUND((VLOOKUP($E66,ALLOC,20)*$F66),1) -> 2542.7 | J66: =ROUND((VLOOKUP($E66,ALLOC,21)*$F66),1) -> 226.8 | K66: =ROUND((VLOOKUP($E66,ALLOC,22)*$F66),1) -> 48.1 | L66: =ROUND((VLOOKUP($E66,ALLOC,23)*$F66),1) -> 6.9
A67: =A66+1 -> 42 | D67: TOTAL MISCELLANEOUS REVENUE | F67: =SUM(F63:F66) -> 1590724.32 | G67: =SUM(G63:G66) -> 1232801.8 | H67: 148150.8 | I67: 120245.8 | J67: 46319.5 | K67: 39989.6 | L67: 3216.8
A69: =A67+1 -> 43 | D69: TOTAL CURRENT OPERATING REVENUE | F69: =F51+F60+F67 -> 575348119.3 | G69: 425172822.8 | H69: 56439542.8 | I69: 53366239.8 | J69: 20955033.5 | K69: 17939194.6 | L69: 1475285.8

Sheet Pg 7
A1: =Input!$B$1 -> COLUMBIA GAS OF PENNSYLVANIA, INC.
A2: ='Title Exh 111, Sch. 1'!$B$18 -> PRODUCTION & DISTRIBUTION O&M EXPENSES
A3: ="FOR THE TWELVE MONTHS ENDED "&Input!$B$4 -> FOR THE TWELVE MONTHS ENDED DECEMBER 31, 2019
A5: =Input!$B$6 -> ALLOCATED COST OF SERVICE | L5: =Input!$B$9 -> 111, SCHEDULE 2
A6: =Input!$B$7 -> PEAK & AVERAGE | L6: ="PAGE 7 OF "&FIXED(Input!$B$10,0,TRUE) -> PAGE 7 OF 13
A7: =IF(Input!$B$8=0," ", Input!$B$8) ->  | L7: ="WITNESS: "&Input!$B$5 -> WITNESS: M. P. BALMERT
A8: LINE | C8: ACCT | E8: ALLOC | F8: TOTAL
A9: NO. | C9: NO. | D9: ACCOUNT TITLE | E9: FACTOR | F9: COMPANY | G9: =Input!$B$17 -> RSS/RDS | H9: =Input!$B$18 -> SGSS1/SCD1/SGDS1 | I9: =Input!$B$19 -> SGSS2/SCD2/SGDS2 | J9: =Input!$B$20 -> SDS/LGSS | K9: =Input!$B$21 -> LDS/LGSS | L9: =Input!$B$22 -> MLDS
C10: (A) | D10: (B) | E10: (C) | F10: (D) | G10: (E) | H10: (F) | I10: (G) | J10: (H) | K10: (I) | L10: (J)
F11: $ | G11: $ | H11: $ | I11: $ | J11: $ | K11: $ | L11: $
D12: PURCHASED GAS EXPENSES
A13: 1 | D13: ='O&M Exp'!$B$4 -> GAS PURCHASED COST | F13: =SUM(G13:L13) -> 163506936 | G13: ='VLOOKUP ALLOC TABLE'!F5 -> 120184061 | H13: ='VLOOKUP ALLOC TABLE'!G5 -> 21240416 | I13: ='VLOOKUP ALLOC TABLE'!H5 -> 18646735 | J13: ='VLOOKUP ALLOC TABLE'!I5 -> 3167707 | K13: ='VLOOKUP ALLOC TABLE'!J5 -> 0 | L13: ='VLOOKUP ALLOC TABLE'!K5 -> 268017
A14: =A13+1 -> 2 | C14: ='O&M Exp'!A6 -> 807 | D14: ='O&M Exp'!B6 -> PURCHASED GAS EXPENSE | E14: ='O&M Exp'!C6 -> 4 | F14: ='O&M Exp'!D6 -> -1551614 | G14: =ROUND(F14-(SUM(H14:L14)),1) -> -1140498.3 | H14: =ROUND((VLOOKUP($E14,ALLOC,19)*$F14),1) -> -201570.2 | I14: =ROUND((VLOOKUP($E14,ALLOC,20)*$F14),1) -> -176946.1 | J14: =ROUND((VLOOKUP($E14,ALLOC,21)*$F14),1) -> -30054.8 | K14: =ROUND((VLOOKUP($E14,ALLOC,22)*$F14),1) -> 0 | L14: =ROUND((VLOOKUP($E14,ALLOC,23)*$F14),1) -> -2544.6
A15: =A14+1 -> 3 | C15: 807 | D15: GAS PROCUREMENT EXPENSE | E15: ='O&M Exp'!C6 -> 4 | F15: ='O&M Exp'!D5 -> 2581692 | G15: =ROUND(F15-(SUM(H15:L15)),1) -> 1897646.8 | H15: =ROUND((VLOOKUP($E15,ALLOC,19)*$F15),1) -> 335387.6 | I15: =ROUND((VLOOKUP($E15,ALLOC,20)*$F15),1) -> 294416.2 | J15: =ROUND((VLOOKUP($E15,ALLOC,21)*$F15),1) -> 50007.4 | K15: =ROUND((VLOOKUP($E15,ALLOC,22)*$F15),1) -> 0 | L15: =ROUND((VLOOKUP($E15,ALLOC,23)*$F15),1) -> 4234
A16: =A15+1 -> 4 | D16: TOTAL PURCHASED GAS | F16: =SUM(F13:F15) -> 164537014 | G16: 120941209.5 | H16: 21374233.4 | I16: 18764205.1 | J16: 3187659.6 | K16: 0 | L16: 269706.4
D18: UNDERGROUND STORAGE OPERATIONS EXPENSES
A19: =A16+1 -> 5 | C19: ='O&M Exp'!$A$9 -> 816 | D19: ='O&M Exp'!$B$9 -> WELLS | E19: ='O&M Exp'!$C$9 -> 25 | F19: ='O&M Exp'!D9 -> 0 | G19: =ROUND(F19-(SUM(H19:L19)),1) -> 0 | H19: =ROUND((VLOOKUP($E19,ALLOC,19)*$F19),1) -> 0 | I19: =ROUND((VLOOKUP($E19,ALLOC,20)*$F19),1) -> 0 | J19: =ROUND((VLOOKUP($E19,ALLOC,21)*$F19),1) -> 0 | K19: =ROUND((VLOOKUP($E19,ALLOC,22)*$F19),1) -> 0 | L19: =ROUND((VLOOKUP($E19,ALLOC,23)*$F19),1) -> 0
A20: =A19+1 -> 6 | C20: ='O&M Exp'!$A$10 -> 817 | D20: ='O&M Exp'!$B$10 -> LINES | E20: ='O&M Exp'!$C$10 -> 25 | F20: ='O&M Exp'!D10 -> 0 | G20: 0 | H20: 0 | I20: 0 | J20: 0 | K20: 0 | L20: 0
A21: =A20+1 -> 7 | C21: ='O&M Exp'!$A$11 -> 818 | D21: ='O&M Exp'!$B$11 -> COMPRESSOR STATION | E21: ='O&M Exp'!$C$11 -> 25 | F21: ='O&M Exp'!D11 -> 0 | G21: 0 | H21: 0 | I21: 0 | J21: 0 | K21: 0 | L21: 0
A22: 8 | C22: ='O&M Exp'!$A$12 -> 820 | D22: ='O&M Exp'!$B$12 -> M & R | E22: ='O&M Exp'!$C$12 -> 25 | F22: ='O&M Exp'!D12 -> 124072 | G22: 91866.6 | H22: 16552.4 | I22: 13415.9 | J22: 2043.5 | K22: 0 | L22: 193.6
A23: 9 | C23: ='O&M Exp'!$A$13 -> 821 | D23: ='O&M Exp'!$B$13 -> PURIFICATION | E23: ='O&M Exp'!$C$13 -> 25 | F23: ='O&M Exp'!D13 -> 0 | G23: 0 | H23: 0 | I23: 0 | J23: 0 | K23: 0 | L23: 0
A24: 10 | C24: ='O&M Exp'!$A$14 -> 823 | D24: ='O&M Exp'!$B$14 -> GAS LOSSES | E24: ='O&M Exp'!$C$14 -> 25 | F24: ='O&M Exp'!D14 -> 1322 | G24: 978.8 | H24: 176.4 | I24: 142.9 | J24: 21.8 | K24: 0 | L24: 2.1
A25: 11 | C25: ='O&M Exp'!$A$15 -> 825 | D25: ='O&M Exp'!$B$15 -> STORAGE WELL ROYALTIES | E25: ='O&M Exp'!$C$15 -> 25 | F25: ='O&M Exp'!D15 -> 5199 | G25: 3849.5 | H25: 693.6 | I25: 562.2 | J25: 85.6 | K25: 0 | L25: 8.1
A26: 12 | D26: TOTAL UNDERGROUND STORAGE OPERATIONS | F26: =SUM(F19:F25) -> 130593 | G26: =SUM(G19:G25) -> 96694.9 | H26: 17422.4 | I26: 14121 | J26: 2150.9 | K26: 0 | L26: 203.8
D28: UNDERGROUND STORAGE MAINTENANCE EXPENSES
A29: =A26+1 -> 13 | C29: ='O&M Exp'!$A$18 -> 832 | D29: ='O&M Exp'!$B$18 -> WELLS | E29: ='O&M Exp'!$C$18 -> 25 | F29: ='O&M Exp'!D18 -> 0 | G29: =ROUND(F29-(SUM(H29:L29)),1) -> 0 | H29: =ROUND((VLOOKUP($E29,ALLOC,19)*$F29),1) -> 0 | I29: =ROUND((VLOOKUP($E29,ALLOC,20)*$F29),1) -> 0 | J29: =ROUND((VLOOKUP($E29,ALLOC,21)*$F29),1) -> 0 | K29: =ROUND((VLOOKUP($E29,ALLOC,22)*$F29),1) -> 0 | L29: =ROUND((VLOOKUP($E29,ALLOC,23)*$F29),1) -> 0
A30: =A29+1 -> 14 | C30: ='O&M Exp'!$A$19 -> 834 | D30: ='O&M Exp'!$B$19 -> COMPRESSOR STATION | E30: ='O&M Exp'!$C$19 -> 25 | F30: ='O&M Exp'!D19 -> 0 | G30: =ROUND(F30-(SUM(H30:L30)),1) -> 0 | H30: =ROUND((VLOOKUP($E30,ALLOC,19)*$F30),1) -> 0 | I30: =ROUND((VLOOKUP($E30,ALLOC,20)*$F30),1) -> 0 | J30: =ROUND((VLOOKUP($E30,ALLOC,21)*$F30),1) -> 0 | K30: =ROUND((VLOOKUP($E30,ALLOC,22)*$F30),1) -> 0 | L30: =ROUND((VLOOKUP($E30,ALLOC,23)*$F30),1) -> 0
A31: =A30+1 -> 15 | C31: ='O&M Exp'!$A$20 -> 836 | D31: ='O&M Exp'!$B$20 -> PURIFICATION | E31: ='O&M Exp'!$C$20 -> 25 | F31: ='O&M Exp'!D20 -> 0 | G31: =ROUND(F31-(SUM(H31:L31)),1) -> 0 | H31: =ROUND((VLOOKUP($E31,ALLOC,19)*$F31),1) -> 0 | I31: =ROUND((VLOOKUP($E31,ALLOC,20)*$F31),1) -> 0 | J31: =ROUND((VLOOKUP($E31,ALLOC,21)*$F31),1) -> 0 | K31: =ROUND((VLOOKUP($E31,ALLOC,22)*$F31),1) -> 0 | L31: =ROUND((VLOOKUP($E31,ALLOC,23)*$F31),1) -> 0
A32: =A31+1 -> 16 | C32: ='O&M Exp'!$A$21 -> 840 | D32: ='O&M Exp'!$B$21 -> OTHER STORAGE - OPERATION SUPERV - ENG | E32: ='O&M Exp'!$C$20 -> 25 | F32: ='O&M Exp'!D21 -> 0 | G32: =ROUND(F32-(SUM(H32:L32)),1) -> 0 | H32: =ROUND((VLOOKUP($E32,ALLOC,19)*$F32),1) -> 0 | I32: =ROUND((VLOOKUP($E32,ALLOC,20)*$F32),1) -> 0 | J32: =ROUND((VLOOKUP($E32,ALLOC,21)*$F32),1) -> 0 | K32: =ROUND((VLOOKUP($E32,ALLOC,22)*$F32),1) -> 0 | L32: =ROUND((VLOOKUP($E32,ALLOC,23)*$F32),1) -> 0
A33: =A31+1 -> 16 | D33: TOTAL UNDERGROUND STORAGE MAINTENANCE | F33: =SUM(F29:F32) -> 0 | G33: =SUM(G29:G32) -> 0 | H33: 0 | I33: 0 | J33: 0 | K33: 0 | L33: 0
A35: =A33+1 -> 17 | D35: TOTAL UNDERGROUND STORAGE | F35: =F33+F26 -> 130593 | G35: =G33+G26 -> 96694.9 | H35: 17422.4 | I35: 14121 | J35: 2150.9 | K35: 0 | L35: 203.8
D37: DISTRIBUTION OPERATIONS EXPENSES
A38: =A35+1 -> 18 | C38: ='O&M Exp'!$A$24 -> 870 | D38: ='O&M Exp'!$B$24 -> SUPERVISION & ENGINEERING | E38: ='O&M Exp'!$C$24 -> 18 | F38: ='O&M Exp'!D24 -> 8084222 | G38: =ROUND(F38-(SUM(H38:L38)),1) -> 5666716.3 | H38: =ROUND((VLOOKUP($E38,ALLOC,19)*$F38),1) -> 722810.3 | I38: =ROUND((VLOOKUP($E38,ALLOC,20)*$F38),1) -> 611813.9 | J38: =ROUND((VLOOKUP($E38,ALLOC,21)*$F38),1) -> 392327.3 | K38: =ROUND((VLOOKUP($E38,ALLOC,22)*$F38),1) -> 689745.8 | L38: =ROUND((VLOOKUP($E38,ALLOC,23)*$F38),1) -> 808.4
A39: =A38+1 -> 19 | C39: ='O&M Exp'!$A$25 -> 871 | D39: ='O&M Exp'!$B$25 -> LOAD DISPATCHING | E39: ='O&M Exp'!$C$25 -> 13 | F39: ='O&M Exp'!D25 -> 160895 | G39: 90345.7 | H39: 14900.5 | I39: 19072.5 | J39: 12937.6 | K39: 23613 | L39: 25.7
A40: =A39+1 -> 20 | C40: ='O&M Exp'!$A$26 -> 874 | D40: ='O&M Exp'!$B$26 -> MAINS & SERVICES | E40: ='O&M Exp'!$C$26 -> 14 | F40: ='O&M Exp'!D26 -> 18342149 | G40: 11872139.2 | H40: 1624747.6 | I40: 1693163.8 | J40: 1118687.7 | K40: 2031209.6 | L40: 2201.1
A41: 21 | C41: ='O&M Exp'!$A$27 -> 875 | D41: ='O&M Exp'!$B$27 -> M & R - GENERAL | E41: ='O&M Exp'!$C$27 -> 13 | F41: ='O&M Exp'!D27 -> 535041 | G41: 300436.3 | H41: 49550.1 | I41: 63423.8 | J41: 43022.6 | K41: 78522.6 | L41: 85.6
A42: 22 | C42: ='O&M Exp'!$A$28 -> 876 | D42: ='O&M Exp'!$B$28 -> M & R - INDUSTRIAL | E42: ='O&M Exp'!$C$28 -> 17 | F42: ='O&M Exp'!D28 -> 282622 | G42: -0.1 | H42: 7608.2 | I42: 48523.4 | J42: 99002.5 | K42: 127488 | L42: 0
A43: 23 | C43: ='O&M Exp'!$A$29 -> 878 | D43: ='O&M Exp'!$B$29 -> METERS & HOUSE REGULATORS | E43: ='O&M Exp'!$C$29 -> 23 | F43: ='O&M Exp'!D29 -> 2617608 | G43: 2027965.7 | H43: 389892.7 | I43: 174437.4 | J43: 19579.7 | K43: 5418.4 | L43: 314.1
A44: 24 | C44: ='O&M Exp'!$A$30 -> 879 | D44: ='O&M Exp'!$B$30 -> CUSTOMER INSTALLATIONS | E44: ='O&M Exp'!$C$30 -> 15 | F44: ='O&M Exp'!D30 -> 6830672 | G44: 6205460.6 | H44: 521316.9 | I44: 84632 | J44: 12500.1 | K44: 6762.4 | L44: 0
A45: 25 | C45: ='O&M Exp'!$A$31 -> 880 | D45: ='O&M Exp'!$B$31 -> OTHER | E45: ='O&M Exp'!$C$31 -> 18 | F45: ='O&M Exp'!D31 -> 3800938 | G45: 2664305.5 | H45: 339841.9 | I45: 287655 | J45: 184459.5 | K45: 324296 | L45: 380.1
A46: 26 | C46: ='O&M Exp'!$A$32 -> 881 | D46: ='O&M Exp'!$B$32 -> RENTS | E46: ='O&M Exp'!$C$32 -> 18 | F46: ='O&M Exp'!D32 -> -27695 | G46: -19413.1 | H46: -2476.2 | I46: -2096 | J46: -1344 | K46: -2362.9 | L46: -2.8
A47: 27 | D47: TOTAL DISTRIBUTION OPERATIONS | F47: =SUM(F38:F46) -> 40626452 | G47: 28807956.1 | H47: 3668192 | I47: 2980625.8 | J47: 1881173 | K47: 3284692.9 | L47: 3812.2
D49: DISTRIBUTION MAINTENANCE EXPENSES
A50: =A47+1 -> 28 | C50: ='O&M Exp'!$A$35 -> 885 | D50: ='O&M Exp'!$B$35 -> SUPERVISION & ENGINEERING | E50: ='O&M Exp'!$C$35 -> 18 | F50: ='O&M Exp'!D35 -> 138648 | G50: =ROUND(F50-(SUM(H50:L50)),1) -> 97186.7 | H50: =ROUND((VLOOKUP($E50,ALLOC,19)*$F50),1) -> 12396.5 | I50: =ROUND((VLOOKUP($E50,ALLOC,20)*$F50),1) -> 10492.9 | J50: =ROUND((VLOOKUP($E50,ALLOC,21)*$F50),1) -> 6728.6 | K50: =ROUND((VLOOKUP($E50,ALLOC,22)*$F50),1) -> 11829.4 | L50: =ROUND((VLOOKUP($E50,ALLOC,23)*$F50),1) -> 13.9
A51: =A50+1 -> 29 | C51: ='O&M Exp'!$A$36 -> 886 | D51: ='O&M Exp'!$B$36 -> STRUCTURES AND IMPROVEMENTS | E51: ='O&M Exp'!$C$36 -> 13 | F51: ='O&M Exp'!D36 -> 166985 | G51: 93765.4 | H51: 15464.5 | I51: 19794.4 | J51: 13427.3 | K51: 24506.7 | L51: 26.7
A52: =A51+1 -> 30 | C52: ='O&M Exp'!$A$37 -> 887 | D52: ='O&M Exp'!$B$37 -> MAINS | E52: ='O&M Exp'!$C$37 -> 13 | F52: ='O&M Exp'!D37 -> 11917466 | G52: 6691895.6 | H52: 1103676.5 | I52: 1412696.4 | J52: 958283.4 | K52: 1749007.3 | L52: 1906.8
A53: =A52+1 -> 31 | C53: ='O&M Exp'!$A$38 -> 889 | D53: ='O&M Exp'!$B$38 -> M & R - GENERAL | E53: ='O&M Exp'!$C$38 -> 13 | F53: ='O&M Exp'!D38 -> 912321 | G53: 512286.6 | H53: 84490 | I53: 108146.5 | J53: 73359.7 | K53: 133892.2 | L53: 146
A54: 32 | C54: ='O&M Exp'!$A$39 -> 890 | D54: ='O&M Exp'!$B$39 -> M & R - INDUSTRIAL | E54: ='O&M Exp'!$C$39 -> 17 | F54: ='O&M Exp'!D39 -> 150902 | G54: 0 | H54: 4062.3 | I54: 25908.4 | J54: 52861 | K54: 68070.4 | L54: 0
A55: 33 | C55: ='O&M Exp'!$A$40 -> 892 | D55: ='O&M Exp'!$B$40 -> SERVICES | E55: ='O&M Exp'!$C$40 -> 15 | F55: ='O&M Exp'!D40 -> 7471330 | G55: 6787479.2 | H55: 570211.9 | I55: 92569.8 | J55: 13672.5 | K55: 7396.6 | L55: 0
A56: 34 | C56: ='O&M Exp'!$A$41 -> 893 | D56: ='O&M Exp'!$B$41 -> METERS & HOUSE REGULATORS | E56: ='O&M Exp'!$C$41 -> 23 | F56: ='O&M Exp'!D41 -> 505241 | G56: 391430.5 | H56: 75255.6 | I56: 33669.3 | J56: 3779.2 | K56: 1045.8 | L56: 60.6
A57: 35 | C57: ='O&M Exp'!$A$42 -> 894 | D57: ='O&M Exp'!$B$42 -> OTHER EQUIPMENT | E57: ='O&M Exp'!$C$42 -> 18 | F57: ='O&M Exp'!D42 -> 963782 | G57: 675572.7 | H57: 86171.7 | I57: 72939 | J57: 46772.3 | K57: 82229.9 | L57: 96.4
A58: 36 | D58: TOTAL DISTRIBUTION MAINTENANCE | F58: =SUM(F50:F57) -> 22226675 | G58: 15249616.7 | H58: 1951729 | I58: 1776216.7 | J58: 1168884 | K58: 2077978.3 | L58: 2250.4
A60: =A58+1 -> 37 | D60: TOTAL DISTRIBUTION | F60: =F58+F47 -> 62853127 | G60: =G58+G47 -> 44057572.8 | H60: 5619921 | I60: 4756842.5 | J60: 3050057 | K60: 5362671.2 | L60: 6062.6

Sheet Pg 8
A1: =Input!$B$1 -> COLUMBIA GAS OF PENNSYLVANIA, INC.
A2: ='Title Exh 111, Sch. 1'!$B$19 -> OTHER O&M EXPENSES
A3: ="FOR THE TWELVE MONTHS ENDED "&Input!$B$4 -> FOR THE TWELVE MONTHS ENDED DECEMBER 31, 2019
A5: =Input!$B$6 -> ALLOCATED COST OF SERVICE | L5: =Input!B9 -> 111, SCHEDULE 2
A6: =Input!$B$7 -> PEAK & AVERAGE | L6: ="PAGE 8 OF "&FIXED(Input!$B$10,0,TRUE) -> PAGE 8 OF 13
A7: =IF(Input!$B$8=0," ", Input!$B$8) ->  | L7: ="WITNESS: "&Input!$B$5 -> WITNESS: M. P. BALMERT
A8: LINE | C8: ACCT | E8: ALLOC | F8: TOTAL
A9: NO. | C9: NO. | D9: ACCOUNT TITLE | E9: FACTOR | F9: COMPANY | G9: =Input!$B$17 -> RSS/RDS | H9: =Input!$B$18 -> SGSS1/SCD1/SGDS1 | I9: =Input!$B$19 -> SGSS2/SCD2/SGDS2 | J9: =Input!$B$20 -> SDS/LGSS | K9: =Input!$B$21 -> LDS/LGSS | L9: =Input!$B$22 -> MLDS
C10: (A) | D10: (B) | E10: (C) | F10: (D) | G10: (E) | H10: (F) | I10: (G) | J10: (H) | K10: (I) | L10: (J)
F11: $ | G11: $ | H11: $ | I11: $ | J11: $ | K11: $ | L11: $
D12: CUSTOMER ACCOUNTS EXPENSES
A13: 1 | C13: ='O&M Exp'!$A$45 -> 901 | D13: ='O&M Exp'!$B$45 -> SUPERVISION | E13: ='O&M Exp'!$C$45 -> 6 | F13: ='O&M Exp'!D45 -> 0 | G13: =ROUND(F13-(SUM(H13:L13)),1) -> 0 | H13: =ROUND((VLOOKUP($E13,ALLOC,19)*$F13),1) -> 0 | I13: =ROUND((VLOOKUP($E13,ALLOC,20)*$F13),1) -> 0 | J13: =ROUND((VLOOKUP($E13,ALLOC,21)*$F13),1) -> 0 | K13: =ROUND((VLOOKUP($E13,ALLOC,22)*$F13),1) -> 0 | L13: =ROUND((VLOOKUP($E13,ALLOC,23)*$F13),1) -> 0
A14: =A13+1 -> 2 | C14: ='O&M Exp'!$A$46 -> 902 | D14: ='O&M Exp'!$B$46 -> METER READING | E14: ='O&M Exp'!$C$46 -> 6 | F14: ='O&M Exp'!D46 -> 686852 | G14: =ROUND(F14-(SUM(H14:L14)),1) -> 627089 | H14: 51294.1 | I14: 7624.1 | J14: 680 | K14: 144.2 | L14: 20.6
A15: 3 | C15: ='O&M Exp'!$A$47 -> 903 | D15: ='O&M Exp'!$B$47 -> CUSTOMER RECORDS AND COLLECTION EXPENSES | E15: ='O&M Exp'!$C$47 -> 6 | F15: ='O&M Exp'!D47 -> 7794148 | G15: 7115979.2 | H15: 582067 | I15: 86515 | J15: 7716.2 | K15: 1636.8 | L15: 233.8
A16: 4 | C16: ='O&M Exp'!$A$47 -> 903 | D16: ='O&M Exp'!$B$48 -> INTEREST ON CUSTOMER DEPOSITS | E16: ='O&M Exp'!$C$48 -> 9 | F16: ='O&M Exp'!D48 -> 108514 | G16: =ROUND(F16-(SUM(H16:L16)),1) -> 79468.1 | H16: 27088.3 | I16: 1957.6 | J16: 0 | K16: 0 | L16: 0
A17: 5 | C17: ='O&M Exp'!$A$49 -> 904 | D17: ='O&M Exp'!$B$49 -> UNCOLLECTIBLES-DIS REVENUE | E17: ='O&M Exp'!$C$49 -> 7 | F17: ='O&M Exp'!D49 -> 4410259 | G17: 4257355.4 | H17: 82427.7 | I17: 70475.9 | J17: 0 | K17: 0 | L17: 0
A18: 6 | C18: ='O&M Exp'!$A$50 -> 904 | D18: ='O&M Exp'!$B$50 -> UNCOLLECTIBLES-GMB/GTS REVENUE | E18: ='O&M Exp'!$C$50 -> 8 | F18: ='O&M Exp'!D50 -> 323417 | G18: -3.2 | H18: 3130.7 | I18: 14896.6 | J18: 145553.8 | K18: =ROUND((VLOOKUP($E18,ALLOC,22)*$F18),1) -> 147691.6 | L18: 12147.5
A19: 7 | C19: ='O&M Exp'!$A$51 -> 904 | D19: ='O&M Exp'!$B$51 -> UNCOLLECTIBLES-UNBUNDLED GAS | E19: Direct | F19: ='O&M Exp'!D51 -> 1216174 | G19: =Revenue!E33 -> 1139022 | H19: =Revenue!F33 -> 41873 | I19: =Revenue!G33 -> 35279 | J19: 0 | K19: 0 | L19: 0
A20: 8 | C20: ='O&M Exp'!$A$52 -> 904 | D20: ='O&M Exp'!$B$52 -> DIRECT USP UNCOLLECTIBLES | F20: =SUM(G20:L20) -> 29305816 | G20: ='O&M Exp'!D52 -> 29305816 | H20: 0 | I20: 0 | J20: 0 | K20: 0 | L20: 0
A21: 9 | C21: ='O&M Exp'!$A$53 -> 905 | D21: ='O&M Exp'!$B$53 -> MISCELLANEOUS | E21: ='O&M Exp'!$C$53 -> 6 | F21: ='O&M Exp'!D53 -> 3951 | G21: 3607.2 | H21: 295.1 | I21: 43.9 | J21: 3.9 | K21: 0.8 | L21: 0.1
A22: 10 | C22: ='O&M Exp'!$A$54 -> 921 | D22: ='O&M Exp'!$B$54 -> OFFICE SUPPLIES & EXPENSES | E22: ='O&M Exp'!$C$54 -> 6 | F22: ='O&M Exp'!D54 -> 0 | G22: =ROUND(F22-(SUM(H22:L22)),1) -> 0 | H22: 0 | I22: 0 | J22: 0 | K22: 0 | L22: 0
A23: 11 | D23: TOTAL CUSTOMER ACCOUNTS | F23: =SUM(F13:F22) -> 43849131 | G23: 42528333.7 | H23: 788175.9 | I23: 216792.1 | J23: 153953.9 | K23: 149473.4 | L23: 12402
D25: CUST SERVICE & INFORMATION EXPENSES
A26: =A23+1 -> 12 | C26: ='O&M Exp'!$A$57 -> 907 | D26: ='O&M Exp'!$B$57 -> SUPERVISION | E26: ='O&M Exp'!$C$57 -> 6 | F26: ='O&M Exp'!D57 -> 0 | G26: =ROUND(F26-(SUM(H26:L26)),1) -> 0 | H26: =ROUND((VLOOKUP($E26,ALLOC,19)*$F26),1) -> 0 | I26: =ROUND((VLOOKUP($E26,ALLOC,20)*$F26),1) -> 0 | J26: =ROUND((VLOOKUP($E26,ALLOC,21)*$F26),1) -> 0 | K26: =ROUND((VLOOKUP($E26,ALLOC,22)*$F26),1) -> 0 | L26: 0
A27: =A26+1 -> 13 | C27: ='O&M Exp'!$A58 -> 908 | D27: ='O&M Exp'!$B58 -> CUSTOMER ASSISTANCE | E27: ='O&M Exp'!$C$58 -> 6 | F27: ='O&M Exp'!D58 -> 20892 | G27: 19074.8 | H27: 1560.2 | I27: 231.9 | J27: 20.7 | K27: 4.4 | L27: 0
A28: 14 | C28: ='O&M Exp'!$A59 -> 909 | D28: ='O&M Exp'!$B59 -> INFORMATIONAL & INSTRUCTIONAL EXPENSES | E28: ='O&M Exp'!$C$58 -> 6 | F28: ='O&M Exp'!D59 -> 203522 | G28: =ROUND(F28-(SUM(H28:L28)),1) -> 185818.7 | H28: 15199 | I28: 2259.1 | J28: 201.5 | K28: 42.7 | L28: 1
A29: 15 | C29: ='O&M Exp'!$A60 -> 910 | D29: ='O&M Exp'!$B60 -> MISCELLANEOUS | E29: ='O&M Exp'!$C$58 -> 6 | F29: ='O&M Exp'!D60 -> 1024093 | G29: 935015.3 | H29: 76479.3 | I29: 11367.4 | J29: 1013.9 | K29: 215.1 | L29: 2
A30: 16 | C30: ='O&M Exp'!$A61 -> 921 | D30: ='O&M Exp'!$B61 -> OFFICE SUPPLIES & EXPENSES | E30: ='O&M Exp'!$C$58 -> 6 | F30: ='O&M Exp'!D61 -> 0 | G30: -3 | H30: 0 | I30: 0 | J30: 0 | K30: 0 | L30: 3
A31: 17 | C31: ='O&M Exp'!$A$62 -> 931 | D31: ='O&M Exp'!$B$62 -> RENTS - GENERAL | E31: ='O&M Exp'!$C$62 -> 6 | F31: ='O&M Exp'!D62 -> 0 | G31: =ROUND(F31-(SUM(H31:L31)),1) -> 0 | H31: 0 | I31: 0 | J31: 0 | K31: 0 | L31: 0
A32: 18 | C32: ='O&M Exp'!$A$63 -> 932 | D32: ='O&M Exp'!$B$63 -> MAINTENANCE | E32: ='O&M Exp'!$C$62 -> 6 | F32: ='O&M Exp'!D63 -> 0 | G32: =ROUND(F32-(SUM(H32:L32)),1) -> 0 | H32: 0 | I32: 0 | J32: 0 | K32: 0 | L32: 0
A33: =A32+1 -> 19 | D33: TOTAL CUST SERVICE & INFORMATION | F33: =SUM(F26:F32) -> 1248507 | G33: 1139905.8 | H33: 93238.5 | I33: 13858.4 | J33: 1236.1 | K33: 262.2 | L33: 6
D35: SALES EXPENSES
A36: =A33+1 -> 20 | C36: ='O&M Exp'!$A$66 -> 912 | D36: ='O&M Exp'!$B$66 -> DEMONSTRATION | E36: ='O&M Exp'!$C$66 -> 6 | F36: ='O&M Exp'!D66 -> 605075 | G36: =ROUND(F36-(SUM(H36:L36)),1) -> 552427.4 | H36: =ROUND((VLOOKUP($E36,ALLOC,19)*$F36),1) -> 45187 | I36: =ROUND((VLOOKUP($E36,ALLOC,20)*$F36),1) -> 6716.3 | J36: =ROUND((VLOOKUP($E36,ALLOC,21)*$F36),1) -> 599 | K36: =ROUND((VLOOKUP($E36,ALLOC,22)*$F36),1) -> 127.1 | L36: =ROUND((VLOOKUP($E36,ALLOC,23)*$F36),1) -> 18.2
A37: =A36+1 -> 21 | C37: ='O&M Exp'!$A$67 -> 913 | D37: ='O&M Exp'!$B$67 -> ADVERTISING | E37: ='O&M Exp'!$C$67 -> 6 | F37: ='O&M Exp'!D67 -> 274671 | G37: =ROUND(F37-(SUM(H37:L37)),1) -> 250772 | H37: =ROUND((VLOOKUP($E37,ALLOC,19)*$F37),1) -> 20512.4 | I37: =ROUND((VLOOKUP($E37,ALLOC,20)*$F37),1) -> 3048.8 | J37: =ROUND((VLOOKUP($E37,ALLOC,21)*$F37),1) -> 271.9 | K37: =ROUND((VLOOKUP($E37,ALLOC,22)*$F37),1) -> 57.7 | L37: =ROUND((VLOOKUP($E37,ALLOC,23)*$F37),1) -> 8.2
A38: =A37+1 -> 22 | D38: TOTAL SALES | F38: =SUM(F36:F37) -> 879746 | G38: 803199.4 | H38: 65699.4 | I38: 9765.1 | J38: 870.9 | K38: 184.8 | L38: 26.4
D40: ADMINISTRATIVE AND GENERAL EXPENSES
A41: =A38+1 -> 23 | C41: ='O&M Exp'!$A$70 -> 920 | D41: ='O&M Exp'!$B$70 -> SALARIES | E41: ='O&M Exp'!C70 -> 19 | F41: ='O&M Exp'!D70 -> 24103497 | G41: =ROUND(F41-(SUM(H41:L41)),1) -> 17635323.6 | H41: =ROUND((VLOOKUP($E41,ALLOC,19)*$F41),1) -> 2125687.4 | I41: =ROUND((VLOOKUP($E41,ALLOC,20)*$F41),1) -> 1615175.3 | J41: =ROUND((VLOOKUP($E41,ALLOC,21)*$F41),1) -> 994269.3 | K41: =ROUND((VLOOKUP($E41,ALLOC,22)*$F41),1) -> 1730390 | L41: =ROUND((VLOOKUP($E41,ALLOC,23)*$F41),1) -> 2651.4
A42: =A41+1 -> 24 | C42: ='O&M Exp'!$A$71 -> 920 | D42: ='O&M Exp'!$B$71 -> SALARIES - C&I NETWORK ONLY | E42: ='O&M Exp'!C71 -> 26 | F42: ='O&M Exp'!D71 -> 102933 | G42: =ROUND(F42-(SUM(H42:L42)),1) -> 0.1 | H42: 0 | I42: 20988 | J42: 66358.8 | K42: 13888.7 | L42: 1697.4
A43: =A42+1 -> 25 | C43: ='O&M Exp'!$A$72 -> 921 | D43: ='O&M Exp'!$B$72 -> OFFICE SUPPLIES & EXPENSES | E43: ='O&M Exp'!C72 -> 19 | F43: ='O&M Exp'!D72 -> -1524783 | G43: =ROUND(F43-(SUM(H43:L43)),1) -> -1115607.5 | H43: -134470.6 | I43: -102175.7 | J43: -62897.3 | K43: -109464.2 | L43: -167.7
A44: =A43+1 -> 26 | C44: ='O&M Exp'!$A$73 -> 922 | D44: ='O&M Exp'!$B$73 -> ADMIN. EXPENSE TRANSFERRED | E44: ='O&M Exp'!C73 -> 19 | F44: ='O&M Exp'!D73 -> 0 | G44: 0 | H44: 0 | I44: 0 | J44: 0 | K44: 0 | L44: 0
A45: =A42+1 -> 25 | C45: ='O&M Exp'!$A$74 -> 923 | D45: ='O&M Exp'!$B$74 -> OUTSIDE SERVICES EMPLOYED | E45: ='O&M Exp'!C74 -> 19 | F45: ='O&M Exp'!D74 -> 25906451 | G45: 18954454.9 | H45: 2284689.9 | I45: 1735991.3 | J45: 1068641.1 | K45: 1859824.1 | L45: 2849.7
A46: 26 | C46: ='O&M Exp'!$A$75 -> 923 | D46: ='O&M Exp'!$B$75 -> OUTSIDE SERVICES EMPLOYED - C&I NETWORK ONLY | E46: ='O&M Exp'!C75 -> 26 | F46: ='O&M Exp'!D75 -> 1183511 | G46: =ROUND(F46-(SUM(H46:L46)),1) -> 0 | H46: 0 | I46: 241317.9 | J46: 762985.9 | K46: 159691.1 | L46: 19516.1
A47: 27 | C47: ='O&M Exp'!$A$76 -> 924 | D47: ='O&M Exp'!$B$76 -> PROPERTY INSURANCE | E47: ='O&M Exp'!C76 -> 19 | F47: ='O&M Exp'!D76 -> 55948 | G47: 40934.2 | H47: 4934.1 | I47: 3749.1 | J47: 2307.9 | K47: 4016.5 | L47: 6.2
A48: =A47+1 -> 28 | C48: ='O&M Exp'!$A$77 -> 925 | D48: ='O&M Exp'!$B$77 -> INJURIES AND DAMAGES | E48: ='O&M Exp'!C77 -> 19 | F48: ='O&M Exp'!D77 -> 4073358 | G48: 2980272.4 | H48: 359229.4 | I48: 272955.7 | J48: 168026 | K48: 292426.4 | L48: 448.1
A49: 29 | C49: ='O&M Exp'!$A$78 -> 926 | D49: ='O&M Exp'!$B$78 -> EMPLOYEE PENSIONS & BENEFITS | E49: ='O&M Exp'!C78 -> 24 | F49: ='O&M Exp'!D78 -> 15645986 | G49: 11209253.7 | H49: 1408295.2 | I49: 1115245.9 | J49: 698123.9 | K49: 1213502.7 | L49: 1564.6
A50: 30 | C50: ='O&M Exp'!$A$79 -> 928 | D50: ='O&M Exp'!$B$79 -> REGULATORY COMMISSION EXPENSES | E50: ='O&M Exp'!C79 -> 19 | F50: ='O&M Exp'!D79 -> 2418231 | G50: 1769298.7 | H50: 213263.8 | I50: 162045.7 | J50: 99752 | K50: 173604.8 | L50: 266
A51: 31 | C51: ='O&M Exp'!$A$80 -> 930 | D51: ='O&M Exp'!$B$80 -> MISCELLANEOUS GENERAL | E51: ='O&M Exp'!C80 -> 19 | F51: ='O&M Exp'!D80 -> 637529 | G51: 466448.1 | H51: 56223.7 | I51: 42720.8 | J51: 26298.1 | K51: 45768.2 | L51: 70.1
A52: 32 | C52: ='O&M Exp'!$A$81 -> 931 | D52: ='O&M Exp'!$B$81 -> RENTS-GENERAL | E52: ='O&M Exp'!C80 -> 19 | F52: ='O&M Exp'!D81 -> 5954736 | G52: =ROUND(F52-(SUM(H52:L52)),1) -> 4356782.5 | H52: 525148.2 | I52: 399026.9 | J52: 245632.9 | K52: 427490.5 | L52: 655
A53: 33 | C53: ='O&M Exp'!$A$82 -> 932 | D53: ='O&M Exp'!$B$82 -> MAINTENANCE | E53: ='O&M Exp'!C81 -> 19 | F53: ='O&M Exp'!D82 -> 2468676.958 | G53: =ROUND(F53-(SUM(H53:L53)),1) -> 1806207.6 | H53: 217712.6 | I53: 165426 | J53: 101832.9 | K53: 177226.3 | L53: 271.6
A54: 34 | D54: TOTAL ADMINISTRATIVE & GENERAL | F54: =SUM(F41:F53) -> 81026073.96 | G54: =SUM(G41:G53) -> 58103368.3 | H54: 7060713.7 | I54: 5672466.9 | J54: 4171331.5 | K54: 5988365.1 | L54: 29828.5
A56: =A54+1 -> 35 | D56: TOTAL O & M EXPENSES | F56: =F54+F38+F33+F23+'Pg 7'!F16+'Pg 7'!F26+'Pg 7'!F33+'Pg 7'!F60 -> 354524192 | G56: =G54+G38+G33+G23+'Pg 7'!G16+'Pg 7'!G26+'Pg 7'!G33+'Pg 7'!G60 -> 267670284.4 | H56: =H54+H38+H33+H23+'Pg 7'!H16+'Pg 7'!H26+'Pg 7'!H33+'Pg 7'!H60 -> 35019404.3 | I56: =I54+I38+I33+I23+'Pg 7'!I16+'Pg 7'!I26+'Pg 7'!I33+'Pg 7'!I60 -> 29448051.1 | J56: =J54+J38+J33+J23+'Pg 7'!J16+'Pg 7'!J26+'Pg 7'!J33+'Pg 7'!J60 -> 10567259.9 | K56: =K54+K38+K33+K23+'Pg 7'!K16+'Pg 7'!K26+'Pg 7'!K33+'Pg 7'!K60 -> 11500956.7 | L56: =L54+L38+L33+L23+'Pg 7'!L16+'Pg 7'!L26+'Pg 7'!L33+'Pg 7'!L60 -> 318235.7

Sheet Pg 9
A1: =Input!$B$1 -> COLUMBIA GAS OF PENNSYLVANIA, INC.
A2: ='Title Exh 111, Sch. 1'!$B$20 -> TAXES OTHER THAN INCOME TAXES
A3: ="FOR THE TWELVE MONTHS ENDED "&Input!$B$4 -> FOR THE TWELVE MONTHS ENDED DECEMBER 31, 2019
A5: =Input!$B$6 -> ALLOCATED COST OF SERVICE | L5: =Input!B9 -> 111, SCHEDULE 2
A6: =Input!$B$7 -> PEAK & AVERAGE | L6: ="PAGE 9 OF "&FIXED(Input!$B$10,0,TRUE) -> PAGE 9 OF 13
A7: =IF(Input!$B$8=0," ", Input!$B$8) ->  | L7: ="WITNESS: "&Input!$B$5 -> WITNESS: M. P. BALMERT
A8: LINE | C8: ACCT | E8: ALLOC | F8: TOTAL
A9: NO. | C9: NO. | D9: ACCOUNT TITLE | E9: FACTOR | F9: COMPANY | G9: =Input!$B$17 -> RSS/RDS | H9: =Input!$B$18 -> SGSS1/SCD1/SGDS1 | I9: =Input!$B$19 -> SGSS2/SCD2/SGDS2 | J9: =Input!$B$20 -> SDS/LGSS | K9: =Input!$B$21 -> LDS/LGSS | L9: =Input!$B$22 -> MLDS
C10: (A) | D10: (B) | E10: (C) | F10: (D) | G10: (E) | H10: (F) | I10: (G) | J10: (H) | K10: (I) | L10: (J)
D11: FEDERAL TAXES | F11: $ | G11: $ | H11: $ | I11: $ | J11: $ | K11: $ | L11: $
A12: 1 | C12: ='Rate Base & Taxes'!A8 -> 408 | D12: ='Rate Base & Taxes'!B8 -> FEDERAL/STATE UNEMPLOYMENT | E12: ='Rate Base & Taxes'!C8 -> 24 | F12: ='Rate Base & Taxes'!D8 -> 137971 | G12: =ROUND(F12-(SUM(H12:L12)),1) -> 98846.5 | H12: =ROUND((VLOOKUP($E12,ALLOC,19)*$F12),1) -> 12418.8 | I12: =ROUND((VLOOKUP($E12,ALLOC,20)*$F12),1) -> 9834.6 | J12: =ROUND((VLOOKUP($E12,ALLOC,21)*$F12),1) -> 6156.3 | K12: =ROUND((VLOOKUP($E12,ALLOC,22)*$F12),1) -> 10701 | L12: =ROUND((VLOOKUP($E12,ALLOC,23)*$F12),1) -> 13.8
A13: =A12+1 -> 2 | C13: ='Rate Base & Taxes'!A7 -> 408 | D13: ='Rate Base & Taxes'!B7 -> FICA | E13: ='Rate Base & Taxes'!C7 -> 24 | F13: ='Rate Base & Taxes'!D7 -> 2598026.611 | G13: =ROUND(F13-(SUM(H13:L13)),1) -> 1861304.3 | H13: =ROUND((VLOOKUP($E13,ALLOC,19)*$F13),1) -> 233848.4 | I13: =ROUND((VLOOKUP($E13,ALLOC,20)*$F13),1) -> 185187.3 | J13: =ROUND((VLOOKUP($E13,ALLOC,21)*$F13),1) -> 115923.9 | K13: =ROUND((VLOOKUP($E13,ALLOC,22)*$F13),1) -> 201502.9 | L13: =ROUND((VLOOKUP($E13,ALLOC,23)*$F13),1) -> 259.8
A14: =A13+1 -> 3 | D14: TOTAL FEDERAL TAXES | F14: =SUM(F12:F13) -> 2735997.611 | G14: =SUM(G12:G13) -> 1960150.8 | H14: 246267.2 | I14: 195021.9 | J14: 122080.2 | K14: 212203.9 | L14: 273.6
D16: STATE TAXES
A17: =A14+1 -> 4 | C17: ='Rate Base & Taxes'!A10 -> 408 | D17: ='Rate Base & Taxes'!B10 -> PA PROPERTY TAXES | E17: ='Rate Base & Taxes'!C10 -> 11 | F17: ='Rate Base & Taxes'!D10 -> 435885 | G17: =ROUND(F17-(SUM(H17:L17)),1) -> 282096.1 | H17: =ROUND((VLOOKUP($E17,ALLOC,19)*$F17),1) -> 39770.1 | I17: =ROUND((VLOOKUP($E17,ALLOC,20)*$F17),1) -> 40288.9 | J17: =ROUND((VLOOKUP($E17,ALLOC,21)*$F17),1) -> 26296.9 | K17: =ROUND((VLOOKUP($E17,ALLOC,22)*$F17),1) -> 47241.2 | L17: =ROUND((VLOOKUP($E17,ALLOC,23)*$F17),1) -> 191.8
A18: =A17+1 -> 5 | C18: ='Rate Base & Taxes'!A9 -> 408 | D18: ='Rate Base & Taxes'!B9 -> PA STATE UNEMPLOYMENT | E18: ='Rate Base & Taxes'!C9 -> 24 | F18: ='Rate Base & Taxes'!D9 -> 0 | G18: 0 | H18: 0 | I18: 0 | J18: 0 | K18: 0 | L18: 0
A19: 6 | C19: ='Rate Base & Taxes'!A11 -> 408 | D19: ='Rate Base & Taxes'!B11 -> STATE CAPITAL STOCK TAX | E19: ='Rate Base & Taxes'!C11 -> 11 | F19: ='Rate Base & Taxes'!D11 -> 0 | G19: 0 | H19: 0 | I19: 0 | J19: 0 | K19: 0 | L19: 0
A20: 7 | C20: ='Rate Base & Taxes'!A12 -> 408 | D20: ='Rate Base & Taxes'!B12 -> LICENSE AND FRANCHISE TAX | E20: ='Rate Base & Taxes'!C12 -> 11 | F20: ='Rate Base & Taxes'!D12 -> 275 | G20: 178 | H20: 25.1 | I20: 25.4 | J20: 16.6 | K20: 29.8 | L20: 0.1
A21: 8 | C21: ='Rate Base & Taxes'!A13 -> 408 | D21: ='Rate Base & Taxes'!B13 -> STATE SALES AND USE TAX | E21: ='Rate Base & Taxes'!C13 -> 19 | F21: ='Rate Base & Taxes'!D13 -> 284465 | G21: 208128.8 | H21: 25087 | I21: 19062 | J21: 11734.2 | K21: 20421.7 | L21: 31.3
A22: 9 | C22: ='Rate Base & Taxes'!A14 -> 408 | D22: ='Rate Base & Taxes'!B14 -> OTHER | E22: ='Rate Base & Taxes'!C14 -> 19 | F22: ='Rate Base & Taxes'!D14 -> 180 | G22: 131.7 | H22: 15.9 | I22: 12.1 | J22: 7.4 | K22: 12.9 | L22: 0
A23: 10 | D23: TOTAL STATE TAXES | F23: =SUM(F17:F22) -> 720805 | G23: 490534.6 | H23: 64898.1 | I23: 59388.4 | J23: 38055.1 | K23: 67705.6 | L23: 223.2
A25: =A23+1 -> 11 | D25: TOTAL TAXES OTHER THAN INCOME | F25: =F14+F23 -> 3456802.611 | G25: 2450685.4 | H25: 311165.3 | I25: 254410.3 | J25: 160135.3 | K25: 279909.5 | L25: 496.8

Sheet Pg 10
A1: =Input!$B$1 -> COLUMBIA GAS OF PENNSYLVANIA, INC.
A2: ='Title Exh 111, Sch. 1'!$B$21 -> RATE BASE
A3: ="FOR THE TWELVE MONTHS ENDED "&Input!$B$4 -> FOR THE TWELVE MONTHS ENDED DECEMBER 31, 2019
A5: =Input!$B$6 -> ALLOCATED COST OF SERVICE | L5: =Input!B9 -> 111, SCHEDULE 2
A6: =Input!$B$7 -> PEAK & AVERAGE | L6: ="PAGE 10 OF "&FIXED(Input!$B$10,0,TRUE) -> PAGE 10 OF 13
A7: =IF(Input!$B$8=0," ", Input!$B$8) ->  | L7: ="WITNESS: "&Input!$B$5 -> WITNESS: M. P. BALMERT
A8: LINE | C8: ACCT | E8: ALLOC | F8: TOTAL
A9: NO. | C9: NO. | D9: ACCOUNT TITLE | E9: FACTOR | F9: COMPANY | G9: =Input!$B$17 -> RSS/RDS | H9: =Input!$B$18 -> SGSS1/SCD1/SGDS1 | I9: =Input!$B$19 -> SGSS2/SCD2/SGDS2 | J9: =Input!$B$20 -> SDS/LGSS | K9: =Input!$B$21 -> LDS/LGSS | L9: =Input!$B$22 -> MLDS
C10: (A) | D10: (B) | E10: (C) | F10: (D) | G10: (E) | H10: (F) | I10: (G) | J10: (H) | K10: (I) | L10: (J)
F11: $ | G11: $ | H11: $ | I11: $ | J11: $ | K11: $ | L11: $
A13: 1 | C13: 101-107 | D13: GROSS PLANT [PAGE 3] | F13: ='Pg 3'!$F$69 -> 2741791737 | G13: ='Pg 3'!G69 -> 1771947204 | H13: ='Pg 3'!H69 -> 249996869.4 | I13: ='Pg 3'!I69 -> 254034410.1 | J13: ='Pg 3'!J69 -> 167828378.8 | K13: ='Pg 3'!K69 -> 296646018.7 | L13: ='Pg 3'!L69 -> 1338855.87
A14: =A13+1 -> 2 | C14: ='Rate Base & Taxes'!A18 -> 117 | D14: ='Rate Base & Taxes'!B18 -> GAS STORED UNDERGROUND - NON CURRENT | E14: ='Rate Base & Taxes'!C18 -> 25 | F14: ='Rate Base & Taxes'!D18+'Rate Base & Taxes'!D19 -> 3794693 | G14: =ROUND(F14-(SUM(H14:L14)),0) -> 2809704 | H14: =ROUND((VLOOKUP($E14,ALLOC,19)*$F14),0) -> 506250 | I14: =ROUND((VLOOKUP($E14,ALLOC,20)*$F14),0) -> 410320 | J14: =ROUND((VLOOKUP($E14,ALLOC,21)*$F14),0) -> 62499 | K14: =ROUND((VLOOKUP($E14,ALLOC,22)*$F14),0) -> 0 | L14: =ROUND((VLOOKUP($E14,ALLOC,23)*$F14),0) -> 5920
A15: =A14+1 -> 3 | C15: 108-111 | D15: DEPRECIATION RESERVE [PAGE 4] | F15: =-'Pg 4'!$F$69 -> -499229725 | G15: =-'Pg 4'!G69 -> -340490034.6 | H15: =-'Pg 4'!H69 -> -46841320 | I15: =-'Pg 4'!I69 -> -41196272.3 | J15: =-'Pg 4'!J69 -> -25539028.3 | K15: =-'Pg 4'!K69 -> -44803341.2 | L15: =-'Pg 4'!L69 -> -359728.68
A16: =A15+1 -> 4 | C16: ='Rate Base & Taxes'!A20 -> 117 | D16: ='Rate Base & Taxes'!B20 -> GAS LOST-UNDERGROUND STORAGE | E16: 25 | F16: ='Rate Base & Taxes'!D20 -> -163466.81 | G16: =ROUND(F16-(SUM(H16:L16)),1) -> -121035.7 | H16: =ROUND((VLOOKUP($E16,ALLOC,19)*$F16),1) -> -21808.1 | I16: =ROUND((VLOOKUP($E16,ALLOC,20)*$F16),1) -> -17675.7 | J16: =ROUND((VLOOKUP($E16,ALLOC,21)*$F16),1) -> -2692.3 | K16: =ROUND((VLOOKUP($E16,ALLOC,22)*$F16),1) -> 0 | L16: =ROUND((VLOOKUP($E16,ALLOC,23)*$F16),1) -> -255
A17: =A16+1 -> 5 | D17: NET PLANT | F17: =SUM(F13:F16) -> 2246193238 | G17: =SUM(G13:G16) -> 1434145838 | H17: 203639991.3 | I17: 213230782.1 | J17: 142349157.2 | K17: 251842677.5 | L17: 984792.19
D19: WORKING CAPITAL
A20: =A17+1 -> 6 | C20: ='Rate Base & Taxes'!A21 -> 154 | D20: ='Rate Base & Taxes'!B21 -> MATERIALS & SUPPLIES | E20: ='Rate Base & Taxes'!C21 -> 11 | F20: ='Rate Base & Taxes'!D21 -> 851388 | G20: =ROUND(F20-(SUM(H20:L20)),1) -> 551001.4 | H20: 77680.6 | I20: 78693.8 | J20: 51364.2 | K20: 92273.4 | L20: 374.6
A21: =A20+1 -> 7 | C21: ='Rate Base & Taxes'!A22 -> 164 | D21: ='Rate Base & Taxes'!B22 -> GAS STORED UNDERGROUND - FSS | E21: ='Rate Base & Taxes'!C22 -> 25 | F21: ='Rate Base & Taxes'!D22 -> 50432424 | G21: =ROUND(F21-(SUM(H21:L21)),0) -> 37341679 | H21: =ROUND((VLOOKUP($E21,ALLOC,19)*$F21),0) -> 6728190 | I21: =ROUND((VLOOKUP($E21,ALLOC,20)*$F21),0) -> 5453258 | J21: =ROUND((VLOOKUP($E21,ALLOC,21)*$F21),0) -> 830622 | K21: =ROUND((VLOOKUP($E21,ALLOC,22)*$F21),0) -> 0 | L21: =ROUND((VLOOKUP($E21,ALLOC,23)*$F21),0) -> 78675
A22: =A21+1 -> 8 | C22: ='Rate Base & Taxes'!A23 -> 165 | D22: ='Rate Base & Taxes'!B23 -> PREPAYMENTS | E22: ='Rate Base & Taxes'!C23 -> 19 | F22: ='Rate Base & Taxes'!D23 -> 2338584 | G22: =ROUND(F22-(SUM(H22:L22)),0) -> 1711024 | H22: =ROUND((VLOOKUP($E22,ALLOC,19)*$F22),0) -> 206240 | I22: =ROUND((VLOOKUP($E22,ALLOC,20)*$F22),0) -> 156709 | J22: =ROUND((VLOOKUP($E22,ALLOC,21)*$F22),0) -> 96467 | K22: =ROUND((VLOOKUP($E22,ALLOC,22)*$F22),0) -> 167887 | L22: =ROUND((VLOOKUP($E22,ALLOC,23)*$F22),0) -> 257
A23: =A22+1 -> 9 | C23: ='Rate Base & Taxes'!A24 -> 165 | D23: ='Rate Base & Taxes'!B24 -> CLOUD BASED ASSETS | E23: ='Rate Base & Taxes'!C24 -> 11 | F23: ='Rate Base & Taxes'!D24 -> 748422 | G23: =ROUND(F23-(SUM(H23:L23)),0) -> 484364 | H23: =ROUND((VLOOKUP($E23,ALLOC,19)*$F23),0) -> 68286 | I23: =ROUND((VLOOKUP($E23,ALLOC,20)*$F23),0) -> 69177 | J23: =ROUND((VLOOKUP($E23,ALLOC,21)*$F23),0) -> 45152 | K23: =ROUND((VLOOKUP($E23,ALLOC,22)*$F23),0) -> 81114 | L23: =ROUND((VLOOKUP($E23,ALLOC,23)*$F23),0) -> 329
A24: =A23+1 -> 10 | D24: ='Rate Base & Taxes'!B25 -> CASH WORKING CAPITAL - GAS PURCHASES | E24: ='Rate Base & Taxes'!C25 -> 4 | F24: ='Rate Base & Taxes'!D25 -> 0 | G24: =ROUND(F24-(SUM(H24:L24)),0) -> 0 | H24: =ROUND((VLOOKUP($E24,ALLOC,19)*$F24),0) -> 0 | I24: =ROUND((VLOOKUP($E24,ALLOC,20)*$F24),0) -> 0 | J24: =ROUND((VLOOKUP($E24,ALLOC,21)*$F24),0) -> 0 | K24: =ROUND((VLOOKUP($E24,ALLOC,22)*$F24),0) -> 0 | L24: =ROUND((VLOOKUP($E24,ALLOC,23)*$F24),0) -> 0
A25: 11 | D25: ='Rate Base & Taxes'!B26 -> CASH WORKING CAPITAL - ALL OTHER | E25: ='Rate Base & Taxes'!C26 -> 19 | F25: ='Rate Base & Taxes'!D26 -> 0 | G25: =ROUND(F25-(SUM(H25:L25)),0) -> 0 | H25: =ROUND((VLOOKUP($E25,ALLOC,19)*$F25),0) -> 0 | I25: =ROUND((VLOOKUP($E25,ALLOC,20)*$F25),0) -> 0 | J25: =ROUND((VLOOKUP($E25,ALLOC,21)*$F25),0) -> 0 | K25: =ROUND((VLOOKUP($E25,ALLOC,22)*$F25),0) -> 0 | L25: =ROUND((VLOOKUP($E25,ALLOC,23)*$F25),0) -> 0
A26: =A25+1 -> 12 | D26: TOTAL WORKING CAPITAL | F26: =SUM(F20:F25) -> 54370818 | G26: =SUM(G20:G25) -> 40088068.4 | H26: 7080396.6 | I26: 5757837.8 | J26: 1023605.2 | K26: 341274.4 | L26: 79635.6
D28: DEFERRED INCOME TAXES
A29: =A26+1 -> 13 | C29: ='Rate Base & Taxes'!A27 -> 190 | D29: ='Rate Base & Taxes'!B27 -> ACCUMULATED DEF INCOME TAX | E29: ='Rate Base & Taxes'!C27 -> 12 | F29: ='Rate Base & Taxes'!D27 -> 79055237 | G29: =ROUND(F29-(SUM(H29:L29)),1) -> 51177198.2 | H29: 7220114.8 | I29: 7310237.8 | J29: 4761496.9 | K29: 8549823.9 | L29: 36365.4
A30: =A29+1 -> 14 | C30: ='Rate Base & Taxes'!A28 -> 282 | D30: ='Rate Base & Taxes'!B28 -> ACCUMULATED DEF INCOME TAX | E30: ='Rate Base & Taxes'!C28 -> 12 | F30: ='Rate Base & Taxes'!D28 -> -460523471 | G30: =ROUND(F30-(SUM(H30:L30)),1) -> -298124474.1 | H30: -42059608.6 | I30: -42584605.4 | J30: -27737328.7 | K30: -49805613.4 | L30: -211840.8
A31: =A30+1 -> 15 | C31: ='Rate Base & Taxes'!A29 -> 282 | D31: ='Rate Base & Taxes'!B29 -> ACCUMULATED DEF INCOME TAX - C&I NET ONLY | E31: ='Rate Base & Taxes'!C29 -> 26 | F31: ='Rate Base & Taxes'!D29 -> -263690 | G31: =ROUND(F31-(SUM(H31:L31)),1) -> 0 | H31: 0 | I31: -53766.4 | J31: -169995.7 | K31: -35579.7 | L31: -4348.2
A32: =A31+1 -> 16 | C32: ='Rate Base & Taxes'!A30 -> 283 | D32: ='Rate Base & Taxes'!B30 -> ACCUMULATED DEF INCOME TAX | E32: ='Rate Base & Taxes'!C30 -> 12 | F32: ='Rate Base & Taxes'!D30 -> 0 | G32: =ROUND(F32-(SUM(H32:L32)),1) -> 0 | H32: 0 | I32: 0 | J32: 0 | K32: 0 | L32: 0
A33: =A32+1 -> 17 | D33: TOTAL DEFERRED INCOME TAXES | F33: =SUM(F29:F32) -> -381731924 | G33: =SUM(G29:G32) -> -246947275.9 | H33: -34839493.8 | I33: -35328134 | J33: -23145827.5 | K33: -41291369.2 | L33: -179823.6
A35: =A33+1 -> 18 | C35: ='Rate Base & Taxes'!A31 -> 235 | D35: ='Rate Base & Taxes'!B31 -> CUSTOMER DEPOSITS | E35: ='Rate Base & Taxes'!C31 -> 9 | F35: ='Rate Base & Taxes'!D31 -> -2838227 | G35: -2078518.8 | H35: -708506.6 | I35: -51201.6 | J35: 0 | K35: 0 | L35: 0
A36: =A35+1 -> 19 | C36: ='Rate Base & Taxes'!A32 -> 252 | D36: ='Rate Base & Taxes'!B32 -> CUSTOMER ADVANCES | E36: ='Rate Base & Taxes'!C32 -> 5 | F36: ='Rate Base & Taxes'!D32 -> 2551.84 | G36: 1433.1 | H36: 236.4 | I36: 302.5 | J36: 205.2 | K36: 374.6 | L36: 0
A38: =A36+1 -> 20 | D38: RATE BASE | F38: =F36+F35+F33+F26+F17 -> 1915996457 | G38: =G36+G35+G33+G26+G17 -> 1225209544 | H38: 175172623.9 | I38: 183609586.8 | J38: 120227140.1 | K38: 210892957.3 | L38: 884604.19
G41: =G38/$F$38 -> 0.6394633665 | H41: =H38/$F$38 -> 0.09142638198 | I41: =I38/$F$38 -> 0.09582981543 | J41: =J38/$F$38 -> 0.06274914533

Sheet Pg 11
A1: =Input!$B$1 -> COLUMBIA GAS OF PENNSYLVANIA, INC.
A2: ='Title Exh 111, Sch. 1'!$B$22 -> STATE/FEDERAL INCOME TAXES
A3: ="FOR THE TWELVE MONTHS ENDED "&Input!$B$4 -> FOR THE TWELVE MONTHS ENDED DECEMBER 31, 2019
A5: =Input!$B$6 -> ALLOCATED COST OF SERVICE | K5: =Input!B9 -> 111, SCHEDULE 2
A6: =Input!$B$7 -> PEAK & AVERAGE | K6: ="PAGE 11 OF "&FIXED(Input!$B$10,0,TRUE) -> PAGE 11 OF 13
A7: =IF(Input!$B$8=0," ", Input!$B$8) ->  | K7: ="WITNESS: "&Input!$B$5 -> WITNESS: M. P. BALMERT
A8: LINE | C8: ACCT | D8: ALLOC | E8: TOTAL
A9: NO. | C9: NO. | D9: FACTOR | E9: COMPANY | F9: =Input!$B$17 -> RSS/RDS | G9: =Input!$B$18 -> SGSS1/SCD1/SGDS1 | H9: =Input!$B$19 -> SGSS2/SCD2/SGDS2 | I9: =Input!$B$20 -> SDS/LGSS | J9: =Input!$B$21 -> LDS/LGSS | K9: =Input!$B$22 -> MLDS
C10: (A) | D10: (B) | E10: (C) | F10: (D) | G10: (E) | H10: (F) | I10: (G) | J10: (H) | K10: (I)
E11: $ | F11: $ | G11: $ | H11: $ | I11: $ | J11: $ | K11: $
C12: STATE INCOME TAX
A13: 1 | C13: OPERATING INCOME BEFORE TAXES (PG. 2, LINE 8) | E13: ='Pg 2'!F21 -> 140065217.2 | F13: ='Pg 2'!G21 -> 104233000.6 | G13: ='Pg 2'!H21 -> 14093238.4 | H13: ='Pg 2'!I21 -> 16792653 | I13: ='Pg 2'!J21 -> 5602387.8 | J13: ='Pg 2'!K21 -> -1769297.3 | K13: ='Pg 2'!L21 -> 1113234.67
A14: =A13+1 -> 2 | C14: ='Rate Base & Taxes'!B77 -> STATUTORY ADJUSTMENTS | D14: ='Rate Base & Taxes'!C77 -> 12 | E14: =('Rate Base & Taxes'!D71+'Rate Base & Taxes'!D75)-E15 -> -80890686 | F14: =ROUND(E14-(SUM(G14:K14)),1) -> -52365394.5 | G14: =ROUND((VLOOKUP($D14,ALLOC,19)*$E14),1) -> -7387746.4 | H14: =ROUND((VLOOKUP($D14,ALLOC,20)*$E14),1) -> -7479961.7 | I14: =ROUND((VLOOKUP($D14,ALLOC,21)*$E14),1) -> -4872046 | J14: =ROUND((VLOOKUP($D14,ALLOC,22)*$E14),1) -> -8748327.7 | K14: =ROUND((VLOOKUP($D14,ALLOC,23)*$E14),1) -> -37209.7
A15: =A14+1 -> 3 | C15: INTEREST ON DEBT | E15: =-'Pg 10'!F38*'Rate Base & Taxes'!$E$45 -> -45409116.02 | F15: =-'Pg 10'!G38*'Rate Base & Taxes'!$E$45 -> -29037466.2 | G15: =-'Pg 10'!H38*'Rate Base & Taxes'!$E$45 -> -4151591.187 | H15: =-'Pg 10'!I38*'Rate Base & Taxes'!$E$45 -> -4351547.207 | I15: =-'Pg 10'!J38*'Rate Base & Taxes'!$E$45 -> -2849383.22 | J15: =-'Pg 10'!K38*'Rate Base & Taxes'!$E$45 -> -4998163.088 | K15: =-'Pg 10'!L38*'Rate Base & Taxes'!$E$45 -> -20965.1193
A16: =A15+1 -> 4 | C16: ='Rate Base & Taxes'!B67 -> PA BONUS DEPRECIATION ADJUSTMENT | D16: ='Rate Base & Taxes'!C67 -> 12 | E16: ='Rate Base & Taxes'!D67 -> -12561349 | F16: =ROUND(E16-(SUM(G16:K16)),1) -> -8131714.9 | G16: =ROUND((VLOOKUP($D16,ALLOC,19)*$E16),1) -> -1147228 | H16: =ROUND((VLOOKUP($D16,ALLOC,20)*$E16),1) -> -1161547.9 | I16: =ROUND((VLOOKUP($D16,ALLOC,21)*$E16),1) -> -756570.1 | J16: =ROUND((VLOOKUP($D16,ALLOC,22)*$E16),1) -> -1358509.9 | K16: =ROUND((VLOOKUP($D16,ALLOC,23)*$E16),1) -> -5778.2
A17: =A16+1 -> 5 | C17: STATE TAXABLE INCOME | E17: =SUM(E13:E16) -> 1204066.149 | F17: 14698425 | G17: 1406672.813 | H17: 3799596.193 | I17: -2875611.52 | J17: -16874297.99 | K17: 1049281.651
A18: =A17+1 -> 6 | C18: ='Rate Base & Taxes'!B66 -> NET OPERATING LOSS DEDUCTION | D18: ='Rate Base & Taxes'!C66 -> 12 | E18: ='Rate Base & Taxes'!D66 -> -481626 | F18: =ROUND(E18-(SUM(G18:K18)),1) -> -311785.4 | G18: =ROUND((VLOOKUP($D18,ALLOC,19)*$E18),1) -> -43986.9 | H18: =ROUND((VLOOKUP($D18,ALLOC,20)*$E18),1) -> -44536 | I18: =ROUND((VLOOKUP($D18,ALLOC,21)*$E18),1) -> -29008.3 | J18: =ROUND((VLOOKUP($D18,ALLOC,22)*$E18),1) -> -52087.9 | K18: =ROUND((VLOOKUP($D18,ALLOC,23)*$E18),1) -> -221.5
C19: STATE TAXABLE INCOME | E19: =SUM(E17:E18) -> 722440.1491 | F19: =SUM(F17:F18) -> 14386639.6 | G19: 1362685.913 | H19: 3755060.193 | I19: -2904619.82 | J19: -16926385.89 | K19: 1049060.151
A21: =A18+1 -> 7 | C21: ="STATE NET INCOME TAX @ "&FIXED(ROUND('Rate Base & Taxes'!$D$64*100,2),2,TRUE)&"%" -> STATE NET INCOME TAX @ 9.99% | E21: =E19*'Rate Base & Taxes'!$D$64 -> 72171.7709 | F21: =F19*'Rate Base & Taxes'!$D$64 -> 1437225.296 | G21: =G19*'Rate Base & Taxes'!$D$64 -> 136132.3227 | H21: =H19*'Rate Base & Taxes'!$D$64 -> 375130.5133 | I21: =I19*'Rate Base & Taxes'!$D$64 -> -290171.5201 | J21: =J19*'Rate Base & Taxes'!$D$64 -> -1690945.95 | K21: =K19*'Rate Base & Taxes'!$D$64 -> 104801.1091
A22: =A21+1 -> 8 | C22: ='Rate Base & Taxes'!B84 -> DEFERRED INCOME TAXES | D22: ='Rate Base & Taxes'!C84 -> 12 | E22: ='Rate Base & Taxes'!D84 -> 10162 | F22: =ROUND(E22-(SUM(G22:K22)),1) -> 6578.4 | G22: =ROUND((VLOOKUP($D22,ALLOC,19)*$E22),1) -> 928.1 | H22: =ROUND((VLOOKUP($D22,ALLOC,20)*$E22),1) -> 939.7 | I22: =ROUND((VLOOKUP($D22,ALLOC,21)*$E22),1) -> 612.1 | J22: =ROUND((VLOOKUP($D22,ALLOC,22)*$E22),1) -> 1099 | K22: =ROUND((VLOOKUP($D22,ALLOC,23)*$E22),1) -> 4.7
A23: =A22+1 -> 9 | C23: STATE INCOME TAX | E23: =SUM(E21:E22) -> 82333.7709 | F23: =SUM(F21:F22) -> 1443803.696 | G23: 137060.4227 | H23: 376070.2133 | I23: -289559.4201 | J23: -1689846.95 | K23: 104805.8091
C25: FEDERAL INCOME TAX
A26: =A23+1 -> 10 | C26: OPERATING INCOME BEFORE TAXES (PG. 2, LINE 8) | E26: =E13 -> 140065217.2 | F26: =F13 -> 104233000.6 | G26: 14093238.4 | H26: 16792653 | I26: 5602387.8 | J26: -1769297.3 | K26: 1113234.67
A27: =A26+1 -> 11 | C27: STATE NET INCOME TAX (LINE 7) | E27: =-E21 -> -72171.7709 | F27: -1437225.296 | G27: -136132.3227 | H27: -375130.5133 | I27: 290171.5201 | J27: 1690945.95 | K27: -104801.1091
A28: =A27+1 -> 12 | C28: ='Rate Base & Taxes'!B77&" (LINES 2 & 3)" -> STATUTORY ADJUSTMENTS (LINES 2 & 3) | D28: ='Rate Base & Taxes'!C77 -> 12 | E28: =E14+E15 -> -126299802 | F28: =F14+F15 -> -81402860.7 | G28: -11539337.59 | H28: -11831508.91 | I28: -7721429.22 | J28: -13746490.79 | K28: -58174.8193
A29: =A28+1 -> 13 | C29: FEDERAL TAXABLE INCOME | E29: =SUM(E26:E28) -> 13693243.38 | F29: =SUM(F26:F28) -> 21392914.6 | G29: 2417768.491 | H29: 4586013.58 | I29: -1828869.9 | J29: -13824842.14 | K29: 950258.7416
A31: =A29+1 -> 14 | C31: ="FEDERAL INCOME TAX @ "&FIXED(ROUND('Rate Base & Taxes'!$D$88*100,0),0,TRUE)&"%" -> FEDERAL INCOME TAX @ 21% | E31: =E29*'Rate Base & Taxes'!$D$88 -> 2875581.109 | F31: =F29*'Rate Base & Taxes'!$D$88 -> 4492512.067 | G31: =G29*'Rate Base & Taxes'!$D$88 -> 507731.383 | H31: =H29*'Rate Base & Taxes'!$D$88 -> 963062.8517 | I31: =I29*'Rate Base & Taxes'!$D$88 -> -384062.6791 | J31: =J29*'Rate Base & Taxes'!$D$88 -> -2903216.849 | K31: =K29*'Rate Base & Taxes'!$D$88 -> 199554.3357
A32: =A31+1 -> 15 | C32: ='Rate Base & Taxes'!B89 -> DEFERRED INCOME TAXES | D32: ='Rate Base & Taxes'!C89 -> 12 | E32: ='Rate Base & Taxes'!D89 -> 18403386.96 | F32: =ROUND(E32-(SUM(G32:K32)),1) -> 11913616.6 | G32: =ROUND((VLOOKUP($D32,ALLOC,19)*$E32),1) -> 1680781.3 | H32: =ROUND((VLOOKUP($D32,ALLOC,20)*$E32),1) -> 1701761.2 | I32: =ROUND((VLOOKUP($D32,ALLOC,21)*$E32),1) -> 1108436 | J32: =ROUND((VLOOKUP($D32,ALLOC,22)*$E32),1) -> 1990326.3 | K32: =ROUND((VLOOKUP($D32,ALLOC,23)*$E32),1) -> 8465.6
A33: 16 | C33: TAX REFUND AMORTIZATION | D33: ='Rate Base & Taxes'!C90 -> 12 | E33: ='Rate Base & Taxes'!D90 -> 0 | F33: =ROUND(E33-(SUM(G33:K33)),1) -> 0 | G33: =ROUND((VLOOKUP($D33,ALLOC,19)*$E33),1) -> 0 | H33: =ROUND((VLOOKUP($D33,ALLOC,20)*$E33),1) -> 0 | I33: =ROUND((VLOOKUP($D33,ALLOC,21)*$E33),1) -> 0 | J33: =ROUND((VLOOKUP($D33,ALLOC,22)*$E33),1) -> 0 | K33: =ROUND((VLOOKUP($D33,ALLOC,23)*$E33),1) -> 0
A34: 17 | C34: ='Rate Base & Taxes'!B91 -> FLOW BACK OF EXCESS DEFERRED TAXES | D34: ='Rate Base & Taxes'!C91 -> 12 | E34: ='Rate Base & Taxes'!D91 -> -1747266 | F34: =ROUND(E34-(SUM(G34:K34)),1) -> -1131110.2 | G34: =ROUND((VLOOKUP($D34,ALLOC,19)*$E34),1) -> -159577.8 | H34: =ROUND((VLOOKUP($D34,ALLOC,20)*$E34),1) -> -161569.7 | I34: =ROUND((VLOOKUP($D34,ALLOC,21)*$E34),1) -> -105237.8 | J34: =ROUND((VLOOKUP($D34,ALLOC,22)*$E34),1) -> -188966.8 | K34: =ROUND((VLOOKUP($D34,ALLOC,23)*$E34),1) -> -803.7
A35: 18 | C35: ='Rate Base & Taxes'!B92 -> EFFECT OF CNIT DEFERRED TAX ON FIT | D35: ='Rate Base & Taxes'!C92 -> 12 | E35: ='Rate Base & Taxes'!D92 -> -2134.02 | F35: =ROUND(E35-(SUM(G35:K35)),1) -> -1381.5 | G35: =ROUND((VLOOKUP($D35,ALLOC,19)*$E35),1) -> -194.9 | H35: =ROUND((VLOOKUP($D35,ALLOC,20)*$E35),1) -> -197.3 | I35: =ROUND((VLOOKUP($D35,ALLOC,21)*$E35),1) -> -128.5 | J35: =ROUND((VLOOKUP($D35,ALLOC,22)*$E35),1) -> -230.8 | K35: =ROUND((VLOOKUP($D35,ALLOC,23)*$E35),1) -> -1
A36: 19 | C36: FEDERAL INCOME TAX | E36: =SUM(E31:E35) -> 19529568.05 | F36: 15273636.97 | G36: 2028739.983 | H36: 2503057.052 | I36: 619007.0209 | J36: -1102088.149 | K36: 207215.2357
A37: 20 | C37: STATE NET INCOME TAX (LINE 9) | E37: =E23 -> 82333.7709 | F37: 1443803.696 | G37: 137060.4227 | H37: 376070.2133 | I37: -289559.4201 | J37: -1689846.95 | K37: 104805.8091
A38: 21 | C38: TOTAL INCOME TAXES | E38: =SUM(E36:E37) -> 19611901.82 | F38: =SUM(F36:F37) -> 16717440.66 | G38: 2165800.406 | H38: 2879127.265 | I38: 329447.6009 | J38: -2791935.099 | K38: 312021.0448

Sheet Pg 12
A1: =Input!$B$1 -> COLUMBIA GAS OF PENNSYLVANIA, INC.
A2: ='Title Exh 111, Sch. 1'!$B$23 -> ALLOCATION FACTORS
A3: ="FOR THE TWELVE MONTHS ENDED "&Input!$B$4 -> FOR THE TWELVE MONTHS ENDED DECEMBER 31, 2019
A5: =Input!$B$6 -> ALLOCATED COST OF SERVICE | K5: =Input!B9 -> 111, SCHEDULE 2
A6: =Input!$B$7 -> PEAK & AVERAGE | K6: ="PAGE 12 OF "&FIXED(Input!$B$10,0,TRUE) -> PAGE 12 OF 13
A7: =IF(Input!$B$8=0," ", Input!$B$8) ->  | K7: ="WITNESS: "&Input!$B$5 -> WITNESS: M. P. BALMERT
A8: LINE | D8: ALLOC | E8: TOTAL
A9: NO. | C9: DESCRIPTION | D9: FACTOR | E9: COMPANY | F9: =Input!$B$17 -> RSS/RDS | G9: =Input!$B$18 -> SGSS1/SCD1/SGDS1 | H9: =Input!$B$19 -> SGSS2/SCD2/SGDS2 | I9: =Input!$B$20 -> SDS/LGSS | J9: =Input!$B$21 -> LDS/LGSS | K9: =Input!$B$22 -> MLDS
C10: (A) | D10: (B) | E10: (C) | F10: (D) | G10: (E) | H10: (F) | I10: (G) | J10: (H) | K10: (I)
A12: 1 | C12: ='VLOOKUP ALLOC TABLE'!$B2 -> DESIGN DAY | D12: ='VLOOKUP ALLOC TABLE'!$A2 -> 1 | E12: =SUM(F12:K12) -> 791440000 | F12: ='VLOOKUP ALLOC TABLE'!F$2 -> 447700000 | G12: ='VLOOKUP ALLOC TABLE'!G$2 -> 78600000 | H12: ='VLOOKUP ALLOC TABLE'!H$2 -> 102800000 | I12: ='VLOOKUP ALLOC TABLE'!I$2 -> 65142000 | J12: ='VLOOKUP ALLOC TABLE'!J$2 -> 97198000 | K12: ='VLOOKUP ALLOC TABLE'!K$2 -> 0
A13: =A12+1 -> 2 | C13: PERCENT | E13: =SUM(F13:K13) -> 1 | F13: ='VLOOKUP ALLOC TABLE'!R2 -> 0.56568 | G13: ='VLOOKUP ALLOC TABLE'!S2 -> 0.09931 | H13: ='VLOOKUP ALLOC TABLE'!T2 -> 0.12989 | I13: ='VLOOKUP ALLOC TABLE'!U2 -> 0.08231 | J13: ='VLOOKUP ALLOC TABLE'!V2 -> 0.12281 | K13: ='VLOOKUP ALLOC TABLE'!W2 -> 0
A15: =A13+1 -> 3 | C15: ='VLOOKUP ALLOC TABLE'!$B$3 -> THROUGHPUT EXCLUDING TRANSPORTATION | D15: ='VLOOKUP ALLOC TABLE'!$A$3 -> 2 | E15: =SUM(F15:K15) -> 37219347.1 | F15: ='VLOOKUP ALLOC TABLE'!F$3 -> 27512601 | G15: ='VLOOKUP ALLOC TABLE'!G$3 -> 4812979.1 | H15: ='VLOOKUP ALLOC TABLE'!H$3 -> 4055013.8 | I15: ='VLOOKUP ALLOC TABLE'!I$3 -> 766053.2 | J15: ='VLOOKUP ALLOC TABLE'!J$3 -> 0 | K15: ='VLOOKUP ALLOC TABLE'!K$3 -> 72700
A16: =A15+1 -> 4 | C16: PERCENT | E16: =SUM(F16:K16) -> 1 | F16: ='VLOOKUP ALLOC TABLE'!R3 -> 0.73921 | G16: ='VLOOKUP ALLOC TABLE'!S3 -> 0.12931 | H16: ='VLOOKUP ALLOC TABLE'!T3 -> 0.10895 | I16: ='VLOOKUP ALLOC TABLE'!U3 -> 0.02058 | J16: ='VLOOKUP ALLOC TABLE'!V3 -> 0 | K16: ='VLOOKUP ALLOC TABLE'!W3 -> 0.00195
A18: =A16+1 -> 5 | C18: ='VLOOKUP ALLOC TABLE'!$B$4 -> THROUGHPUT EXCLUDING MDS | D18: ='VLOOKUP ALLOC TABLE'!$A$4 -> 3 | E18: =SUM(F18:K18) -> 77383630.4 | F18: ='VLOOKUP ALLOC TABLE'!F$4 -> 34437601 | G18: ='VLOOKUP ALLOC TABLE'!G$4 -> 6456920.7 | H18: ='VLOOKUP ALLOC TABLE'!H$4 -> 8835480 | I18: ='VLOOKUP ALLOC TABLE'!I$4 -> 7001684.7 | J18: ='VLOOKUP ALLOC TABLE'!J$4 -> 20651944 | K18: ='VLOOKUP ALLOC TABLE'!K$4 -> 0
A19: =A18+1 -> 6 | C19: PERCENT | E19: =SUM(F19:K19) -> 1 | F19: ='VLOOKUP ALLOC TABLE'!R4 -> 0.44502 | G19: ='VLOOKUP ALLOC TABLE'!S4 -> 0.08344 | H19: ='VLOOKUP ALLOC TABLE'!T4 -> 0.11418 | I19: ='VLOOKUP ALLOC TABLE'!U4 -> 0.09048 | J19: ='VLOOKUP ALLOC TABLE'!V4 -> 0.26688 | K19: ='VLOOKUP ALLOC TABLE'!W4 -> 0
A21: =A19+1 -> 7 | C21: ='VLOOKUP ALLOC TABLE'!$B$5 -> GAS PURCHASED EXPENSE | D21: ='VLOOKUP ALLOC TABLE'!$A$5 -> 4 | E21: =SUM(F21:K21) -> 163506936 | F21: ='VLOOKUP ALLOC TABLE'!F$5 -> 120184061 | G21: ='VLOOKUP ALLOC TABLE'!G$5 -> 21240416 | H21: ='VLOOKUP ALLOC TABLE'!H$5 -> 18646735 | I21: ='VLOOKUP ALLOC TABLE'!I$5 -> 3167707 | J21: ='VLOOKUP ALLOC TABLE'!J$5 -> 0 | K21: ='VLOOKUP ALLOC TABLE'!K$5 -> 268017
A22: =A21+1 -> 8 | C22: PERCENT | E22: =SUM(F22:K22) -> 1 | F22: ='VLOOKUP ALLOC TABLE'!R5 -> 0.73504 | G22: ='VLOOKUP ALLOC TABLE'!S5 -> 0.12991 | H22: ='VLOOKUP ALLOC TABLE'!T5 -> 0.11404 | I22: ='VLOOKUP ALLOC TABLE'!U5 -> 0.01937 | J22: ='VLOOKUP ALLOC TABLE'!V5 -> 0 | K22: ='VLOOKUP ALLOC TABLE'!W5 -> 0.00164
A24: =A22+1 -> 9 | C24: ='VLOOKUP ALLOC TABLE'!$B$6 -> PEAK & AVERAGE MAINS | D24: ='VLOOKUP ALLOC TABLE'!$A$6 -> 5
A25: =A24+1 -> 10 | C25: PERCENT | E25: =SUM(F25:K25) -> 1 | F25: ='VLOOKUP ALLOC TABLE'!F$6 -> 0.56162 | G25: ='VLOOKUP ALLOC TABLE'!G$6 -> 0.09262 | H25: ='VLOOKUP ALLOC TABLE'!H$6 -> 0.11856 | I25: ='VLOOKUP ALLOC TABLE'!I$6 -> 0.08042 | J25: ='VLOOKUP ALLOC TABLE'!J$6 -> 0.14678 | K25: ='VLOOKUP ALLOC TABLE'!K$6 -> 0
A27: =A25+1 -> 11 | C27: ='VLOOKUP ALLOC TABLE'!$B$7 -> AVERAGE NO. OF CUSTOMERS | D27: ='VLOOKUP ALLOC TABLE'!$A$7 -> 6 | E27: =SUM(F27:K27) -> 434281 | F27: ='VLOOKUP ALLOC TABLE'!F$7 -> 396498 | G27: ='VLOOKUP ALLOC TABLE'!G$7 -> 32433 | H27: ='VLOOKUP ALLOC TABLE'!H$7 -> 4819 | I27: ='VLOOKUP ALLOC TABLE'!I$7 -> 430 | J27: ='VLOOKUP ALLOC TABLE'!J$7 -> 90 | K27: ='VLOOKUP ALLOC TABLE'!K$7 -> 11
A28: =A27+1 -> 12 | C28: PERCENT | E28: =SUM(F28:K28) -> 1 | F28: ='VLOOKUP ALLOC TABLE'!R7 -> 0.91299 | G28: ='VLOOKUP ALLOC TABLE'!S7 -> 0.07468 | H28: ='VLOOKUP ALLOC TABLE'!T7 -> 0.0111 | I28: ='VLOOKUP ALLOC TABLE'!U7 -> 0.00099 | J28: ='VLOOKUP ALLOC TABLE'!V7 -> 0.00021 | K28: ='VLOOKUP ALLOC TABLE'!W7 -> 3e-05
A30: =A28+1 -> 13 | C30: ='VLOOKUP ALLOC TABLE'!$B$8 -> DISTRIBUTION UNCOLLECTIBLES | D30: ='VLOOKUP ALLOC TABLE'!$A$8 -> 7 | E30: =SUM(F30:K30) -> 8970091.96 | F30: ='VLOOKUP ALLOC TABLE'!F$8 -> 8659103.86 | G30: ='VLOOKUP ALLOC TABLE'!G$8 -> 167618.8 | H30: ='VLOOKUP ALLOC TABLE'!H$8 -> 143369.3 | I30: ='VLOOKUP ALLOC TABLE'!I$8 -> 0 | J30: ='VLOOKUP ALLOC TABLE'!J$8 -> 0 | K30: ='VLOOKUP ALLOC TABLE'!K$8 -> 0
A31: =A30+1 -> 14 | C31: PERCENT | E31: =SUM(F31:K31) -> 1 | F31: ='VLOOKUP ALLOC TABLE'!R8 -> 0.96533 | G31: ='VLOOKUP ALLOC TABLE'!S8 -> 0.01869 | H31: ='VLOOKUP ALLOC TABLE'!T8 -> 0.01598 | I31: ='VLOOKUP ALLOC TABLE'!U8 -> 0 | J31: ='VLOOKUP ALLOC TABLE'!V8 -> 0 | K31: ='VLOOKUP ALLOC TABLE'!W8 -> 0
A33: =A31+1 -> 15 | C33: ='VLOOKUP ALLOC TABLE'!$B$9 -> CURRENT GMB/GTS REVENUE | D33: ='VLOOKUP ALLOC TABLE'!$A$9 -> 8 | E33: =SUM(F33:K33) -> 39195616 | F33: ='VLOOKUP ALLOC TABLE'!F$9 -> 0 | G33: ='VLOOKUP ALLOC TABLE'!G$9 -> 379333 | H33: ='VLOOKUP ALLOC TABLE'!H$9 -> 1805184 | I33: ='VLOOKUP ALLOC TABLE'!I$9 -> 17639825 | J33: ='VLOOKUP ALLOC TABLE'!J$9 -> 17899205 | K33: ='VLOOKUP ALLOC TABLE'!K$9 -> 1472069
A34: =A33+1 -> 16 | C34: PERCENT | E34: =SUM(F34:K34) -> 1.00001 | F34: ='VLOOKUP ALLOC TABLE'!R9 -> 0 | G34: ='VLOOKUP ALLOC TABLE'!S9 -> 0.00968 | H34: ='VLOOKUP ALLOC TABLE'!T9 -> 0.04606 | I34: ='VLOOKUP ALLOC TABLE'!U9 -> 0.45005 | J34: ='VLOOKUP ALLOC TABLE'!V9 -> 0.45666 | K34: ='VLOOKUP ALLOC TABLE'!W9 -> 0.03756
A36: =A34+1 -> 17 | C36: ='VLOOKUP ALLOC TABLE'!$B$10 -> CUSTOMER DEPOSITS | D36: ='VLOOKUP ALLOC TABLE'!$A$10 -> 9 | E36: =SUM(F36:K36) -> 2227377 | F36: ='VLOOKUP ALLOC TABLE'!F$10 -> 1631178 | G36: ='VLOOKUP ALLOC TABLE'!G$10 -> 556015 | H36: ='VLOOKUP ALLOC TABLE'!H$10 -> 40184 | I36: ='VLOOKUP ALLOC TABLE'!I$10 -> 0 | J36: ='VLOOKUP ALLOC TABLE'!J$10 -> 0 | K36: ='VLOOKUP ALLOC TABLE'!K$10 -> 0
A37: =A36+1 -> 18 | C37: PERCENT | E37: =SUM(F37:K37) -> 1 | F37: ='VLOOKUP ALLOC TABLE'!R10 -> 0.73233 | G37: ='VLOOKUP ALLOC TABLE'!S10 -> 0.24963 | H37: ='VLOOKUP ALLOC TABLE'!T10 -> 0.01804 | I37: ='VLOOKUP ALLOC TABLE'!U10 -> 0 | J37: ='VLOOKUP ALLOC TABLE'!V10 -> 0 | K37: ='VLOOKUP ALLOC TABLE'!W10 -> 0
A39: =A37+1 -> 19 | C39: ='VLOOKUP ALLOC TABLE'!$B$11 -> FORFEITED DISCOUNTS | D39: ='VLOOKUP ALLOC TABLE'!$A$11 -> 10 | E39: =SUM(F39:K39) -> 1192278 | F39: ='VLOOKUP ALLOC TABLE'!F11 -> 880955 | G39: ='VLOOKUP ALLOC TABLE'!G11 -> 116974 | H39: ='VLOOKUP ALLOC TABLE'!H11 -> 110646 | I39: ='VLOOKUP ALLOC TABLE'!I11 -> 43449 | J39: ='VLOOKUP ALLOC TABLE'!J11 -> 37195 | K39: ='VLOOKUP ALLOC TABLE'!K11 -> 3059
A40: =A39+1 -> 20 | C40: PERCENT | E40: =SUM(F40:K40) -> 1 | F40: ='VLOOKUP ALLOC TABLE'!R11 -> 0.73888 | G40: ='VLOOKUP ALLOC TABLE'!S11 -> 0.09811 | H40: ='VLOOKUP ALLOC TABLE'!T11 -> 0.0928 | I40: ='VLOOKUP ALLOC TABLE'!U11 -> 0.03644 | J40: ='VLOOKUP ALLOC TABLE'!V11 -> 0.0312 | K40: ='VLOOKUP ALLOC TABLE'!W11 -> 0.00257
A42: =A40+1 -> 21 | C42: ='VLOOKUP ALLOC TABLE'!$B$12 -> DIST. PLANT EXCL ACCTS 375.70, 375.71, & 387 | D42: ='VLOOKUP ALLOC TABLE'!$A$12 -> 11 | E42: =SUM(F42:K42) -> 2632013410 | F42: ='VLOOKUP ALLOC TABLE'!F$12 -> 1703357935 | G42: ='VLOOKUP ALLOC TABLE'!G$12 -> 240157119.3 | H42: ='VLOOKUP ALLOC TABLE'!H$12 -> 243286498.7 | I42: ='VLOOKUP ALLOC TABLE'!I$12 -> 158776340.8 | J42: ='VLOOKUP ALLOC TABLE'!J$12 -> 285265132.5 | K42: ='VLOOKUP ALLOC TABLE'!K$12 -> 1170383.52
A43: =A42+1 -> 22 | C43: PERCENT | E43: =ROUND(SUM(F43:K43),2) -> 1 | F43: ='VLOOKUP ALLOC TABLE'!R12 -> 0.64718 | G43: ='VLOOKUP ALLOC TABLE'!S12 -> 0.09124 | H43: ='VLOOKUP ALLOC TABLE'!T12 -> 0.09243 | I43: ='VLOOKUP ALLOC TABLE'!U12 -> 0.06033 | J43: ='VLOOKUP ALLOC TABLE'!V12 -> 0.10838 | K43: ='VLOOKUP ALLOC TABLE'!W12 -> 0.00044
A45: =A43+1 -> 23 | C45: ='VLOOKUP ALLOC TABLE'!$B$13 -> GROSS PLANT | D45: ='VLOOKUP ALLOC TABLE'!$A$13 -> 12 | E45: =SUM(F45:K45) -> 2737191110 | F45: ='VLOOKUP ALLOC TABLE'!F$13 -> 1771947204 | G45: ='VLOOKUP ALLOC TABLE'!G$13 -> 249996869.4 | H45: ='VLOOKUP ALLOC TABLE'!H$13 -> 253096342.3 | I45: ='VLOOKUP ALLOC TABLE'!I$13 -> 164862446.6 | J45: ='VLOOKUP ALLOC TABLE'!J$13 -> 296025256.1 | K45: ='VLOOKUP ALLOC TABLE'!K$13 -> 1262991.57
A46: =A45+1 -> 24 | C46: PERCENT | E46: =ROUND(SUM(F46:K46),2) -> 1 | F46: ='VLOOKUP ALLOC TABLE'!R13 -> 0.64736 | G46: ='VLOOKUP ALLOC TABLE'!S13 -> 0.09133 | H46: ='VLOOKUP ALLOC TABLE'!T13 -> 0.09247 | I46: ='VLOOKUP ALLOC TABLE'!U13 -> 0.06023 | J46: ='VLOOKUP ALLOC TABLE'!V13 -> 0.10815 | K46: ='VLOOKUP ALLOC TABLE'!W13 -> 0.00046
A48: =A46+1 -> 25 | C48: ='VLOOKUP ALLOC TABLE'!$B$14 -> MAINS - ACCOUNT 376 | D48: ='VLOOKUP ALLOC TABLE'!$A$14 -> 13 | E48: =SUM(F48:K48) -> 1804917543 | F48: ='VLOOKUP ALLOC TABLE'!F$14 -> 1013513965 | G48: ='VLOOKUP ALLOC TABLE'!G$14 -> 167144445.3 | H48: ='VLOOKUP ALLOC TABLE'!H$14 -> 213956439.8 | I48: ='VLOOKUP ALLOC TABLE'!I$14 -> 145128010.1 | J48: ='VLOOKUP ALLOC TABLE'!J$14 -> 264882980.9 | K48: ='VLOOKUP ALLOC TABLE'!K$14 -> 291702.37
A49: =A48+1 -> 26 | C49: PERCENT | E49: =ROUND(SUM(F49:K49),2) -> 1 | F49: ='VLOOKUP ALLOC TABLE'!R14 -> 0.56152 | G49: ='VLOOKUP ALLOC TABLE'!S14 -> 0.09261 | H49: ='VLOOKUP ALLOC TABLE'!T14 -> 0.11854 | I49: ='VLOOKUP ALLOC TABLE'!U14 -> 0.08041 | J49: ='VLOOKUP ALLOC TABLE'!V14 -> 0.14676 | K49: ='VLOOKUP ALLOC TABLE'!W14 -> 0.00016

Sheet Pg 13
A1: =Input!$B$1 -> COLUMBIA GAS OF PENNSYLVANIA, INC.
A2: ='Title Exh 111, Sch. 1'!$B$24 -> ALLOCATION FACTORS (CONT.)
A3: ="FOR THE TWELVE MONTHS ENDED "&Input!$B$4 -> FOR THE TWELVE MONTHS ENDED DECEMBER 31, 2019
A5: =Input!$B$6 -> ALLOCATED COST OF SERVICE | K5: =Input!B9 -> 111, SCHEDULE 2
A6: =Input!$B$7 -> PEAK & AVERAGE | K6: ="PAGE 13 OF "&FIXED(Input!$B$10,0,TRUE) -> PAGE 13 OF 13
A7: =IF(Input!$B$8=0," ", Input!$B$8) ->  | K7: ="WITNESS: "&Input!$B$5 -> WITNESS: M. P. BALMERT
A8: LINE | D8: ALLOC | E8: TOTAL
A9: NO. | C9: DESCRIPTION | D9: FACTOR | E9: COMPANY | F9: =Input!$B$17 -> RSS/RDS | G9: =Input!$B$18 -> SGSS1/SCD1/SGDS1 | H9: =Input!$B$19 -> SGSS2/SCD2/SGDS2 | I9: =Input!$B$20 -> SDS/LGSS | J9: =Input!$B$21 -> LDS/LGSS | K9: =Input!$B$22 -> MLDS
C10: (A) | D10: (B) | E10: (C) | F10: (D) | G10: (E) | H10: (F) | I10: (G) | J10: (H) | K10: (I)
A12: ='Pg 12'!A49+1 -> 27 | C12: ='VLOOKUP ALLOC TABLE'!$B$15 -> COMPOSITE DIRECT PLANT - ACCTS 376 & 380 | D12: ='VLOOKUP ALLOC TABLE'!$A$15 -> 14 | E12: =SUM(F12:K12) -> 2397334606 | F12: ='VLOOKUP ALLOC TABLE'!F$15 -> 1551705308 | G12: ='VLOOKUP ALLOC TABLE'!G$15 -> 212357565.5 | H12: ='VLOOKUP ALLOC TABLE'!H$15 -> 221296462.8 | I12: ='VLOOKUP ALLOC TABLE'!I$15 -> 146212129.7 | J12: ='VLOOKUP ALLOC TABLE'!J$15 -> 265469471.8 | K12: ='VLOOKUP ALLOC TABLE'!K$15 -> 293668.4
A13: =A12+1 -> 28 | C13: PERCENT | E13: =ROUND(SUM(F13:K13),2) -> 1 | F13: ='VLOOKUP ALLOC TABLE'!R15 -> 0.64726 | G13: ='VLOOKUP ALLOC TABLE'!S15 -> 0.08858 | H13: ='VLOOKUP ALLOC TABLE'!T15 -> 0.09231 | I13: ='VLOOKUP ALLOC TABLE'!U15 -> 0.06099 | J13: ='VLOOKUP ALLOC TABLE'!V15 -> 0.11074 | K13: ='VLOOKUP ALLOC TABLE'!W15 -> 0.00012
A15: =A13+1 -> 29 | C15: ='VLOOKUP ALLOC TABLE'!$B$16 -> SERVICES | D15: ='VLOOKUP ALLOC TABLE'!$A$16 -> 15 | E15: =SUM(F15:K15) -> 413534515.4 | F15: ='VLOOKUP ALLOC TABLE'!F$16 -> 375686735.6 | G15: ='VLOOKUP ALLOC TABLE'!G$16 -> 31559250.18 | H15: ='VLOOKUP ALLOC TABLE'!H$16 -> 5125486.76 | I15: ='VLOOKUP ALLOC TABLE'!I$16 -> 755122.31 | J15: ='VLOOKUP ALLOC TABLE'!J$16 -> 407920.5 | K15: ='VLOOKUP ALLOC TABLE'!K$16 -> 0
A16: =A15+1 -> 30 | C16: PERCENT | E16: =ROUND(SUM(F16:K16),2) -> 1 | F16: ='VLOOKUP ALLOC TABLE'!R16 -> 0.90847 | G16: ='VLOOKUP ALLOC TABLE'!S16 -> 0.07632 | H16: ='VLOOKUP ALLOC TABLE'!T16 -> 0.01239 | I16: ='VLOOKUP ALLOC TABLE'!U16 -> 0.00183 | J16: ='VLOOKUP ALLOC TABLE'!V16 -> 0.00099 | K16: ='VLOOKUP ALLOC TABLE'!W16 -> 0
A18: =A16+1 -> 31 | C18: ='VLOOKUP ALLOC TABLE'!$B$17 -> METERS | D18: ='VLOOKUP ALLOC TABLE'!$A$17 -> 16 | E18: =SUM(F18:K18) -> 29582143.22 | F18: ='VLOOKUP ALLOC TABLE'!F$17 -> 22267185.09 | G18: ='VLOOKUP ALLOC TABLE'!G$17 -> 4764565.78 | H18: ='VLOOKUP ALLOC TABLE'!H$17 -> 2226579.04 | I18: ='VLOOKUP ALLOC TABLE'!I$17 -> 250017.35 | J18: ='VLOOKUP ALLOC TABLE'!J$17 -> 69958.1 | K18: ='VLOOKUP ALLOC TABLE'!K$17 -> 3837.86
A19: =A18+1 -> 32 | C19: PERCENT | E19: =ROUND(SUM(F19:K19),2) -> 1 | F19: ='VLOOKUP ALLOC TABLE'!R17 -> 0.75273 | G19: ='VLOOKUP ALLOC TABLE'!S17 -> 0.16106 | H19: ='VLOOKUP ALLOC TABLE'!T17 -> 0.07527 | I19: ='VLOOKUP ALLOC TABLE'!U17 -> 0.00845 | J19: ='VLOOKUP ALLOC TABLE'!V17 -> 0.00236 | K19: ='VLOOKUP ALLOC TABLE'!W17 -> 0.00013
A21: =A19+1 -> 33 | C21: ='VLOOKUP ALLOC TABLE'!$B$18 -> INDUSTRIAL M & R | D21: ='VLOOKUP ALLOC TABLE'!$A$18 -> 17 | E21: =SUM(F21:K21) -> 5640974.87 | F21: ='VLOOKUP ALLOC TABLE'!F$18 -> 0 | G21: ='VLOOKUP ALLOC TABLE'!G$18 -> 151858.64 | H21: ='VLOOKUP ALLOC TABLE'!H$18 -> 968514.14 | I21: ='VLOOKUP ALLOC TABLE'!I$18 -> 1976017.05 | J21: ='VLOOKUP ALLOC TABLE'!J$18 -> 2544585.04 | K21: ='VLOOKUP ALLOC TABLE'!K$18 -> 0
A22: =A21+1 -> 34 | C22: PERCENT | E22: =ROUND(SUM(F22:K22),2) -> 1 | F22: ='VLOOKUP ALLOC TABLE'!R18 -> 0 | G22: ='VLOOKUP ALLOC TABLE'!S18 -> 0.02692 | H22: ='VLOOKUP ALLOC TABLE'!T18 -> 0.17169 | I22: ='VLOOKUP ALLOC TABLE'!U18 -> 0.3503 | J22: ='VLOOKUP ALLOC TABLE'!V18 -> 0.45109 | K22: ='VLOOKUP ALLOC TABLE'!W18 -> 0
A24: =A22+1 -> 35 | C24: ='VLOOKUP ALLOC TABLE'!$B$19 -> OTHER DISTRIBUTION O & M EXPENSES | D24: ='VLOOKUP ALLOC TABLE'!$A$19 -> 18 | E24: =SUM(F24:K24) -> 49893232.1 | F24: ='VLOOKUP ALLOC TABLE'!F$19 -> 34973204.7 | G24: ='VLOOKUP ALLOC TABLE'!G$19 -> 4461176.8 | H24: ='VLOOKUP ALLOC TABLE'!H$19 -> 3776037.7 | I24: ='VLOOKUP ALLOC TABLE'!I$19 -> 2421113.3 | J24: ='VLOOKUP ALLOC TABLE'!J$19 -> 4256933 | K24: ='VLOOKUP ALLOC TABLE'!K$19 -> 4766.6
A25: =A24+1 -> 36 | C25: PERCENT | E25: =ROUND(SUM(F25:K25),2) -> 1 | F25: ='VLOOKUP ALLOC TABLE'!R19 -> 0.70096 | G25: ='VLOOKUP ALLOC TABLE'!S19 -> 0.08941 | H25: ='VLOOKUP ALLOC TABLE'!T19 -> 0.07568 | I25: ='VLOOKUP ALLOC TABLE'!U19 -> 0.04853 | J25: ='VLOOKUP ALLOC TABLE'!V19 -> 0.08532 | K25: ='VLOOKUP ALLOC TABLE'!W19 -> 0.0001
A27: =A25+1 -> 37 | C27: ='VLOOKUP ALLOC TABLE'!$B$20 -> O & M EXCL GAS PUR, UNCOLLECTIBLES, & A & G | D27: ='VLOOKUP ALLOC TABLE'!$A$20 -> 19 | E27: =SUM(F27:K27) -> 74735516.1 | F27: ='VLOOKUP ALLOC TABLE'!F$20 -> 54680664.9 | G27: ='VLOOKUP ALLOC TABLE'!G$20 -> 6590843.2 | H27: ='VLOOKUP ALLOC TABLE'!H$20 -> 5008197.7 | I27: ='VLOOKUP ALLOC TABLE'!I$20 -> 3082667.6 | J27: ='VLOOKUP ALLOC TABLE'!J$20 -> 5364900 | K27: ='VLOOKUP ALLOC TABLE'!K$20 -> 8242.7
A28: =A27+1 -> 38 | C28: PERCENT | E28: =ROUND(SUM(F28:K28),2) -> 1 | F28: ='VLOOKUP ALLOC TABLE'!R20 -> 0.73165 | G28: ='VLOOKUP ALLOC TABLE'!S20 -> 0.08819 | H28: ='VLOOKUP ALLOC TABLE'!T20 -> 0.06701 | I28: ='VLOOKUP ALLOC TABLE'!U20 -> 0.04125 | J28: ='VLOOKUP ALLOC TABLE'!V20 -> 0.07179 | K28: ='VLOOKUP ALLOC TABLE'!W20 -> 0.00011
A30: =A28+1 -> 39 | C30: ='VLOOKUP ALLOC TABLE'!$B$21 -> CUSTOMER/DEMAND MAINS | D30: ='VLOOKUP ALLOC TABLE'!$A$21 -> 20
A31: =A30+1 -> 40 | C31: PERCENT | E31: =ROUND(SUM(F31:K31),2) -> 1 | F31: ='VLOOKUP ALLOC TABLE'!F$21 -> 0.76123 | G31: ='VLOOKUP ALLOC TABLE'!G$21 -> 0.08749 | H31: ='VLOOKUP ALLOC TABLE'!H$21 -> 0.07008 | I31: ='VLOOKUP ALLOC TABLE'!I$21 -> 0.04863 | J31: ='VLOOKUP ALLOC TABLE'!J$21 -> 0.03257 | K31: ='VLOOKUP ALLOC TABLE'!K$21 -> 0
A33: =A31+1 -> 41 | C33: ='VLOOKUP ALLOC TABLE'!$B$22 -> HOUSE REGULATORS (GPA 383) | D33: ='VLOOKUP ALLOC TABLE'!$A$22 -> 21 | E33: =SUM(F33:K33) -> 3006915 | F33: ='VLOOKUP ALLOC TABLE'!F22 -> 2725549 | G33: ='VLOOKUP ALLOC TABLE'!G22 -> 230087 | H33: ='VLOOKUP ALLOC TABLE'!H22 -> 45166 | I33: ='VLOOKUP ALLOC TABLE'!I22 -> 5009 | J33: ='VLOOKUP ALLOC TABLE'!J22 -> 996 | K33: ='VLOOKUP ALLOC TABLE'!K22 -> 108
A34: =A33+1 -> 42 | C34: PERCENT | E34: =SUM(F34:K34) -> 1 | F34: ='VLOOKUP ALLOC TABLE'!R22 -> 0.90642 | G34: ='VLOOKUP ALLOC TABLE'!S22 -> 0.07652 | H34: ='VLOOKUP ALLOC TABLE'!T22 -> 0.01502 | I34: ='VLOOKUP ALLOC TABLE'!U22 -> 0.00167 | J34: ='VLOOKUP ALLOC TABLE'!V22 -> 0.00033 | K34: ='VLOOKUP ALLOC TABLE'!W22 -> 4e-05
A36: =A34+1 -> 43 | C36: ='VLOOKUP ALLOC TABLE'!$B$23 -> AVERAGE - ALLOCATORS 5 & 20 | D36: ='VLOOKUP ALLOC TABLE'!$A$23 -> 22
A37: =A36+1 -> 44 | C37: PERCENT | E37: =SUM(F37:K37) -> 1 | F37: ='VLOOKUP ALLOC TABLE'!R23 -> 0.66141 | G37: ='VLOOKUP ALLOC TABLE'!S23 -> 0.09006 | H37: ='VLOOKUP ALLOC TABLE'!T23 -> 0.09432 | I37: ='VLOOKUP ALLOC TABLE'!U23 -> 0.06453 | J37: ='VLOOKUP ALLOC TABLE'!V23 -> 0.08968 | K37: ='VLOOKUP ALLOC TABLE'!W23 -> 0
A39: =A37+1 -> 45 | C39: ='VLOOKUP ALLOC TABLE'!$B$24 -> METERS AND HOUSE REGULATORS | D39: ='VLOOKUP ALLOC TABLE'!$A$24 -> 23 | E39: =SUM(F39:K39) -> 119886451.8 | F39: ='VLOOKUP ALLOC TABLE'!F$24 -> 92881101 | G39: ='VLOOKUP ALLOC TABLE'!G$24 -> 17857297 | H39: ='VLOOKUP ALLOC TABLE'!H$24 -> 7989315.7 | I39: ='VLOOKUP ALLOC TABLE'!I$24 -> 896622.8 | J39: ='VLOOKUP ALLOC TABLE'!J$24 -> 248075.5 | K39: ='VLOOKUP ALLOC TABLE'!K$24 -> 14039.8
A40: =A39+1 -> 46 | C40: PERCENT | E40: =SUM(F40:K40) -> 1 | F40: ='VLOOKUP ALLOC TABLE'!R24 -> 0.77474 | G40: ='VLOOKUP ALLOC TABLE'!S24 -> 0.14895 | H40: ='VLOOKUP ALLOC TABLE'!T24 -> 0.06664 | I40: ='VLOOKUP ALLOC TABLE'!U24 -> 0.00748 | J40: ='VLOOKUP ALLOC TABLE'!V24 -> 0.00207 | K40: ='VLOOKUP ALLOC TABLE'!W24 -> 0.00012
A42: =A40+1 -> 47 | C42: ='VLOOKUP ALLOC TABLE'!$B$25 -> LABOR | D42: ='VLOOKUP ALLOC TABLE'!$A$25 -> 24 | E42: =SUM(F42:K42) -> 30125333.8 | F42: ='VLOOKUP ALLOC TABLE'!F25 -> 21583000.1 | G42: ='VLOOKUP ALLOC TABLE'!G25 -> 2711511.2 | H42: ='VLOOKUP ALLOC TABLE'!H25 -> 2147308 | I42: ='VLOOKUP ALLOC TABLE'!I25 -> 1344138.8 | J42: ='VLOOKUP ALLOC TABLE'!J25 -> 2336385.7 | K42: ='VLOOKUP ALLOC TABLE'!K25 -> 2990
A43: =A42+1 -> 48 | C43: PERCENT | E43: =SUM(F43:K43) -> 1 | F43: ='VLOOKUP ALLOC TABLE'!R25 -> 0.71643 | G43: ='VLOOKUP ALLOC TABLE'!S25 -> 0.09001 | H43: ='VLOOKUP ALLOC TABLE'!T25 -> 0.07128 | I43: ='VLOOKUP ALLOC TABLE'!U25 -> 0.04462 | J43: ='VLOOKUP ALLOC TABLE'!V25 -> 0.07756 | K43: ='VLOOKUP ALLOC TABLE'!W25 -> 0.0001
A45: =A43+1 -> 49 | C45: ='VLOOKUP ALLOC TABLE'!$B$26 -> SALES AND CHOICE TRANSPORTATION | D45: ='VLOOKUP ALLOC TABLE'!$A$26 -> 25 | E45: =SUM(F45:K45) -> 46510326.7 | F45: ='VLOOKUP ALLOC TABLE'!F26 -> 34437601 | G45: ='VLOOKUP ALLOC TABLE'!G26 -> 6205037.2 | H45: ='VLOOKUP ALLOC TABLE'!H26 -> 5028935.3 | I45: ='VLOOKUP ALLOC TABLE'!I26 -> 766053.2 | J45: ='VLOOKUP ALLOC TABLE'!J26 -> 0 | K45: ='VLOOKUP ALLOC TABLE'!K26 -> 72700
A46: =A45+1 -> 50 | C46: PERCENT | E46: =SUM(F46:K46) -> 1 | F46: ='VLOOKUP ALLOC TABLE'!R26 -> 0.74043 | G46: ='VLOOKUP ALLOC TABLE'!S26 -> 0.13341 | H46: ='VLOOKUP ALLOC TABLE'!T26 -> 0.10813 | I46: ='VLOOKUP ALLOC TABLE'!U26 -> 0.01647 | J46: ='VLOOKUP ALLOC TABLE'!V26 -> 0 | K46: ='VLOOKUP ALLOC TABLE'!W26 -> 0.00156
A48: =A46+1 -> 51 | C48: ='VLOOKUP ALLOC TABLE'!$B$27 -> C&I NETWORK CUSTOMERS | D48: ='VLOOKUP ALLOC TABLE'!$A$27 -> 26 | E48: =SUM(F48:K48) -> 667 | F48: ='VLOOKUP ALLOC TABLE'!F27 -> 0 | G48: ='VLOOKUP ALLOC TABLE'!G27 -> 0 | H48: ='VLOOKUP ALLOC TABLE'!H27 -> 136 | I48: ='VLOOKUP ALLOC TABLE'!I27 -> 430 | J48: ='VLOOKUP ALLOC TABLE'!J27 -> 90 | K48: ='VLOOKUP ALLOC TABLE'!K27 -> 11
A49: =A48+1 -> 52 | C49: PERCENT | E49: =SUM(F49:K49) -> 1 | F49: ='VLOOKUP ALLOC TABLE'!R27 -> 0 | G49: ='VLOOKUP ALLOC TABLE'!S27 -> 0 | H49: ='VLOOKUP ALLOC TABLE'!T27 -> 0.2039 | I49: ='VLOOKUP ALLOC TABLE'!U27 -> 0.64468 | J49: ='VLOOKUP ALLOC TABLE'!V27 -> 0.13493 | K49: ='VLOOKUP ALLOC TABLE'!W27 -> 0.01649

Sheet Gross Plant in Service
A1: PAGE 3 - PLANT | C1: FROM EXH 108 P3 SCH 1
B3: Acct. No. | C3: Description | D3: ALLOC. FACTOR | E3: Plant in Service
A4: =TEXT(B4,"???.00") -> 301.00 | B4: 301 | C4: Organizational Costs | E4: =+'Summary Input Plant & Dep'!C4 -> 100099.21
A5: 302.21 | B5: 302.21 | C5: Franchises/Consent, Perpetual | E5: =+'Summary Input Plant & Dep'!C5 -> 26488.79
A6: 303.00 | B6: 303 | C6: Misc Intangible Plant | E6: =+'Summary Input Plant & Dep'!C6 -> 4809062.23
A7: 303.30 | B7: 303.3 | C7: Misc Software | E7: =+'Summary Input Plant & Dep'!C7 -> 35849130.39
A8: 303.30 | B8: 303.3 | C8: Misc Software - C&I NET ONLY | D8: 26 | E8: =+'Summary Input Plant & Dep'!C8 -> 1612791
A9: 305.00 | B9: 305 | C9: Structures & Improvements | E9: =+'Summary Input Plant & Dep'!C9 -> 0
B10: 301-305 | C10: INTANGIBLE PLANT | D10: 11 | E10: =SUM(E4:E9) -> 42397571.62
A12: =TEXT(B12,"???.00") -> 350.10 | B12: 350.1 | C12: Land | E12: =+'Summary Input Plant & Dep'!C12 -> 23881.54
A13: 350.20 | B13: 350.2 | C13: Rights of Way | E13: =+'Summary Input Plant & Dep'!C13 -> 1932.08
A14: 351.20 | B14: 351.2 | C14: Compressor Station Structures | E14: =+'Summary Input Plant & Dep'!C14 -> 3287122.58
A15: 352.01 | B15: 352.01 | C15: Wells Construction | E15: =+'Summary Input Plant & Dep'!C15 -> 799133.73
A16: 352.02 | B16: 352.02 | C16: Wells Equipment | E16: =+'Summary Input Plant & Dep'!C16 -> 168679.67
A17: 352.10 | B17: 352.1 | C17: Storage Leasehold and Rights | E17: =+'Summary Input Plant & Dep'!C17 -> 139442.44
A18: 352.12 | B18: 352.12 | C18: Other Leases | E18: =+'Summary Input Plant & Dep'!C18 -> 67498.34
A19: 353.00 | B19: 353 | C19: Lines | E19: =+'Summary Input Plant & Dep'!C19 -> 399542.52
A20: 354.00 | B20: 354 | C20: Compressor Station Equipment | E20: =+'Summary Input Plant & Dep'!C20 -> 864751.66
A21: 355.00 | B21: 355 | C21: Measuring & Regulating Equipment | E21: =+'Summary Input Plant & Dep'!C21 -> 104476.92
A22: 362.00 | B22: 362 | C22: Gas Holders | E22: =+'Summary Input Plant & Dep'!C22 -> 0
A23: 362.10 | B23: 362.1 | C23: Environmental Remediation | E23: =+'Summary Input Plant & Dep'!C23 -> 0
B24: 350-362 | C24: UNDERGROUND STORAGE PLANT | D24: 25 | E24: =SUM(E12:E23) -> 5856461.48
A27: =TEXT(B27,"???.00") -> 374.10 | B27: 374.1 | C27: LAND - CITY GATE & M/L IND M&R | D27: =Input!$B$3 -> 5 | E27: =+'Summary Input Plant & Dep'!C27 -> 21943.54
A28: 374.20 | B28: 374.2 | C28: LAND - OTHER DISTRIBUTION | D28: =Input!$B$3 -> 5 | E28: =+'Summary Input Plant & Dep'!C28 -> 477102.49
A29: 374.30 | B29: 374.3 | C29: LAND RIGHTS - CITY GATE MAIN LINE | D29: =Input!$B$3 -> 5 | E29: =+'Summary Input Plant & Dep'!C29 -> 95360.94
A30: 374.40 | B30: 374.4 | C30: LAND RIGHTS - OTHER DISTRIBUTION | D30: =Input!$B$3 -> 5 | E30: =+'Summary Input Plant & Dep'!C30 -> 3032712.08
A31: 374.40 | B31: 374.4 | C31: DIRECT - LAND RIGHTS-OTHER DISTRIBUTION | E31: =+'Summary Input Plant & Dep'!C31 -> 0
A32: 374.41 | B32: 374.41 | C32: LAND RIGHTS - OTHER DISTRIBUTION LOC | D32: =Input!$B$3 -> 5 | E32: =+'Summary Input Plant & Dep'!C32 -> 12.94
A33: 374.50 | B33: 374.5 | C33: RIGHTS OF WAY | D33: =Input!$B$3 -> 5 | E33: =+'Summary Input Plant & Dep'!C33 -> 3233092.34
A34: 374.50 | B34: 374.5 | C34: DIRECT - RIGHTS OF WAY | E34: =+'Summary Input Plant & Dep'!C34 -> 50.61
A35: 375.20 | B35: 375.2 | C35: M & R STRUCTURES - CITY GATE | D35: =Input!$B$3 -> 5 | E35: =+'Summary Input Plant & Dep'!C35 -> 7026.41
A36: 375.31 | B36: 375.31 | C36: M & R STRUCTURES - LOCAL GAS PURCH | D36: =Input!$B$3 -> 5 | E36: =+'Summary Input Plant & Dep'!C36 -> 4012.39
A37: 375.40 | B37: 375.4 | C37: M & R STRUCTURES - REGULATING | D37: =Input!$B$3 -> 5 | E37: =+'Summary Input Plant & Dep'!C37 -> 4752757.57
A38: =TEXT(B38,"???.00") -> 375.40 | B38: 375.4 | C38: DIRECT - M & R STRUCTURES - REGULATING | D38: =Input!$B$3 -> 5 | E38: =+'Summary Input Plant & Dep'!C38 -> 30949.25
A39: 375.60 | B39: 375.6 | C39: M & R STRUCTURES - DIST. IND. M & R | D39: 17 | E39: =+'Summary Input Plant & Dep'!C39 -> 87669.84
A40: 375.70 | B40: 375.7 | C40: M & R STRUCTURES - OTHER | D40: 11 | E40: =+'Summary Input Plant & Dep'!C40 -> 9600425.97
A41: 375.71 | B41: 375.71 | C41: M & R STRUCTURES - OTHER LEASED | D41: =$D$40 -> 11 | E41: =+'Summary Input Plant & Dep'!C41 -> 5092380.6
A42: 375.80 | B42: 375.8 | C42: M & R STRUCTURES - COMMUNICATION | D42: =Input!$B$3 -> 5 | E42: =+'Summary Input Plant & Dep'!C42 -> 16515.16
A43: 376.00 | B43: 376 | C43: MAINS | D43: =Input!$B$3 -> 5 | E43: =+'Summary Input Plant & Dep'!C43 -> 1713900920
A44: 376.00 | B44: 376 | C44: DIRECT - MAINS - MDS | E44: =+'Summary Input Plant & Dep'!C44 -> 210854.95
A45: 376.08 | B45: 376.08 | C45: MAINS-CSL REPLACEMENTS | D45: =Input!$B$3 -> 5 | E45: =+'Summary Input Plant & Dep'!C45 -> 23760169.44
A46: 376.30 | B46: 376.3 | C46: MAINS-BARE STEEL | D46: =Input!$B$3 -> 5 | E46: =+'Summary Input Plant & Dep'!C46 -> 66563956.44
A47: 376.30 | B47: 376.3 | C47: DIRECT - MAINS-BARE STEEL | E47: =+'Summary Input Plant & Dep'!C47 -> 80847.42
A48: 376.80 | B48: 376.8 | C48: MAINS-CAST IRON | D48: =Input!$B$3 -> 5 | E48: =+'Summary Input Plant & Dep'!C48 -> 400795.12
A49: 378.10 | B49: 378.1 | C49: M & R EQUIP - GENERAL | D49: =Input!$B$3 -> 5 | E49: =+'Summary Input Plant & Dep'!C49 -> 1371449.78
A50: 378.20 | B50: 378.2 | C50: M & R EQUIP - GENERAL - REGULATING | D50: =Input!$B$3 -> 5 | E50: =+'Summary Input Plant & Dep'!C50 -> 91022247.4
A51: 378.20 | B51: 378.2 | C51: DIRECT - M & R EQUIP-GEN-REG | E51: =+'Summary Input Plant & Dep'!C51 -> 458057.76
A52: 378.30 | B52: 378.3 | C52: M & R EQUIP - LOCAL GAS PURCHASES | D52: =Input!$B$3 -> 5 | E52: =+'Summary Input Plant & Dep'!C52 -> 471961.9
A53: 379.10 | B53: 379.1 | C53: M & R EQUIP - CITY GATE | D53: =Input!$B$3 -> 5 | E53: =+'Summary Input Plant & Dep'!C53 -> 140677.28
A54: 379.11 | B54: 379.11 | C54: M & R EQUIP - EXCHANGE GAS | D54: =Input!$B$3 -> 5 | E54: =+'Summary Input Plant & Dep'!C54 -> -449.77
A55: 380.00 | B55: 380 | C55: SERVICES | D55: 15 | E55: =+'Summary Input Plant & Dep'!C55 -> 592415096.6
A56: 380.00 | B56: 380 | C56: DIRECT - SERVICES | E56: =+'Summary Input Plant & Dep'!C56 -> 1966.03
A57: 380.12 | B57: 380.12 | C57: CSL REPLACEMENT | D57: 15 | E57: =+'Summary Input Plant & Dep'!C57 -> 0
A58: 381.00 | B58: 381 | C58: METERS | D58: 16 | E58: =+'Summary Input Plant & Dep'!C58 -> 40150509.92
A59: 381.10 | B59: 381.1 | C59: AUTOMATIC METER READING | D59: =$D$58 -> 16 | E59: =+'Summary Input Plant & Dep'!C59 -> 19350242.03
A60: =TEXT(B60,"???.00") -> 381.10 | B60: 381.1 | C60: AUTOMATIC METER READING - C&I NET ONLY | D60: 26 | E60: =+'Summary Input Plant & Dep'!C60 -> 4600627
A61: 382.00 | B61: 382 | C61: METER INSTALLATIONS | D61: =$D$58 -> 16 | E61: =+'Summary Input Plant & Dep'!C61 -> 43214952.1
A62: 383.00 | B62: 383 | C62: HOUSE REGULATORS | D62: 21 | E62: =+'Summary Input Plant & Dep'!C62 -> 13305975.67
A63: 384.00 | B63: 384 | C63: HOUSE REG INSTALLATIONS | D63: 21 | E63: =+'Summary Input Plant & Dep'!C63 -> 3864772.07
A64: 385.00 | B64: 385 | C64: IND M&R EQUIPMENT | D64: =$D$39 -> 17 | E64: =+'Summary Input Plant & Dep'!C64 -> 8110311.02
A65: 385.00 | B65: 385 | C65: DIRECT - IND M&R EQUIPMENT | E65: =+'Summary Input Plant & Dep'!C65 -> 373617.7
A66: 385.10 | B66: 385.1 | C66: IND M&R EQUIPMENT - LG VOLUME | D66: =$D$39 -> 17 | E66: =+'Summary Input Plant & Dep'!C66 -> 1085273.35
A67: 387.10 | B67: 387.1 | C67: OTHER EQUIP DISTRIBUTION | D67: =$D$40 -> 11 | E67: =+'Summary Input Plant & Dep'!C67 -> 19450.41
A68: 387.20 | B68: 387.2 | C68: OTHER EQUIP ODORIZATION | D68: 11 | E68: =+'Summary Input Plant & Dep'!C68 -> 117247.73
A69: 387.42 | B69: 387.42 | C69: OTHER EQUIP RADIO | D69: 11 | E69: =+'Summary Input Plant & Dep'!C69 -> 119609.27
A70: 387.44 | B70: 387.44 | C70: OTHER EQUIP COMMUNICATION | D70: 11 | E70: =+'Summary Input Plant & Dep'!C70 -> 627109.33
A71: 387.46 | B71: 387.46 | C71: OTHER EQUIP CUSTOMER INFO SERVICE | D71: 11 | E71: =+'Summary Input Plant & Dep'!C71 -> 7441516.83
A72: =TEXT(B72,"???.00") -> 387.45 | B72: 387.45 | C72: DIRECT - OTHER EQUIP CUSTOMER INFO SERVICE | E72: =+'Summary Input Plant & Dep'!C72 -> 39788.15
A73: =TEXT(B73,"???.00") -> 387.50 | B73: 387.5 | C73: GPS EQUIPMENT | D73: 11 | E73: =+'Summary Input Plant & Dep'!C73 -> 2053366
C74: TOTAL DISTRIBUTION | E74: =SUM(E27:E73) -> 2661724931
A76: =TEXT(B76,"???.00") -> 389.20 | B76: 389.2 | C76: Land Rights | E76: =+'Summary Input Plant & Dep'!C76 -> 0
A77: 390.10 | B77: 390.1 | C77: Str, Communications | E77: =+'Summary Input Plant & Dep'!C77 -> 49821.42
A78: 391.10 | B78: 391.1 | C78: OF&E Unspecified | E78: =+'Summary Input Plant & Dep'!C78 -> 2383907.46
A79: 391.11 | B79: 391.11 | C79: OF&E Data Handling Equipment | E79: =+'Summary Input Plant & Dep'!C79 -> 91303.67
A80: 391.12 | B80: 391.12 | C80: OF&E Information Systems | E80: =+'Summary Input Plant & Dep'!C80 -> 3691719.8
A81: 391.20 | B81: 391.2 | C81: OF&E Air Cond Equip | E81: =+'Summary Input Plant & Dep'!C81 -> 3006.98
A82: 392.20 | B82: 392.2 | C82: Trans Eq Trailers > $1,000 | E82: =+'Summary Input Plant & Dep'!C82 -> 14787.39
A83: 392.21 | B83: 392.21 | C83: Trans Eq Trailers $1,000 or > | E83: =+'Summary Input Plant & Dep'!C83 -> 10829.5
A84: 393.00 | B84: 393 | C84: Stores Equipment | E84: =+'Summary Input Plant & Dep'!C84 -> 0
A85: 394.10 | B85: 394.1 | C85: Tools, Garage & Service Eq | E85: =+'Summary Input Plant & Dep'!C85 -> -472342.17
A86: 394.11 | B86: 394.11 | C86: CNG Equip - Stationary | E86: =+'Summary Input Plant & Dep'!C86 -> 1774189.63
A87: 394.12 | B87: 394.12 | C87: CNG Equip - Portable | E87: =+'Summary Input Plant & Dep'!C87 -> 179308.21
A88: 394.20 | B88: 394.2 | C88: Shop Equipment | E88: =+'Summary Input Plant & Dep'!C88 -> 63653.19
A89: 394.30 | B89: 394.3 | C89: Tools & Other | E89: =+'Summary Input Plant & Dep'!C89 -> 17671477.61
A90: 394.31 | B90: 394.31 | C90: High Pressure Stopping | E90: =+'Summary Input Plant & Dep'!C90 -> 10846.9
A91: 395.00 | B91: 395 | C91: Laboratory Equipment, Gas | E91: =+'Summary Input Plant & Dep'!C91 -> 269029.81
A92: 396.00 | B92: 396 | C92: Power Operated Equipment | E92: =+'Summary Input Plant & Dep'!C92 -> 1036104.04
A93: =TEXT(B93,"???.00") -> 397.00 | B93: 397 | C93: Communication Equipment | E93: =+'Summary Input Plant & Dep'!C93 -> 0
A94: 397.10 | B94: 397.1 | C94: Communication Equipment-Telephone | E94: =+'Summary Input Plant & Dep'!C94 -> 0
A95: 397.20 | B95: 397.2 | C95: Communication Equipment-Radio | E95: =+'Summary Input Plant & Dep'!C95 -> 0
A96: 397.40 | B96: 397.4 | C96: Communication Equipment-Other | E96: =+'Summary Input Plant & Dep'!C96 -> 0
A97: 397.50 | B97: 397.5 | C97: Communication Equipment-Telemetering | E97: =+'Summary Input Plant & Dep'!C97 -> 3822930.22
A98: 398.00 | B98: 398 | C98: Miscellaneous Equipment | E98: =+'Summary Input Plant & Dep'!C98 -> 1212198.93
B99: 389-398 | C99: GENERAL PLANT | D99: =D10 -> 11 | E99: =SUM(E76:E98) -> 31812772.59
C101: Total | E101: =E10+E24+E74+E99 -> 2741791737
B106: SYSTEM CHARGE CALCULATION
C108: CUST & OTHER-BASED SOFTWARE | D108: =D10 -> 11
C110: GROSS PLANT | D110: ='Summary Input Plant & Dep'!C101 -> 2741791737
C111: DEPRECIATION RESERVE | D111: ='Summary Input Plant & Dep'!E101 -> 499229725
C112: DEPRECIATION EXPENSE | D112: ='Summary Input Plant & Dep'!G101 -> 72557195

Sheet Depreciation Reserve
A1: PAGE 4 - DEPRECIATION RESERVE | D1: FROM EXH 105 - DEPRECIATION STUDY
E2: INPUT:
B3: Acct. No. | C3: Description | D3: ALLOC. FACTOR | E3: Depreciation Reserve
B4: 301 | C4: Organizational Costs | E4: =+'Summary Input Plant & Dep'!E4 -> 0
B5: 302.21 | C5: Franchises/Consent, Perpetual | E5: =+'Summary Input Plant & Dep'!E5 -> 0
B6: 303 | C6: Misc Intangible Plant | E6: =+'Summary Input Plant & Dep'!E6 -> 0
B7: 303.3 | C7: Misc Software | E7: =+'Summary Input Plant & Dep'!E7 -> 15553652
B8: 303.3 | C8: Misc Software - C&I NET ONLY | D8: 26 | E8: =+'Summary Input Plant & Dep'!E8 -> 107519
B9: 305 | C9: Structures & Improvements | E9: =+'Summary Input Plant & Dep'!E9 -> 0
B10: 301-305 | C10: INTANGIBLE PLANT | D10: ='Gross Plant in Service'!D10 -> 11 | E10: =SUM(E4:E9) -> 15661171
B12: 350.1 | C12: Land | E12: =+'Summary Input Plant & Dep'!E12 -> 0
B13: 350.2 | C13: Rights of Way | E13: =+'Summary Input Plant & Dep'!E13 -> 1931
B14: 351.2 | C14: Compressor Station Structures | E14: =+'Summary Input Plant & Dep'!E14 -> 1854407
B15: 352.01 | C15: Wells Construction | E15: =+'Summary Input Plant & Dep'!E15 -> 799118
B16: 352.02 | C16: Wells Equipment | E16: =+'Summary Input Plant & Dep'!E16 -> 168680
B17: 352.1 | C17: Storage Leasehold and Rights | E17: =+'Summary Input Plant & Dep'!E17 -> 206932
B18: 352.12 | C18: Other Leases | E18: =+'Summary Input Plant & Dep'!E18 -> 0
B19: 353 | C19: Lines | E19: =+'Summary Input Plant & Dep'!E19 -> 399543
B20: 354 | C20: Compressor Station Equipment | E20: =+'Summary Input Plant & Dep'!E20 -> 745510
B21: 355 | C21: Measuring & Regulating Equipment | E21: =+'Summary Input Plant & Dep'!E21 -> 104477
B22: 362 | C22: Gas Holders | E22: =+'Summary Input Plant & Dep'!E22 -> 0
B23: 362.1 | C23: Environmental Remediation | E23: =+'Summary Input Plant & Dep'!E23 -> -59461
B24: 350-362 | C24: UNDERGROUND STORAGE PLANT | D24: ='Gross Plant in Service'!D24 -> 25 | E24: =SUM(E12:E23) -> 4221137
B27: 374.1 | C27: LAND - CITY GATE & M/L IND M&R | D27: =Input!$B$3 -> 5 | E27: =+'Summary Input Plant & Dep'!E27 -> 0
B28: 374.2 | C28: LAND - OTHER DISTRIBUTION | D28: =Input!$B$3 -> 5 | E28: =+'Summary Input Plant & Dep'!E28 -> 134737
B29: 374.3 | C29: LAND RIGHTS - CITY GATE MAIN LINE | D29: =Input!$B$3 -> 5 | E29: =+'Summary Input Plant & Dep'!E29 -> 0
B30: 374.4 | C30: LAND RIGHTS - OTHER DISTRIBUTION | D30: =Input!$B$3 -> 5 | E30: =+'Summary Input Plant & Dep'!E30 -> 718506
B31: 374.4 | C31: DIRECT - LAND RIGHTS-OTHER DISTRIBUTION | E31: =+'Summary Input Plant & Dep'!E31 -> 0
B32: 374.41 | C32: LAND RIGHTS - OTHER DISTRIBUTION LOC | D32: =Input!$B$3 -> 5 | E32: =+'Summary Input Plant & Dep'!E32 -> 0
B33: 374.5 | C33: RIGHTS OF WAY | D33: =Input!$B$3 -> 5 | E33: =+'Summary Input Plant & Dep'!E33 -> 1723915.82
B34: 374.5 | C34: DIRECT - RIGHTS OF WAY | E34: =+'Summary Input Plant & Dep'!E34 -> 32.18
B35: 375.2 | C35: M & R STRUCTURES - CITY GATE | D35: =Input!$B$3 -> 5 | E35: =+'Summary Input Plant & Dep'!E35 -> 0
B36: 375.31 | C36: M & R STRUCTURES - LOCAL GAS PURCH | D36: =Input!$B$3 -> 5 | E36: =+'Summary Input Plant & Dep'!E36 -> 0
B37: 375.4 | C37: M & R STRUCTURES - REGULATING | D37: =Input!$B$3 -> 5 | E37: =+'Summary Input Plant & Dep'!E37 -> 1344492.83
B38: 375.4 | C38: DIRECT - M & R STRUCTURES - REGULATING | D38: =Input!$B$3 -> 5 | E38: =+'Summary Input Plant & Dep'!E38 -> 4888.17
B39: 375.6 | C39: M & R STRUCTURES - DIST. IND. M & R | D39: ='Gross Plant in Service'!D39 -> 17 | E39: =+'Summary Input Plant & Dep'!E39 -> 75984
B40: 375.7 | C40: M & R STRUCTURES - OTHER | D40: ='Gross Plant in Service'!D40 -> 11 | E40: =+'Summary Input Plant & Dep'!E40 -> 3144496
B41: 375.71 | C41: M & R STRUCTURES - OTHER LEASED | D41: =$D$40 -> 11 | E41: =+'Summary Input Plant & Dep'!E41 -> 1300385
B42: 375.8 | C42: M & R STRUCTURES - COMMUNICATION | D42: =Input!$B$3 -> 5 | E42: =+'Summary Input Plant & Dep'!E42 -> 7601
B43: 376 | C43: MAINS | D43: =Input!$B$3 -> 5 | E43: =+'Summary Input Plant & Dep'!E43 -> 202910951.7
B44: 376 | C44: DIRECT - MAINS | E44: =+'Summary Input Plant & Dep'!E44 -> 71722.3
B45: 376.08 | C45: MAINS-CSL REPLACEMENTS | D45: =Input!$B$3 -> 5 | E45: =+'Summary Input Plant & Dep'!E45 -> 0
B46: 376.3 | C46: MAINS-BARE STEEL | D46: =Input!$B$3 -> 5 | E46: =+'Summary Input Plant & Dep'!E46 -> 45994821.67
B47: 376.3 | C47: DIRECT - MAINS-BARE STEEL | E47: =+'Summary Input Plant & Dep'!E47 -> 82385.33
B48: 376.8 | C48: MAINS-CAST IRON | D48: =Input!$B$3 -> 5 | E48: =+'Summary Input Plant & Dep'!E48 -> 237129
B49: 378.1 | C49: M & R EQUIP - GENERAL | D49: =Input!$B$3 -> 5 | E49: =+'Summary Input Plant & Dep'!E49 -> 0
B50: 378.2 | C50: M & R EQUIP - GENERAL - REGULATING | D50: =Input!$B$3 -> 5 | E50: =+'Summary Input Plant & Dep'!E50 -> 13158592.06
B51: 378.2 | C51: DIRECT - M & R EQUIP-GEN-REG | E51: =+'Summary Input Plant & Dep'!E51 -> 54529.94
B52: 378.3 | C52: M & R EQUIP - LOCAL GAS PURCHASES | D52: =Input!$B$3 -> 5 | E52: =+'Summary Input Plant & Dep'!E52 -> 0
B53: 379.1 | C53: M & R EQUIP - CITY GATE | D53: =Input!$B$3 -> 5 | E53: =+'Summary Input Plant & Dep'!E53 -> 104131
B54: 379.11 | C54: M & R EQUIP - EXCHANGE GAS | D54: =Input!$B$3 -> 5 | E54: =+'Summary Input Plant & Dep'!E54 -> 0
B55: 380 | C55: SERVICES | D55: ='Gross Plant in Service'!D55 -> 15 | E55: =+'Summary Input Plant & Dep'!E55 -> 135665837.1
B56: 380 | C56: DIRECT - SERVICES | E56: =+'Summary Input Plant & Dep'!E56 -> 1919.92
B57: 380.12 | C57: CSL REPLACEMENT | D57: ='Gross Plant in Service'!D57 -> 15 | E57: =+'Summary Input Plant & Dep'!E57 -> 0
B58: 381 | C58: METERS | D58: ='Gross Plant in Service'!D58 -> 16 | E58: =+'Summary Input Plant & Dep'!E58 -> 17411447
B59: 381.1 | C59: AUTOMATIC METER READING | D59: =$D$58 -> 16 | E59: =+'Summary Input Plant & Dep'!E59 -> 13729683
B60: 381.1 | C60: AUTOMATIC METER READING - C&I NET ONLY | D60: 26 | E60: =+'Summary Input Plant & Dep'!E60 -> 102236
B61: 382 | C61: METER INSTALLATIONS | D61: =$D$58 -> 16 | E61: =+'Summary Input Plant & Dep'!E61 -> 13549487
B62: 383 | C62: HOUSE REGULATORS | D62: =$D$58 -> 16 | E62: =+'Summary Input Plant & Dep'!E62 -> 4334095
B63: 384 | C63: HOUSE REG INSTALLATIONS | D63: =$D$58 -> 16 | E63: =+'Summary Input Plant & Dep'!E63 -> 3112325
B64: 385 | C64: IND M&R EQUIPMENT | D64: =$D$39 -> 17 | E64: =+'Summary Input Plant & Dep'!E64 -> 3051515.81
B65: 385 | C65: DIRECT - IND M&R EQUIPMENT | E65: =+'Summary Input Plant & Dep'!E65 -> 110824.19
B66: 385.1 | C66: IND M&R EQUIPMENT - LG VOLUME | D66: =$D$39 -> 17 | E66: =+'Summary Input Plant & Dep'!E66 -> 0
B67: 387.1 | C67: OTHER EQUIP DISTRIBUTION | D67: =$D$40 -> 11 | E67: =+'Summary Input Plant & Dep'!E67 -> 0
B68: 387.2 | C68: OTHER EQUIP ODORIZATION | D68: 11 | E68: =+'Summary Input Plant & Dep'!E68 -> 0
B69: 387.42 | C69: OTHER EQUIP RADIO | D69: 11 | E69: =+'Summary Input Plant & Dep'!E69 -> 0
B70: 387.44 | C70: OTHER EQUIP COMMUNICATION | D70: 11 | E70: =+'Summary Input Plant & Dep'!E70 -> 0
B71: 387.46 | C71: OTHER EQUIP CUSTOMER INFO SERVICE | D71: 11 | E71: =+'Summary Input Plant & Dep'!E71 -> 2037372.25
B72: 387.45 | C72: DIRECT - OTHER EQUIP CUSTOMER INFO SERVICE | E72: =+'Summary Input Plant & Dep'!E72 -> 2630.75
B73: 387.5 | C73: GPS EQUIPMENT | D73: 11 | E73: =+'Summary Input Plant & Dep'!E73 -> 1049356
C74: TOTAL DISTRIBUTION | E74: =SUM(E27:E73) -> 465228030
B76: 389.2 | C76: Land Rights | E76: =+'Summary Input Plant & Dep'!E76 -> 0
B77: 390.1 | C77: Str, Communications | E77: =+'Summary Input Plant & Dep'!E77 -> 89335
B78: 391.1 | C78: OF&E Unspecified | E78: =+'Summary Input Plant & Dep'!E78 -> 953264
B79: 392.11 | C79: OF&E Data Handling Equipment | E79: =+'Summary Input Plant & Dep'!E79 -> 35440
B80: 391.12 | C80: OF&E Information Systems | E80: =+'Summary Input Plant & Dep'!E80 -> 2358538
B81: 391.2 | C81: OF&E Air Cond Equip | E81: =+'Summary Input Plant & Dep'!E81 -> 0
B82: 392.2 | C82: Trans Eq Trailers > $1,000 | E82: =+'Summary Input Plant & Dep'!E82 -> 4950
B83: 392.21 | C83: Trans Eq Trailers $1,000 or > | E83: =+'Summary Input Plant & Dep'!E83 -> 0
B84: 393 | C84: Stores Equipment | E84: =+'Summary Input Plant & Dep'!E84 -> 0
B85: 394.1 | C85: Tools, Garage & Service Eq | E85: =+'Summary Input Plant & Dep'!E85 -> 6380375
B86: 394.11 | C86: CNG Equip - Stationary | E86: =+'Summary Input Plant & Dep'!E86 -> 0
B87: 394.12 | C87: CNG Equip - Portable | E87: =+'Summary Input Plant & Dep'!E87 -> 1953498
B88: 394.2 | C88: Shop Equipment | E88: =+'Summary Input Plant & Dep'!E88 -> 0
B89: 394.3 | C89: Tools & Other | E89: =+'Summary Input Plant & Dep'!E89 -> 0
B90: 394.31 | C90: High Pressure Stopping | E90: =+'Summary Input Plant & Dep'!E90 -> 0
B91: 395 | C91: Laboratory Equipment, Gas | E91: =+'Summary Input Plant & Dep'!E91 -> 61722
B92: 396 | C92: Power Operated Equipment | E92: =+'Summary Input Plant & Dep'!E92 -> 988719
B93: 397.1 | C93: Communication Equipment-Telephone | E93: =+'Summary Input Plant & Dep'!E94 -> 0
B94: 397.2 | C94: Communication Equipment-Radio | E94: =+'Summary Input Plant & Dep'!E95 -> 0
B95: 397.4 | C95: Communication Equipment-Other | E95: =+'Summary Input Plant & Dep'!E96 -> 0
B96: 397.5 | C96: Communication Equipment-Telemetering | E96: =+'Summary Input Plant & Dep'!E97 -> 889259
B97: 398 | C97: Miscellaneous Equipment | E97: =+'Summary Input Plant & Dep'!E98 -> 404287
B98: 389-398 | C98: GENERAL PLANT | D98: =D10 -> 11 | E98: =SUM(E76:E97) -> 14119387
C100: Total | E100: =E10+E24+E74+E98 -> 499229725

Sheet Depr & Amort Exp
A1: PAGE 5 - DEPRECIATION & AMORTIZATION EXPENSE | D1: FROM EXH 105 - DEPRECIATION STUDY
E2: INPUT:
B3: Acct. No. | C3: Description | D3: ALLOC. FACTOR | E3: Depreciation & Amortization Expense
B4: 301 | C4: Organizational Costs | E4: =+'Summary Input Plant & Dep'!G4 -> 0
B5: 302.21 | C5: Franchises/Consent, Perpetual | E5: =+'Summary Input Plant & Dep'!G5 -> 0
B6: 303 | C6: Misc Intangible Plant | E6: =+'Summary Input Plant & Dep'!G6 -> 0
B7: 303.3 | C7: Misc Software | E7: =+'Summary Input Plant & Dep'!G7 -> 4549763
B8: 303.3 | C8: Misc Software - C&I NET ONLY | D8: 26 | E8: =+'Summary Input Plant & Dep'!G8 -> 322558
B9: 305 | C9: Structures & Improvements | E9: =+'Summary Input Plant & Dep'!G9 -> 0
B10: 301-305 | C10: INTANGIBLE PLANT | D10: ='Gross Plant in Service'!D10 -> 11 | E10: =SUM(E4:E9) -> 4872321
B12: 350.1 | C12: Land | E12: =+'Summary Input Plant & Dep'!G12 -> 0
B13: 350.2 | C13: Rights of Way | E13: =+'Summary Input Plant & Dep'!G13 -> 0
B14: 351.2 | C14: Compressor Station Structures | E14: =+'Summary Input Plant & Dep'!G14 -> 262855
B15: 352.01 | C15: Wells Construction | E15: =+'Summary Input Plant & Dep'!G15 -> 3
B16: 352.02 | C16: Wells Equipment | E16: =+'Summary Input Plant & Dep'!G16 -> 0
B17: 352.1 | C17: Storage Leasehold and Rights | E17: =+'Summary Input Plant & Dep'!G17 -> 2
B18: 352.12 | C18: Other Leases | E18: =+'Summary Input Plant & Dep'!G18 -> 0
B19: 353 | C19: Lines | E19: =+'Summary Input Plant & Dep'!G19 -> 0
B20: 354 | C20: Compressor Station Equipment | E20: =+'Summary Input Plant & Dep'!G20 -> 21926
B21: 355 | C21: Measuring & Regulating Equipment | E21: =+'Summary Input Plant & Dep'!G21 -> 0
B22: 362 | C22: Gas Holders | E22: =+'Summary Input Plant & Dep'!G22 -> 0
B23: 362.1 | C23: Environmental Remediation | E23: =+'Summary Input Plant & Dep'!G23 -> 0
B24: 350-362 | C24: UNDERGROUND STORAGE PLANT | D24: ='Gross Plant in Service'!D24 -> 25 | E24: =SUM(E13:E23) -> 284786
B27: 374.1 | C27: LAND - CITY GATE & M/L IND M&R | D27: =Input!$B$3 -> 5 | E27: =+'Summary Input Plant & Dep'!G27 -> 0
B28: 374.2 | C28: LAND - OTHER DISTRIBUTION | D28: =Input!$B$3 -> 5 | E28: =+'Summary Input Plant & Dep'!G28 -> 0
B29: 374.3 | C29: LAND RIGHTS - CITY GATE MAIN LINE | D29: =Input!$B$3 -> 5 | E29: =+'Summary Input Plant & Dep'!G29 -> 0
B30: 374.4 | C30: LAND RIGHTS - OTHER DISTRIBUTION | D30: =Input!$B$3 -> 5 | E30: =+'Summary Input Plant & Dep'!G30 -> 52833
B31: 374.4 | C31: DIRECT - LAND RIGHTS-OTHER DISTRIBUTION | E31: =+'Summary Input Plant & Dep'!G31 -> 0
B32: 374.41 | C32: LAND RIGHTS - OTHER DISTRIBUTION LOC | D32: =Input!$B$3 -> 5 | E32: =+'Summary Input Plant & Dep'!G32 -> 0
B33: 374.5 | C33: RIGHTS OF WAY | D33: =Input!$B$3 -> 5 | E33: =+'Summary Input Plant & Dep'!G33 -> 35298.39
B34: 374.5 | C34: DIRECT - RIGHTS OF WAY | E34: =+'Summary Input Plant & Dep'!G34 -> 0.61
B35: 375.2 | C35: M & R STRUCTURES - CITY GATE | D35: =Input!$B$3 -> 5 | E35: =+'Summary Input Plant & Dep'!G35 -> 0
B36: 375.31 | C36: M & R STRUCTURES - LOCAL GAS PURCH | D36: =Input!$B$3 -> 5 | E36: =+'Summary Input Plant & Dep'!G36 -> 0
B37: 375.4 | C37: M & R STRUCTURES - REGULATING | D37: =Input!$B$3 -> 5 | E37: =+'Summary Input Plant & Dep'!G37 -> 124570.12
B38: 375.4 | C38: DIRECT - M & R STRUCTURES - REGULATING | D38: =Input!$B$3 -> 5 | E38: =+'Summary Input Plant & Dep'!G38 -> 437.88
B39: 375.6 | C39: M & R STRUCTURES - DIST. IND. M & R | D39: ='Gross Plant in Service'!D39 -> 17 | E39: =+'Summary Input Plant & Dep'!G39 -> 545
B40: 375.7 | C40: M & R STRUCTURES - OTHER | D40: ='Gross Plant in Service'!D40 -> 11 | E40: =+'Summary Input Plant & Dep'!G40 -> 313877
B41: 375.71 | C41: M & R STRUCTURES - OTHER LEASED | D41: =$D$40 -> 11 | E41: =+'Summary Input Plant & Dep'!G41 -> 224318
B42: 375.8 | C42: M & R STRUCTURES - COMMUNICATION | D42: =Input!$B$3 -> 5 | E42: =+'Summary Input Plant & Dep'!G42 -> 365
B43: 376 | C43: MAINS | D43: =Input!$B$3 -> 5 | E43: =+'Summary Input Plant & Dep'!G43 -> 38572693
B44: 376 | C44: DIRECT - MAINS | E44: =+'Summary Input Plant & Dep'!G44 -> 3616
B45: 376.08 | C45: MAINS-CSL REPLACEMENTS | D45: =Input!$B$3 -> 5 | E45: =+'Summary Input Plant & Dep'!G45 -> 0
B46: 376.3 | C46: MAINS-BARE STEEL | D46: =Input!$B$3 -> 5 | E46: =+'Summary Input Plant & Dep'!G46 -> 401984.94
B47: 376.3 | C47: DIRECT - MAINS-BARE STEEL | E47: =+'Summary Input Plant & Dep'!G47 -> 2622.06
B48: 376.8 | C48: MAINS-CAST IRON | D48: =Input!$B$3 -> 5 | E48: =+'Summary Input Plant & Dep'!G48 -> 6932
B49: 378.1 | C49: M & R EQUIP - GENERAL | D49: =Input!$B$3 -> 5 | E49: =+'Summary Input Plant & Dep'!G49 -> 0
B50: 378.2 | C50: M & R EQUIP - GENERAL - REGULATING | D50: =Input!$B$3 -> 5 | E50: =+'Summary Input Plant & Dep'!G50 -> 3603117.24
B51: 378.2 | C51: DIRECT - M & R EQUIP-GEN-REG | E51: =+'Summary Input Plant & Dep'!G51 -> 12092.76
B52: 378.3 | C52: M & R EQUIP - LOCAL GAS PURCHASES | D52: =Input!$B$3 -> 5 | E52: =+'Summary Input Plant & Dep'!G52 -> 0
B53: 379.1 | C53: M & R EQUIP - CITY GATE | D53: =Input!$B$3 -> 5 | E53: =+'Summary Input Plant & Dep'!G53 -> 3534
B54: 379.11 | C54: M & R EQUIP - EXCHANGE GAS | D54: =Input!$B$3 -> 5 | E54: =+'Summary Input Plant & Dep'!G54 -> 0
B55: 380 | C55: SERVICES | D55: ='Gross Plant in Service'!D55 -> 15 | E55: =+'Summary Input Plant & Dep'!G55 -> 17294953.04
B56: 380 | C56: DIRECT - SERVICES | E56: =+'Summary Input Plant & Dep'!G56 -> 48.96
B57: 380.12 | C57: CSL REPLACEMENT | D57: ='Gross Plant in Service'!D57 -> 15 | E57: =+'Summary Input Plant & Dep'!G57 -> 0
B58: 381 | C58: METERS | D58: ='Gross Plant in Service'!D58 -> 16 | E58: =+'Summary Input Plant & Dep'!G58 -> 937707
B59: 381.1 | C59: AUTOMATIC METER READING | D59: =$D$58 -> 16 | E59: =+'Summary Input Plant & Dep'!G59 -> 1297423
B60: 381.1 | C60: AUTOMATIC METER READING - C&I NET ONLY | D60: 26 | E60: =+'Summary Input Plant & Dep'!G60 -> 306708
B61: 382 | C61: METER INSTALLATIONS | D61: =$D$58 -> 16 | E61: =+'Summary Input Plant & Dep'!G61 -> 825547
B62: 383 | C62: HOUSE REGULATORS | D62: =$D$58 -> 16 | E62: =+'Summary Input Plant & Dep'!G62 -> 298012
B63: 384 | C63: HOUSE REG INSTALLATIONS | D63: =$D$58 -> 16 | E63: =+'Summary Input Plant & Dep'!G63 -> 37255
B64: 385 | C64: IND M&R EQUIPMENT | D64: =$D$39 -> 17 | E64: =+'Summary Input Plant & Dep'!G64 -> 437918.92
B65: 385 | C65: DIRECT - IND M&R EQUIPMENT | E65: =+'Summary Input Plant & Dep'!G65 -> 11470.08
B66: 385.1 | C66: IND M&R EQUIPMENT - LG VOLUME | D66: =$D$39 -> 17 | E66: =+'Summary Input Plant & Dep'!G66 -> 0
B67: 387.1 | C67: OTHER EQUIP DISTRIBUTION | D67: =$D$40 -> 11 | E67: =+'Summary Input Plant & Dep'!G67 -> 0
B68: 387.2 | C68: OTHER EQUIP ODORIZATION | D68: 11 | E68: =+'Summary Input Plant & Dep'!G68 -> 0
B69: 387.42 | C69: OTHER EQUIP RADIO | D69: 11 | E69: =+'Summary Input Plant & Dep'!G69 -> 0
B70: 387.44 | C70: OTHER EQUIP COMMUNICATION | D70: 11 | E70: =+'Summary Input Plant & Dep'!G70 -> 0
B71: 387.46 | C71: OTHER EQUIP CUSTOMER INFO SERVICE | D71: 11 | E71: =+'Summary Input Plant & Dep'!G71 -> 394500.02
B72: 387.45 | C72: DIRECT - OTHER EQUIP CUSTOMER INFO SERVICE | E72: =+'Summary Input Plant & Dep'!G72 -> 1507.98
B73: 387.5 | C73: GPS EQUIPMENT | D73: 11 | E73: =+'Summary Input Plant & Dep'!G73 -> 241930
C74: TOTAL DISTRIBUTION | E74: =SUM(E27:E73) -> 65443818
B76: 389.2 | C76: Land Rights | E76: =+'Summary Input Plant & Dep'!G76 -> 0
B77: 390.1 | C77: Str, Communications | E77: =+'Summary Input Plant & Dep'!G77 -> 1795
B78: 391.1 | C78: OF&E Unspecified | E78: =+'Summary Input Plant & Dep'!G78 -> 100681
B79: 392.11 | C79: OF&E Data Handling Equipment | E79: =+'Summary Input Plant & Dep'!G79 -> 5904
B80: 391.12 | C80: OF&E Information Systems | E80: =+'Summary Input Plant & Dep'!G80 -> 767778
B81: 391.2 | C81: OF&E Air Cond Equip | E81: =+'Summary Input Plant & Dep'!G81 -> 0
B82: 392.2 | C82: Trans Eq Trailers > $1,000 | E82: =+'Summary Input Plant & Dep'!G82 -> 2639
B83: 392.21 | C83: Trans Eq Trailers $1,000 or > | E83: =+'Summary Input Plant & Dep'!G83 -> 0
B84: 393 | C84: Stores Equipment | E84: =+'Summary Input Plant & Dep'!G84 -> 0
B85: 394.1 | C85: Tools, Garage & Service Eq | E85: =+'Summary Input Plant & Dep'!G85 -> 672366
B86: 394.11 | C86: CNG Equip - Stationary | E86: =+'Summary Input Plant & Dep'!G86 -> 0
B87: 394.12 | C87: CNG Equip - Portable | E87: =+'Summary Input Plant & Dep'!G87 -> 0
B88: 394.2 | C88: Shop Equipment | E88: =+'Summary Input Plant & Dep'!G88 -> 0
B89: 394.3 | C89: Tools & Other | E89: =+'Summary Input Plant & Dep'!G89 -> 0
B90: 394.31 | C90: High Pressure Stopping | E90: =+'Summary Input Plant & Dep'!G90 -> 0
B91: 395 | C91: Laboratory Equipment, Gas | E91: =+'Summary Input Plant & Dep'!G91 -> 14006
B92: 396 | C92: Power Operated Equipment | E92: =+'Summary Input Plant & Dep'!G92 -> 12753
B93: 397.1 | C93: Communication Equipment-Telephone | E93: =+'Summary Input Plant & Dep'!G94 -> 0
B94: 397.2 | C94: Communication Equipment-Radio | E94: =+'Summary Input Plant & Dep'!G95 -> 0
B95: 397.4 | C95: Communication Equipment-Other | E95: =+'Summary Input Plant & Dep'!G96 -> 0
B96: 397.5 | C96: Communication Equipment-Telemetering | E96: =+'Summary Input Plant & Dep'!G97 -> 297034
B97: 398 | C97: Miscellaneous Equipment | E97: =+'Summary Input Plant & Dep'!G98 -> 81314
B98: 389-398 | C98: GENERAL PLANT | D98: =D10 -> 11 | E98: =SUM(E76:E97) -> 1956270
C100: Total | E100: =E10+E24+E74+E98 -> 72557195
C102: AMORTIZATION OF NET SALVAGE | D102: =$D$10 -> 11 | E102: ='Cost of Service from Exh 102'!H36 -> 4744712.566
C104: TOTAL DEPRECIATION & AMORTIZATION EXPENSE | E104: =E100+E102 -> 77301907.57

Sheet Rate Base & Taxes
A1: PAGES 1, 2, 9, 10, 11 - Rate of Return by Class - Current & Proposed;
C2: ALLOC. FACTOR | D2: TOTAL CO.
B3: INVESTMENT TAX CREDIT | C3: 12 | D3: =+'Cost of Service from Exh 102'!H44 -> -299568
A5: PAGE 9 - TAXES OTHER THAN INCOME | C5: ALLOC.
A6: ACCT | C6: FACTOR | D6: TOTAL CO.
A7: 408 | B7: FICA | C7: =$C$8 -> 24 | D7: =+'Exh 106 Other Taxes'!H39 -> 2598026.611
A8: 408 | B8: FEDERAL/STATE UNEMPLOYMENT | C8: 24 | D8: =+'Exh 106 Other Taxes'!H40 -> 137971
A9: 408 | B9: PA STATE UNEMPLOYMENT | C9: =$C$8 -> 24 | D9: 0
A10: 408 | B10: PA PROPERTY TAXES | C10: 11 | D10: =+'Exh 106 Other Taxes'!H41 -> 435885
A11: 408 | B11: STATE CAPITAL STOCK TAX | C11: 11 | D11: =+'Exh 106 Other Taxes'!H42 -> 0
A12: 408 | B12: LICENSE AND FRANCHISE TAX | C12: =$C$11 -> 11 | D12: =+'Exh 106 Other Taxes'!H43 -> 275
A13: 408 | B13: STATE SALES AND USE TAX | C13: 19 | D13: =+'Exh 106 Other Taxes'!H44 -> 284465
A14: 408 | B14: OTHER | C14: =$C$13 -> 19 | D14: =+'Exh 106 Other Taxes'!H45 -> 180
A16: PAGE 10 - RATE BASE SUMMARY | C16: ALLOC.
A17: ACCT | C17: FACTOR | D17: TOTAL CO.
A18: 117 | B18: GAS STORED UNDERGROUND - NON CURRENT | C18: 25 | D18: 0
A19: 191 | B19: BASE GAS | C19: =C18 -> 25 | D19: =+'Exh 108 Rate Base Summary'!O18 -> 3794693
A20: 117 | B20: GAS LOST-UNDERGROUND STORAGE | C20: 1 | D20: =+'Exh 108 Rate Base Summary'!O20 -> -163466.81
A21: 154 | B21: MATERIALS & SUPPLIES | C21: 11 | D21: =+'Exh 108 Rate Base Summary'!O24 -> 851388
A22: 164 | B22: GAS STORED UNDERGROUND - FSS | C22: =C19 -> 25 | D22: =+'Exh 108 Rate Base Summary'!O26 -> 50432424
A23: 165 | B23: PREPAYMENTS | C23: 19 | D23: =+'Exh 108 Rate Base Summary'!O25-D24 -> 2338584
A24: 165 | B24: CLOUD BASED ASSETS | C24: 11 | D24: 748422
B25: CASH WORKING CAPITAL - GAS PURCHASES | C25: 4 | D25: 0
B26: CASH WORKING CAPITAL - ALL OTHER | C26: =$C$23 -> 19 | D26: =E26-D25 -> 0
A27: 190 | B27: ACCUMULATED DEF INCOME TAX | C27: 12 | D27: =+'Exh 108 Deferred Taxes'!K24 -> 79055237
A28: 282 | B28: ACCUMULATED DEF INCOME TAX | C28: =$C$27 -> 12 | D28: =+'Exh 108 Deferred Taxes'!K28-D29 -> -460523471
A29: 282 | B29: ACCUMULATED DEF INCOME TAX - C&I NET ONLY | C29: 26 | D29: -263690
A30: 283 | B30: ACCUMULATED DEF INCOME TAX | C30: =$C$27 -> 12 | D30: =+'Exh 108 Deferred Taxes'!K33 -> 0
A31: 235 | B31: CUSTOMER DEPOSITS | C31: 9 | D31: =+'Exh 108 Rate Base Summary'!O37 -> -2838227
A32: 252 | B32: CUSTOMER ADVANCES | C32: =Input!B3 -> 5 | D32: =+'Exh 108 Rate Base Summary'!O40 -> 2551.84
A34: MISCELLANEOUS | D34: TOTAL CO.
B35: RETURN ON RATE BASE | D35: =E47 -> 0.081
B36: REQUESTED RETURN ON EQUITY: | D36: =D46 -> 0.1095
B37: EQUITY CAPITAL: | D37: =C46 -> 0.5234
B38: DEBT RATIO: | D38: =E45 -> 0.0237
B39: EFFECTIVE TAX RATE: | D39: =(D64+D88)-(D64*D88) -> 0.288921
B41: Exh 400 Pg 1 | D41: Cost | E41: Weighted
B42: Type of Capital | C42: Ratios | D42: Rate | E42: Cost
B43: Long-Term Debt | C43: 0.4442 | D43: 0.0511 | E43: =ROUND(C43*D43,4) -> 0.0227
B44: Short-Term Debt | C44: 0.0324 | D44: 0.032 | E44: =ROUND(C44*D44,4) -> 0.001
D45: Weighted Cost | E45: =E43+E44 -> 0.0237
B46: Common Equity | C46: =C47-C43-C44 -> 0.5234 | D46: 0.1095 | E46: =ROUND(C46*D46,4) -> 0.0573
B47: Total | C47: 1 | E47: =SUM(E45:E46) -> 0.081
A49: GROSS CONVERSION FACTOR
B50: OPERATING REVENUE | D50: 1
B51: LESS: UNCOLLECTIBLES | C51: 0.01190535
B52: PLUS: LATE PAYMENTS | C52: 0.00217186
B53: LESS: OCA FEES | C53: 0
B54: LESS: OSBA FEES | C54: 0 | D54: =+C51+C53+C54-C52 -> 0.00973349 | E54: =+D54*D60*-1 -> -0.01326439244
B55: INCOME BEFORE STATE INCOME TAX | D55: =D50-D54 -> 0.99026651
B56: ="LESS: STATE INCOME TAX @ "&FIXED('Rate Base & Taxes'!$D$64*100,2,TRUE)&"%" -> LESS: STATE INCOME TAX @ 9.99% | D56: =+D65 -> 0.06200172 | E56: =+D60*(D56*D55)*-1 -> -0.08367093162
B57: INCOME BEFORE FEDERAL INCOME TAX | D57: =D55-(D55*D65) -> 0.9288682831
B58: ="LESS: FEDERAL INCOME TAX @ "&FIXED('Rate Base & Taxes'!$D$88*100,0,TRUE)&"%" -> LESS: FEDERAL INCOME TAX @ 21% | D58: =ROUND(D88*D57,8) -> 0.19506234 | E58: =+D60*D58*-1 -> -0.2658227858
B59: ADJUSTED OPERATING INCOME | D59: =D57-D58 -> 0.7338059431
B60: GROSS CONVERSION FACTOR | D60: =ROUND(1/D59,8) -> 1.36275811 | E60: =SUM(E54:E58) -> -0.3627581098
E61: =+E60+D60 -> 1
C62: ALLOC.
A63: PAGE 11 - STATE INCOME TAX | C63: FACTOR
B64: STATUTORY STATE INCOME TAX RATE: | D64: 0.0999
B65: EFFECTIVE STATE INCOME TAX RATE: | D65: =0.099-0.03699828 -> 0.06200172
B66: NET OPERATING LOSS DEDUCTION | C66: 12 | D66: =-'Exh 107, pg 17'!H28 -> -481626
B67: PA BONUS DEPRECIATION ADJUSTMENT | C67: =$C$77 -> 12 | D67: ='Exh 107, pg 17'!J24 -> -12561349 | F67: Revenue | G67: 55166683 | H67: 1
F68: Uncollectibles | G68: =ROUND((G67+G69)*C51*-1,9) -> -658205.1008 | H68: =-C51 -> -0.01190535
B69: Flow-Through Adjustments | F69: Late Payment Fee | G69: =+G67*C52 -> 119814.3121 | H69: =+C52 -> 0.00217186
B70: Total Flow Through | D70: ='Exh 107, pg 16 '!K35 -> -38664626.02 | F70: Total State Taxable Revenue | G70: =+G67+G68+G69 -> 54628292.21 | H70: =+H67+H68+H69 -> 0.99026651
C71: Total Flow-Through Adjustments | D71: =SUM(D70:D70) -> -38664626.02
F72: State Income Tax Rate | G72: =+D65 -> 0.06200172 | H72: =+G72 -> 0.06200172
B73: Deferred Adjustments | F73: State Income Tax | G73: =ROUND(G72*G70,0) -> 3387048 | H73: =+H70*H72 -> 0.06139822688
B74: Total Deferred | D74: ='Exh 107, pg 16 '!K51 -> -87635176
C75: Total Deferred Adjustments | D75: =SUM(D74:D74) -> -87635176 | F75: Total Federal Taxable Income | G75: =+G70-G73 -> 51241244.21 | H75: =+H70-H73 -> 0.9288682831
F76: Federal Income Tax Rate | G76: =+D88 -> 0.21 | H76: =+G76 -> 0.21
B77: STATUTORY ADJUSTMENTS | C77: 12 | D77: =D71+D75 -> -126299802 | F77: Federal Income Tax | G77: =+G75*G76 -> 10760661.28 | H77: =+H75*H76 -> 0.1950623395
A79: State Deferred Taxes | F79: Net Income | G79: =+G75-G77 -> 40480582.93 | H79: =+H70-H73-H77 -> 0.7338059437
B80: Net Operating Loss Deduction | D80: 0 | H80: =1/H79 -> 1.362758109
B81: LIFO Inventory Adjustment | D81: ='Exh 107, pg 17'!J38 -> 0
B82: Capitalized Inventory | D82: 0
B83: Customer Advances | D83: ='Exh 107, pg 17'!J44 -> 10162
B84: DEFERRED INCOME TAXES | C84: =C66 -> 12 | D84: =SUM(D80:D83) -> 10162
C86: ALLOC.
A87: PAGE 11 - FEDERAL TAX | C87: FACTOR | D87: TOTAL CO.
B88: FEDERAL TAX RATE: | D88: 0.21
B89: DEFERRED INCOME TAXES | C89: =$C$77 -> 12 | D89: =-D75*D88 -> 18403386.96
B90: TAX REFUND AMORTIZATION | C90: =$C$77 -> 12 | D90: ='Exh 107, pg 16 '!K56 -> 0
B91: FLOW BACK OF EXCESS DEFERRED TAXES | C91: =$C$77 -> 12 | D91: ='Exh 107, pg 16 '!K57 -> -1747266
B92: EFFECT OF CNIT DEFERRED TAX ON FIT | C92: =$C$77 -> 12 | D92: =-(D84*D88) -> -2134.02

Sheet Revenue
A1: PAGES 1/6 - PROFORMA @ PROPOSED RATES | E1: PROPOSED REVENUES (FROM RATE DESIGN WITNESS) FOR FPFTY TME 12/31/2017
C2: ALLOC.
A3: ACCT | C3: FACTOR | D3: TOTAL CO. | E3: =Input!$B$17 -> RSS/RDS | F3: =Input!$B$18 -> SGSS1/SCD1/SGDS1 | G3: =Input!$B$19 -> SGSS2/SCD2/SGDS2 | H3: =Input!$B$20 -> SDS/LGSS | I3: =Input!$B$21 -> LDS/LGSS | J3: =Input!$B$22 -> MLDS
A4: 480/481 | B4: SALES BASE REVENUE | D4: =SUM(E4:J4) -> 291753020 | E4: =N50+N51 -> 245109543 | F4: =O53 -> 27539222 | G4: =P53 -> 16933808 | H4: =Q57 -> 2149847 | I4: =R57 -> 0 | J4: =S54 -> 20600 | P4: =Input!$B$17 -> RSS/RDS | Q4: =Input!$B$18 -> SGSS1/SCD1/SGDS1 | R4: =Input!$B$19 -> SGSS2/SCD2/SGDS2 | S4: =Input!$B$20 -> SDS/LGSS | T4: =Input!$B$21 -> LDS/LGSS | U4: =Input!$B$22 -> MLDS
B5: C&I CHARGE REVENUE | D5: 2558065 | G5: =P158+P160+P161 -> 521588 | H5: =Q162+Q163 -> 1649136 | I5: =R164 -> 345159 | J5: =S165+S159 -> 42182 | N5: DIS REVENUE | P5: =O16+O17+O21 -> 423940021 | Q5: =O18+O23+O25 -> 55912059 | R5: =O19+O24+O26 -> 51440810 | S5: =O27 -> 3268889 | T5: =O28 -> 0
B6: USP REVENUE | D6: =SUM(E6:J6) -> 25010607 | E6: =N63 -> 25010607 | N6: GMB/GTS REVENUE | Q6: =P18+P23 -> 379333 | R6: =P19+P24 -> 1805184 | S6: =P29+P27 -> 17639825 | T6: =P30+P28 -> 17899205 | U6: =P31+P32+P20 -> 1472069
B7: STAS REVENUE | D7: 0 | E7: =N76+N77 -> 0 | F7: =O79 -> 0 | G7: =P79 -> 0 | J7: =S80 -> 0
B8: RIDER CC - CUSTOMER CHOICE | D8: 33856 | E8: =N89+N90 -> 24988 | F8: =O92 -> 4813 | G8: =P92 -> 4055 | N8: TOTAL | P8: =SUM(P5:P6) -> 423940021 | Q8: 56291392 | R8: 53245994 | S8: 20908714 | T8: 17899205 | U8: 1472069
B9: GAS PROCUREMENT REVENUE | D9: 2581692 | E9: =N102+N103 -> 1912126 | F9: =O105 -> 334502 | G9: =P105 -> 281823 | H9: =Q109 -> 53241 | I9: =R109 -> 0
B10: GAS COST REVENUE | D10: 153873118 | E10: =N129+N130 -> 113767356 | F10: =O132 -> 19902150 | G10: =P132 -> 16767888 | H10: =Q136 -> 3167707 | I10: =R136 -> 0 | J10: =J133 -> 268017
B11: MERCHANT FUNCTION CHARGE | D11: 1216174 | E11: =N142+N143 -> 1139022 | F11: =O145 -> 41873 | G11: =P145 -> 35279 | N11: CURRENT RATES | S11: PROPOSED RATES
A12: 489.00 | B12: TRANSPORTATION BASE REVENUE | D12: 121907878 | E12: =N52 -> 61251663 | F12: =O55+O56 -> 9506980 | G12: =P55+P56 -> 18930761 | H12: =Q58 -> 16225331 | I12: =R59 -> 15658687 | J12: =S60 -> 334456 | N12: REVENUE FPFTY TME 12/2019 | S12: REVENUE FPFTY TME 12/2019
B13: USP REVENUE | D13: 6931233 | E13: =N65 -> 6931233 | O13: DIS | P13: GMB/GTS | Q13: TOTAL | T13: DIS | U13: GMB/GTS | V13: TOTAL
B14: STAS REVENUE | D14: 0 | E14: =N78 -> 0 | F14: =O81+O82 -> 0 | G14: =P81+P82 -> 0 | H14: =Q84 -> 0 | I14: =R85 -> 0 | J14: =S86 -> 0
B15: RIDER CC - CUSTOMER CHOICE | D15: 13321 | E15: =N90+N91 -> 6925 | F15: =O94+O95 -> 1643 | G15: =P94+P95 -> 4753
B16: FLEX REVENUE | D16: 5079975 | F16: =O122 -> 2678 | G16: =P122 -> 43793 | H16: =Q124 -> 163647 | I16: =R125 -> 4020861 | J16: =S126 -> 848996 | N16: RSS | O16: =E50+E63+E76+E89+E102+E129+E142 -> 328157221 | Q16: =O16+P16 -> 328157221 | S16: RSS | T16: =$N$50+$N$63+$N$76+$N$89+$N$102+$N$129+$N$142 -> 357721068 | V16: =T16+U16 -> 357721068
B17: GAS COST REVENUE | D17: 9633818 | E17: =N131 -> 6416705 | F17: =O134+O135 -> 1338266 | G17: =P134+P135 -> 1878847 | N17: RCC | O17: =$E$51+$E$64+$E$77+$E$90+$E$103+$E$117+$E$130+$E$143 -> 29242574 | Q17: 29242574 | S17: RCC | T17: =$N$51+$N$64+$N$77+$N$90+$N$103+$N$117+$N$130+$N$143 -> 29242574 | V17: 29242574
B18: MERCHANT FUNCTION CHARGE | D18: 0 | E18: =N144 -> 0 | F18: =O147+O148 -> 0 | G18: =P147+P148 -> 0 | N18: SGSS1 | O18: =$F$53+$F$66+$F$79+$F$92+$F$105+$F$119+$F$132+$F$145-P18 -> 45684049 | P18: 373063 | Q18: 46057112 | S18: SGSS1 | T18: =$O$53+$O$66+$O$79+$O$92+$O$105+$O$119+$O$132+$O$145-U18 -> 47449497 | U18: =P18 -> 373063 | V18: 47822560
A19: 487.00 | B19: FORFEITED DISCOUNTS | C19: =C41 -> 10 | D19: =+'Revenue Exh 103 Sch 7'!F379 -> 1347840 | N19: SGSS2 | O19: =$G$53+$G$66+$G$79+$G$92+$G$105+$G$119+$G$132+$G$145-P19 -> 31540716 | P19: 1754667 | Q19: 33295383 | S19: SGSS2 | T19: =$P$53+$P$66+$P$79+$P$92+$P$105+$P$119+$P$132+$P$145+$P$158-U19 -> 32364066 | U19: =P19 -> 1754667 | V19: 34118733
A20: 488 | B20: MISCELLANEOUS REVENUE | C20: =C42 -> 6 | D20: =+'Revenue Exh 103 Sch 7'!F380 -> 105936.41 | N20: NSS | P20: =$J$54+$J$67+$J$80+$J$93+$J$106+$J$120+$J$133+$J$146 -> 288617 | Q20: 288617 | S20: NSS | U20: =S54+S67+S80+S93+S106+S120+S133+S146+S159 -> 292835 | V20: 292835
A21: 493 | B21: RENTS | C21: =C43 -> 11 | D21: =+'Revenue Exh 103 Sch 7'!F381 -> 9600 | N21: RDS | O21: =$E$52+$E$65+$E$78+$E$91+$E$104+$E$118+$E$131+$E$144 -> 66540226 | Q21: 66540226 | S21: RDS | T21: =$N$52+$N$65+$N$78+$N$91+$N$104+$N$118+$N$131+$N$144 -> 74606526 | V21: 74606526
A22: 495 | B22: OTHER | C22: =C44 -> 6 | D22: =+'Revenue Exh 103 Sch 7'!F384 -> 229067.91
N23: SCD1 | O23: =$F$55+$F$68+$F$81+$F$94+$F$107+$F$121+$F$134+$F$147-P23 -> 8950530 | P23: 6270 | Q23: =O23+P23 -> 8956800 | S23: SCD1 | T23: =$O$55+$O$68+$O$81+$O$94+$O$107+$O$121+$O$134+$O$147-U23 -> 9476044 | U23: =P23 -> 6270 | V23: =T23+U23 -> 9482314
A24: PAGES 2/6 - OPERATING REVENUES @ CURRENT RATES | E24: REVENUES (EXH 103, SCH 1) FOR FPFTY TME 12/31/2017 | N24: SCD2 | O24: =-P24+$G$55+$G$68+$G$81+$G$94+$G$107+$G$121+$G$134+$G$147 -> 4760595 | P24: 50517 | Q24: 4811112 | S24: SCD2 | T24: =$P$55+$P$68+$P$81+$P$94+$P$107+$P$121+$P$134+$P$147+$P$160-U24 -> 4985175 | U24: =P24 -> 50517 | V24: 5035692
C25: ALLOC. | N25: SGDS1 | O25: =$F$56+$F$69+$F$82+$F$95+$F$108+$F$122+$F$135+$F$148 -> 1277480 | Q25: 1277480 | S25: SGDS1 | T25: =$O$56+$O$69+$O$82+$O$95+$O$108+$O$122+$O$135+$O$148 -> 1367253 | V25: 1367253
A26: ACCT | C26: FACTOR | D26: TOTAL CO. | E26: =Input!$B$17 -> RSS/RDS | F26: =Input!$B$18 -> SGSS1/SCD1/SGDS1 | G26: =Input!$B$19 -> SGSS2/SCD2/SGDS2 | H26: =Input!$B$20 -> SDS/LGSS | I26: =Input!$B$21 -> LDS/LGSS | J26: =Input!$B$22 -> MLDS | N26: SGDS2 | O26: =$G$56+$G$69+$G$82+$G$95+$G$108+$G$122+$G$135+$G$148-P26 -> 15139499 | Q26: 15139499 | S26: SGDS2 | T26: =$P$56+$P$69+$P$82+$P$95+$P$108+$P$122+$P$135+$P$148+$P$161 -> 16248170 | V26: 16248170
A27: =A4 -> 480/481 | B27: =B4 -> SALES BASE REVENUE | D27: =SUM(E27:J27) -> 243138783 | E27: =E50 -> 199086099 | F27: =F53 -> 25773774 | G27: =G53 -> 16206338 | H27: =H57 -> 2051972 | I27: =I57 -> 0 | J27: =J54 -> 20600 | N27: LGSS1 | O27: =$H$57+$H$70+$H$83+$H$96+$H$109+$H$123+$H$136+$H$149-P27 -> 3268889 | P27: =813367+1190664 -> 2004031 | Q27: 5272920 | S27: LGSS1 | T27: =$Q$57+$QH$70+$Q$83+$Q$96+$Q$109+$Q$123+$Q$136+$Q$149+$Q$162-U27 -> 3628197 | U27: =P27 -> 2004031 | V27: 5632228
B28: =B6 -> USP REVENUE | D28: 22946588 | E28: =E63 -> 22946588 | N28: LGSS2 | O28: =$I$57+$I$70+$I$83+$I$96+$I$109+$I$123+$I$136+$I$149-P28 -> 0 | P28: 0 | Q28: 0 | S28: LGSS2 | T28: =$R$57+$R$70+$R$83+$R$96+$R$109+$R$123+$R$136+$R$149-U28 -> 0 | U28: =P28 -> 0 | V28: 0
B29: STAS REVENUE | D29: 0 | E29: =E76+E77 -> 0 | F29: =F79 -> 0 | G29: =G79 -> 0 | H29: =H83 -> 0 | I29: =I83 -> 0 | J29: =J80 -> 0 | N29: SDS | P29: =$H$58+$H$71+$H$84+$H$97+$H$110+$H$124+$H$137+$H$150 -> 15635794 | Q29: 15635794 | S29: SDS | U29: =$Q$58+$Q$71+$Q$84+$Q$97+$Q$110+$Q$124+$Q$137+$Q$150+$Q$163 -> 17776681 | V29: 17776681
B30: RIDER CC - CUSTOMER CHOICE | D30: 33856 | E30: =E89+E90 -> 24988 | F30: =F92 -> 4813 | G30: =G92 -> 4055 | N30: LDS | P30: =$I$59+$I$72+$I$85+$I$98+$I$111+$I$125+$I$138+$I$151 -> 17899205 | Q30: 17899205 | S30: LDS | U30: =$R$59+$R$72+$R$85+$R$98+$R$111+$R$125+$R$138+$R$151+$R$164 -> 20024707 | V30: 20024707
B31: GAS PROCUREMENT REVENUE | D31: 2581692 | E31: =E102+E103 -> 1912126 | F31: =F105 -> 334502 | G31: =G105 -> 281823 | H31: =H109 -> 53241 | I31: =I109 -> 0 | N31: MLDS,I | P31: =$J$60+$J$73+$J$86+$J$99+$J$112+$J$126+$J$139+$J$152-P32 -> 399245 | Q31: 399245 | S31: MLDS,I | U31: =$S$60+$S$73+$S$86+$S$99+$S$126+$S$139+$S$152-U32+$S$165 -> 424554 | V31: 424554
B32: GAS COST REVENUE | D32: 153873118 | E32: =E129+E130 -> 113767356 | F32: =F132 -> 19902150 | G32: =G132 -> 16767888 | H32: =H136 -> 3167707 | I32: =I136 -> 0 | J32: =J133 -> 268017 | N32: MLDS,II | P32: ='Revenue Exh 103 Sch 1'!F319 -> 784207 | Q32: 784207 | S32: MLDS,II | U32: ='Revenue Exh 103 Sch 7'!F335 -> 796862 | V32: 796862
B33: MERCHANT FUNCTION CHARGE | D33: 1216174 | E33: =E142+E143 -> 1139022 | F33: =F145 -> 41873 | G33: =G145 -> 35279 | H33: =H149 -> 0 | I33: =I149 -> 0
A34: =A12 -> 489.00 | B34: TRANSPORTATION BASE REVENUE | D34: 128372847 | E34: =E51+E52 -> 72280984 | F34: =F55+F56 -> 8890928 | G34: =G55+G56 -> 18020338 | H34: =H58 -> 15403016 | I34: =I59 -> 13678445 | J34: =J60 -> 99136
B35: USP REVENUE | D35: 6359228 | E35: =E65 -> 6359228
B36: STAS REVENUE | D36: 0 | E36: =E78 -> 0 | F36: =F81+F82 -> 0 | G36: =G81+G82 -> 0 | H36: =H84 -> 0 | I36: =I85 -> 0 | J36: =J86 -> 0 | N36: TOTAL | O36: =SUM(O16:O32) -> 534561779 | P36: =SUM(P16:P32) -> 39195616 | Q36: =SUM(Q16:Q32) -> 573757395 | S36: TOTAL | T36: =SUM(T16:T32) -> 577088570 | U36: =SUM(U16:U32) -> 43504187 | V36: =SUM(V16:V32) -> 620592757
B37: RIDER CC - CUSTOMER CHOICE | D37: 13321 | E37: =E90+E91 -> 6925 | F37: =F94+F95 -> 1643 | G37: =G94+G95 -> 4753
B38: FLEX REVENUE | D38: =SUM(E38:J38) -> 5587970 | F38: =F122 -> 3443 | G38: =G122 -> 46673 | H38: =H124 -> 232778 | I38: =I125 -> 4220760 | J38: =J126 -> 1084316 | Q38: =IF(Q36<>SUM(D27:D40),"Out of Balance","") ->  | V38: =IF(V36<>SUM(D4:D18),"Out of Balance","") -> 
B39: GAS COST REVENUE | D39: =SUM(E39:J39) -> 9633818 | E39: =E131 -> 6416705 | F39: =F134+F135 -> 1338266 | G39: =G134+G135 -> 1878847
B40: MERCHANT FUNCTION CHARGE | D40: =SUM(E40:J40) -> 0 | E40: =E144 -> 0 | F40: =F147+F148 -> 0 | G40: =G147+G148 -> 0 | N40: Forfeited Discount Rate: | P40: =ROUND(1192278/Q36,9) -> 0.002078018
A41: =A19 -> 487.00 | B41: FORFEITED DISCOUNTS | C41: 10 | D41: ='Revenue Exh 103 Sch 1'!F353 -> 1246120 | V41: =+V36-SUM(D4:D18) -> 0
A42: =A20 -> 488 | B42: MISCELLANEOUS REVENUE | C42: 6 | D42: ='Revenue Exh 103 Sch 1'!F354 -> 105936.41
A43: =A21 -> 493 | B43: RENTS | C43: 11 | D43: ='Revenue Exh 103 Sch 1'!F355 -> 9600
A44: =A22 -> 495 | B44: OTHER | C44: 6 | D44: =SUM('Revenue Exh 103 Sch 1'!F356:F359) -> 229067.91
C47: CURRENT (exh 103) | L47: PROPOSED (from Rate Design Witness)
E48: =Input!$B$17 -> RSS/RDS | F48: =Input!$B$18 -> SGSS1/SCD1/SGDS1 | G48: =Input!$B$19 -> SGSS2/SCD2/SGDS2 | H48: =Input!$B$20 -> SDS/LGSS | I48: =Input!$B$21 -> LDS/LGSS | J48: =Input!$B$22 -> MLDS | N48: =Input!$B$17 -> RSS/RDS | O48: =Input!$B$18 -> SGSS1/SCD1/SGDS1 | P48: =Input!$B$19 -> SGSS2/SCD2/SGDS2 | Q48: =Input!$B$20 -> SDS/LGSS | R48: =Input!$B$21 -> LDS/LGSS | S48: =Input!$B$22 -> MLDS
C49: BASE REVENUE | L49: BASE REVENUE
B50: =SUM(E50:J60) -> 371511630 | D50: RSS | E50: ='Revenue Exh 103 Sch 1'!F15+'Revenue Exh 103 Sch 1'!F17 -> 199086099 | M50: RSS | N50: ='Revenue Exh 103 Sch 7'!F15+'Revenue Exh 103 Sch 7'!F17 -> 226585927 | T50: =SUM(N50:S60) -> 413660898
D51: RCC | E51: ='Revenue Exh 103 Sch 1'!F30+'Revenue Exh 103 Sch 1'!F32 -> 18523616 | M51: RCC | N51: ='Revenue Exh 103 Sch 7'!F30+'Revenue Exh 103 Sch 7'!F32+'Revenue Exh 103 Sch 7'!F33 -> 18523616
D52: RDS | E52: ='Revenue Exh 103 Sch 1'!F165+'Revenue Exh 103 Sch 1'!F167 -> 53757368 | M52: RDS | N52: ='Revenue Exh 103 Sch 7'!F176+'Revenue Exh 103 Sch 7'!F178 -> 61251663
D53: SGSS | F53: ='Revenue Exh 103 Sch 1'!F44+'Revenue Exh 103 Sch 1'!F46 -> 25773774 | G53: ='Revenue Exh 103 Sch 1'!F59+'Revenue Exh 103 Sch 1'!F61 -> 16206338 | M53: SGSS | O53: ='Revenue Exh 103 Sch 7'!F45+'Revenue Exh 103 Sch 7'!F47 -> 27539222 | P53: ='Revenue Exh 103 Sch 7'!F60+'Revenue Exh 103 Sch 7'!F62 -> 16933808
D54: NSS | J54: ='Revenue Exh 103 Sch 1'!F85+'Revenue Exh 103 Sch 1'!F87 -> 20600 | M54: NSS | S54: ='Revenue Exh 103 Sch 7'!F86+'Revenue Exh 103 Sch 7'!F88 -> 20600
D55: SCD | F55: ='Revenue Exh 103 Sch 1'!F179+'Revenue Exh 103 Sch 1'!F181 -> 7665527 | G55: ='Revenue Exh 103 Sch 1'!F192+'Revenue Exh 103 Sch 1'!F194 -> 3907702 | M55: SCD | O55: ='Revenue Exh 103 Sch 7'!F190+'Revenue Exh 103 Sch 7'!F192 -> 8191041 | P55: ='Revenue Exh 103 Sch 7'!F202+'Revenue Exh 103 Sch 7'!F204 -> 4082424
D56: SGDS | F56: ='Revenue Exh 103 Sch 1'!F205+'Revenue Exh 103 Sch 1'!F208+'Revenue Exh 103 Sch 1'!F210 -> 1225401 | G56: ='Revenue Exh 103 Sch 1'!F232+'Revenue Exh 103 Sch 1'!F235+'Revenue Exh 103 Sch 1'!F237 -> 14112636 | M56: SGDS | O56: ='Revenue Exh 103 Sch 7'!F217+'Revenue Exh 103 Sch 7'!F220+'Revenue Exh 103 Sch 7'!F222 -> 1315939 | P56: ='Revenue Exh 103 Sch 7'!F244+'Revenue Exh 103 Sch 7'!F247+'Revenue Exh 103 Sch 7'!F249 -> 14848337
D57: LGS | H57: ='Revenue Exh 103 Sch 1'!F98+'Revenue Exh 103 Sch 1'!F99+'Revenue Exh 103 Sch 1'!F105+'Revenue Exh 103 Sch 1'!F106 -> 2051972 | I57: =SUM('Revenue Exh 103 Sch 1'!F100:F103)+SUM('Revenue Exh 103 Sch 1'!F107:F110) -> 0 | M57: LGS | Q57: =SUM('Revenue Exh 103 Sch 7'!F100:F101)+SUM('Revenue Exh 103 Sch 7'!F107:F108) -> 2149847 | R57: =SUM('Revenue Exh 103 Sch 7'!F102:F105)+SUM('Revenue Exh 103 Sch 7'!F109:F112) -> 0
D58: SDS | H58: ='Revenue Exh 103 Sch 1'!F249+'Revenue Exh 103 Sch 1'!F250+'Revenue Exh 103 Sch 1'!F252+'Revenue Exh 103 Sch 1'!F253 -> 15403016 | M58: SDS | Q58: ='Revenue Exh 103 Sch 7'!F262+'Revenue Exh 103 Sch 7'!F263+'Revenue Exh 103 Sch 7'!F265+'Revenue Exh 103 Sch 7'!F266 -> 16225331
D59: LDS | I59: ='Revenue Exh 103 Sch 1'!F266+'Revenue Exh 103 Sch 1'!F272 -> 13678445 | M59: LDS | R59: ='Revenue Exh 103 Sch 7'!F280+'Revenue Exh 103 Sch 7'!F286 -> 15658687
D60: MLDS | J60: ='Revenue Exh 103 Sch 1'!F286+'Revenue Exh 103 Sch 1'!F288+'Revenue Exh 103 Sch 1'!F310+'Revenue Exh 103 Sch 1'!F315 -> 99136 | M60: MLDS | S60: =SUM('Revenue Exh 103 Sch 7'!F296:F302)+SUM('Revenue Exh 103 Sch 7'!F323:F329) -> 334456
C62: USP REVENUE | L62: USP REVENUE
B63: =SUM(E63:J73) -> 29305816 | D63: RSS | E63: ='Revenue Exh 103 Sch 1'!F18 -> 22946588 | M63: RSS | N63: ='Revenue Exh 103 Sch 7'!F18 -> 25010607 | T63: =SUM(N63:S73) -> 31941840
D64: RCC | E64: 0 | M64: RCC | N64: 0
D65: RDS | E65: ='Revenue Exh 103 Sch 1'!F168 -> 6359228 | M65: RDS | N65: ='Revenue Exh 103 Sch 7'!F179 -> 6931233
D66: SGSS | F66: 0 | G66: 0 | M66: SGSS | O66: 0 | P66: 0
D67: NSS | J67: 0 | M67: NSS | S67: 0
D68: SCD | F68: 0 | G68: 0 | M68: SCD | O68: 0 | P68: 0
D69: SGDS | F69: 0 | G69: 0 | M69: SGDS | O69: 0 | P69: 0
D70: LGS | H70: 0 | I70: 0 | M70: LGS | Q70: 0 | R70: 0
D71: SDS | H71: 0 | M71: SDS | Q71: 0
D72: LDS | I72: 0 | M72: LDS | R72: 0
D73: MLDS | J73: 0 | M73: MLDS | S73: 0
C75: STAS REVENUE | L75: STAS REVENUE | T75: =SUM(N75:S85) -> 0
B76: =SUM(E76:J86) -> 0 | D76: RSS | E76: ='Revenue Exh 103 Sch 1'!F22 -> 0 | M76: RSS | N76: ='Revenue Exh 103 Sch 7'!F22 -> 0 | T76: =IF(T75<>('Revenue Exh 103 Sch 7'!F131+'Revenue Exh 103 Sch 7'!F140+'Revenue Exh 103 Sch 7'!F149+'Revenue Exh 103 Sch 7'!F155+'Revenue Exh 103 Sch 7'!F342+'Revenue Exh 103 Sch 7'!F349+'Revenue Exh 103 Sch 7'!F362+'Revenue Exh 103 Sch 7'!F367),"Out of Balance","") -> 
D77: RCC | E77: ='Revenue Exh 103 Sch 1'!F35 -> 0 | M77: RCC | N77: ='Revenue Exh 103 Sch 7'!F36 -> 0
D78: RDS | E78: ='Revenue Exh 103 Sch 1'!F171 -> 0 | M78: RDS | N78: ='Revenue Exh 103 Sch 7'!F182 -> 0
D79: SGSS | F79: ='Revenue Exh 103 Sch 1'!F50 -> 0 | G79: ='Revenue Exh 103 Sch 1'!F65 -> 0 | M79: SGSS | O79: ='Revenue Exh 103 Sch 7'!F51 -> 0 | P79: ='Revenue Exh 103 Sch 7'!F67 -> 0
D80: NSS | J80: ='Revenue Exh 103 Sch 1'!F89 -> 0 | M80: NSS | S80: ='Revenue Exh 103 Sch 7'!F91 -> 0
D81: SCD | F81: ='Revenue Exh 103 Sch 1'!F35 -> 0 | G81: ='Revenue Exh 103 Sch 1'!F197 -> 0 | M81: SCD | O81: ='Revenue Exh 103 Sch 7'!F195 -> 0 | P81: ='Revenue Exh 103 Sch 7'!F209 -> 0
D82: SGDS | F82: ='Revenue Exh 103 Sch 1'!F213 -> 0 | G82: ='Revenue Exh 103 Sch 1'!F240 -> 0 | M82: SGDS | O82: ='Revenue Exh 103 Sch 7'!F225 -> 0 | P82: ='Revenue Exh 103 Sch 7'!F252 -> 0
D83: LGS | H83: ='Revenue Exh 103 Sch 1'!F113 -> 0 | I83: ='Revenue Exh 103 Sch 1'!F114 -> 0 | M83: LGS | Q83: ='Revenue Exh 103 Sch 7'!F120 -> 0 | R83: ='Revenue Exh 103 Sch 7'!F121 -> 0
D84: SDS | H84: ='Revenue Exh 103 Sch 1'!F255 -> 0 | M84: SDS | Q84: ='Revenue Exh 103 Sch 7'!F268 -> 0
D85: LDS | I85: ='Revenue Exh 103 Sch 1'!F274 -> 0 | M85: LDS | R85: ='Revenue Exh 103 Sch 7'!F288 -> 0
D86: MLDS | J86: ='Revenue Exh 103 Sch 1'!F290+'Revenue Exh 103 Sch 1'!F317 -> 0 | M86: MLDS | S86: ='Revenue Exh 103 Sch 7'!F304+'Revenue Exh 103 Sch 7'!F332 -> 0 | T86: =SUM(N75:S86) -> 0
C88: RIDER CC - CUSTOMER CHOICE | L88: RIDER CC - CUSTOMER CHOICE
B89: =SUM(E89:J99) -> 47177 | D89: RSS | E89: ='Revenue Exh 103 Sch 1'!F19 -> 24988 | M89: RSS | N89: ='Revenue Exh 103 Sch 7'!F19 -> 24988 | T89: =SUM(N89:S99) -> 47177
D90: RCC | E90: 0 | M90: RCC | N90: 0
D91: RDS | E91: ='Revenue Exh 103 Sch 1'!F169 -> 6925 | M91: RDS | N91: ='Revenue Exh 103 Sch 7'!F180 -> 6925
D92: SGSS | F92: ='Revenue Exh 103 Sch 1'!F47 -> 4813 | G92: ='Revenue Exh 103 Sch 1'!F62 -> 4055 | M92: SGSS | O92: ='Revenue Exh 103 Sch 7'!F48 -> 4813 | P92: ='Revenue Exh 103 Sch 7'!F63 -> 4055
D93: NSS | J93: 0 | M93: NSS | S93: 0
D94: SCD | F94: ='Revenue Exh 103 Sch 1'!F182 -> 1392 | G94: ='Revenue Exh 103 Sch 1'!F195 -> 974 | M94: SCD | O94: ='Revenue Exh 103 Sch 7'!F193 -> 1392 | P94: ='Revenue Exh 103 Sch 7'!F206 -> 974
D95: SGDS | F95: ='Revenue Exh 103 Sch 1'!F211 -> 251 | G95: ='Revenue Exh 103 Sch 1'!F238 -> 3779 | M95: SGDS | O95: ='Revenue Exh 103 Sch 7'!F223 -> 251 | P95: ='Revenue Exh 103 Sch 7'!F250 -> 3779
D96: LGS | H96: 0 | I96: 0 | M96: LGS | Q96: 0 | R96: 0
D97: SDS | H97: 0 | M97: SDS | Q97: 0
D98: LDS | I98: 0 | M98: LDS | R98: 0
D99: MLDS | J99: 0 | M99: MLDS | S99: 0
C101: GAS PROCUREMENT CHARGE | L101: GAS PROCUREMENT CHARGE
B102: =SUM(E102:J112) -> 2581692 | D102: RSS | E102: ='Revenue Exh 103 Sch 1'!F20 -> 1736674 | M102: RSS | N102: ='Revenue Exh 103 Sch 7'!F20 -> 1736674 | T102: =SUM(N102:S112) -> 2581692
D103: RCC | E103: ='Revenue Exh 103 Sch 1'!F33 -> 175452 | M103: RCC | N103: ='Revenue Exh 103 Sch 1'!F33 -> 175452
D104: RDS | E104: 0 | M104: RDS | N104: 0
D105: SGSS | F105: ='Revenue Exh 103 Sch 1'!F48 -> 334502 | G105: ='Revenue Exh 103 Sch 1'!F63 -> 281823 | M105: SGSS | O105: ='Revenue Exh 103 Sch 7'!F49 -> 334502 | P105: ='Revenue Exh 103 Sch 7'!F64 -> 281823
D106: NSS | J106: 0 | M106: NSS | S106: 0
D107: SCD | F107: 0 | G107: 0 | M107: SCD | O107: 0 | P107: 0
D108: SGDS | F108: 0 | G108: 0 | M108: SGDS | O108: 0 | P108: 0
D109: LGS | H109: ='Revenue Exh 103 Sch 1'!F111 -> 53241 | I109: ='Revenue Exh 103 Sch 1'!F112 -> 0 | M109: LGS | Q109: ='Revenue Exh 103 Sch 7'!F115 -> 53241 | R109: ='Revenue Exh 103 Sch 7'!F116 -> 0
D110: SDS | H110: 0 | M110: SDS | Q110: 0
D111: LDS | I111: 0 | M111: LDS | R111: 0
D112: MLDS | J112: 0 | M112: MLDS | S112: 0
C114: FLEXED REVENUE | L114: FLEXED REVENUE
B115: =SUM(E115:J126) -> 5587970 | D115: RSS | E115: 0 | M115: RSS | N115: 0 | T115: =SUM(N115:S126) -> 5079975
B116: =IF(B115<>('Revenue Exh 103 Sch 1'!F318+'Revenue Exh 103 Sch 1'!F291+'Revenue Exh 103 Sch 1'!F275+'Revenue Exh 103 Sch 1'!F256+'Revenue Exh 103 Sch 1'!F242+'Revenue Exh 103 Sch 1'!F215),"Out of Balance","") ->  | D116: RDGSS | E116: 0 | M116: RDGSS | N116: 0 | T116: =IF(T115<>('Revenue Exh 103 Sch 7'!F227+'Revenue Exh 103 Sch 7'!F254+'Revenue Exh 103 Sch 7'!F269+'Revenue Exh 103 Sch 7'!F289+'Revenue Exh 103 Sch 7'!F305+'Revenue Exh 103 Sch 7'!F333),"Out of Balance","") -> 
D117: RCC | E117: 0 | M117: RCC | N117: 0
D118: RDS | E118: 0 | M118: RDS | N118: 0
D119: SGSS | F119: 0 | G119: 0 | M119: SGSS | O119: 0 | P119: 0
D120: NSS | J120: 0 | M120: NSS | S120: 0
D121: SCD | F121: 0 | G121: 0 | M121: SCD | O121: 0 | P121: 0
D122: SGDS | F122: ='Revenue Exh 103 Sch 1'!F215 -> 3443 | G122: ='Revenue Exh 103 Sch 1'!F242 -> 46673 | M122: SGDS | O122: ='Revenue Exh 103 Sch 7'!F227 -> 2678 | P122: ='Revenue Exh 103 Sch 7'!F254 -> 43793
D123: LGS | H123: 0 | I123: 0 | M123: LGS | Q123: 0 | R123: 0
D124: SDS | H124: ='Revenue Exh 103 Sch 1'!F256 -> 232778 | M124: SDS | Q124: ='Revenue Exh 103 Sch 7'!F269 -> 163647
D125: LDS | I125: ='Revenue Exh 103 Sch 1'!F275 -> 4220760 | M125: LDS | R125: ='Revenue Exh 103 Sch 7'!F289 -> 4020861
D126: MLDS | J126: ='Revenue Exh 103 Sch 1'!F291+'Revenue Exh 103 Sch 1'!F318 -> 1084316 | M126: MLDS | S126: ='Revenue Exh 103 Sch 7'!F305+'Revenue Exh 103 Sch 7'!F333 -> 848996
C128: GAS COST REVENUE | L128: GAS COST REVENUE
B129: =SUM(E129:J139) -> 163506936 | D129: RSS | E129: ='Revenue Exh 103 Sch 1'!F24 -> 103328364 | M129: RSS | N129: ='Revenue Exh 103 Sch 7'!F24 -> 103328364 | T129: =SUM(N129:S139) -> 163506936
D130: RCC | E130: ='Revenue Exh 103 Sch 1'!F37 -> 10438992 | M130: RCC | N130: ='Revenue Exh 103 Sch 7'!F38 -> 10438992
D131: RDS | E131: ='Revenue Exh 103 Sch 1'!F173 -> 6416705 | M131: RDS | N131: ='Revenue Exh 103 Sch 7'!F184 -> 6416705
D132: SGSS | F132: ='Revenue Exh 103 Sch 1'!F52 -> 19902150 | G132: ='Revenue Exh 103 Sch 1'!F67 -> 16767888 | M132: SGSS | O132: ='Revenue Exh 103 Sch 7'!F53 -> 19902150 | P132: ='Revenue Exh 103 Sch 7'!F69 -> 16767888
D133: NSS | J133: ='Revenue Exh 103 Sch 1'!F91+'Revenue Exh 103 Sch 1'!F92 -> 268017 | M133: NSS | S133: ='Revenue Exh 103 Sch 7'!F93+'Revenue Exh 103 Sch 7'!F94 -> 268017
D134: SCD | F134: ='Revenue Exh 103 Sch 1'!F186 -> 1289881 | G134: ='Revenue Exh 103 Sch 1'!F199 -> 902436 | M134: SCD | O134: ='Revenue Exh 103 Sch 7'!F197 -> 1289881 | P134: ='Revenue Exh 103 Sch 7'!F211 -> 902436
D135: SGDS | F135: ='Revenue Exh 103 Sch 1'!F216 -> 48385 | G135: ='Revenue Exh 103 Sch 1'!F243 -> 976411 | M135: SGDS | O135: ='Revenue Exh 103 Sch 7'!F228 -> 48385 | P135: ='Revenue Exh 103 Sch 7'!F256 -> 976411
D136: LGS | H136: ='Revenue Exh 103 Sch 1'!F116 -> 3167707 | I136: ='Revenue Exh 103 Sch 1'!F117 -> 0 | M136: LGS | Q136: ='Revenue Exh 103 Sch 7'!F123 -> 3167707 | R136: ='Revenue Exh 103 Sch 7'!F124 -> 0
D137: SDS | H137: 0 | M137: SDS | Q137: 0
D138: LDS | I138: 0 | M138: LDS | R138: 0
D139: MLDS | J139: 0 | M139: MLDS | S139: 0
C141: MERCHANT FUNCTION CHARGE | L141: MERCHANT FUNCTION CHARGE
B142: =SUM(E142:J152) -> 1216174 | D142: RSS | E142: ='Revenue Exh 103 Sch 1'!F25 -> 1034508 | M142: RSS | N142: ='Revenue Exh 103 Sch 7'!F25 -> 1034508 | T142: =SUM(N142:S152) -> 1216174
D143: RCC | E143: ='Revenue Exh 103 Sch 1'!F38 -> 104514 | M143: RCC | N143: ='Revenue Exh 103 Sch 7'!F39 -> 104514
D144: RDS | E144: 0 | M144: RDS | N144: 0
D145: SGSS | F145: ='Revenue Exh 103 Sch 1'!F53 -> 41873 | G145: ='Revenue Exh 103 Sch 1'!F68 -> 35279 | M145: SGSS | O145: ='Revenue Exh 103 Sch 7'!F54 -> 41873 | P145: ='Revenue Exh 103 Sch 7'!F70 -> 35279
D146: NSS | J146: 0 | M146: NSS | S146: 0
D147: SCD | F147: 0 | G147: 0 | M147: SCD | O147: 0 | P147: 0
D148: SGDS | F148: 0 | G148: 0 | M148: SGDS | O148: 0 | P148: 0
D149: LGS | H149: 0 | I149: 0 | M149: LGS | Q149: 0 | R149: 0
D150: SDS | H150: 0 | M150: SDS | Q150: 0
D151: LDS | I151: 0 | M151: LDS | R151: 0
B152: =SUM(B49:B151) -> 573757395 | D152: MLDS | J152: 0 | M152: MLDS | S152: 0
B153: =IF(B152<>'Revenue Exh 103 Sch 1'!F348,"Out of Balance","") -> 
L154: C&I NETWORK CHARGE
M155: RSS | N155: 0 | T155: =SUM(N155:S165) -> 2558065
M156: RCC | N156: 0
M157: RDS | N157: 0
M158: SGSS | O158: 0 | P158: ='Revenue Exh 103 Sch 7'!F65 -> 95880
M159: NSS | S159: ='Revenue Exh 103 Sch 7'!F89 -> 4218
M160: SCD | O160: 0 | P160: ='Revenue Exh 103 Sch 7'!F207 -> 49858
M161: SGDS | O161: 0 | P161: ='Revenue Exh 103 Sch 7'!F255 -> 375850
M162: LGS | Q162: ='Revenue Exh 103 Sch 7'!F117 -> 261433 | R162: 0
M163: SDS | Q163: ='Revenue Exh 103 Sch 7'!F270 -> 1387703
M164: LDS | R164: ='Revenue Exh 103 Sch 7'!F290 -> 345159
M165: MLDS | S165: ='Revenue Exh 103 Sch 7'!F306+'Revenue Exh 103 Sch 7'!F334 -> 37964
T167: =SUM(T49:T165) -> 620592757

Sheet O&M Exp
A1: PAGES 7 & 8 - O & M EXPENSES
C2: ALLOC. FACTOR | D2: Annualized TME December 31, 2019
A3: GAS SUPPLY
B4: GAS PURCHASED COST
A5: 807 | B5: GAS PROCUREMENT EXPENSE | C5: 4 | D5: =+Revenue!D9 -> 2581692
A6: 807 | B6: PURCHASED GAS EXPENSE | C6: 4 | D6: =SUMIF($B$91:$B$1252,A6,$E$91:$E$1252)-D5 -> -1551614
A8: UNDERGROUND STORAGE OPERATIONS
A9: 816 | B9: WELLS | C9: 25 | D9: =SUMIF($B$91:$B$1252,A9,$E$91:$E$1252) -> 0
A10: 817 | B10: LINES | C10: =$C$9 -> 25 | D10: 0
A11: 818 | B11: COMPRESSOR STATION | C11: 25 | D11: 0
A12: 820 | B12: M & R | C12: 25 | D12: 124072
A13: 821 | B13: PURIFICATION | C13: 25 | D13: 0
A14: 823 | B14: GAS LOSSES | C14: 25 | D14: 1322
A15: 825 | B15: STORAGE WELL ROYALTIES | C15: 25 | D15: 5199
A17: UNDERGROUND STORAGE MAINTENANCE
A18: 832 | B18: WELLS | C18: =$C$9 -> 25 | D18: =SUMIF($B$91:$B$1252,A18,$E$91:$E$1252) -> 0
A19: 834 | B19: COMPRESSOR STATION | C19: =$C$9 -> 25 | D19: =SUMIF($B$91:$B$1252,A19,$E$91:$E$1252) -> 0
A20: 836 | B20: PURIFICATION | C20: =$C$9 -> 25 | D20: =SUMIF($B$91:$B$1252,A20,$E$91:$E$1252) -> 0
A21: 840 | B21: OTHER STORAGE - OPERATION SUPERV - ENG | C21: =$C$9 -> 25 | D21: =SUMIF($B$91:$B$1252,A21,$E$91:$E$1252) -> 0
A23: DISTRIBUTION OPERATIONS
A24: 870 | B24: SUPERVISION & ENGINEERING | C24: 18 | D24: =SUMIF($B$91:$B$1252,A24,$E$91:$E$1252) -> 8084222
A25: 871 | B25: LOAD DISPATCHING | C25: 13 | D25: 160895
A26: 874 | B26: MAINS & SERVICES | C26: 14 | D26: 18342149
A27: 875 | B27: M & R - GENERAL | C27: =$C$25 -> 13 | D27: 535041
A28: 876 | B28: M & R - INDUSTRIAL | C28: 17 | D28: 282622
A29: 878 | B29: METERS & HOUSE REGULATORS | C29: 23 | D29: 2617608
A30: 879 | B30: CUSTOMER INSTALLATIONS | C30: 15 | D30: 6830672
A31: 880 | B31: OTHER | C31: =$C$24 -> 18 | D31: 3800938
A32: 881 | B32: RENTS | C32: =$C$24 -> 18 | D32: -27695
A34: DISTRIBUTION MAINTENANCE
A35: 885 | B35: SUPERVISION & ENGINEERING | C35: =$C$24 -> 18 | D35: =SUMIF($B$91:$B$1252,A35,$E$91:$E$1252) -> 138648
A36: 886 | B36: STRUCTURES AND IMPROVEMENTS | C36: =C25 -> 13 | D36: 166985
A37: 887 | B37: MAINS | C37: =$C$25 -> 13 | D37: 11917466
A38: 889 | B38: M & R - GENERAL | C38: =$C$25 -> 13 | D38: 912321
A39: 890 | B39: M & R - INDUSTRIAL | C39: =$C$28 -> 17 | D39: 150902
A40: 892 | B40: SERVICES | C40: 15 | D40: 7471330
A41: 893 | B41: METERS & HOUSE REGULATORS | C41: =$C$29 -> 23 | D41: 505241
A42: 894 | B42: OTHER EQUIPMENT | C42: =$C$24 -> 18 | D42: 963782
A44: CUSTOMER ACCOUNTS
A45: 901 | B45: SUPERVISION | C45: =$C$46 -> 6 | D45: =SUMIF($B$91:$B$1252,A45,$E$91:$E$1252) -> 0
A46: 902 | B46: METER READING | C46: 6 | D46: =SUMIF($B$91:$B$1252,A46,$E$91:$E$1252) -> 686852
A47: 903 | B47: CUSTOMER RECORDS AND COLLECTION EXPENSES | C47: =$C$46 -> 6 | D47: =SUMIF($B$91:$B$1252,A47,$E$91:$E$1252)-D48 -> 7794148
A48: 903 | B48: INTEREST ON CUSTOMER DEPOSITS | C48: 9 | D48: =E1251 -> 108514
A49: 904 | B49: UNCOLLECTIBLES-DIS REVENUE | C49: 7 | D49: =E1245 -> 4410259
A50: 904 | B50: UNCOLLECTIBLES-GMB/GTS REVENUE | C50: 8 | D50: =E1246 -> 323417
A51: 904 | B51: UNCOLLECTIBLES-UNBUNDLED GAS | C51: 23 | D51: =E1247+E1248 -> 1216174
A52: 904 | B52: DIRECT USP UNCOLLECTIBLES | D52: =E1249 -> 29305816
A53: 905 | B53: MISCELLANEOUS | C53: =$C$46 -> 6 | D53: =SUMIF($B$91:$B$1252,A53,$E$91:$E$1252) -> 3951
A54: 921 | B54: OFFICE SUPPLIES & EXPENSES | C54: =$C$46 -> 6 | D54: 0
A56: CUSTOMER ASSISTANCE
A57: 907 | B57: SUPERVISION | C57: =$C$46 -> 6 | D57: =SUMIF($B$91:$B$1252,A57,$E$91:$E$1252) -> 0
A58: 908 | B58: CUSTOMER ASSISTANCE | C58: 6 | D58: =SUMIF($B$91:$B$1252,A58,$E$91:$E$1252) -> 20892
A59: 909 | B59: INFORMATIONAL & INSTRUCTIONAL EXPENSES | C59: 6 | D59: =SUMIF($B$91:$B$1252,A59,$E$91:$E$1252) -> 203522
A60: 910 | B60: MISCELLANEOUS | C60: 6 | D60: =SUMIF($B$91:$B$1252,A60,$E$91:$E$1252) -> 1024093
A61: 921 | B61: OFFICE SUPPLIES & EXPENSES | C61: 6 | D61: 0
A62: 931 | B62: RENTS - GENERAL | C62: 6 | D62: 0
A63: 932 | B63: MAINTENANCE | C63: 6 | D63: 0
A65: SALES
A66: 912 | B66: DEMONSTRATION | C66: =$C$46 -> 6 | D66: =SUMIF($B$91:$B$1252,A66,$E$91:$E$1252) -> 605075
A67: 913 | B67: ADVERTISING | C67: =$C$46 -> 6 | D67: =SUMIF($B$91:$B$1252,A67,$E$91:$E$1252) -> 274671
A69: ADMINISTRATIVE & GENERAL
A70: 920 | B70: SALARIES | C70: 19 | D70: =SUMIF($B$91:$B$1252,A70,$E$91:$E$1252)-D71 -> 24103497
A71: 920 | B71: SALARIES - C&I NETWORK ONLY | C71: 26 | D71: =E1254 -> 102933
A72: 921 | B72: OFFICE SUPPLIES & EXPENSES | C72: =$C$70 -> 19 | D72: =SUMIF($B$91:$B$1252,A72,$E$91:$E$1252)-D54-D61 -> -1524783
A73: 922 | B73: ADMIN. EXPENSE TRANSFERRED | C73: =$C$70 -> 19 | D73: 0
A74: 923 | B74: OUTSIDE SERVICES EMPLOYED | C74: =$C$70 -> 19 | D74: =SUMIF($B$91:$B$1252,A74,$E$91:$E$1252)-D75 -> 25906451
A75: 923 | B75: OUTSIDE SERVICES EMPLOYED - C&I NETWORK ONLY | C75: =C71 -> 26 | D75: =E1255 -> 1183511
A76: 924 | B76: PROPERTY INSURANCE | C76: =$C$70 -> 19 | D76: =SUMIF($B$91:$B$1252,A76,$E$91:$E$1252) -> 55948
A77: 925 | B77: INJURIES AND DAMAGES | C77: =$C$70 -> 19 | D77: 4073358
A78: 926 | B78: EMPLOYEE PENSIONS & BENEFITS | C78: 24 | D78: 15645986
A79: 928 | B79: REGULATORY COMMISSION EXPENSES | C79: =$C$70 -> 19 | D79: 2418231
A80: 930 | B80: MISCELLANEOUS GENERAL | C80: =$C$70 -> 19 | D80: 637529
A81: 931 | B81: RENTS-GENERAL | C81: =$C$70 -> 19 | D81: 5954736
A82: 932 | B82: MAINTENANCE | C82: =$C$70 -> 19 | D82: =SUMIF($B$91:$B$1252,A82,$E$91:$E$1252)-D63+66 -> 2468676.958
D84: =SUM(D5:D83) -> 191017256 | F84: Check Against Exhibit 104 | G84: =E146+E203+E260+E318+E375+E432+E489+E546+E603+E660+E717+E774+E832+E889+E946+E1004+E1061+E1118+E1176+E1233+E1241+E1243+E1245+E1246+E1247+E1248+E1249+E1251 -> 191017256.2 | H84: =D84-G84 -> -0.2003366947
A86: Historic Expense by Cost Element by Account
C88: Historic | D88: Historic | E88: Forecasted
A89: CE | B89: Acct | C89: Amount | D89: Pct | E89: Amount | F89: Key
A91: Labor | B91: 801 | C91: =SUMIF('Historical O&M for Allocation'!$E$6:$E$759,'O&M Exp'!F91,'Historical O&M for Allocation'!$C$6:$C$759) -> 0 | D91: =ROUND(C91/C146,9) -> 0 | E91: =ROUND(D91*E146,0) -> 0 | F91: =A91&B91 -> Labor801
A92: Labor | B92: 803 | C92: =SUMIF('Historical O&M for Allocation'!$E$6:$E$759,'O&M Exp'!F92,'Historical O&M for Allocation'!$C$6:$C$759) -> 0 | D92: =ROUND(C92/C146,9) -> 0 | E92: =ROUND(D92*E146,0) -> 0 | F92: =A92&B92 -> Labor803
A93: Labor | B93: 804 | C93: =SUMIF('Historical O&M for Allocation'!$E$6:$E$759,'O&M Exp'!F93,'Historical O&M for Allocation'!$C$6:$C$759) -> 0 | D93: =ROUND(C93/C146,9) -> 0 | E93: =ROUND(D93*E146,0) -> 0 | F93: Labor804
A94: Labor | B94: 805 | C94: =SUMIF('Historical O&M for Allocation'!$E$6:$E$759,'O&M Exp'!F94,'Historical O&M for Allocation'!$C$6:$C$759) -> 0 | D94: =ROUND(C94/C146,9) -> 0 | E94: =ROUND(D94*E146,0) -> 0 | F94: Labor805
A95: Labor | B95: 806 | C95: =SUMIF('Historical O&M for Allocation'!$E$6:$E$759,'O&M Exp'!F95,'Historical O&M for Allocation'!$C$6:$C$759) -> 0 | D95: =ROUND(C95/C146,9) -> 0 | E95: =ROUND(D95*E146,0) -> 0 | F95: Labor806
A96: Labor | B96: 807 | C96: =SUMIF('Historical O&M for Allocation'!$E$6:$E$759,'O&M Exp'!F96,'Historical O&M for Allocation'!$C$6:$C$759) -> 0 | D96: =ROUND(C96/C146,9) -> 0 | E96: =ROUND(D96*E146,0) -> 0 | F96: Labor807
A97: Labor | B97: 808 | C97: =SUMIF('Historical O&M for Allocation'!$E$6:$E$759,'O&M Exp'!F97,'Historical O&M for Allocation'!$C$6:$C$759) -> 0 | D97: =ROUND(C97/C146,9) -> 0 | E97: =ROUND(D97*E146,0) -> 0 | F97: Labor808
A98: Labor | B98: 812 | C98: =SUMIF('Historical O&M for Allocation'!$E$6:$E$759,'O&M Exp'!F98,'Historical O&M for Allocation'!$C$6:$C$759) -> 0 | D98: =ROUND(C98/C146,9) -> 0 | E98: =ROUND(D98*E146,0) -> 0 | F98: Labor812
A99: Labor | B99: 813 | C99: =SUMIF('Historical O&M for Allocation'!$E$6:$E$759,'O&M Exp'!F99,'Historical O&M for Allocation'!$C$6:$C$759) -> 0 | D99: =ROUND(C99/C146,9) -> 0 | E99: =ROUND(D99*E146,0) -> 0 | F99: Labor813
A100: Labor | B100: 816 | C100: =SUMIF('Historical O&M for Allocation'!$E$6:$E$759,'O&M Exp'!F100,'Historical O&M for Allocation'!$C$6:$C$759) -> 0 | D100: =ROUND(C100/C146,9) -> 0 | E100: =ROUND(D100*E146,0) -> 0 | F100: Labor816
A101: Labor | B101: 817 | C101: =SUMIF('Historical O&M for Allocation'!$E$6:$E$759,'O&M Exp'!F101,'Historical O&M for Allocation'!$C$6:$C$759) -> 0 | D101: =ROUND(C101/C146,9) -> 0 | E101: =ROUND(D101*E146,0) -> 0 | F101: Labor817
A102: Labor | B102: 818 | C102: =SUMIF('Historical O&M for Allocation'!$E$6:$E$759,'O&M Exp'!F102,'Historical O&M for Allocation'!$C$6:$C$759) -> 0 | D102: =ROUND(C102/C146,9) -> 0 | E102: =ROUND(D102*E146,0) -> 0 | F102: Labor818
A103: Labor | B103: 820 | C103: =SUMIF('Historical O&M for Allocation'!$E$6:$E$759,'O&M Exp'!F103,'Historical O&M for Allocation'!$C$6:$C$759) -> 101193.61 | D103: =ROUND(C103/C146,9) -> 0.003359087 | E103: =ROUND(D103*E146,0) -> 110572 | F103: Labor820
A104: Labor | B104: 821 | C104: =SUMIF('Historical O&M for Allocation'!$E$6:$E$759,'O&M Exp'!F104,'Historical O&M for Allocation'!$C$6:$C$759) -> 0 | D104: =ROUND(C104/C146,9) -> 0 | E104: =ROUND(D104*E146,0) -> 0 | F104: Labor821
A105: Labor | B105: 823 | C105: =SUMIF('Historical O&M for Allocation'!$E$6:$E$759,'O&M Exp'!F105,'Historical O&M for Allocation'!$C$6:$C$759) -> 0 | D105: =ROUND(C105/C146,9) -> 0 | E105: =ROUND(D105*E146,0) -> 0 | F105: Labor823
A106: Labor | B106: 825 | C106: =SUMIF('Historical O&M for Allocation'!$E$6:$E$759,'O&M Exp'!F106,'Historical O&M for Allocation'!$C$6:$C$759) -> 0 | D106: =ROUND(C106/C146,9) -> 0 | E106: =ROUND(D106*E146,0) -> 0 | F106: Labor825
A107: Labor | B107: 832 | C107: =SUMIF('Historical O&M for Allocation'!$E$6:$E$759,'O&M Exp'!F107,'Historical O&M for Allocation'!$C$6:$C$759) -> 0 | D107: =ROUND(C107/C146,9) -> 0 | E107: =ROUND(D107*E146,0) -> 0 | F107: Labor832
A108: Labor | B108: 834 | C108: =SUMIF('Historical O&M for Allocation'!$E$6:$E$759,'O&M Exp'!F108,'Historical O&M for Allocation'!$C$6:$C$759) -> 0 | D108: =ROUND(C108/C146,9) -> 0 | E108: =ROUND(D108*E146,0) -> 0 | F108: Labor834
A109: Labor | B109: 836 | C109: =SUMIF('Historical O&M for Allocation'!$E$6:$E$759,'O&M Exp'!F109,'Historical O&M for Allocation'!$C$6:$C$759) -> 0 | D109: =ROUND(C109/C146,9) -> 0 | E109: =ROUND(D109*E146,0) -> 0 | F109: Labor836
A110: Labor | B110: 870 | C110: =SUMIF('Historical O&M for Allocation'!$E$6:$E$759,'O&M Exp'!F110,'Historical O&M for Allocation'!$C$6:$C$759) -> 3350397.82 | D110: =ROUND(C110/C146,9) -> 0.111215293 | E110: =ROUND(D110*E146,0) -> 3660902 | F110: Labor870
A111: Labor | B111: 871 | C111: =SUMIF('Historical O&M for Allocation'!$E$6:$E$759,'O&M Exp'!F111,'Historical O&M for Allocation'!$C$6:$C$759) -> 112672.33 | D111: =ROUND(C111/C146,9) -> 0.003740119 | E111: =ROUND(D111*E146,0) -> 123114 | F111: Labor871
A112: Labor | B112: 874 | C112: =SUMIF('Historical O&M for Allocation'!$E$6:$E$759,'O&M Exp'!F112,'Historical O&M for Allocation'!$C$6:$C$759) -> 7175194.49 | D112: =ROUND(C112/C146,9) -> 0.238178091 | E112: =ROUND(D112*E146,0) -> 7840169 | F112: Labor874
A113: Labor | B113: 875 | C113: =SUMIF('Historical O&M for Allocation'!$E$6:$E$759,'O&M Exp'!F113,'Historical O&M for Allocation'!$C$6:$C$759) -> 258331.46 | D113: =ROUND(C113/C146,9) -> 0.008575223 | E113: =ROUND(D113*E146,0) -> 282273 | F113: Labor875
A114: Labor | B114: 876 | C114: =SUMIF('Historical O&M for Allocation'!$E$6:$E$759,'O&M Exp'!F114,'Historical O&M for Allocation'!$C$6:$C$759) -> 167559.41 | D114: =ROUND(C114/C146,9) -> 0.005562076 | E114: =ROUND(D114*E146,0) -> 183088 | F114: Labor876
A115: Labor | B115: 878 | C115: =SUMIF('Historical O&M for Allocation'!$E$6:$E$759,'O&M Exp'!F115,'Historical O&M for Allocation'!$C$6:$C$759) -> 1646085.82 | D115: =ROUND(C115/C146,9) -> 0.054641247 | E115: =ROUND(D115*E146,0) -> 1798640 | F115: Labor878
A116: Labor | B116: 879 | C116: =SUMIF('Historical O&M for Allocation'!$E$6:$E$759,'O&M Exp'!F116,'Historical O&M for Allocation'!$C$6:$C$759) -> 3739776.53 | D116: =ROUND(C116/C146,9) -> 0.124140584 | E116: =ROUND(D116*E146,0) -> 4086367 | F116: Labor879
A117: Labor | B117: 880 | C117: =SUMIF('Historical O&M for Allocation'!$E$6:$E$759,'O&M Exp'!F117,'Historical O&M for Allocation'!$C$6:$C$759) -> 2782922.58 | D117: =ROUND(C117/C146,9) -> 0.092378149 | E117: =ROUND(D117*E146,0) -> 3040835 | F117: Labor880
A118: Labor | B118: 881 | C118: =SUMIF('Historical O&M for Allocation'!$E$6:$E$759,'O&M Exp'!F118,'Historical O&M for Allocation'!$C$6:$C$759) -> 0 | D118: =ROUND(C118/C146,9) -> 0 | E118: =ROUND(D118*E146,0) -> 0 | F118: Labor881
A119: Labor | B119: 885 | C119: =SUMIF('Historical O&M for Allocation'!$E$6:$E$759,'O&M Exp'!F119,'Historical O&M for Allocation'!$C$6:$C$759) -> 115305.76 | D119: =ROUND(C119/C146,9) -> 0.003827535 | E119: =ROUND(D119*E146,0) -> 125992 | F119: Labor885
A120: Labor | B120: 886 | C120: =SUMIF('Historical O&M for Allocation'!$E$6:$E$759,'O&M Exp'!F120,'Historical O&M for Allocation'!$C$6:$C$759) -> 11185.94 | D120: =ROUND(C120/C146,9) -> 0.000371313 | E120: =ROUND(D120*E146,0) -> 12223 | F120: Labor886
A121: Labor | B121: 887 | C121: =SUMIF('Historical O&M for Allocation'!$E$6:$E$759,'O&M Exp'!F121,'Historical O&M for Allocation'!$C$6:$C$759) -> 3614241.01 | D121: =ROUND(C121/C146,9) -> 0.119973476 | E121: =ROUND(D121*E146,0) -> 3949198 | F121: Labor887
A122: Labor | B122: 889 | C122: =SUMIF('Historical O&M for Allocation'!$E$6:$E$759,'O&M Exp'!F122,'Historical O&M for Allocation'!$C$6:$C$759) -> 379766.42 | D122: =ROUND(C122/C146,9) -> 0.012606214 | E122: =ROUND(D122*E146,0) -> 414962 | F122: Labor889
A123: Labor | B123: 890 | C123: =SUMIF('Historical O&M for Allocation'!$E$6:$E$759,'O&M Exp'!F123,'Historical O&M for Allocation'!$C$6:$C$759) -> 49378.37 | D123: =ROUND(C123/C146,9) -> 0.001639098 | E123: =ROUND(D123*E146,0) -> 53955 | F123: Labor890
A124: Labor | B124: 892 | C124: =SUMIF('Historical O&M for Allocation'!$E$6:$E$759,'O&M Exp'!F124,'Historical O&M for Allocation'!$C$6:$C$759) -> 1635186.99 | D124: =ROUND(C124/C146,9) -> 0.054279465 | E124: =ROUND(D124*E146,0) -> 1786731 | F124: Labor892
A125: Labor | B125: 893 | C125: =SUMIF('Historical O&M for Allocation'!$E$6:$E$759,'O&M Exp'!F125,'Historical O&M for Allocation'!$C$6:$C$759) -> 223699.03 | D125: =ROUND(C125/C146,9) -> 0.007425612 | E125: =ROUND(D125*E146,0) -> 244431 | F125: Labor893
A126: Labor | B126: 894 | C126: =SUMIF('Historical O&M for Allocation'!$E$6:$E$759,'O&M Exp'!F126,'Historical O&M for Allocation'!$C$6:$C$759) -> 391781.78 | D126: =ROUND(C126/C146,9) -> 0.01300506 | E126: =ROUND(D126*E146,0) -> 428091 | F126: Labor894
A127: Labor | B127: 902 | C127: =SUMIF('Historical O&M for Allocation'!$E$6:$E$759,'O&M Exp'!F127,'Historical O&M for Allocation'!$C$6:$C$759) -> 303222.94 | D127: =ROUND(C127/C146,9) -> 0.01006538 | E127: =ROUND(D127*E146,0) -> 331325 | F127: Labor902
A128: Labor | B128: 903 | C128: =SUMIF('Historical O&M for Allocation'!$E$6:$E$759,'O&M Exp'!F128,'Historical O&M for Allocation'!$C$6:$C$759) -> 923726.15 | D128: =ROUND(C128/C146,9) -> 0.030662769 | E128: =ROUND(D128*E146,0) -> 1009334 | F128: Labor903
A129: Labor | B129: 904 | C129: =SUMIF('Historical O&M for Allocation'!$E$6:$E$759,'O&M Exp'!F129,'Historical O&M for Allocation'!$C$6:$C$759) -> 0 | D129: =ROUND(C129/C146,9) -> 0 | E129: =ROUND(D129*E146,0) -> 0 | F129: Labor904
A130: Labor | B130: 905 | C130: =SUMIF('Historical O&M for Allocation'!$E$6:$E$759,'O&M Exp'!F130,'Historical O&M for Allocation'!$C$6:$C$759) -> 0 | D130: =ROUND(C130/C146,9) -> 0 | E130: =ROUND(D130*E146,0) -> 0 | F130: Labor905
A131: Labor | B131: 908 | C131: =SUMIF('Historical O&M for Allocation'!$E$6:$E$759,'O&M Exp'!F131,'Historical O&M for Allocation'!$C$6:$C$759) -> 0 | D131: =ROUND(C131/C146,9) -> 0 | E131: =ROUND(D131*E146,0) -> 0 | F131: Labor908
A132: Labor | B132: 909 | C132: =SUMIF('Historical O&M for Allocation'!$E$6:$E$759,'O&M Exp'!F132,'Historical O&M for Allocation'!$C$6:$C$759) -> 0 | D132: =ROUND(C132/C146,9) -> 0 | E132: =ROUND(D132*E146,0) -> 0 | F132: Labor909
A133: Labor | B133: 910 | C133: =SUMIF('Historical O&M for Allocation'!$E$6:$E$759,'O&M Exp'!F133,'Historical O&M for Allocation'!$C$6:$C$759) -> 0 | D133: =ROUND(C133/C146,9) -> 0 | E133: =ROUND(D133*E146,0) -> 0 | F133: Labor910
A134: Labor | B134: 912 | C134: =SUMIF('Historical O&M for Allocation'!$E$6:$E$759,'O&M Exp'!F134,'Historical O&M for Allocation'!$C$6:$C$759) -> 0 | D134: =ROUND(C134/C146,9) -> 0 | E134: =ROUND(D134*E146,0) -> 0 | F134: Labor912
A135: Labor | B135: 913 | C135: =SUMIF('Historical O&M for Allocation'!$E$6:$E$759,'O&M Exp'!F135,'Historical O&M for Allocation'!$C$6:$C$759) -> 0 | D135: =ROUND(C135/C146,9) -> 0 | E135: =ROUND(D135*E146,0) -> 0 | F135: Labor913
A136: Labor | B136: 920 | C136: =SUMIF('Historical O&M for Allocation'!$E$6:$E$759,'O&M Exp'!F136,'Historical O&M for Allocation'!$C$6:$C$759) -> 2973840.29 | D136: =ROUND(C136/C146,9) -> 0.098715596 | E136: =ROUND(D136*E146,0) -> 3249447 | F136: Labor920
A137: Labor | B137: 921 | C137: =SUMIF('Historical O&M for Allocation'!$E$6:$E$759,'O&M Exp'!F137,'Historical O&M for Allocation'!$C$6:$C$759) -> 169865.09 | D137: =ROUND(C137/C146,9) -> 0.005638613 | E137: =ROUND(D137*E146,0) -> 185608 | F137: Labor921
A138: Labor | B138: 923 | C138: =SUMIF('Historical O&M for Allocation'!$E$6:$E$759,'O&M Exp'!F138,'Historical O&M for Allocation'!$C$6:$C$759) -> 0 | D138: =ROUND(C138/C146,9) -> 0 | E138: =ROUND(D138*E146,0) -> 0 | F138: Labor923
A139: Labor | B139: 924 | C139: =SUMIF('Historical O&M for Allocation'!$E$6:$E$759,'O&M Exp'!F139,'Historical O&M for Allocation'!$C$6:$C$759) -> 0 | D139: =ROUND(C139/C146,9) -> 0 | E139: =ROUND(D139*E146,0) -> 0 | F139: Labor924
A140: Labor | B140: 925 | C140: =SUMIF('Historical O&M for Allocation'!$E$6:$E$759,'O&M Exp'!F140,'Historical O&M for Allocation'!$C$6:$C$759) -> 0 | D140: =ROUND(C140/C146,9) -> 0 | E140: =ROUND(D140*E146,0) -> 0 | F140: Labor925
A141: Labor | B141: 926 | C141: =SUMIF('Historical O&M for Allocation'!$E$6:$E$759,'O&M Exp'!F141,'Historical O&M for Allocation'!$C$6:$C$759) -> 0 | D141: =ROUND(C141/C146,9) -> 0 | E141: =ROUND(D141*E146,0) -> 0 | F141: Labor926
A142: Labor | B142: 928 | C142: =SUMIF('Historical O&M for Allocation'!$E$6:$E$759,'O&M Exp'!F142,'Historical O&M for Allocation'!$C$6:$C$759) -> 0 | D142: =ROUND(C142/C146,9) -> 0 | E142: =ROUND(D142*E146,0) -> 0 | F142: Labor928
A143: Labor | B143: 930 | C143: =SUMIF('Historical O&M for Allocation'!$E$6:$E$759,'O&M Exp'!F143,'Historical O&M for Allocation'!$C$6:$C$759) -> 0 | D143: =ROUND(C143/C146,9) -> 0 | E143: =ROUND(D143*E146,0) -> 0 | F143: Labor930
A144: Labor | B144: 931 | C144: =SUMIF('Historical O&M for Allocation'!$E$6:$E$759,'O&M Exp'!F144,'Historical O&M for Allocation'!$C$6:$C$759) -> 0 | D144: =ROUND(C144/C146,9) -> 0 | E144: =ROUND(D144*E146,0) -> 0 | F144: Labor931
A145: Labor | B145: 932 | C145: =SUMIF('Historical O&M for Allocation'!$E$6:$E$759,'O&M Exp'!F145,'Historical O&M for Allocation'!$C$6:$C$759) -> 0 | D145: =ROUND(C145/C146,9) -> 0 | E145: =E146-SUM(E91:E144) -> -1.441830333 | F145: Labor932
B146: Grand Total | C146: =SUM(C91:C145) -> 30125333.82 | D146: =SUM(D91:D145) -> 1 | E146: ='O&M From Exhibit No. 104'!J18 -> 32917255.56
A148: Incentive Compensation | B148: 801 | C148: =SUMIF('Historical O&M for Allocation'!$E$6:$E$759,'O&M Exp'!F148,'Historical O&M for Allocation'!$C$6:$C$759) -> 0 | D148: =ROUND(C148/C203,9) -> 0 | E148: =ROUND(D148*E203,0) -> 0 | F148: =A148&B148 -> Incentive Compensation801
A149: Incentive Compensation | B149: 803 | C149: =SUMIF('Historical O&M for Allocation'!$E$6:$E$759,'O&M Exp'!F149,'Historical O&M for Allocation'!$C$6:$C$759) -> 0 | D149: =ROUND(C149/C203,9) -> 0 | E149: =ROUND(D149*E203,0) -> 0 | F149: =A149&B149 -> Incentive Compensation803
A150: Incentive Compensation | B150: 804 | C150: =SUMIF('Historical O&M for Allocation'!$E$6:$E$759,'O&M Exp'!F150,'Historical O&M for Allocation'!$C$6:$C$759) -> 0 | D150: =ROUND(C150/C203,9) -> 0 | E150: =ROUND(D150*E203,0) -> 0 | F150: Incentive Compensation804
A151: Incentive Compensation | B151: 805 | C151: =SUMIF('Historical O&M for Allocation'!$E$6:$E$759,'O&M Exp'!F151,'Historical O&M for Allocation'!$C$6:$C$759) -> 0 | D151: =ROUND(C151/C203,9) -> 0 | E151: =ROUND(D151*E203,0) -> 0 | F151: Incentive Compensation805
A152: Incentive Compensation | B152: 806 | C152: =SUMIF('Historical O&M for Allocation'!$E$6:$E$759,'O&M Exp'!F152,'Historical O&M for Allocation'!$C$6:$C$759) -> 0 | D152: =ROUND(C152/C203,9) -> 0 | E152: =ROUND(D152*E203,0) -> 0 | F152: Incentive Compensation806
A153: Incentive Compensation | B153: 807 | C153: =SUMIF('Historical O&M for Allocation'!$E$6:$E$759,'O&M Exp'!F153,'Historical O&M for Allocation'!$C$6:$C$759) -> 0 | D153: =ROUND(C153/C203,9) -> 0 | E153: =ROUND(D153*E203,0) -> 0 | F153: Incentive Compensation807
A154: Incentive Compensation | B154: 808 | C154: =SUMIF('Historical O&M for Allocation'!$E$6:$E$759,'O&M Exp'!F154,'Historical O&M for Allocation'!$C$6:$C$759) -> 0 | D154: =ROUND(C154/C203,9) -> 0 | E154: =ROUND(D154*E203,0) -> 0 | F154: Incentive Compensation808
A155: Incentive Compensation | B155: 812 | C155: =SUMIF('Historical O&M for Allocation'!$E$6:$E$759,'O&M Exp'!F155,'Historical O&M for Allocation'!$C$6:$C$759) -> 0 | D155: =ROUND(C155/C203,9) -> 0 | E155: =ROUND(D155*E203,0) -> 0 | F155: Incentive Compensation812
A156: Incentive Compensation | B156: 813 | C156: =SUMIF('Historical O&M for Allocation'!$E$6:$E$759,'O&M Exp'!F156,'Historical O&M for Allocation'!$C$6:$C$759) -> 0 | D156: =ROUND(C156/C203,9) -> 0 | E156: =ROUND(D156*E203,0) -> 0 | F156: Incentive Compensation813
A157: Incentive Compensation | B157: 816 | C157: =SUMIF('Historical O&M for Allocation'!$E$6:$E$759,'O&M Exp'!F157,'Historical O&M for Allocation'!$C$6:$C$759) -> 0 | D157: =ROUND(C157/C203,9) -> 0 | E157: =ROUND(D157*E203,0) -> 0 | F157: Incentive Compensation816
A158: Incentive Compensation | B158: 817 | C158: =SUMIF('Historical O&M for Allocation'!$E$6:$E$759,'O&M Exp'!F158,'Historical O&M for Allocation'!$C$6:$C$759) -> 0 | D158: =ROUND(C158/C203,9) -> 0 | E158: =ROUND(D158*E203,0) -> 0 | F158: Incentive Compensation817
A159: Incentive Compensation | B159: 818 | C159: =SUMIF('Historical O&M for Allocation'!$E$6:$E$759,'O&M Exp'!F159,'Historical O&M for Allocation'!$C$6:$C$759) -> 0 | D159: =ROUND(C159/C203,9) -> 0 | E159: =ROUND(D159*E203,0) -> 0 | F159: Incentive Compensation818
A160: Incentive Compensation | B160: 820 | C160: =SUMIF('Historical O&M for Allocation'!$E$6:$E$759,'O&M Exp'!F160,'Historical O&M for Allocation'!$C$6:$C$759) -> 0 | D160: =ROUND(C160/C203,9) -> 0 | E160: =ROUND(D160*E203,0) -> 0 | F160: Incentive Compensation820
A161: Incentive Compensation | B161: 821 | C161: =SUMIF('Historical O&M for Allocation'!$E$6:$E$759,'O&M Exp'!F161,'Historical O&M for Allocation'!$C$6:$C$759) -> 0 | D161: =ROUND(C161/C203,9) -> 0 | E161: =ROUND(D161*E203,0) -> 0 | F161: Incentive Compensation821
A162: Incentive Compensation | B162: 823 | C162: =SUMIF('Historical O&M for Allocation'!$E$6:$E$759,'O&M Exp'!F162,'Historical O&M for Allocation'!$C$6:$C$759) -> 0 | D162: =ROUND(C162/C203,9) -> 0 | E162: =ROUND(D162*E203,0) -> 0 | F162: Incentive Compensation823
A163: Incentive Compensation | B163: 825 | C163: =SUMIF('Historical O&M for Allocation'!$E$6:$E$759,'O&M Exp'!F163,'Historical O&M for Allocation'!$C$6:$C$759) -> 0 | D163: =ROUND(C163/C203,9) -> 0 | E163: =ROUND(D163*E203,0) -> 0 | F163: Incentive Compensation825
A164: Incentive Compensation | B164: 832 | C164: =SUMIF('Historical O&M for Allocation'!$E$6:$E$759,'O&M Exp'!F164,'Historical O&M for Allocation'!$C$6:$C$759) -> 0 | D164: =ROUND(C164/C203,9) -> 0 | E164: =ROUND(D164*E203,0) -> 0 | F164: Incentive Compensation832
A165: Incentive Compensation | B165: 834 | C165: =SUMIF('Historical O&M for Allocation'!$E$6:$E$759,'O&M Exp'!F165,'Historical O&M for Allocation'!$C$6:$C$759) -> 0 | D165: =ROUND(C165/C203,9) -> 0 | E165: =ROUND(D165*E203,0) -> 0 | F165: Incentive Compensation834
A166: Incentive Compensation | B166: 836 | C166: =SUMIF('Historical O&M for Allocation'!$E$6:$E$759,'O&M Exp'!F166,'Historical O&M for Allocation'!$C$6:$C$759) -> 0 | D166: =ROUND(C166/C203,9) -> 0 | E166: =ROUND(D166*E203,0) -> 0 | F166: Incentive Compensation836
A167: Incentive Compensation | B167: 870 | C167: =SUMIF('Historical O&M for Allocation'!$E$6:$E$759,'O&M Exp'!F167,'Historical O&M for Allocation'!$C$6:$C$759) -> 0 | D167: =ROUND(C167/C203,9) -> 0 | E167: =ROUND(D167*E203,0) -> 0 | F167: Incentive Compensation870
A168: Incentive Compensation | B168: 871 | C168: =SUMIF('Historical O&M for Allocation'!$E$6:$E$759,'O&M Exp'!F168,'Historical O&M for Allocation'!$C$6:$C$759) -> 0 | D168: =ROUND(C168/C203,9) -> 0 | E168: =ROUND(D168*E203,0) -> 0 | F168: Incentive Compensation871
A169: Incentive Compensation | B169: 874 | C169: =SUMIF('Historical O&M for Allocation'!$E$6:$E$759,'O&M Exp'!F169,'Historical O&M for Allocation'!$C$6:$C$759) -> 0 | D169: =ROUND(C169/C203,9) -> 0 | E169: =ROUND(D169*E203,0) -> 0 | F169: Incentive Compensation874
A170: Incentive Compensation | B170: 875 | C170: =SUMIF('Historical O&M for Allocation'!$E$6:$E$759,'O&M Exp'!F170,'Historical O&M for Allocation'!$C$6:$C$759) -> 0 | D170: =ROUND(C170/C203,9) -> 0 | E170: =ROUND(D170*E203,0) -> 0 | F170: Incentive Compensation875
A171: Incentive Compensation | B171: 876 | C171: =SUMIF('Historical O&M for Allocation'!$E$6:$E$759,'O&M Exp'!F171,'Historical O&M for Allocation'!$C$6:$C$759) -> 0 | D171: =ROUND(C171/C203,9) -> 0 | E171: =ROUND(D171*E203,0) -> 0 | F171: Incentive Compensation876
A172: Incentive Compensation | B172: 878 | C172: =SUMIF('Historical O&M for Allocation'!$E$6:$E$759,'O&M Exp'!F172,'Historical O&M for Allocation'!$C$6:$C$759) -> 0 | D172: =ROUND(C172/C203,9) -> 0 | E172: =ROUND(D172*E203,0) -> 0 | F172: Incentive Compensation878
A173: Incentive Compensation | B173: 879 | C173: =SUMIF('Historical O&M for Allocation'!$E$6:$E$759,'O&M Exp'!F173,'Historical O&M for Allocation'!$C$6:$C$759) -> 0 | D173: =ROUND(C173/C203,9) -> 0 | E173: =ROUND(D173*E203,0) -> 0 | F173: Incentive Compensation879
A174: Incentive Compensation | B174: 880 | C174: =SUMIF('Historical O&M for Allocation'!$E$6:$E$759,'O&M Exp'!F174,'Historical O&M for Allocation'!$C$6:$C$759) -> 0 | D174: =ROUND(C174/C203,9) -> 0 | E174: =ROUND(D174*E203,0) -> 0 | F174: Incentive Compensation880
A175: Incentive Compensation | B175: 881 | C175: =SUMIF('Historical O&M for Allocation'!$E$6:$E$759,'O&M Exp'!F175,'Historical O&M for Allocation'!$C$6:$C$759) -> 0 | D175: =ROUND(C175/C203,9) -> 0 | E175: =ROUND(D175*E203,0) -> 0 | F175: Incentive Compensation881
A176: Incentive Compensation | B176: 885 | C176: =SUMIF('Historical O&M for Allocation'!$E$6:$E$759,'O&M Exp'!F176,'Historical O&M for Allocation'!$C$6:$C$759) -> 0 | D176: =ROUND(C176/C203,9) -> 0 | E176: =ROUND(D176*E203,0) -> 0 | F176: Incentive Compensation885
A177: Incentive Compensation | B177: 886 | C177: =SUMIF('Historical O&M for Allocation'!$E$6:$E$759,'O&M Exp'!F177,'Historical O&M for Allocation'!$C$6:$C$759) -> 0 | D177: =ROUND(C177/C203,9) -> 0 | E177: =ROUND(D177*E203,0) -> 0 | F177: Incentive Compensation886
A178: Incentive Compensation | B178: 887 | C178: =SUMIF('Historical O&M for Allocation'!$E$6:$E$759,'O&M Exp'!F178,'Historical O&M for Allocation'!$C$6:$C$759) -> 0 | D178: =ROUND(C178/C203,9) -> 0 | E178: =ROUND(D178*E203,0) -> 0 | F178: Incentive Compensation887
A179: Incentive Compensation | B179: 889 | C179: =SUMIF('Historical O&M for Allocation'!$E$6:$E$759,'O&M Exp'!F179,'Historical O&M for Allocation'!$C$6:$C$759) -> 0 | D179: =ROUND(C179/C203,9) -> 0 | E179: =ROUND(D179*E203,0) -> 0 | F179: Incentive Compensation889
A180: Incentive Compensation | B180: 890 | C180: =SUMIF('Historical O&M for Allocation'!$E$6:$E$759,'O&M Exp'!F180,'Historical O&M for Allocation'!$C$6:$C$759) -> 0 | D180: =ROUND(C180/C203,9) -> 0 | E180: =ROUND(D180*E203,0) -> 0 | F180: Incentive Compensation890
A181: Incentive Compensation | B181: 892 | C181: =SUMIF('Historical O&M for Allocation'!$E$6:$E$759,'O&M Exp'!F181,'Historical O&M for Allocation'!$C$6:$C$759) -> 0 | D181: =ROUND(C181/C203,9) -> 0 | E181: =ROUND(D181*E203,0) -> 0 | F181: Incentive Compensation892
A182: Incentive Compensation | B182: 893 | C182: =SUMIF('Historical O&M for Allocation'!$E$6:$E$759,'O&M Exp'!F182,'Historical O&M for Allocation'!$C$6:$C$759) -> 0 | D182: =ROUND(C182/C203,9) -> 0 | E182: =ROUND(D182*E203,0) -> 0 | F182: Incentive Compensation893
A183: Incentive Compensation | B183: 894 | C183: =SUMIF('Historical O&M for Allocation'!$E$6:$E$759,'O&M Exp'!F183,'Historical O&M for Allocation'!$C$6:$C$759) -> 0 | D183: =ROUND(C183/C203,9) -> 0 | E183: =ROUND(D183*E203,0) -> 0 | F183: Incentive Compensation894
A184: Incentive Compensation | B184: 902 | C184: =SUMIF('Historical O&M for Allocation'!$E$6:$E$759,'O&M Exp'!F184,'Historical O&M for Allocation'!$C$6:$C$759) -> 0 | D184: =ROUND(C184/C203,9) -> 0 | E184: =ROUND(D184*E203,0) -> 0 | F184: Incentive Compensation902
A185: Incentive Compensation | B185: 903 | C185: =SUMIF('Historical O&M for Allocation'!$E$6:$E$759,'O&M Exp'!F185,'Historical O&M for Allocation'!$C$6:$C$759) -> 0 | D185: =ROUND(C185/C203,9) -> 0 | E185: =ROUND(D185*E203,0) -> 0 | F185: Incentive Compensation903
A186: Incentive Compensation | B186: 904 | C186: =SUMIF('Historical O&M for Allocation'!$E$6:$E$759,'O&M Exp'!F186,'Historical O&M for Allocation'!$C$6:$C$759) -> 0 | D186: =ROUND(C186/C203,9) -> 0 | E186: =ROUND(D186*E203,0) -> 0 | F186: Incentive Compensation904
A187: Incentive Compensation | B187: 905 | C187: =SUMIF('Historical O&M for Allocation'!$E$6:$E$759,'O&M Exp'!F187,'Historical O&M for Allocation'!$C$6:$C$759) -> 0 | D187: =ROUND(C187/C203,9) -> 0 | E187: =ROUND(D187*E203,0) -> 0 | F187: Incentive Compensation905
A188: Incentive Compensation | B188: 908 | C188: =SUMIF('Historical O&M for Allocation'!$E$6:$E$759,'O&M Exp'!F188,'Historical O&M for Allocation'!$C$6:$C$759) -> 0 | D188: =ROUND(C188/C203,9) -> 0 | E188: =ROUND(D188*E203,0) -> 0 | F188: Incentive Compensation908
A189: Incentive Compensation | B189: 909 | C189: =SUMIF('Historical O&M for Allocation'!$E$6:$E$759,'O&M Exp'!F189,'Historical O&M for Allocation'!$C$6:$C$759) -> 0 | D189: =ROUND(C189/C203,9) -> 0 | E189: =ROUND(D189*E203,0) -> 0 | F189: Incentive Compensation909
A190: Incentive Compensation | B190: 910 | C190: =SUMIF('Historical O&M for Allocation'!$E$6:$E$759,'O&M Exp'!F190,'Historical O&M for Allocation'!$C$6:$C$759) -> 0 | D190: =ROUND(C190/C203,9) -> 0 | E190: =ROUND(D190*E203,0) -> 0 | F190: Incentive Compensation910
A191: Incentive Compensation | B191: 912 | C191: =SUMIF('Historical O&M for Allocation'!$E$6:$E$759,'O&M Exp'!F191,'Historical O&M for Allocation'!$C$6:$C$759) -> 0 | D191: =ROUND(C191/C203,9) -> 0 | E191: =ROUND(D191*E203,0) -> 0 | F191: Incentive Compensation912
A192: Incentive Compensation | B192: 913 | C192: =SUMIF('Historical O&M for Allocation'!$E$6:$E$759,'O&M Exp'!F192,'Historical O&M for Allocation'!$C$6:$C$759) -> 0 | D192: =ROUND(C192/C203,9) -> 0 | E192: =ROUND(D192*E203,0) -> 0 | F192: Incentive Compensation913
A193: Incentive Compensation | B193: 920 | C193: =SUMIF('Historical O&M for Allocation'!$E$6:$E$759,'O&M Exp'!F193,'Historical O&M for Allocation'!$C$6:$C$759) -> 2682071 | D193: =ROUND(C193/C203,9) -> 1 | E193: =ROUND(D193*E203,0) -> 2214000 | F193: Incentive Compensation920
A194: Incentive Compensation | B194: 921 | C194: =SUMIF('Historical O&M for Allocation'!$E$6:$E$759,'O&M Exp'!F194,'Historical O&M for Allocation'!$C$6:$C$759) -> 0 | D194: =ROUND(C194/C203,9) -> 0 | E194: =ROUND(D194*E203,0) -> 0 | F194: Incentive Compensation921
A195: Incentive Compensation | B195: 923 | C195: =SUMIF('Historical O&M for Allocation'!$E$6:$E$759,'O&M Exp'!F195,'Historical O&M for Allocation'!$C$6:$C$759) -> 0 | D195: =ROUND(C195/C203,9) -> 0 | E195: =ROUND(D195*E203,0) -> 0 | F195: Incentive Compensation923
A196: Incentive Compensation | B196: 924 | C196: =SUMIF('Historical O&M for Allocation'!$E$6:$E$759,'O&M Exp'!F196,'Historical O&M for Allocation'!$C$6:$C$759) -> 0 | D196: =ROUND(C196/C203,9) -> 0 | E196: =ROUND(D196*E203,0) -> 0 | F196: Incentive Compensation924
A197: Incentive Compensation | B197: 925 | C197: =SUMIF('Historical O&M for Allocation'!$E$6:$E$759,'O&M Exp'!F197,'Historical O&M for Allocation'!$C$6:$C$759) -> 0 | D197: =ROUND(C197/C203,9) -> 0 | E197: =ROUND(D197*E203,0) -> 0 | F197: Incentive Compensation925
A198: Incentive Compensation | B198: 926 | C198: =SUMIF('Historical O&M for Allocation'!$E$6:$E$759,'O&M Exp'!F198,'Historical O&M for Allocation'!$C$6:$C$759) -> 0 | D198: =ROUND(C198/C203,9) -> 0 | E198: =ROUND(D198*E203,0) -> 0 | F198: Incentive Compensation926
A199: Incentive Compensation | B199: 928 | C199: =SUMIF('Historical O&M for Allocation'!$E$6:$E$759,'O&M Exp'!F199,'Historical O&M for Allocation'!$C$6:$C$759) -> 0 | D199: =ROUND(C199/C203,9) -> 0 | E199: =ROUND(D199*E203,0) -> 0 | F199: Incentive Compensation928
A200: Incentive Compensation | B200: 930 | C200: =SUMIF('Historical O&M for Allocation'!$E$6:$E$759,'O&M Exp'!F200,'Historical O&M for Allocation'!$C$6:$C$759) -> 0 | D200: =ROUND(C200/C203,9) -> 0 | E200: =ROUND(D200*E203,0) -> 0 | F200: Incentive Compensation930
A201: Incentive Compensation | B201: 931 | C201: =SUMIF('Historical O&M for Allocation'!$E$6:$E$759,'O&M Exp'!F201,'Historical O&M for Allocation'!$C$6:$C$759) -> 0 | D201: =ROUND(C201/C203,9) -> 0 | E201: =ROUND(D201*E203,0) -> 0 | F201: Incentive Compensation931
A202: Incentive Compensation | B202: 932 | C202: =SUMIF('Historical O&M for Allocation'!$E$6:$E$759,'O&M Exp'!F202,'Historical O&M for Allocation'!$C$6:$C$759) -> 0 | D202: =ROUND(C202/C203,9) -> 0 | E202: =ROUND(D202*E203,0) -> 0 | F202: Incentive Compensation932
B203: Grand Total | C203: =SUM(C148:C202) -> 2682071 | D203: =SUM(D148:D202) -> 1 | E203: ='O&M From Exhibit No. 104'!J19 -> 2214000
A205: Pension | B205: 801 | C205: =SUMIF('Historical O&M for Allocation'!$E$6:$E$759,'O&M Exp'!F205,'Historical O&M for Allocation'!$C$6:$C$759) -> 0 | D205: =ROUND(C205/C260,9) -> 0 | E205: =ROUND(D205*E260,0) -> 0 | F205: =A205&B205 -> Pension801
A206: Pension | B206: 803 | C206: =SUMIF('Historical O&M for Allocation'!$E$6:$E$759,'O&M Exp'!F206,'Historical O&M for Allocation'!$C$6:$C$759) -> 0 | D206: =ROUND(C206/C260,9) -> 0 | E206: =ROUND(D206*E260,0) -> 0 | F206: =A206&B206 -> Pension803
A207: Pension | B207: 804 | C207: =SUMIF('Historical O&M for Allocation'!$E$6:$E$759,'O&M Exp'!F207,'Historical O&M for Allocation'!$C$6:$C$759) -> 0 | D207: =ROUND(C207/C260,9) -> 0 | E207: =ROUND(D207*E260,0) -> 0 | F207: Pension804
A208: Pension | B208: 805 | C208: =SUMIF('Historical O&M for Allocation'!$E$6:$E$759,'O&M Exp'!F208,'Historical O&M for Allocation'!$C$6:$C$759) -> 0 | D208: =ROUND(C208/C260,9) -> 0 | E208: =ROUND(D208*E260,0) -> 0 | F208: Pension805
A209: Pension | B209: 806 | C209: =SUMIF('Historical O&M for Allocation'!$E$6:$E$759,'O&M Exp'!F209,'Historical O&M for Allocation'!$C$6:$C$759) -> 0 | D209: =ROUND(C209/C260,9) -> 0 | E209: =ROUND(D209*E260,0) -> 0 | F209: Pension806
A210: Pension | B210: 807 | C210: =SUMIF('Historical O&M for Allocation'!$E$6:$E$759,'O&M Exp'!F210,'Historical O&M for Allocation'!$C$6:$C$759) -> 0 | D210: =ROUND(C210/C260,9) -> 0 | E210: =ROUND(D210*E260,0) -> 0 | F210: Pension807
A211: Pension | B211: 808 | C211: =SUMIF('Historical O&M for Allocation'!$E$6:$E$759,'O&M Exp'!F211,'Historical O&M for Allocation'!$C$6:$C$759) -> 0 | D211: =ROUND(C211/C260,9) -> 0 | E211: =ROUND(D211*E260,0) -> 0 | F211: Pension808
A212: Pension | B212: 812 | C212: =SUMIF('Historical O&M for Allocation'!$E$6:$E$759,'O&M Exp'!F212,'Historical O&M for Allocation'!$C$6:$C$759) -> 0 | D212: =ROUND(C212/C260,9) -> 0 | E212: =ROUND(D212*E260,0) -> 0 | F212: Pension812
A213: Pension | B213: 813 | C213: =SUMIF('Historical O&M for Allocation'!$E$6:$E$759,'O&M Exp'!F213,'Historical O&M for Allocation'!$C$6:$C$759) -> 0 | D213: =ROUND(C213/C260,9) -> 0 | E213: =ROUND(D213*E260,0) -> 0 | F213: Pension813
A214: Pension | B214: 816 | C214: =SUMIF('Historical O&M for Allocation'!$E$6:$E$759,'O&M Exp'!F214,'Historical O&M for Allocation'!$C$6:$C$759) -> 0 | D214: =ROUND(C214/C260,9) -> 0 | E214: =ROUND(D214*E260,0) -> 0 | F214: Pension816
... 1015 more rows

Sheet Alloc 1-Design Day
H1: =Input!B15 -> EXHIBIT MPB-2
H2: ALLOC 1
A3: =Input!$B$1 -> COLUMBIA GAS OF PENNSYLVANIA, INC.
A4: DEVELOPMENT OF ALLOCATION FACTOR 1
A5: DESIGN DAY [1] (2017-2018)
A6: LINE
A7: NO. | B7: Rate | C7: =Input!$B$17 -> RSS/RDS | D7: =Input!$B$18 -> SGSS1/SCD1/SGDS1 | E7: =Input!$B$19 -> SGSS2/SCD2/SGDS2 | F7: =Input!$B$20 -> SDS/LGSS | G7: =Input!$B$21 -> LDS/LGSS | H7: Total
A9: 1 | B9: Residential
A10: =A9+1 -> 2 | B10: RCC/RC2 | C10: 27800 | D10: 0 | E10: 0 | F10: 0 | G10: 0 | H10: =SUM(C10:G10) -> 27800
A11: =A10+1 -> 3 | B11: RS | C11: 340600 | D11: 0 | E11: 0 | F11: 0 | G11: 0 | H11: 340600
A12: =A11+1 -> 4 | B12: RTC | C12: 79300 | D12: 0 | E12: 0 | F12: 0 | G12: 0 | H12: 79300
A13: 5 | B13: Commercial
A14: 6 | B14: LDS FLEX | C14: 0 | D14: 0 | E14: 0 | F14: 0 | G14: 17100 | H14: 17100
A15: 7 | B15: LG1 | C15: 0 | D15: 0 | E15: 0 | F15: 4900 | G15: 0 | H15: =SUM(C15:G15) -> 4900
A16: 8 | B16: LG2 | C16: 0 | D16: 0 | E16: 0 | F16: 5500 | G16: 0 | H16: =SUM(C16:G16) -> 5500
A17: 9 | B17: LG4 | C17: 0 | D17: 0 | E17: 0 | F17: 0 | G17: 0 | H17: =SUM(C17:G17) -> 0
A18: 10 | B18: NSI | C18: 0 | D18: 0 | E18: 0 | F18: 0 | G18: 0 | H18: 0
A19: 11 | B19: SC2 | C19: 0 | D19: 0 | E19: 15200 | F19: 0 | G19: 0 | H19: 15200
A20: 12 | B20: SC3 | C20: 0 | D20: 0 | E20: 0 | F20: 0 | G20: 0 | H20: 0
A21: 13 | B21: SCC | C21: 0 | D21: 20700 | E21: 0 | F21: 0 | G21: 0 | H21: 20700
A22: 14 | B22: SDS FLEX | C22: 0 | D22: 0 | E22: 0 | F22: 1500 | G22: 0 | H22: 1500
A23: 15 | B23: SG2 | C23: 0 | D23: 0 | E23: 53500 | F23: 0 | G23: 0 | H23: 53500
A24: 16 | B24: SGDS1 FLEX | C24: 0 | D24: 0 | E24: 0 | F24: 0 | G24: 0 | H24: 0
A25: 17 | B25: SGDS2 FLEX | C25: 0 | D25: 0 | E25: 0 | F25: 0 | G25: 0 | H25: 0
A26: 18 | B26: SGS | C26: 0 | D26: 55900 | E26: 0 | F26: 0 | G26: 0 | H26: 55900
A27: 19 | B27: SGT | C27: 0 | D27: 0 | E27: 0 | F27: 0 | G27: 0 | H27: 0
A28: 20 | B28: TAG1 | C28: 0 | D28: 300 | E28: 0 | F28: 0 | G28: 0 | H28: 300
A29: 21 | B29: TAG2 | C29: 0 | D29: 0 | E29: 7000 | F29: 0 | G29: 0 | H29: 7000
A30: 22 | B30: TAG5 | C30: 0 | D30: 1600 | E30: 0 | F30: 0 | G30: 0 | H30: 1600
A31: 23 | B31: TAG6 | C31: 0 | D31: 0 | E31: 26400 | F31: 0 | G31: 0 | H31: 26400
A32: 24 | B32: TI4 | C32: 0 | D32: 0 | E32: 0 | F32: 14100 | G32: 0 | H32: 14100
A33: 25 | B33: TI8 | C33: 0 | D33: 0 | E33: 0 | F33: 0 | G33: 9300 | H33: 9300
A34: 26 | B34: TI9 | C34: 0 | D34: 0 | E34: 0 | F34: 0 | G34: 0 | H34: 0
A35: 27 | B35: TIB | C35: 0 | D35: 0 | E35: 0 | F35: 25800 | G35: 0 | H35: 25800
A36: 28 | B36: TIF | C36: 0 | D36: 0 | E36: 0 | F36: 0 | G36: 11700 | H36: 11700
A37: 29 | B37: TM3 | C37: 0 | D37: 0 | E37: 0 | F37: 0 | G37: 0 | H37: 0
A38: 30 | B38: SS | C38: 0 | D38: 0 | E38: 0 | F38: =2562+1746+10+8+16 -> 4342 | G38: =293+105 -> 398 | H38: 4740
A39: 31 | B39: Industrial
A40: 32 | B40: LDS FLEX | C40: 0 | D40: 0 | E40: 0 | F40: 0 | G40: 25700 | H40: 25700
A41: 33 | B41: LG1 | C41: 0 | D41: 0 | E41: 0 | F41: 0 | G41: 0 | H41: 0
A42: 34 | B42: LG2 | C42: 0 | D42: 0 | E42: 0 | F42: 0 | G42: 0 | H42: 0
A43: 35 | B43: LG3 | C43: 0 | D43: 0 | E43: 0 | F43: 0 | G43: 0 | H43: 0
A44: 36 | B44: MDS FLEX | C44: 0 | D44: 0 | E44: 0 | F44: 0 | G44: 0 | H44: 0
A45: 37 | B45: SDS FLEX | C45: 0 | D45: 0 | E45: 0 | F45: 100 | G45: 0 | H45: 100
A46: 38 | B46: SG3 | C46: 0 | D46: 100 | E46: 0 | F46: 0 | G46: 0 | H46: 100
A47: 39 | B47: SG4 | C47: 0 | D47: 0 | E47: 200 | F47: 0 | G47: 0 | H47: 200
A48: 40 | B48: SGS | C48: 0 | D48: 0 | E48: 0 | F48: 0 | G48: 0 | H48: 0
A49: 41 | B49: SGT | C49: 0 | D49: 0 | E49: 0 | F49: 0 | G49: 0 | H49: 0
A50: 42 | B50: TAG5 | C50: 0 | D50: 0 | E50: 0 | F50: 0 | G50: 0 | H50: 0
A51: 43 | B51: TAG6 | C51: 0 | D51: 0 | E51: 500 | F51: 0 | G51: 0 | H51: 500
A52: 44 | B52: TI4 | C52: 0 | D52: 0 | E52: 0 | F52: 1000 | G52: 0 | H52: 1000
A53: 45 | B53: TI8 | C53: 0 | D53: 0 | E53: 0 | F53: 0 | G53: 8300 | H53: 8300
A54: 46 | B54: TI9 | C54: 0 | D54: 0 | E54: 0 | F54: 0 | G54: 0 | H54: 0
A55: 47 | B55: TIB | C55: 0 | D55: 0 | E55: 0 | F55: 7900 | G55: 0 | H55: 7900
A56: 48 | B56: TIF | C56: 0 | D56: 0 | E56: 0 | F56: 0 | G56: 14800 | H56: 14800
A57: 49 | B57: TIF-EFACT | C57: 0 | D57: 0 | E57: 0 | F57: 0 | G57: 0 | H57: 0
A58: 50 | B58: TIG | C58: 0 | D58: 0 | E58: 0 | F58: 0 | G58: 5900 | H58: 5900
A59: 51 | B59: TIH | C59: 0 | D59: 0 | E59: 0 | F59: 0 | G59: 4000 | H59: 4000
A60: 52 | B60: TM2 | C60: 0 | D60: 0 | E60: 0 | F60: 0 | G60: 0 | H60: 0
A61: 53 | B61: TMA | C61: 0 | D61: 0 | E61: 0 | F61: 0 | G61: 0 | H61: 0
A62: 54 | B62: SS | C62: 0 | D62: 0 | E62: 0 | F62: 0 | G62: 0 | H62: 0
A63: 55 | B63: SDS/LGSS Industrial | C63: 0 | D63: 0 | E63: 0 | F63: 0 | G63: 0 | H63: 0
A64: 56 | B64: SGS2 Industrial | C64: 0 | D64: 0 | E64: 0 | F64: 0 | G64: 0 | H64: 0
A65: 57 | B65: SGDS2 Industrial | C65: 0 | D65: 0 | E65: 0 | F65: 0 | G65: 0 | H65: 0
A66: 58 | B66: Total | C66: =SUM(C10:C65) -> 447700 | D66: 78600 | E66: 102800 | F66: 65142 | G66: 97198 | H66: 791440
A67: 59 | B67: MDS | H67: =700+900+19000+200 -> 20800
A68: 60 | B68: EBS | H68: =6600+3800 -> 10400
A69: =A68+1 -> 61 | B69: Other (Co. Used) | H69: =1600 -> 1600
A70: 62 | B70: Total | H70: =SUM(H66:H69) -> 824240
A71: 63 | B71: Standby Service - rounding | H71: 460
A72: 64 | B72: Total per Suply Planning | H72: =H70+H71 -> 824700
A74: =A72+1 -> 65 | B74: ALLOCATOR #1 | C74: =1-SUM(D74:G74) -> 0.56568 | D74: =ROUND(D66/$H$66,5) -> 0.09931 | E74: =ROUND(E66/$H$66,5) -> 0.12989 | F74: =ROUND(F66/$H$66,5) -> 0.08231 | G74: =ROUND(G66/$H$66,5) -> 0.12281 | H74: =SUM(C74:G74) -> 1
A76: [1] | B76: Includes Firm and Non-Firm Service. Volumes in MDth/Day.
A78: SOURCE: James Dean via e-Mail. | C78: =IF(ROUND(C66,0)<>'Alloc 5-Peak & Average (Mains)'!G89,"Out of Balance","") ->  | D78: =IF(ROUND(D66,0)<>'Alloc 5-Peak & Average (Mains)'!H89,"Out of Balance","") ->  | E78: =IF(ROUND(E66,0)<>'Alloc 5-Peak & Average (Mains)'!I89,"Out of Balance","") ->  | F78: =IF(ROUND(F66,0)<>'Alloc 5-Peak & Average (Mains)'!J89,"Out of Balance","") ->  | G78: =IF(ROUND(G66,0)<>'Alloc 5-Peak & Average (Mains)'!K89,"Out of Balance","") -> 

Sheet Alloc 2, 3 & 25-Throughputs
I1: =Input!B15 -> EXHIBIT MPB-2
I2: ALLOC 2, 3, AND 25
A3: =Input!$B$1 -> COLUMBIA GAS OF PENNSYLVANIA, INC.
A4: DEVELOPMENT OF ALLOCATION FACTORS 2, 3, & 25
A5: THROUGHPUT EXCLUDING TRANSPORTATION, THROUGHPUT EXCLUDING MDS
A7: LINE
A8: NO. | C8: =Input!$B$17 -> RSS/RDS | D8: =Input!$B$18 -> SGSS1/SCD1/SGDS1 | E8: =Input!$B$19 -> SGSS2/SCD2/SGDS2 | F8: =Input!$B$20 -> SDS/LGSS | G8: =Input!$B$21 -> LDS/LGSS | H8: =Input!$B$22 -> MLDS | I8: TOTAL
B9: Sales
A10: 1 | B10: RSS | C10: 24988117.4 | D10: 0 | E10: 0 | F10: 0 | G10: 0 | H10: 0 | I10: =SUM(C10:H10) -> 24988117.4
A11: =A10+1 -> 2 | B11: RDGSS | C11: 0 | D11: 0 | E11: 0 | F11: 0 | G11: 0 | H11: 0 | I11: 0
A12: 3 | B12: RCC 1/ | C12: 2524483.6 | D12: 0 | E12: 0 | F12: 0 | G12: 0 | H12: 0 | I12: 2524483.6
A13: 4 | B13: SGSS1 | C13: 0 | D13: 4812979.1 | E13: 0 | F13: 0 | G13: 0 | H13: 0 | I13: 4812979.1
A14: 5 | B14: SGSS2 | C14: 0 | D14: 0 | E14: 4055013.8 | F14: 0 | G14: 0 | H14: 0 | I14: 4055013.8
A15: 6 | B15: NSS/MLSS-1 | C15: 0 | D15: 0 | E15: 0 | F15: 0 | G15: 0 | H15: 72700 | I15: 72700
A16: 7 | B16: LGSS1 & 2 | C16: 0 | D16: 0 | E16: 0 | F16: 766053.2 | G16: 0 | H16: 0 | I16: 766053.2
A17: 8 | B17: LGSS3 & greater | C17: 0 | D17: 0 | E17: 0 | F17: 0 | G17: 0 | H17: 0 | I17: 0
B18: Transportation | I18: 0
A19: =A16+1 -> 8 | B19: RDS | C19: 6925000 | D19: 0 | E19: 0 | F19: 0 | G19: 0 | H19: 0 | I19: 6925000
A20: =A19+1 -> 9 | B20: RDGDS | C20: 0 | D20: 0 | E20: 0 | F20: 0 | G20: 0 | H20: 0 | I20: 0
A21: 10 | B21: SCD1 | C21: 0 | D21: 1392058.1 | E21: 0 | F21: 0 | G21: 0 | H21: 0 | I21: 1392058.1
A22: 11 | B22: SCD2 | C22: 0 | D22: 0 | E22: 973921.5 | F22: 0 | G22: 0 | H22: 0 | I22: 973921.5
A23: 12 | B23: SGDS1 | C23: 0 | D23: =249052.1+2831.4 -> 251883.5 | E23: 0 | F23: 0 | G23: 0 | H23: 0 | I23: 251883.5
A24: 13 | B24: SGDS2 | C24: 0 | D24: 0 | E24: =3699827+106717.7 -> 3806544.7 | F24: 0 | G24: 0 | H24: 0 | I24: 3806544.7
A25: 14 | B25: SDS | C25: 0 | D25: 0 | E25: 0 | F25: 6235631.5 | G25: 0 | H25: 0 | I25: 6235631.5
A26: 15 | B26: LDS | C26: 0 | D26: 0 | E26: 0 | F26: 0 | G26: 20651944 | H26: 0 | I26: 20651944
A27: 16 | B27: MLDS | C27: 0 | D27: 0 | E27: 0 | F27: 0 | G27: 0 | H27: =2424000+2239000 -> 4663000 | I27: 4663000
A28: 17 | B28: Total Throughput Excl. Trans. (Allocator 2) | C28: =SUM(C10:C17) -> 27512601 | D28: 4812979.1 | E28: 4055013.8 | F28: 766053.2 | G28: 0 | H28: 72700 | I28: =SUM(C28:H28) -> 37219347.1
A29: 18 | B29: ALLOCATOR #2 | C29: =1-SUM(D29:H29) -> 0.73921 | D29: =ROUND(D28/$I28,5) -> 0.12931 | E29: =ROUND(E28/$I28,5) -> 0.10895 | F29: =ROUND(F28/$I28,5) -> 0.02058 | G29: =ROUND(G28/$I28,5) -> 0 | H29: =ROUND(H28/$I28,5) -> 0.00195
A31: =A29+1 -> 19 | B31: Total Throughput Excl. MDS (Allocator 3) | C31: =SUM(C10:C27) -> 34437601 | D31: =SUM(D10:D27) -> 6456920.7 | E31: =SUM(E10:E27) -> 8835480 | F31: =SUM(F10:F27) -> 7001684.7 | G31: =SUM(G10:G27) -> 20651944 | I31: =SUM(C31:H31) -> 77383630.4
A32: =A31+1 -> 20 | B32: ALLOCATOR # 3 | C32: =1-SUM(D32:G32) -> 0.44502 | D32: =ROUND(D31/$I31,5) -> 0.08344 | E32: =ROUND(E31/$I31,5) -> 0.11418 | F32: =ROUND(F31/$I31,5) -> 0.09048 | G32: =ROUND(G31/$I31,5) -> 0.26688
A34: =A32+1 -> 21 | B34: Sales and Choice Volume | C34: =C31 -> 34437601 | D34: =D28+D21 -> 6205037.2 | E34: =E28+E22 -> 5028935.3 | F34: =F28 -> 766053.2 | G34: =G28 -> 0 | H34: =H28 -> 72700 | I34: =SUM(C34:H34) -> 46510326.7
A35: =A34+1 -> 22 | B35: ALLOCATOR #25 | C35: =1-SUM(D35:H35) -> 0.74043 | D35: =ROUND(D34/$I34,5) -> 0.13341 | E35: =ROUND(E34/$I34,5) -> 0.10813 | F35: =ROUND(F34/$I34,5) -> 0.01647 | G35: =ROUND(G34/$I34,5) -> 0 | H35: =ROUND(H34/$I34,5) -> 0.00156
A37: NOTE: | B37: 1/ RCC rate schedule is for CAP customers. They can be either CHOICE or Sales. This year they are Sales on the books.
A39: SOURCE: Exhibit No. 103, Schedule 3.

Sheet Alloc 4-Gas Purchase
I1: =Input!B15 -> EXHIBIT MPB-2
I2: ALLOC 4
A3: =Input!$B$1 -> COLUMBIA GAS OF PENNSYLVANIA, INC.
A4: DEVELOPMENT OF ALLOCATION FACTOR 4
A5: GAS PURCHASE EXPENSE
A6: LINE | C6: =Input!$B$17 -> RSS/RDS | D6: =Input!$B$18 -> SGSS1/SCD1/SGDS1 | E6: =Input!$B$19 -> SGSS2/SCD2/SGDS2 | F6: =Input!$B$20 -> SDS/LGSS | G6: =Input!$B$21 -> LDS/LGSS | H6: MDS
A7: NO. | C7: GAS COST | D7: GAS COST | E7: GAS COST | F7: GAS COST | G7: GAS COST | H7: GAS COST | I7: TOTAL
A8: 1 | B8: RSS | C8: =Revenue!E129 -> 103328364 | D8: =Revenue!F129 -> 0 | E8: =Revenue!G129 -> 0 | H8: =Revenue!H129 -> 0 | I8: =SUM(C8:H8) -> 103328364
A9: =A8+1 -> 2 | B9: RCC | C9: =Revenue!E130 -> 10438992 | D9: =Revenue!F130 -> 0 | E9: =Revenue!G130 -> 0 | H9: =Revenue!H130 -> 0 | I9: =SUM(C9:H9) -> 10438992
A10: =A9+1 -> 3 | B10: RDS | C10: =Revenue!E131 -> 6416705 | D10: =Revenue!F131 -> 0 | E10: =Revenue!G131 -> 0 | H10: =Revenue!H131 -> 0 | I10: 6416705
A11: 4 | B11: SGSS | C11: =Revenue!E132 -> 0 | D11: =Revenue!F132 -> 19902150 | E11: =Revenue!G132 -> 16767888 | H11: =Revenue!H132 -> 0 | I11: 36670038
A12: 5 | B12: NSS | C12: =Revenue!G133 -> 0 | D12: =Revenue!H133 -> 0 | E12: =Revenue!I133 -> 0 | H12: =Revenue!J133 -> 268017 | I12: 268017
A13: 6 | B13: SCD | C13: =Revenue!E134 -> 0 | D13: =Revenue!F134 -> 1289881 | E13: =Revenue!G134 -> 902436 | H13: =Revenue!H134 -> 0 | I13: 2192317
A14: 7 | B14: SGDS | C14: =Revenue!E135 -> 0 | D14: =Revenue!F135 -> 48385 | E14: =Revenue!G135 -> 976411 | H14: =Revenue!H135 -> 0 | I14: 1024796
A15: 8 | B15: LGS | C15: =Revenue!E136 -> 0 | D15: =Revenue!F136 -> 0 | E15: =Revenue!G136 -> 0 | F15: =Revenue!H136 -> 3167707 | G15: =Revenue!I136 -> 0 | H15: =Revenue!J139 -> 0 | I15: =SUM(C15:H15) -> 3167707
A16: 9 | B16: TOTAL | C16: =SUM(C8:C15) -> 120184061 | D16: =SUM(D8:D15) -> 21240416 | E16: =SUM(E8:E15) -> 18646735 | F16: =SUM(F8:F15) -> 3167707 | G16: =SUM(G8:G15) -> 0 | H16: =SUM(H7:H15) -> 268017 | I16: =SUM(C16:H16) -> 163506936
A17: 10 | B17: ALLOCATOR #4 | C17: =1-D17-E17-F17-G17-H17 -> 0.73504 | D17: =ROUND(D16/$I$16,5) -> 0.12991 | E17: =ROUND(E16/$I$16,5) -> 0.11404 | F17: =ROUND(F16/$I$16,5) -> 0.01937 | G17: =ROUND(G16/$I$16,5) -> 0 | H17: =ROUND(H16/$I$16,5) -> 0.00164
A19: SOURCE: Exhibit No. 103, Schedule 1. | I19: =IF(ROUND(I16,0)<>ROUND(Revenue!B129,0),"Out of Balance", "") -> 

Sheet Alloc 5-Peak & Average (Mains)
A1: COLUMBIA GAS OF PENNSYLVANIA, INC.
A2: DEVELOPMENT OF ALLOCATION FACTOR 5
A3: FOR THE TWELVE MONTHS ENDED NOVEMBER 30, 2017
A4: ALLOCATED COST OF SERVICE | L4: PAGE 1
A5: PEAK & AVERAGE | L5: ="WITNESS: "&Input!$B$5 -> WITNESS: M. P. BALMERT
A7: Line | F7: Total
A8: No. | D8: Description | E8: Alloc | F8: Company | G8: =Input!$B$17 -> RSS/RDS | H8: =Input!$B$18 -> SGSS1/SCD1/SGDS1 | I8: =Input!$B$19 -> SGSS2/SCD2/SGDS2 | J8: =Input!$B$20 -> SDS/LGSS | K8: =Input!$B$21 -> LDS/LGSS | L8: =Input!$B$22 -> MLDS
A10: 1 | D10: Total Mains Plant in Service | F10: 1410886074
A11: 2 | D11: Direct Assigned Plant | F11: 201218.47
A12: 3 | D12: Other - Non Pipe | F12: 319695543.2
A13: 4 | D13: Allocable Pipe | F13: =F10-F11-F12 -> 1090989313
A15: =+A13+1 -> 5 | D15: Transmission Pipe | F15: 23091667.66
A16: =+A15+1 -> 6 | D16: Low Pressure Pipe | F16: 258371148.2
A17: =+A16+1 -> 7 | D17: Regulated Pressure Pipe Only | F17: 570958138.4
A18: =+A17+1 -> 8 | D18: Remaining Regulated Pressure Pipe | F18: 238639304.8
A19: =+A18+1 -> 9 | D19: Allocated Pipe | F19: =SUM(F15:F18) -> 1091060259
A21: COLUMBIA GAS OF PENNSYLVANIA, INC.
A22: DEVELOPMENT OF ALLOCATION FACTOR 5
A23: =A3 -> FOR THE TWELVE MONTHS ENDED NOVEMBER 30, 2017
A24: ALLOCATED COST OF SERVICE | L24: PAGE 2
A25: PEAK & AVERAGE | L25: ="WITNESS: "&Input!$B$5 -> WITNESS: M. P. BALMERT
A27: Line | F27: Total
A28: No. | D28: Description | E28: Alloc | F28: Company | G28: =Input!$B$17 -> RSS/RDS | H28: =Input!$B$18 -> SGSS1/SCD1/SGDS1 | I28: =Input!$B$19 -> SGSS2/SCD2/SGDS2 | J28: =Input!$B$20 -> SDS/LGSS | K28: =Input!$B$21 -> LDS/LGSS | L28: =Input!$B$22 -> MLDS
A30: 1 | D30: Allocation of Transmission Pipe
A32: 2 | D32: Allocable Transmission Pipe | F32: =+F15 -> 23091667.66
A34: 3 | D34: Design Day Volumes (Total Company Excluding MDS) | F34: =SUM(G34:K34) -> 791440 | G34: ='Alloc 1-Design Day'!C66 -> 447700 | H34: ='Alloc 1-Design Day'!D66 -> 78600 | I34: ='Alloc 1-Design Day'!E66 -> 102800 | J34: ='Alloc 1-Design Day'!F66 -> 65142 | K34: ='Alloc 1-Design Day'!G66 -> 97198
A35: 4 | D35: Percent Design Day Volumes | F35: =SUM(G35:K35) -> 1 | G35: =1-SUM(H35:K35) -> 0.56568 | H35: =ROUND(H34/F34,5) -> 0.09931 | I35: =ROUND(I34/F34,5) -> 0.12989 | J35: =ROUND(J34/F34,5) -> 0.08231 | K35: =ROUND(K34/F34,5) -> 0.12281
A37: 5 | D37: Allocation of Transmission Pipe | F37: =F32 -> 23091667.66 | G37: =F37-SUM(H37:K37) -> 13062494.55 | H37: =ROUND(H35*F32,2) -> 2293233.52 | I37: =ROUND(I35*F32,2) -> 2999376.71 | J37: =ROUND(J35*F32,2) -> 1900675.17 | K37: =ROUND(K35*F32,2) -> 2835887.71
A39: 6 | D39: Allocation of Low Pressure Pipe
A41: 7 | D41: Allocable Low Pressure Pipe | F41: =+F16 -> 258371148.2
A43: 8 | D43: Throughput Volumes (excl MDS) | F43: =SUM(G43:K43) -> 16903324.7 | G43: =+'Historical Throughput'!C9 -> 13236070.8 | H43: =+'Historical Throughput'!D9 -> 2122770.6 | I43: =+'Historical Throughput'!E9 -> 1348823 | J43: =+'Historical Throughput'!F9 -> 104527.3 | K43: =+'Historical Throughput'!G9 -> 91133
A44: 9 | D44: Percent Throughput | F44: =SUM(G44:K44) -> 1 | G44: =1-SUM(H44:K44) -> 0.78305 | H44: =ROUND(H43/F43,5) -> 0.12558 | I44: =ROUND(I43/F43,5) -> 0.0798 | J44: =ROUND(J43/F43,5) -> 0.00618 | K44: =ROUND(K43/F43,5) -> 0.00539
A45: 10 | D45: Throughput Component | F45: 0.5 | G45: =+F45-H45-I45-J45-K45 -> 0.39152 | H45: =ROUND(H44*F45,5) -> 0.06279 | I45: =ROUND(I44*F45,5) -> 0.0399 | J45: =ROUND(J44*F45,5) -> 0.00309 | K45: =ROUND(K44*F45,5) -> 0.0027
A47: 11 | D47: Design Day Volumes (excl MDS) | F47: =SUM(G47:K47) -> 306960 | G47: 197900 | H47: 49801 | I47: 49109 | J47: 10148 | K47: 2
A48: 12 | D48: Percent Design Day Volumes | F48: =SUM(G48:K48) -> 1 | G48: =1-SUM(H48:K48) -> 0.6447 | H48: =ROUND(H47/F47,5) -> 0.16224 | I48: =ROUND(I47/F47,5) -> 0.15999 | J48: =ROUND(J47/F47,5) -> 0.03306 | K48: =ROUND(K47/F47,5) -> 1e-05
A49: 13 | D49: Demand Component | F49: 0.5 | G49: =+F49-H49-I49-J49-K49 -> 0.32234 | H49: =ROUND(H48*F49,5) -> 0.08112 | I49: =ROUND(I48*F49,5) -> 0.08 | J49: =ROUND(J48*F49,5) -> 0.01653 | K49: =ROUND(K48*F49,5) -> 1e-05
A51: 14 | D51: Demand/Commodity Factor | F51: =SUM(G51:K51) -> 1 | G51: =1-SUM(H51:K51) -> 0.71386 | H51: =H45+H49 -> 0.14391 | I51: =I45+I49 -> 0.1199 | J51: =J45+J49 -> 0.01962 | K51: =K45+K49 -> 0.00271
A53: 15 | D53: Allocation of Low Pressure Pipe | F53: =F41 -> 258371148.2 | G53: =F53-SUM(H53:K53) -> 184440827.9 | H53: =ROUND(H51*F41,2) -> 37182191.94 | I53: =ROUND(I51*F41,2) -> 30978700.67 | J53: =ROUND(J51*F41,2) -> 5069241.93 | K53: =ROUND(K51*F41,2) -> 700185.81
A56: COLUMBIA GAS OF PENNSYLVANIA, INC.
A57: DEVELOPMENT OF ALLOCATION FACTOR 5
A58: =A3 -> FOR THE TWELVE MONTHS ENDED NOVEMBER 30, 2017
A59: ALLOCATED COST OF SERVICE | L59: PAGE 3
A60: PEAK & AVERAGE | L60: ="WITNESS: "&Input!$B$5 -> WITNESS: M. P. BALMERT
A62: Line | F62: Total
A63: No. | D63: Description | E63: Alloc | F63: Company | G63: =Input!$B$17 -> RSS/RDS | H63: =Input!$B$18 -> SGSS1/SCD1/SGDS1 | I63: =Input!$B$19 -> SGSS2/SCD2/SGDS2 | J63: =Input!$B$20 -> SDS/LGSS | K63: =Input!$B$21 -> LDS/LGSS | L63: =Input!$B$22 -> MLDS
A65: 1 | D65: Allocation of Regulated Pressure Only Pipe
A67: 2 | D67: Allocable Regulated Pressure Only Pipe | F67: =+F17 -> 570958138.4
A69: 3 | D69: Throughput Volumes (excl MDS) | F69: =SUM(G69:K69) -> 29339317.8 | G69: =+'Historical Throughput'!C10 -> 12115452 | H69: =+'Historical Throughput'!D10 -> 2214174 | I69: =+'Historical Throughput'!E10 -> 3616495.3 | J69: =+'Historical Throughput'!F10 -> 2048788.5 | K69: =+'Historical Throughput'!G10 -> 9344408
A70: 4 | D70: Percent Throughput | F70: =SUM(G70:K70) -> 1 | G70: =1-SUM(H70:K70) -> 0.41295 | H70: =ROUND(H69/F69,5) -> 0.07547 | I70: =ROUND(I69/F69,5) -> 0.12326 | J70: =ROUND(J69/F69,5) -> 0.06983 | K70: =ROUND(K69/F69,5) -> 0.31849
A71: 5 | D71: Throughput Component | F71: 0.5 | G71: =+F71-H71-I71-J71-K71 -> 0.20646 | H71: =ROUND(H70*F71,5) -> 0.03774 | I71: =ROUND(I70*F71,5) -> 0.06163 | J71: =ROUND(J70*F71,5) -> 0.03492 | K71: =ROUND(K70*F71,5) -> 0.15925
A73: 6 | D73: Design Day Volumes (excl MDS) | F73: =SUM(G73:K73) -> 281261 | G73: 175700 | H73: 18545 | I73: 30801 | J73: 39386 | K73: 16829
A74: 7 | D74: Percent Design Day Volumes | F74: =SUM(G74:K74) -> 1 | G74: =1-SUM(H74:K74) -> 0.62469 | H74: =ROUND(H73/F73,5) -> 0.06594 | I74: =ROUND(I73/F73,5) -> 0.10951 | J74: =ROUND(J73/F73,5) -> 0.14003 | K74: =ROUND(K73/F73,5) -> 0.05983
A75: 8 | D75: Demand Component | F75: 0.5 | G75: =+F75-H75-J75-I75-K75 -> 0.31233 | H75: =ROUND(H74*F75,5) -> 0.03297 | I75: =ROUND(I74*F75,5) -> 0.05476 | J75: =ROUND(J74*F75,5) -> 0.07002 | K75: =ROUND(K74*F75,5) -> 0.02992
A77: 9 | D77: Demand/Commodity Factor | F77: =SUM(G77:K77) -> 1 | G77: =1-SUM(H77:K77) -> 0.51879 | H77: =H71+H75 -> 0.07071 | I77: =I71+I75 -> 0.11639 | J77: =J71+J75 -> 0.10494 | K77: =K71+K75 -> 0.18917
A79: 10 | D79: Allocation of Regulated Pressure Only Pipe | F79: =F67 -> 570958138.4 | G79: =F79-SUM(H79:K79) -> 296207372.6 | H79: =ROUND(H77*F67,2) -> 40372449.96 | I79: =ROUND(I77*F67,2) -> 66453817.72 | J79: =ROUND(J77*F67,2) -> 59916347.04 | K79: =ROUND(K77*F67,2) -> 108008151
A81: 11 | D81: Allocation of Remaining Regulated Pressure Pipe
A83: 12 | D83: Allocable Remaining Regulated Pressure Pipe | F83: =+F18 -> 238639304.8
A85: 13 | D85: Throughput Volumes (Total Company excl MDS) | F85: =SUM(G85:K85) -> 71387661.8 | G85: =+'Historical Throughput'!C12 -> 30844962.9 | H85: =+'Historical Throughput'!D12 -> 5598953.6 | I85: =+'Historical Throughput'!E12 -> 8030864.6 | J85: =+'Historical Throughput'!F12 -> 6604041.7 | K85: =+'Historical Throughput'!G12 -> 20308839
A86: 14 | D86: Percent Throughput | F86: =SUM(G86:K86) -> 1 | G86: =1-SUM(H86:K86) -> 0.43207 | H86: =ROUND(H85/F85,5) -> 0.07843 | I86: =ROUND(I85/F85,5) -> 0.1125 | J86: =ROUND(J85/F85,5) -> 0.09251 | K86: =ROUND(K85/F85,5) -> 0.28449
A87: 15 | D87: Throughput Component | F87: 0.5 | G87: =+F87-H87-I87-J87-K87 -> 0.21602 | H87: =ROUND(H86*F87,5) -> 0.03922 | I87: =ROUND(I86*F87,5) -> 0.05625 | J87: =ROUND(J86*F87,5) -> 0.04626 | K87: =ROUND(K86*F87,5) -> 0.14225
A89: 16 | D89: Design Day Volumes (Total Company excl MDS) | F89: =SUM(G89:K89) -> 791440 | G89: =+G34 -> 447700 | H89: =+H34 -> 78600 | I89: =+I34 -> 102800 | J89: =+J34 -> 65142 | K89: =+K34 -> 97198
A90: 17 | D90: Percent Design Day Volumes | F90: =SUM(G90:K90) -> 1 | G90: =1-SUM(H90:K90) -> 0.56568 | H90: =ROUND(H89/F89,5) -> 0.09931 | I90: =ROUND(I89/F89,5) -> 0.12989 | J90: =ROUND(J89/F89,5) -> 0.08231 | K90: =ROUND(K89/F89,5) -> 0.12281
A91: 18 | D91: Demand Component | F91: 0.5 | G91: =+F91-H91-I91-J91-K91 -> 0.28282 | H91: =ROUND(H90*F91,5) -> 0.04966 | I91: =ROUND(I90*F91,5) -> 0.06495 | J91: =ROUND(J90*F91,5) -> 0.04116 | K91: =ROUND(K90*F91,5) -> 0.06141
A93: 19 | D93: Demand/Commodity Factor | F93: =SUM(G93:K93) -> 1 | G93: =1-SUM(H93:K93) -> 0.49884 | H93: =H87+H91 -> 0.08888 | I93: =I87+I91 -> 0.1212 | J93: =J87+J91 -> 0.08742 | K93: =K87+K91 -> 0.20366
A95: 20 | D95: Alloc. of Remaining Regulated Pressure Pipe | F95: =F83 -> 238639304.8 | G95: =F95-SUM(H95:K95) -> 119042830.8 | H95: =ROUND(H93*F83,2) -> 21210261.41 | I95: =ROUND(I93*F83,2) -> 28923083.74 | J95: =ROUND(J93*F83,2) -> 20861848.02 | K95: =ROUND(K93*F83,2) -> 48601280.81
A97: 21 | D97: Total Demand/Commodity Allocation Factor | F97: =F95+F79+F53+F37 -> 1091060259 | G97: 612753525.8 | H97: 101058136.8 | I97: 129354978.8 | J97: 87748112.16 | K97: 160145505.4
F98: =SUM(G98:K98) -> 1 | G98: =1-SUM(H98:K98) -> 0.56162 | H98: =ROUND(H97/F97,5) -> 0.09262 | I98: =ROUND(I97/F97,5) -> 0.11856 | J98: =ROUND(J97/F97,5) -> 0.08042 | K98: =ROUND(K97/F97,5) -> 0.14678

Sheet Alloc 6-Avg No. Cust
K1: =Input!B15 -> EXHIBIT MPB-2
K2: ALLOC 6
A3: =Input!$B$1 -> COLUMBIA GAS OF PENNSYLVANIA, INC.
A4: DEVELOPMENT OF ALLOCATION FACTOR 6
A5: AVERAGE NO. OF CUSTOMERS
J6: [1]
A7: LINE | J7: Total No of
A8: NO. | B8: TARIFF RATE SCHEDULES | C8: TOTAL | D8: =Input!$B$17 -> RSS/RDS | E8: =Input!$B$18 -> SGSS1/SCD1/SGDS1 | F8: =Input!$B$19 -> SGSS2/SCD2/SGDS2 | G8: =Input!$B$20 -> SDS/LGSS | H8: =Input!$B$21 -> LDS/LGSS | I8: =Input!$B$22 -> MLDS | J8: Bills (Incl Final) | K8: Final Bills
A9: 1 | B9: RSS | C9: =SUM(D9:I9) -> 3574052 | D9: =J9-K9 -> 3574052 | E9: 0 | F9: 0 | G9: 0 | H9: 0 | I9: 0 | J9: 3633542 | K9: 59490
A10: =A9+1 -> 2 | B10: RCC | C10: =SUM(D10:I10) -> 267459 | D10: =J10-K10 -> 267459 | E10: 0 | F10: 0 | G10: 0 | H10: 0 | I10: 0 | J10: 272190 | K10: 4731
A11: =A10+1 -> 3 | B11: RDS | C11: 916467 | D11: =J11-K11 -> 916467 | E11: 0 | F11: 0 | G11: 0 | H11: 0 | I11: 0 | J11: 922450 | K11: 5983
A12: 4 | B12: RDGDS | C12: 0 | D12: =J12-K12 -> 0 | E12: 0 | F12: 0 | G12: 0 | H12: 0 | I12: 0 | J12: 0 | K12: 0
A13: 5 | B13: SGSS1 | C13: 285502 | D13: 0 | E13: =J13-K13 -> 285502 | F13: 0 | G13: 0 | H13: 0 | I13: 0 | J13: 287206 | K13: 1704
A14: 6 | B14: SGSS2 | C14: 30995 | D14: 0 | E14: 0 | F14: =J14-K14 -> 30995 | G14: 0 | H14: 0 | I14: 0 | J14: 31073 | K14: 78
A15: 7 | B15: NSS | C15: 12 | D15: 0 | E15: 0 | F15: 0 | G15: 0 | H15: 0 | I15: =J15-K15 -> 12 | J15: 12 | K15: 0
A16: 8 | B16: SCD1 | C16: 92686 | D16: 0 | E16: =J16-K16 -> 92686 | F16: 0 | G16: 0 | H16: 0 | I16: 0 | J16: 92997 | K16: 311
A17: 9 | B17: SCD2 | C17: 7767 | D17: 0 | E17: 0 | F17: =J17-K17 -> 7767 | G17: 0 | H17: 0 | I17: 0 | J17: 7782 | K17: 15
A18: 10 | B18: SGDS1 | C18: 11009 | D18: 0 | E18: =J18-K18 -> 11009 | F18: 0 | G18: 0 | H18: 0 | I18: 0 | J18: 11047 | K18: 38
A19: 11 | B19: SGDS2 | C19: 19061 | D19: 0 | E19: 0 | F19: =J19-K19 -> 19061 | G19: 0 | H19: 0 | I19: 0 | J19: 19124 | K19: 63
A20: 12 | B20: LGSS1 & 2 | C20: 818 | D20: 0 | E20: 0 | F20: 0 | G20: =J20-K20 -> 818 | H20: 0 | I20: 0 | J20: 818 | K20: 0
A21: 13 | B21: LGSS3 & greater | C21: =SUM(D21:I21) -> 0 | D21: 0 | E21: 0 | F21: 0 | G21: 0 | H21: =J21-K21 -> 0 | I21: 0 | J21: 0 | K21: 0
A22: =A20+1 -> 13 | B22: SDS | C22: 4337 | D22: 0 | E22: 0 | F22: 0 | G22: =J22-K22 -> 4337 | H22: 0 | I22: 0 | J22: 4350 | K22: 13
A23: 14 | B23: LDS | C23: 1080 | D23: 0 | E23: 0 | F23: 0 | G23: 0 | H23: =J23-K23 -> 1080 | I23: 0 | J23: 1082 | K23: 2
A24: 15 | B24: MLDS | C24: 120 | D24: 0 | E24: 0 | F24: 0 | G24: 0 | H24: 0 | I24: =J24-K24 -> 120 | J24: =74+48 -> 122 | K24: 2
A25: 16 | B25: Total Number of Bills | C25: =SUM(C9:C24) -> 5211365 | D25: 4757978 | E25: 389197 | F25: 57823 | G25: 5155 | H25: 1080 | I25: 132 | J25: 5283795 | K25: 72430
A27: =A25+1 -> 17 | B27: Average Number of Customers | C27: =ROUND(SUM(D27:I27),0) -> 434281 | D27: =ROUND(D25/12,0) -> 396498 | E27: 32433 | F27: 4819 | G27: 430 | H27: 90 | I27: 11
A28: =A27+1 -> 18 | B28: ALLOCATOR #6 | C28: =SUM(D28:I28) -> 1 | D28: =1-E28-F28-G28-H28-I28 -> 0.91299 | E28: =ROUND(E27/$C$27,5) -> 0.07468 | F28: =ROUND(F27/$C$27,5) -> 0.0111 | G28: =ROUND(G27/$C$27,5) -> 0.00099 | H28: =ROUND(H27/$C$27,5) -> 0.00021 | I28: =ROUND(I27/$C$27,5) -> 3e-05
A31: [1] | B31: Used only in the Customer Charge calculation.
A33: SOURCE: Exhibit No. 103, Schedule 2.

Sheet Alloc 7,8-Curr DIS&GMB GTS Rev
J1: =Input!B15 -> EXHIBIT MPB-2
J2: ALLOC 7
A3: =Input!$B$1 -> COLUMBIA GAS OF PENNSYLVANIA, INC.
A4: DEVELOPMENT OF ALLOCATION FACTOR 7
A5: CURRENT DIS REVENUE
A6: LINE
A7: NO. | C7: ACCOUNT | D7: TOTAL | E7: =Input!$B$17 -> RSS/RDS | F7: =Input!$B$18 -> SGSS1/SCD1/SGDS1 | G7: =Input!$B$19 -> SGSS2/SCD2/SGDS2 | H7: =Input!$B$20 -> SDS/LGSS | I7: =Input!$B$21 -> LDS/LGSS | J7: =Input!$B$22 -> MLDS
D9: Total | E9: Residential | F9: Commercial
A10: 1 | B10: DIS Billed Net Charge-offs - Sales Only | D10: =E10+F10 -> 8277511.66 | E10: 8031391 | F10: 246120.66
A12: =A10+1 -> 2 | B12: DIS Billed Revenue - Comm/Ind Sales Only | D12: =SUM(E12:J12) -> 77224765 | F12: =Revenue!O18 -> 45684049 | G12: =Revenue!O19 -> 31540716 | H12: 0 | I12: 0 | J12: 0
A13: =A12+1 -> 3 | B13: Percent | D13: =SUM(E13:J13) -> 1 | F13: =ROUND(F12/$D$12,5) -> 0.59157 | G13: =ROUND(G12/$D$12,5) -> 0.40843 | H13: =ROUND(H12/$D$12,5) -> 0 | I13: =ROUND(I12/$D$12,5) -> 0 | J13: =ROUND(J12/$D$12,5) -> 0
A15: =A13+1 -> 4 | B15: Allocated DIS Billed Sales Net Charge-offs | D15: =SUM(E15:J15) -> 8277511.66 | E15: =E10 -> 8031391 | F15: =F10-SUM(G15:J15) -> 145597.6 | G15: =ROUND(F10*$G$13,2) -> 100523.06 | H15: =ROUND(G10*$G$13,2) -> 0 | I15: =ROUND(H10*$G$13,2) -> 0 | J15: =ROUND(I10*$G$13,2) -> 0
D17: Total | E17: Residential | F17: Commercial
A18: =A15+1 -> 5 | B18: DIS Billed Net Charge-offs - Choice Only | D18: =E18+F18 -> 692580.3 | E18: 627712.86 | F18: 64867.44
A20: =A18+1 -> 6 | B20: DIS Billed Revenue - Comm/Ind Choice Only | D20: =SUM(E20:J20) -> 30128104 | F20: =Revenue!O23+Revenue!O25 -> 10228010 | G20: =Revenue!O24+Revenue!O26 -> 19900094 | H20: 0 | I20: 0 | J20: 0
A21: =A20+1 -> 7 | B21: Percent | D21: =SUM(E21:J21) -> 1 | F21: =ROUND(F20/$D$20,5) -> 0.33948 | G21: =ROUND(G20/$D$20,5) -> 0.66052 | H21: =ROUND(H20/$D$20,5) -> 0 | I21: =ROUND(I20/$D$20,5) -> 0 | J21: =ROUND(J20/$D$20,5) -> 0
A23: =A21+1 -> 8 | B23: Allocated DIS Billed Choice Net Charge-offs | D23: =SUM(E23:J23) -> 692580.3 | E23: =E18 -> 627712.86 | F23: =F18-SUM(G23:J23) -> 22021.2 | G23: =ROUND(F18*$G$21,2) -> 42846.24 | H23: =ROUND(G18*$G$21,2) -> 0 | I23: =ROUND(H18*$G$21,2) -> 0 | J23: =ROUND(I18*$G$21,2) -> 0
A25: =A23+1 -> 9 | B25: Total DIS Billed Net Charge-offs | D25: =SUM(E25:J25) -> 8970091.96 | E25: =E23+E15 -> 8659103.86 | F25: 167618.8 | G25: 143369.3 | H25: 0 | I25: 0 | J25: 0
A26: =A25+1 -> 10 | C26: ALLOCATOR #7 | D26: =SUM(E26:J26) -> 1 | E26: =1-SUM(F26:J26) -> 0.96533 | F26: =ROUND(F25/$D$25,5) -> 0.01869 | G26: =ROUND(G25/$D$25,5) -> 0.01598 | H26: =ROUND(H25/$D$25,5) -> 0 | I26: =ROUND(I25/$D$25,5) -> 0 | J26: =ROUND(J25/$D$25,5) -> 0
J28: =Input!B15 -> EXHIBIT MPB-2
J29: ALLOC 8
A30: =Input!$B$1 -> COLUMBIA GAS OF PENNSYLVANIA, INC.
A31: DEVELOPMENT OF ALLOCATION FACTOR 8
A32: CURRENT GMB/GTS REVENUE
A33: LINE
A34: NO. | C34: ACCOUNT | D34: TOTAL | E34: =Input!$B$17 -> RSS/RDS | F34: =Input!$B$18 -> SGSS1/SCD1/SGDS1 | G34: =Input!$B$19 -> SGSS2/SCD2/SGDS2 | H34: =Input!$B$20 -> SDS/LGSS | I34: =Input!$B$21 -> LDS/LGSS | J34: =Input!$B$22 -> MLDS
A35: 1 | C35: CURRENT GMB/GTS REVENUE | D35: =SUM(E35:J35) -> 39195616 | E35: 0 | F35: =Revenue!P18+Revenue!P23 -> 379333 | G35: =Revenue!P19+Revenue!P24 -> 1805184 | H35: =Revenue!P29+Revenue!P27 -> 17639825 | I35: =Revenue!P30+Revenue!P28 -> 17899205 | J35: =Revenue!P20+Revenue!P31+Revenue!P32 -> 1472069
A37: =A35+1 -> 2 | C37: ALLOCATOR #8 | D37: =SUM(E37:J37) -> 1 | E37: =1-F37-G37-H37-I37-J37 -> -1e-05 | F37: =ROUND(F35/$D$35,5) -> 0.00968 | G37: =ROUND(G35/$D$35,5) -> 0.04606 | H37: =ROUND(H35/$D$35,5) -> 0.45005 | I37: =ROUND(I35/$D$35,5) -> 0.45666 | J37: =ROUND(J35/$D$35,5) -> 0.03756
A39: SOURCE: Exhibit 104, Schedule 2, Page 20.

Sheet Alloc 9-DA Cust Dep
F1: =Input!B15 -> EXHIBIT MPB-2
F2: ALLOC 9
A3: =Input!$B$1 -> COLUMBIA GAS OF PENNSYLVANIA, INC.
A4: DEVELOPMENT OF ALLOCATION FACTOR 9
A5: DIRECT ASSIGNMENT - CUSTOMER DEPOSITS
A6: LINE
A7: NO. | C7: =Input!$B$17 -> RSS/RDS | D7: =Input!$B$18 -> SGSS1/SCD1/SGDS1 | E7: =Input!$B$19 -> SGSS2/SCD2/SGDS2 | F7: TOTAL
A8: 1 | B8: Residential Unlisted | C8: 37078 | D8: 0 | E8: 0 | F8: =SUM(C8:E8) -> 37078
A9: =A8+1 -> 2 | B9: RS | C9: =1461700+282 -> 1461982 | D9: 0 | E9: 0 | F9: =SUM(C9:E9) -> 1461982
A10: =A9+1 -> 3 | B10: RTC | C10: 132118 | D10: 0 | E10: 0 | F10: 132118
A11: 4 | B11: Commercial Unlisted | C11: 0 | D11: 15304 | E11: 0 | F11: 15304
A12: 5 | B12: SCC | C12: 0 | D12: =154+17016 -> 17170 | E12: 0 | F12: 17170
A13: 6 | B13: SC2 | C13: 0 | D13: 0 | E13: 4396 | F13: 4396
A14: 7 | B14: SGS | C14: 0 | D14: 494459 | E14: 0 | F14: 494459
A15: 8 | B15: SGT | C15: 0 | D15: =27342+1740 -> 29082 | E15: 0 | F15: 29082
A16: 9 | B16: SG2 | C16: 0 | D16: 0 | E16: 35788 | F16: 35788
A17: 10 | B17: TOTAL | C17: =SUM(C8:C16) -> 1631178 | D17: =SUM(D8:D16) -> 556015 | E17: =SUM(E8:E16) -> 40184 | F17: =SUM(C17:E17) -> 2227377
A19: =A17+1 -> 11 | B19: ALLOCATOR #9 | C19: =1-D19-E19 -> 0.73233 | D19: =ROUND(D17/$F$17,5) -> 0.24963 | E19: =ROUND(E17/$F$17,5) -> 0.01804 | F19: =SUM(C19:E19) -> 1
A21: SOURCE: Columbia Gas of Pennsylvania Summary of Security Deposits Report per 11/29/2017.

Sheet Alloc 10-Forfeited Discounts
J1: =Input!B15 -> EXHIBIT MPB-2
J2: ALLOC 10
A3: =Input!$B$1 -> COLUMBIA GAS OF PENNSYLVANIA, INC.
A4: DEVELOPMENT OF ALLOCATION FACTOR 10
A5: FORFEITED DISCOUNTS
A6: LINE | B6: ACCT.
A7: NO. | B7: NO. | C7: ACCOUNT | D7: TOTAL | E7: =Input!$B$17 -> RSS/RDS | F7: =Input!$B$18 -> SGSS1/SCD1/SGDS1 | G7: =Input!$B$19 -> SGSS2/SCD2/SGDS2 | H7: =Input!$B$20 -> SDS/LGSS | I7: =Input!$B$21 -> LDS/LGSS | J7: =Input!$B$22 -> MLDS
A8: 1 | B8: =Revenue!$A$19 -> 487.00 | C8: =Revenue!$B$41&" - DIS" -> FORFEITED DISCOUNTS - DIS | D8: =SUM(E8:J8) -> 1110829 | E8: =ROUND(+Revenue!P5*Revenue!$P$40,0) -> 880955 | F8: =ROUND(+Revenue!Q5*Revenue!$P$40,0) -> 116186 | G8: =ROUND(+Revenue!R5*Revenue!$P$40,0) -> 106895 | H8: =ROUND(+Revenue!S5*Revenue!$P$40,0) -> 6793 | I8: =ROUND(+Revenue!T5*Revenue!$P$40,0) -> 0 | J8: =ROUND(+Revenue!U5*Revenue!$P$40,0) -> 0
A9: =A8+1 -> 2 | B9: =Revenue!$A$19 -> 487.00 | C9: =Revenue!$B$41&" - GMB & GTS" -> FORFEITED DISCOUNTS - GMB & GTS | D9: =SUM(E9:J9) -> 81449 | E9: =ROUND(+Revenue!P6*Revenue!$P$40,0) -> 0 | F9: =ROUND(+Revenue!Q6*Revenue!$P$40,0) -> 788 | G9: =ROUND(+Revenue!R6*Revenue!$P$40,0) -> 3751 | H9: =ROUND(+Revenue!S6*Revenue!$P$40,0) -> 36656 | I9: =ROUND(+Revenue!T6*Revenue!$P$40,0) -> 37195 | J9: =ROUND(+Revenue!U6*Revenue!$P$40,0) -> 3059
A10: =A9+1 -> 3 | C10: TOTAL CURRENT SALES AND TRANSPORTATION REVENUE | D10: =SUM(D8:D9) -> 1192278 | E10: 880955 | F10: 116974 | G10: 110646 | H10: 43449 | I10: 37195 | J10: 3059
A12: =A10+1 -> 4 | C12: ALLOCATOR #10 | D12: =SUM(E12:J12) -> 1 | E12: =1-F12-G12-H12-I12-J12 -> 0.73888 | F12: =ROUND(F10/$D$10,5) -> 0.09811 | G12: =ROUND(G10/$D$10,5) -> 0.0928 | H12: =ROUND(H10/$D$10,5) -> 0.03644 | I12: =ROUND(I10/$D$10,5) -> 0.0312 | J12: =ROUND(J10/$D$10,5) -> 0.00257
D14: =IF(ROUND(D10,0)<>ROUND(Revenue!D41,0),"Out of Balance","") -> Out of Balance

Sheet Alloc 11-Dist Plant exclude
J1: =Input!B15 -> EXHIBIT MPB-2
J2: ALLOC 11
A3: =Input!$B$1 -> COLUMBIA GAS OF PENNSYLVANIA, INC.
A4: DEVELOPMENT OF ALLOCATION FACTOR 11
A5: DISTRIBUTION PLANT EXCLUDING ACCOUNTS 375.70, 375.71, & 387
A6: LINE | B6: ACCT.
A7: NO. | B7: NO. | C7: ACCOUNT | D7: TOTAL | E7: =Input!$B$17 -> RSS/RDS | F7: =Input!$B$18 -> SGSS1/SCD1/SGDS1 | G7: =Input!$B$19 -> SGSS2/SCD2/SGDS2 | H7: =Input!$B$20 -> SDS/LGSS | I7: =Input!$B$21 -> LDS/LGSS | J7: =Input!$B$22 -> MLDS
A8: 1 | B8: ='Pg 3'!C18 -> 374.1 | C8: ='Pg 3'!D18 -> LAND - CITY GATE & M/L IND M&R | D8: =SUM(E8:J8) -> 21943.51067 | E8: ='Pg 3'!G18 -> 12323.9 | F8: ='Pg 3'!H18 -> 2032.410675 | G8: ='Pg 3'!I18 -> 2601.6 | H8: ='Pg 3'!J18 -> 1764.7 | I8: ='Pg 3'!K18 -> 3220.9 | J8: ='Pg 3'!L18 -> 0
A9: =A8+1 -> 2 | B9: ='Pg 3'!C19 -> 374.2 | C9: ='Pg 3'!D19 -> LAND - OTHER DISTRIBUTION | D9: 477102.5 | E9: ='Pg 3'!G19 -> 267950.3 | F9: ='Pg 3'!H19 -> 44189.2 | G9: ='Pg 3'!I19 -> 56565.3 | H9: ='Pg 3'!J19 -> 38368.6 | I9: ='Pg 3'!K19 -> 70029.1 | J9: ='Pg 3'!L19 -> 0
A10: 3 | B10: ='Pg 3'!C20 -> 374.3 | C10: ='Pg 3'!D20 -> LAND RIGHTS - CITY GATE MAIN LINE | D10: 95360.9 | E10: ='Pg 3'!G20 -> 53556.6 | F10: ='Pg 3'!H20 -> 8832.3 | G10: ='Pg 3'!I20 -> 11306 | H10: ='Pg 3'!J20 -> 7668.9 | I10: ='Pg 3'!K20 -> 13997.1 | J10: ='Pg 3'!L20 -> 0
A11: 4 | B11: ='Pg 3'!C21 -> 374.4 | C11: ='Pg 3'!D21 -> LAND RIGHTS - OTHER DISTRIBUTION | D11: 3032712.1 | E11: ='Pg 3'!G21 -> 1703231.8 | F11: ='Pg 3'!H21 -> 280889.8 | G11: ='Pg 3'!I21 -> 359558.3 | H11: ='Pg 3'!J21 -> 243890.7 | I11: ='Pg 3'!K21 -> 445141.5 | J11: ='Pg 3'!L21 -> 0
A12: 5 | B12: ='Pg 3'!C22 -> 374.4 | C12: ='Pg 3'!D22 -> DIRECT - LAND RIGHTS-OTHER DISTRIBUTION | D12: 0 | E12: ='Pg 3'!G22 -> 0 | F12: ='Pg 3'!H22 -> 0 | G12: ='Pg 3'!I22 -> 0 | H12: ='Pg 3'!J22 -> 0 | I12: ='Pg 3'!K22 -> 0 | J12: ='Pg 3'!L22 -> 0
A13: 6 | B13: ='Pg 3'!C23 -> 374.41 | C13: ='Pg 3'!D23 -> LAND RIGHTS - OTHER DISTRIBUTION LOC | D13: 12.9 | E13: ='Pg 3'!G23 -> 9.8 | F13: ='Pg 3'!H23 -> 1.2 | G13: ='Pg 3'!I23 -> 0 | H13: ='Pg 3'!J23 -> 0 | I13: ='Pg 3'!K23 -> 1.9 | J13: ='Pg 3'!L23 -> 0
A14: 7 | B14: ='Pg 3'!C24 -> 374.5 | C14: ='Pg 3'!D24 -> RIGHTS OF WAY | D14: 3233092.3 | E14: ='Pg 3'!G24 -> 1815769.3 | F14: ='Pg 3'!H24 -> 299449 | G14: ='Pg 3'!I24 -> 383315.4 | H14: ='Pg 3'!J24 -> 260005.3 | I14: ='Pg 3'!K24 -> 474553.3 | J14: ='Pg 3'!L24 -> 0
A15: 8 | B15: ='Pg 3'!C25 -> 374.5 | C15: ='Pg 3'!D25 -> DIRECT - RIGHTS OF WAY | D15: 50.61 | E15: ='Pg 3'!G25 -> 0 | F15: ='Pg 3'!H25 -> 0 | G15: ='Pg 3'!I25 -> 0 | H15: ='Pg 3'!J25 -> 0 | I15: ='Pg 3'!K25 -> 0 | J15: ='Pg 3'!L25 -> 50.61
A16: 9 | B16: ='Pg 3'!C26 -> 375.2 | C16: ='Pg 3'!D26 -> M & R STRUCTURES - CITY GATE | D16: 7026.4 | E16: ='Pg 3'!G26 -> 3946.1 | F16: ='Pg 3'!H26 -> 650.8 | G16: ='Pg 3'!I26 -> 833.1 | H16: ='Pg 3'!J26 -> 565.1 | I16: ='Pg 3'!K26 -> 1031.3 | J16: ='Pg 3'!L26 -> 0
A17: 10 | B17: ='Pg 3'!C27 -> 375.31 | C17: ='Pg 3'!D27 -> M & R STRUCTURES - LOCAL GAS PURCH | D17: 4012.4 | E17: ='Pg 3'!G27 -> 2253.5 | F17: ='Pg 3'!H27 -> 371.6 | G17: ='Pg 3'!I27 -> 475.7 | H17: ='Pg 3'!J27 -> 322.7 | I17: ='Pg 3'!K27 -> 588.9 | J17: ='Pg 3'!L27 -> 0
A18: 11 | B18: ='Pg 3'!C28 -> 375.4 | C18: ='Pg 3'!D28 -> M & R STRUCTURES - REGULATING | D18: 4752757.6 | E18: ='Pg 3'!G28 -> 2669243.7 | F18: ='Pg 3'!H28 -> 440200.4 | G18: ='Pg 3'!I28 -> 563486.9 | H18: ='Pg 3'!J28 -> 382216.8 | I18: ='Pg 3'!K28 -> 697609.8 | J18: ='Pg 3'!L28 -> 0
A19: 12 | B19: ='Pg 3'!C29 -> 375.4 | C19: ='Pg 3'!D29 -> DIRECT - M & R STRUCTURES - REGULATING | D19: =SUM(E19:J19) -> 30949.25 | E19: ='Pg 3'!G29 -> 0 | F19: ='Pg 3'!H29 -> 0 | G19: ='Pg 3'!I29 -> 0 | H19: ='Pg 3'!J29 -> 0 | I19: ='Pg 3'!K29 -> 0 | J19: ='Pg 3'!L29 -> 30949.25
A20: =A18+1 -> 12 | B20: ='Pg 3'!C30 -> 375.6 | C20: ='Pg 3'!D30 -> M & R STRUCTURES - DIST. IND. M & R | D20: 87669.8 | E20: ='Pg 3'!G30 -> 0 | F20: ='Pg 3'!H30 -> 2360.1 | G20: ='Pg 3'!I30 -> 15052 | H20: ='Pg 3'!J30 -> 30710.7 | I20: ='Pg 3'!K30 -> 39547 | J20: ='Pg 3'!L30 -> 0
A21: 13 | B21: ='Pg 3'!C33 -> 375.8 | C21: ='Pg 3'!D33 -> M & R STRUCTURES - COMMUNICATION | D21: 16515.2 | E21: ='Pg 3'!G33 -> 9275.4 | F21: ='Pg 3'!H33 -> 1529.6 | G21: ='Pg 3'!I33 -> 1958 | H21: ='Pg 3'!J33 -> 1328.1 | I21: ='Pg 3'!K33 -> 2424.1 | J21: ='Pg 3'!L33 -> 0
A22: 14 | B22: ='Pg 3'!C34 -> 376 | C22: ='Pg 3'!D34 -> MAINS | D22: 1713900920 | E22: ='Pg 3'!G34 -> 962561034.6 | F22: ='Pg 3'!H34 -> 158741503.2 | G22: ='Pg 3'!I34 -> 203200093.1 | H22: ='Pg 3'!J34 -> 137831912 | I22: ='Pg 3'!K34 -> 251566377 | J22: ='Pg 3'!L34 -> 0
A23: 15 | B23: ='Pg 3'!C35 -> 376 | C23: ='Pg 3'!D35 -> DIRECT - MAINS - MDS | D23: 210854.95 | E23: ='Pg 3'!G35 -> 0 | F23: ='Pg 3'!H35 -> 0 | G23: ='Pg 3'!I35 -> 0 | H23: ='Pg 3'!J35 -> 0 | I23: ='Pg 3'!K35 -> 0 | J23: ='Pg 3'!L35 -> 210854.95
A24: 16 | B24: ='Pg 3'!C36 -> 376.08 | C24: ='Pg 3'!D36 -> MAINS-CSL REPLACEMENTS | D24: 23760169.4 | E24: ='Pg 3'!G36 -> 13344186.3 | F24: ='Pg 3'!H36 -> 2200666.9 | G24: ='Pg 3'!I36 -> 2817005.7 | H24: ='Pg 3'!J36 -> 1910792.8 | I24: ='Pg 3'!K36 -> 3487517.7 | J24: ='Pg 3'!L36 -> 0
A25: 17 | B25: ='Pg 3'!C37 -> 376.3 | C25: ='Pg 3'!D37 -> MAINS-BARE STEEL | D25: 66563956.4 | E25: ='Pg 3'!G37 -> 37383649.2 | F25: ='Pg 3'!H37 -> 6165153.6 | G25: ='Pg 3'!I37 -> 7891822.7 | H25: ='Pg 3'!J37 -> 5353073.4 | I25: ='Pg 3'!K37 -> 9770257.5 | J25: ='Pg 3'!L37 -> 0
A26: 18 | B26: ='Pg 3'!C38 -> 376.3 | C26: ='Pg 3'!D38 -> DIRECT - MAINS-BARE STEEL | D26: 80847.42 | E26: ='Pg 3'!G38 -> 0 | F26: ='Pg 3'!H38 -> 0 | G26: ='Pg 3'!I38 -> 0 | H26: ='Pg 3'!J38 -> 0 | I26: ='Pg 3'!K38 -> 0 | J26: ='Pg 3'!L38 -> 80847.42
A27: 19 | B27: ='Pg 3'!C39 -> 376.8 | C27: ='Pg 3'!D39 -> MAINS-CAST IRON | D27: 400795.1 | E27: ='Pg 3'!G39 -> 225094.6 | F27: ='Pg 3'!H39 -> 37121.6 | G27: ='Pg 3'!I39 -> 47518.3 | H27: ='Pg 3'!J39 -> 32231.9 | I27: ='Pg 3'!K39 -> 58828.7 | J27: ='Pg 3'!L39 -> 0
A28: 20 | B28: ='Pg 3'!C40 -> 378.1 | C28: ='Pg 3'!D40 -> M & R EQUIP - GENERAL | D28: 1371449.8 | E28: ='Pg 3'!G40 -> 770233.6 | F28: ='Pg 3'!H40 -> 127023.7 | G28: ='Pg 3'!I40 -> 162599.1 | H28: ='Pg 3'!J40 -> 110292 | I28: ='Pg 3'!K40 -> 201301.4 | J28: ='Pg 3'!L40 -> 0
A29: 21 | B29: ='Pg 3'!C41 -> 378.2 | C29: ='Pg 3'!D41 -> M & R EQUIP - GENERAL - REGULATING | D29: 91022247.4 | E29: ='Pg 3'!G41 -> 51119914.5 | F29: ='Pg 3'!H41 -> 8430480.6 | G29: ='Pg 3'!I41 -> 10791597.7 | H29: ='Pg 3'!J41 -> 7320009.1 | I29: ='Pg 3'!K41 -> 13360245.5 | J29: ='Pg 3'!L41 -> 0
A30: 22 | B30: ='Pg 3'!C42 -> 378.2 | C30: ='Pg 3'!D42 -> DIRECT - M & R EQUIP-GEN-REG | D30: 458057.76 | E30: ='Pg 3'!G42 -> 0 | F30: ='Pg 3'!H42 -> 0 | G30: ='Pg 3'!I42 -> 0 | H30: ='Pg 3'!J42 -> 0 | I30: ='Pg 3'!K42 -> 0 | J30: ='Pg 3'!L42 -> 458057.76
A31: 23 | B31: ='Pg 3'!C43 -> 378.3 | C31: ='Pg 3'!D43 -> M & R EQUIP - LOCAL GAS PURCHASES | D31: 471961.9 | E31: ='Pg 3'!G43 -> 265063.2 | F31: ='Pg 3'!H43 -> 43713.1 | G31: ='Pg 3'!I43 -> 55955.8 | H31: ='Pg 3'!J43 -> 37955.2 | I31: ='Pg 3'!K43 -> 69274.6 | J31: ='Pg 3'!L43 -> 0
A32: 24 | B32: ='Pg 3'!C44 -> 379.1 | C32: ='Pg 3'!D44 -> M & R EQUIP - CITY GATE | D32: 140677.3 | E32: ='Pg 3'!G44 -> 79007.2 | F32: ='Pg 3'!H44 -> 13029.5 | G32: ='Pg 3'!I44 -> 16678.7 | H32: ='Pg 3'!J44 -> 11313.3 | I32: ='Pg 3'!K44 -> 20648.6 | J32: ='Pg 3'!L44 -> 0
A33: 25 | B33: ='Pg 3'!C45 -> 379.11 | C33: ='Pg 3'!D45 -> M & R EQUIP - EXCHANGE GAS | D33: -449.8 | E33: ='Pg 3'!G45 -> -252.6 | F33: ='Pg 3'!H45 -> -41.7 | G33: ='Pg 3'!I45 -> -53.3 | H33: ='Pg 3'!J45 -> -36.2 | I33: ='Pg 3'!K45 -> -66 | J33: ='Pg 3'!L45 -> 0
A34: 26 | B34: ='Pg 3'!C46 -> 380 | C34: ='Pg 3'!D46 -> SERVICES | D34: 592415096.6 | E34: ='Pg 3'!G46 -> 538191342.9 | F34: ='Pg 3'!H46 -> 45213120.2 | G34: ='Pg 3'!I46 -> 7340023 | H34: ='Pg 3'!J46 -> 1084119.6 | I34: ='Pg 3'!K46 -> 586490.9 | J34: ='Pg 3'!L46 -> 0
A35: 27 | B35: ='Pg 3'!C47 -> 380 | C35: ='Pg 3'!D47 -> DIRECT - SERVICES | D35: 1966.03 | E35: ='Pg 3'!G47 -> 0 | F35: ='Pg 3'!H47 -> 0 | G35: ='Pg 3'!I47 -> 0 | H35: ='Pg 3'!J47 -> 0 | I35: ='Pg 3'!K47 -> 0 | J35: ='Pg 3'!L47 -> 1966.03
A36: 28 | B36: ='Pg 3'!C48 -> 380.12 | C36: ='Pg 3'!D48 -> CSL REPLACEMENT | D36: 0 | E36: ='Pg 3'!G48 -> 0 | F36: ='Pg 3'!H48 -> 0 | G36: ='Pg 3'!I48 -> 0 | H36: ='Pg 3'!J48 -> 0 | I36: ='Pg 3'!K48 -> 0 | J36: ='Pg 3'!L48 -> 0
A37: 29 | B37: ='Pg 3'!C49 -> 381 | C37: ='Pg 3'!D49 -> METERS | D37: 40150509.9 | E37: ='Pg 3'!G49 -> 30222493.3 | F37: ='Pg 3'!H49 -> 6466641.1 | G37: ='Pg 3'!I49 -> 3022128.9 | H37: ='Pg 3'!J49 -> 339271.8 | I37: ='Pg 3'!K49 -> 94755.2 | J37: ='Pg 3'!L49 -> 5219.6
A38: 30 | B38: ='Pg 3'!C50 -> 381.1 | C38: ='Pg 3'!D50 -> AUTOMATIC METER READING | D38: 19350242 | E38: ='Pg 3'!G50 -> 14565507.7 | F38: ='Pg 3'!H50 -> 3116550 | G38: ='Pg 3'!I50 -> 1456492.7 | H38: ='Pg 3'!J50 -> 163509.5 | I38: ='Pg 3'!K50 -> 45666.6 | J38: ='Pg 3'!L50 -> 2515.5
A39: 31 | B39: ='Pg 3'!C52 -> 382 | C39: ='Pg 3'!D52 -> METER INSTALLATIONS | D39: 43214952.1 | E39: ='Pg 3'!G52 -> 32529191 | F39: ='Pg 3'!H52 -> 6960200.2 | G39: ='Pg 3'!I52 -> 3252789.4 | H39: ='Pg 3'!J52 -> 365166.3 | I39: ='Pg 3'!K52 -> 101987.3 | J39: ='Pg 3'!L52 -> 5617.9
A40: 32 | B40: ='Pg 3'!C53 -> 383 | C40: ='Pg 3'!D53 -> HOUSE REGULATORS | D40: 13305975.7 | E40: ='Pg 3'!G53 -> 12060802.4 | F40: ='Pg 3'!H53 -> 1018173.3 | G40: ='Pg 3'!I53 -> 199855.8 | H40: ='Pg 3'!J53 -> 22221 | I40: ='Pg 3'!K53 -> 4391 | J40: ='Pg 3'!L53 -> 532.2
A41: 33 | B41: ='Pg 3'!C54 -> 384 | C41: ='Pg 3'!D54 -> HOUSE REG INSTALLATIONS | D41: 3864772.1 | E41: ='Pg 3'!G54 -> 3503106.6 | F41: ='Pg 3'!H54 -> 295732.4 | G41: ='Pg 3'!I54 -> 58048.9 | H41: ='Pg 3'!J54 -> 6454.2 | I41: ='Pg 3'!K54 -> 1275.4 | J41: ='Pg 3'!L54 -> 154.6
A42: 34 | B42: ='Pg 3'!C55 -> 385 | C42: ='Pg 3'!D55 -> IND M&R EQUIPMENT | D42: 8110311.1 | E42: 0 | F42: ='Pg 3'!H55 -> 218329.6 | G42: ='Pg 3'!I55 -> 1392459.3 | H42: ='Pg 3'!J55 -> 2841042 | I42: ='Pg 3'!K55 -> 3658480.2 | J42: ='Pg 3'!L55 -> 0
A43: 35 | B43: ='Pg 3'!C56 -> 385 | C43: ='Pg 3'!D56 -> DIRECT - IND M&R EQUIPMENT | D43: 373617.7 | E43: ='Pg 3'!G56 -> 0 | F43: ='Pg 3'!H56 -> 0 | G43: ='Pg 3'!I56 -> 0 | H43: ='Pg 3'!J56 -> 0 | I43: ='Pg 3'!K56 -> 0 | J43: ='Pg 3'!L56 -> 373617.7
A44: 36 | B44: ='Pg 3'!C57 -> 385.1 | C44: ='Pg 3'!D57 -> IND M&R EQUIPMENT - LG VOLUME | D44: 1085273.5 | E44: ='Pg 3'!G57 -> 0 | F44: ='Pg 3'!H57 -> 29215.6 | G44: ='Pg 3'!I57 -> 186330.6 | H44: ='Pg 3'!J57 -> 380171.3 | I44: ='Pg 3'!K57 -> 489556 | J44: ='Pg 3'!L57 -> 0
A45: 37 | C45: TOTAL | D45: =SUM(D8:D44) -> 2632013410 | E45: 1703357935 | F45: 240157119.3 | G45: 243286498.7 | H45: 158776340.8 | I45: 285265132.5 | J45: 1170383.52
A47: =A45+1 -> 38 | C47: ALLOCATOR #11 | D47: =SUM(E47:J47) -> 1 | E47: =1-SUM(F47:J47) -> 0.64718 | F47: =ROUND(F45/$D$45,5) -> 0.09124 | G47: =ROUND(G45/$D$45,5) -> 0.09243 | H47: =ROUND(H45/$D$45,5) -> 0.06033 | I47: =ROUND(I45/$D$45,5) -> 0.10838 | J47: =ROUND(J45/$D$45,5) -> 0.00044
A49: SOURCE: Exhibit 111, Schedule 1, Page 3. | D49: =IF(ROUND(D45,0)<>ROUND(SUM('Gross Plant in Service'!E27:E39,'Gross Plant in Service'!E42:E66),0),"Out of Balance","") -> Out of Balance

Sheet Alloc 12-Gross Plant
J1: =Input!B15 -> EXHIBIT MPB-2
J2: ALLOC 12
A3: =Input!B1 -> COLUMBIA GAS OF PENNSYLVANIA, INC.
A4: DEVELOPMENT OF ALLOCATION FACTOR 12
A5: GROSS PLANT
J6: Page 1
A7: LINE | B7: ACCT. | D7: GROSS
A8: NO. | B8: NO. | C8: ACCOUNT | D8: PLANT | E8: =Input!$B$17 -> RSS/RDS | F8: =Input!$B$18 -> SGSS1/SCD1/SGDS1 | G8: =Input!$B$19 -> SGSS2/SCD2/SGDS2 | H8: =Input!$B$20 -> SDS/LGSS | I8: =Input!$B$21 -> LDS/LGSS | J8: =Input!$B$22 -> MLDS
A9: 1 | B9: ='Gross Plant in Service'!B4 -> 301 | C9: ='Gross Plant in Service'!C4 -> Organizational Costs | D9: ='Gross Plant in Service'!E4 -> 100099.21
A10: =A9+1 -> 2 | B10: ='Gross Plant in Service'!B5 -> 302.21 | C10: ='Gross Plant in Service'!C5 -> Franchises/Consent, Perpetual | D10: ='Gross Plant in Service'!E5 -> 26488.79
A11: =A10+1 -> 3 | B11: ='Gross Plant in Service'!B6 -> 303 | C11: ='Gross Plant in Service'!C6 -> Misc Intangible Plant | D11: ='Gross Plant in Service'!E6 -> 4809062.23
A12: =A11+1 -> 4 | B12: ='Gross Plant in Service'!B7 -> 303.3 | C12: ='Gross Plant in Service'!C7 -> Misc Software | D12: ='Gross Plant in Service'!E7 -> 35849130.39
A13: =A12+1 -> 5 | B13: ='Gross Plant in Service'!B9 -> 305 | C13: ='Gross Plant in Service'!C9 -> Structures & Improvements | D13: ='Gross Plant in Service'!E9 -> 0
A14: =A13+1 -> 6 | B14: 301-303 | C14: TOTAL INTANGIBLE PLANT | D14: =SUM(D9:D12) -> 40784780.62 | E14: ='Pg 3'!G13 -> 27438860.5 | F14: ='Pg 3'!H13 -> 3868354.4 | G14: ='Pg 3'!I13 -> 3918807.5 | H14: ='Pg 3'!J13 -> 2557845.5 | I14: ='Pg 3'!K13 -> 4595048.8 | J14: ='Pg 3'!L13 -> 18654.9
A16: =A14+1 -> 7 | B16: ='Gross Plant in Service'!B12 -> 350.1 | C16: ='Gross Plant in Service'!C12 -> Land | D16: ='Gross Plant in Service'!E12 -> 23881.54
A17: =A16+1 -> 8 | B17: ='Gross Plant in Service'!B13 -> 350.2 | C17: ='Gross Plant in Service'!C13 -> Rights of Way | D17: ='Gross Plant in Service'!E13 -> 1932.08
A18: 9 | B18: ='Gross Plant in Service'!B14 -> 351.2 | C18: ='Gross Plant in Service'!C14 -> Compressor Station Structures | D18: ='Gross Plant in Service'!E14 -> 3287122.58
A19: 10 | B19: ='Gross Plant in Service'!B15 -> 352.01 | C19: ='Gross Plant in Service'!C15 -> Wells Construction | D19: ='Gross Plant in Service'!E15 -> 799133.73
A20: 11 | B20: ='Gross Plant in Service'!B16 -> 352.02 | C20: ='Gross Plant in Service'!C16 -> Wells Equipment | D20: ='Gross Plant in Service'!E16 -> 168679.67
A21: 12 | B21: ='Gross Plant in Service'!B17 -> 352.1 | C21: ='Gross Plant in Service'!C17 -> Storage Leasehold and Rights | D21: ='Gross Plant in Service'!E17 -> 139442.44
A22: 13 | B22: ='Gross Plant in Service'!B18 -> 352.12 | C22: ='Gross Plant in Service'!C18 -> Other Leases | D22: ='Gross Plant in Service'!E18 -> 67498.34
A23: 14 | B23: ='Gross Plant in Service'!B19 -> 353 | C23: ='Gross Plant in Service'!C19 -> Lines | D23: ='Gross Plant in Service'!E19 -> 399542.52
A24: 15 | B24: ='Gross Plant in Service'!B20 -> 354 | C24: ='Gross Plant in Service'!C20 -> Compressor Station Equipment | D24: ='Gross Plant in Service'!E20 -> 864751.66
A25: 16 | B25: ='Gross Plant in Service'!B21 -> 355 | C25: ='Gross Plant in Service'!C21 -> Measuring & Regulating Equipment | D25: ='Gross Plant in Service'!E21 -> 104476.92
A26: 17 | B26: ='Gross Plant in Service'!B22 -> 362 | C26: ='Gross Plant in Service'!C22 -> Gas Holders | D26: ='Gross Plant in Service'!E22 -> 0
A27: 18 | B27: ='Gross Plant in Service'!B23 -> 362.1 | C27: ='Gross Plant in Service'!C23 -> Environmental Remediation | D27: ='Gross Plant in Service'!E23 -> 0
A28: =A26+1 -> 18 | B28: ='Gross Plant in Service'!B24 -> 350-362 | C28: TOTAL UNDERGROUND STORAGE | D28: =SUM(D16:D27) -> 5856461.48 | E28: ='Pg 3'!G15 -> 4336299.8 | F28: ='Pg 3'!H15 -> 781310.5 | G28: ='Pg 3'!I15 -> 633259.2 | H28: ='Pg 3'!J15 -> 96455.9 | I28: ='Pg 3'!K15 -> 0 | J28: ='Pg 3'!L15 -> 9136.1
A30: =A28+1 -> 19 | B30: ='Gross Plant in Service'!B27 -> 374.1 | C30: ='Gross Plant in Service'!C27 -> LAND - CITY GATE & M/L IND M&R | D30: ='Gross Plant in Service'!E27 -> 21943.54 | E30: ='Pg 3'!G18 -> 12323.9 | F30: ='Pg 3'!H18 -> 2032.410675 | G30: ='Pg 3'!I18 -> 2601.6 | H30: ='Pg 3'!J18 -> 1764.7 | I30: ='Pg 3'!K18 -> 3220.9 | J30: ='Pg 3'!L18 -> 0
A31: =A30+1 -> 20 | B31: ='Gross Plant in Service'!B28 -> 374.2 | C31: ='Gross Plant in Service'!C28 -> LAND - OTHER DISTRIBUTION | D31: ='Gross Plant in Service'!E28 -> 477102.49 | E31: ='Pg 3'!G19 -> 267950.3 | F31: ='Pg 3'!H19 -> 44189.2 | G31: ='Pg 3'!I19 -> 56565.3 | H31: ='Pg 3'!J19 -> 38368.6 | I31: ='Pg 3'!K19 -> 70029.1 | J31: ='Pg 3'!L19 -> 0
A32: 21 | B32: ='Gross Plant in Service'!B29 -> 374.3 | C32: ='Gross Plant in Service'!C29 -> LAND RIGHTS - CITY GATE MAIN LINE | D32: ='Gross Plant in Service'!E29 -> 95360.94 | E32: ='Pg 3'!G20 -> 53556.6 | F32: ='Pg 3'!H20 -> 8832.3 | G32: ='Pg 3'!I20 -> 11306 | H32: ='Pg 3'!J20 -> 7668.9 | I32: ='Pg 3'!K20 -> 13997.1 | J32: ='Pg 3'!L20 -> 0
A33: 22 | B33: ='Gross Plant in Service'!B30 -> 374.4 | C33: ='Gross Plant in Service'!C30 -> LAND RIGHTS - OTHER DISTRIBUTION | D33: ='Gross Plant in Service'!E30 -> 3032712.08 | E33: ='Pg 3'!G21 -> 1703231.8 | F33: ='Pg 3'!H21 -> 280889.8 | G33: ='Pg 3'!I21 -> 359558.3 | H33: ='Pg 3'!J21 -> 243890.7 | I33: ='Pg 3'!K21 -> 445141.5 | J33: ='Pg 3'!L21 -> 0
A34: 23 | B34: ='Gross Plant in Service'!B31 -> 374.4 | C34: ='Gross Plant in Service'!C31 -> DIRECT - LAND RIGHTS-OTHER DISTRIBUTION | D34: ='Gross Plant in Service'!E31 -> 0 | E34: ='Pg 3'!G22 -> 0 | F34: ='Pg 3'!H22 -> 0 | G34: ='Pg 3'!I22 -> 0 | H34: ='Pg 3'!J22 -> 0 | I34: ='Pg 3'!K22 -> 0 | J34: ='Pg 3'!L22 -> 0
A35: 24 | B35: ='Gross Plant in Service'!B32 -> 374.41 | C35: ='Gross Plant in Service'!C32 -> LAND RIGHTS - OTHER DISTRIBUTION LOC | D35: ='Gross Plant in Service'!E32 -> 12.94 | E35: ='Pg 3'!G23 -> 9.8 | F35: ='Pg 3'!H23 -> 1.2 | G35: ='Pg 3'!I23 -> 0 | H35: ='Pg 3'!J23 -> 0 | I35: ='Pg 3'!K23 -> 1.9 | J35: ='Pg 3'!L23 -> 0
A36: 25 | B36: ='Gross Plant in Service'!B33 -> 374.5 | C36: ='Gross Plant in Service'!C33 -> RIGHTS OF WAY | D36: ='Gross Plant in Service'!E33 -> 3233092.34 | E36: ='Pg 3'!G24 -> 1815769.3 | F36: ='Pg 3'!H24 -> 299449 | G36: ='Pg 3'!I24 -> 383315.4 | H36: ='Pg 3'!J24 -> 260005.3 | I36: ='Pg 3'!K24 -> 474553.3 | J36: ='Pg 3'!L24 -> 0
A37: 26 | B37: ='Gross Plant in Service'!B34 -> 374.5 | C37: ='Gross Plant in Service'!C34 -> DIRECT - RIGHTS OF WAY | D37: ='Gross Plant in Service'!E34 -> 50.61 | E37: ='Pg 3'!G25 -> 0 | F37: ='Pg 3'!H25 -> 0 | G37: ='Pg 3'!I25 -> 0 | H37: ='Pg 3'!J25 -> 0 | I37: ='Pg 3'!K25 -> 0 | J37: ='Pg 3'!L25 -> 50.61
A38: 27 | B38: ='Gross Plant in Service'!B35 -> 375.2 | C38: ='Gross Plant in Service'!C35 -> M & R STRUCTURES - CITY GATE | D38: ='Gross Plant in Service'!E35 -> 7026.41 | E38: ='Pg 3'!G26 -> 3946.1 | F38: ='Pg 3'!H26 -> 650.8 | G38: ='Pg 3'!I26 -> 833.1 | H38: ='Pg 3'!J26 -> 565.1 | I38: ='Pg 3'!K26 -> 1031.3 | J38: ='Pg 3'!L26 -> 0
A39: 28 | B39: ='Gross Plant in Service'!B36 -> 375.31 | C39: ='Gross Plant in Service'!C36 -> M & R STRUCTURES - LOCAL GAS PURCH | D39: ='Gross Plant in Service'!E36 -> 4012.39 | E39: ='Pg 3'!G27 -> 2253.5 | F39: ='Pg 3'!H27 -> 371.6 | G39: ='Pg 3'!I27 -> 475.7 | H39: ='Pg 3'!J27 -> 322.7 | I39: ='Pg 3'!K27 -> 588.9 | J39: ='Pg 3'!L27 -> 0
A40: 29 | B40: ='Gross Plant in Service'!B37 -> 375.4 | C40: ='Gross Plant in Service'!C37 -> M & R STRUCTURES - REGULATING | D40: ='Gross Plant in Service'!E37 -> 4752757.57 | E40: ='Pg 3'!G28 -> 2669243.7 | F40: ='Pg 3'!H28 -> 440200.4 | G40: ='Pg 3'!I28 -> 563486.9 | H40: ='Pg 3'!J28 -> 382216.8 | I40: ='Pg 3'!K28 -> 697609.8 | J40: ='Pg 3'!L28 -> 0
